Workbook

Sheet Model
B2: Fremskrivningsmodel for plejeboligbehov | E2: =IF(C4="Favrskov","Bemærk! Manglende data på registerdata for ventetid (AED16)","") -> 
B4: Vælg kommune | C4: =INDEX('Registerdata indskrevne'!B4:B101,D4) -> København | D4: 1 | E4: =IF(C4="Esbjerg","Bemærk! Manglende data på registerdata for ventetid (AED16)","") -> 
E5: =IF(C4="Vesthimmerlands","Bemærk! Manglende dat på registerdata for ventetid (AED16)","") -> 
B6: Forudsætninger | I6: Scenarier
B7: Behovsgrader i kommunen | J7: Ændringer i behovsgraden
B8: Indtast venteliste enten for aldergrupperne eller i alt | D8: Personer | G8: Andel i plejehjemsbolig, DST | L8: I løbet af
C9: Indtast | D9: med behov | E9: Behovsgrad | G9: Kommunen | H9: Landsplan | J9: ="Behovsgrad i "&2023+M10 -> Behovsgrad i 2033 | L9: (helt antal år)
B10: Under 60 år | C10: 0 | D10: =Beregning!H22 -> 50 | E10: =Beregning!K22 -> 0.009068106924 | G10: =Beregning!J22 -> 0.009068106924 | H10: ='Analyse behovsgrad'!K194 -> 0.02126240933 | J10: Under 60 år | K10: ='Analyse behovsgrad'!B13 -> 0.00533001026 | M10: 10
B11: 60-64 år | C11: 0 | D11: =Beregning!H23 -> 83 | E11: =Beregning!K23 -> 0.3299280518 | G11: =Beregning!J23 -> 0.3299280518 | H11: ='Analyse behovsgrad'!K195 -> 0.2977961378 | J11: 60-64 år | K11: ='Analyse behovsgrad'!B14 -> 0.2252505088
B12: 65-66 år | C12: 0 | D12: =Beregning!H24 -> 81 | E12: =Beregning!K24 -> 0.9121621622 | G12: =Beregning!J24 -> 0.9121621622 | H12: ='Analyse behovsgrad'!K196 -> 0.5830378073 | J12: 65-66 år | K12: ='Analyse behovsgrad'!B15 -> 0.8236002694
B13: 67-74 år | C13: 0 | D13: =Beregning!H25 -> 499 | E13: =Beregning!K25 -> 1.641339386 | G13: =Beregning!J25 -> 1.641339386 | H13: ='Analyse behovsgrad'!K197 -> 0.9721595124 | J13: 67-74 år | K13: ='Analyse behovsgrad'!B16 -> 1.488658487
B14: 75-79 år | C14: 0 | D14: =Beregning!H26 -> 583 | E14: =Beregning!K26 -> 3.941852603 | G14: =Beregning!J26 -> 3.941852603 | H14: ='Analyse behovsgrad'!K198 -> 2.30852738 | J14: 75-79 år | K14: ='Analyse behovsgrad'!B17 -> 2.898804591
B15: 80-84 år | C15: 0 | D15: =Beregning!H27 -> 642 | E15: =Beregning!K27 -> 8.369182636 | G15: =Beregning!J27 -> 8.369182636 | H15: ='Analyse behovsgrad'!K199 -> 4.965306275 | J15: 80-84 år | K15: ='Analyse behovsgrad'!B18 -> 5.574847416
B16: 85-89 år | C16: 0 | D16: =Beregning!H28 -> 615 | E16: =Beregning!K28 -> 16.42628205 | G16: =Beregning!J28 -> 16.42628205 | H16: ='Analyse behovsgrad'!K200 -> 10.70413937 | J16: 85-89 år | K16: ='Analyse behovsgrad'!B19 -> 11.63174153
B17: Over 90 år | C17: 0 | D17: =Beregning!H29 -> 842 | E17: =Beregning!K29 -> 35.0249584 | G17: =Beregning!J29 -> 35.0249584 | H17: ='Analyse behovsgrad'!K201 -> 23.53290516 | J17: Over 90 år | K17: ='Analyse behovsgrad'!B20 -> 29.80234301
B18: I alt | C18: 0 | D18: =SUM(D10:D17) -> 3395 | E18: =Beregning!K30 -> 0.5268213354 | G18: =Beregning!J30 -> 0.5268213354 | H18: ='Analyse behovsgrad'!K202 -> 0.7100746664
J19: Vælg evt. scenarie
B21: NB! Hvis der ikke er indtastet en venteliste antages det, at behovet i kommunen er de indskrevne i en plejebolig.
B22: Gns. periode med plejeboligbehov
C23: Indtast
B24: Gns. antal måneder i alt | C24: 36
B26: Plejeboligsituationen pr. 1. januar i udgangsåret | J26: Indtast ønskede ændringer i plejeboligkapacitet:
D28: Antal plejeboliger,DST | J28: Færdiggjort | K28: Nybyg. | L28: Konv. fra | M28: Nedlagt
B29: =Beregning!B99 -> Plejehjem | C29: 1206 | D29: =Beregning!C99 -> 1206 | J29: i (år) | K29: plejebolig | L29: ældrebolig | M29: plejebolig
B30: =Beregning!B100 -> Plejeboliger (2006-) | C30: 2166 | D30: =Beregning!C100 -> 2166
B31: =Beregning!B101 -> Friplejeboliger | C31: 178 | D31: =Beregning!C101 -> 178
B32: =Beregning!B102 -> Andre boliger for ældre | C32: 0 | D32: =Beregning!C102 -> 0
B33: I alt | C33: 3550 | D33: =SUM(D29:D32) -> 3550
D35: Antal almene ældre boliger, DST
B36: Antal almene ældreboliger | C36: 3305 | D36: =Beregning!C105 -> 3305
B38: Tomgang ved fraflytning i plejeboliger | J38: I alt | K38: =SUM(K30:K37) -> 0 | L38: =IF(SUM(L30:L37)>C36,"Fejl!",SUM(L30:L37)) -> 0 | M38: =SUM(M30:M37) -> 0
C39: Indtast
B40: Antal måneder | C40: 1 | J40: Ændring i tomgangskapacitet
B41: - svarende til antal boliger | C41: =MIN(C33,D18)/C24*C40 -> 94.30555556
B42: Udnyttelsesgrad (pct.) | C42: =(1-(C41/C33))*100 -> 97.34350548 | L42: Indtast
J43: Ændres til (md.) | L43: 1
B44: Venteliste | C44: =+Beregning!G30 -> 0 | J44: I løbet af (helt antal år) | L44: 1
B45: Forventet andel som vælger | C45: =IF(ISNUMBER(Beregning!F120), Beregning!F120*100, 100) -> 37.72070626 | D45: Andel på generel venteliste, DST
B46: generel venteliste | D46: =IF(ISNUMBER(Beregning!F120), Beregning!F120*100, "ingen data") -> 37.72070626 | E46: procent
B47: Ledige boliger | C47: =MAX((C33-C41)-D18,0) -> 60.69444444
B49: Hovedtal fra fremskrivning - se mere detaljerede resultater i arket "Resultat"
C50: ='Resultat '!B3 -> 2022 | D50: ='Resultat '!C3 -> 2023 | E50: ='Resultat '!D3 -> 2024 | F50: ='Resultat '!E3 -> 2025 | G50: ='Resultat '!F3 -> 2026 | H50: ='Resultat '!G3 -> 2027 | I50: ='Resultat '!H3 -> 2028 | J50: ='Resultat '!I3 -> 2029 | K50: ='Resultat '!J3 -> 2030 | L50: ='Resultat '!K3 -> 2031
B52: Antal boliger | C52: ='Resultat '!B13 -> 3550 | D52: ='Resultat '!C13 -> 3550 | E52: ='Resultat '!D13 -> 3550 | F52: ='Resultat '!E13 -> 3550 | G52: ='Resultat '!F13 -> 3550 | H52: ='Resultat '!G13 -> 3550 | I52: ='Resultat '!H13 -> 3550 | J52: ='Resultat '!I13 -> 3550 | K52: ='Resultat '!J13 -> 3550 | L52: ='Resultat '!K13 -> 3550
B53: Tomgang ved fraflytning - svarende til antal boliger | C53: ='Resultat '!B16 -> 0 | D53: ='Resultat '!C16 -> 0 | E53: ='Resultat '!D16 -> 0 | F53: ='Resultat '!E16 -> 0 | G53: ='Resultat '!F16 -> 0 | H53: ='Resultat '!G16 -> 0 | I53: ='Resultat '!H16 -> 0 | J53: ='Resultat '!I16 -> 0 | K53: ='Resultat '!J16 -> 0 | L53: ='Resultat '!K16 -> 0
B55: Personer med behov primo året | C55: ='Resultat '!B8 -> 3395 | D55: =Beregning!D69 -> 3383.372641 | E55: =Beregning!E69 -> 3375.67855 | F55: =Beregning!F69 -> 3355.377581 | G55: =Beregning!G69 -> 3370.740527 | H55: =Beregning!H69 -> 3384.709843 | I55: =Beregning!I69 -> 3415.770043 | J55: =Beregning!J69 -> 3455.662982 | K55: =Beregning!K69 -> 3480.04891 | L55: =Beregning!L69 -> 3515.983998
B57: Beboere ultimo året efter udnyttelse af evt. ledige boliger | C57: ='Resultat '!B27 -> 3383.372641 | D57: ='Resultat '!C27 -> 3375.67855 | E57: ='Resultat '!D27 -> 3355.377581 | F57: ='Resultat '!E27 -> 3370.740527 | G57: ='Resultat '!F27 -> 3384.709843 | H57: ='Resultat '!G27 -> 3415.770043 | I57: ='Resultat '!H27 -> 3455.662982 | J57: ='Resultat '!I27 -> 3480.04891 | K57: ='Resultat '!J27 -> 3515.983998 | L57: ='Resultat '!K27 -> 3537.577274
B58: Ledige boliger ultimo året | C58: ='Resultat '!B29 -> 166.6273585 | D58: ='Resultat '!C29 -> 174.3214501 | E58: ='Resultat '!D29 -> 194.6224189 | F58: ='Resultat '!E29 -> 179.259473 | G58: ='Resultat '!F29 -> 165.2901574 | H58: ='Resultat '!G29 -> 134.2299567 | I58: ='Resultat '!H29 -> 94.33701848 | J58: ='Resultat '!I29 -> 69.95109037 | K58: ='Resultat '!J29 -> 34.01600243 | L58: ='Resultat '!K29 -> 12.42272649
B60: Venteliste ultimo året | C60: ='Resultat '!B32 -> 0 | D60: ='Resultat '!C32 -> 0 | E60: ='Resultat '!D32 -> 0 | F60: ='Resultat '!E32 -> 0 | G60: ='Resultat '!F32 -> 0 | H60: ='Resultat '!G32 -> 0 | I60: ='Resultat '!H32 -> 0 | J60: ='Resultat '!I32 -> 0 | K60: ='Resultat '!J32 -> 0 | L60: ='Resultat '!K32 -> 0
B61: ="-heraf på generel venteliste" -> -heraf på generel venteliste | C61: ='Resultat '!B33 -> 0 | D61: ='Resultat '!C33 -> 0 | E61: ='Resultat '!D33 -> 0 | F61: ='Resultat '!E33 -> 0 | G61: ='Resultat '!F33 -> 0 | H61: ='Resultat '!G33 -> 0 | I61: ='Resultat '!H33 -> 0 | J61: ='Resultat '!I33 -> 0 | K61: ='Resultat '!J33 -> 0 | L61: ='Resultat '!K33 -> 0
B63: Gns. ventetid alle (md.) | C63: ='Resultat '!B35 -> 0 | D63: ='Resultat '!C35 -> 0 | E63: ='Resultat '!D35 -> 0 | F63: ='Resultat '!E35 -> 0 | G63: ='Resultat '!F35 -> 0 | H63: ='Resultat '!G35 -> 0 | I63: ='Resultat '!H35 -> 0 | J63: ='Resultat '!I35 -> 0 | K63: ='Resultat '!J35 -> 0 | L63: ='Resultat '!K35 -> 0
B64: Gns. Ventetid generel venteliste (md.) | C64: ='Resultat '!B47 -> 0 | D64: ='Resultat '!C47 -> 0 | E64: ='Resultat '!D47 -> 0 | F64: ='Resultat '!E47 -> 0 | G64: ='Resultat '!F47 -> 0 | H64: ='Resultat '!G47 -> 0 | I64: ='Resultat '!H47 -> 0 | J64: ='Resultat '!I47 -> 0 | K64: ='Resultat '!J47 -> 0 | L64: ='Resultat '!K47 -> 0
B66: Antal boliger for at reducere ventelisten til 2 måneder | C66: ='Resultat '!B44 -> 0 | D66: ='Resultat '!C44 -> 0 | E66: ='Resultat '!D44 -> 0 | F66: ='Resultat '!E44 -> 0 | G66: ='Resultat '!F44 -> 0 | H66: ='Resultat '!G44 -> 0 | I66: ='Resultat '!H44 -> 0 | J66: ='Resultat '!I44 -> 0 | K66: ='Resultat '!J44 -> 0 | L66: ='Resultat '!K44 -> 0
B67: Antal boliger for at reducere den generelle venteliste til 2 måneder | C67: ='Resultat '!B55 -> 0 | D67: ='Resultat '!C55 -> 0 | E67: ='Resultat '!D55 -> 0 | F67: ='Resultat '!E55 -> 0 | G67: ='Resultat '!F55 -> 0 | H67: ='Resultat '!G55 -> 0 | I67: ='Resultat '!H55 -> 0 | J67: ='Resultat '!I55 -> 0 | K67: ='Resultat '!J55 -> 0 | L67: ='Resultat '!K55 -> 0
B68: NB! Den indtastede venteliste bruges i beregningen af behovsgrad i 2022, som vi fremskriver ud fra. Den indgår først i opgørelsen ultimo 2022/primo 2023.
B69: Gns. Ventetid er estimeret ud fra ventelisten ultimo året, afgang i behov og afgang i boliger.

Sheet Resultat
A2: Resultat: Fremskrivning af plejeboligbehov
B3: =Beregning!A2 -> 2022 | C3: =B3+1 -> 2023 | D3: 2024 | E3: 2025 | F3: 2026 | G3: 2027 | H3: 2028 | I3: 2029 | J3: 2030 | K3: 2031 | L3: 2032 | M3: 2033 | N3: 2034 | O3: 2035 | P3: 2036 | Q3: 2037 | R3: 2038 | S3: 2039 | T3: 2040 | U3: 2041 | V3: 2042 | W3: 2043 | X3: =W3+1 -> 2044 | Y3: =X3+1 -> 2045
B4: (Udgangspunkt)
A5: Venteliste primo året | B5: 0 | C5: =B32 -> 0 | D5: =C32 -> 0 | E5: =D32 -> 0 | F5: 0 | G5: 0 | H5: 0 | I5: 0 | J5: 0 | K5: 0 | L5: 0 | M5: 0 | N5: 232.5524399 | O5: 378.623724 | P5: 504.427425 | Q5: 644.1157628 | R5: 776.0019798 | S5: 901.8511674 | T5: 1018.253651 | U5: 1113.970013 | V5: 1225.19858 | W5: 1329.605734 | X5: 1429.922177 | Y5: 1540.441988
A7: Beboere primo året | B7: =MIN(B8,B13) -> 3395 | C7: =MIN(C8,C13-C16) -> 3383.372641 | D7: =MIN(D8,D13-D16) -> 3375.67855 | E7: 3355.377581 | F7: 3370.740527 | G7: 3384.709843 | H7: 3415.770043 | I7: 3455.662982 | J7: 3480.04891 | K7: 3515.983998 | L7: 3537.577274 | M7: 3451.388889 | N7: 3451.388889 | O7: 3451.388889 | P7: 3451.388889 | Q7: 3451.388889 | R7: 3451.388889 | S7: 3451.388889 | T7: 3451.388889 | U7: 3451.388889 | V7: 3451.388889 | W7: 3451.388889 | X7: 3451.388889 | Y7: =MIN(Y8,Y13) -> 3550
A8: Antal borgere i kommunen med behov | B8: =Beregning!F30 -> 3395 | C8: =Beregning!D69 -> 3383.372641 | D8: =Beregning!E69 -> 3375.67855 | E8: =Beregning!F69 -> 3355.377581 | F8: =Beregning!G69 -> 3370.740527 | G8: =Beregning!H69 -> 3384.709843 | H8: =Beregning!I69 -> 3415.770043 | I8: =Beregning!J69 -> 3455.662982 | J8: =Beregning!K69 -> 3480.04891 | K8: =Beregning!L69 -> 3515.983998 | L8: =Beregning!M69 -> 3537.577274 | M8: =Beregning!N69 -> 3683.941329 | N8: =Beregning!O69 -> 3830.012613 | O8: =Beregning!P69 -> 3955.816314 | P8: =Beregning!Q69 -> 4095.504652 | Q8: =Beregning!R69 -> 4227.390869 | R8: =Beregning!S69 -> 4353.240056 | S8: =Beregning!T69 -> 4469.64254 | T8: =Beregning!U69 -> 4565.358902 | U8: =Beregning!V69 -> 4676.587468 | V8: =Beregning!W69 -> 4780.994623 | W8: =Beregning!X69 -> 4881.311066 | X8: =Beregning!Y69 -> 4991.830877 | Y8: =Beregning!Z69 -> 5094.109786
A10: Nyetablerede plejeboliger | B10: =Beregning!C110 -> 0 | C10: =Beregning!D110 -> 0 | D10: =Beregning!E110 -> 0 | E10: =Beregning!F110 -> 0 | F10: =Beregning!G110 -> 0 | G10: =Beregning!H110 -> 0 | H10: =Beregning!I110 -> 0 | I10: =Beregning!J110 -> 0 | J10: =Beregning!K110 -> 0 | K10: =Beregning!L110 -> 0 | L10: =Beregning!M110 -> 0 | M10: =Beregning!N110 -> 0 | N10: =Beregning!O110 -> 0 | O10: =Beregning!P110 -> 0 | P10: =Beregning!Q110 -> 0 | Q10: =Beregning!R110 -> 0 | R10: =Beregning!S110 -> 0 | S10: =Beregning!T110 -> 0 | T10: =Beregning!U110 -> 0 | U10: =Beregning!V110 -> 0 | V10: =Beregning!W110 -> 0 | W10: =Beregning!X110 -> 0 | X10: =Beregning!Y110 -> 0 | Y10: =Beregning!Z110 -> 0
A11: Konverterede ældreboliger | B11: =Beregning!C111 -> 0 | C11: =Beregning!D111 -> 0 | D11: =Beregning!E111 -> 0 | E11: =Beregning!F111 -> 0 | F11: =Beregning!G111 -> 0 | G11: =Beregning!H111 -> 0 | H11: =Beregning!I111 -> 0 | I11: =Beregning!J111 -> 0 | J11: =Beregning!K111 -> 0 | K11: =Beregning!L111 -> 0 | L11: =Beregning!M111 -> 0 | M11: =Beregning!N111 -> 0 | N11: =Beregning!O111 -> 0 | O11: =Beregning!P111 -> 0 | P11: =Beregning!Q111 -> 0 | Q11: =Beregning!R111 -> 0 | R11: =Beregning!S111 -> 0 | S11: =Beregning!T111 -> 0 | T11: =Beregning!U111 -> 0 | U11: =Beregning!V111 -> 0 | V11: =Beregning!W111 -> 0 | W11: =Beregning!X111 -> 0 | X11: =Beregning!Y111 -> 0 | Y11: =Beregning!Z111 -> 0
A12: Nedlagte plejeboliger | B12: =Beregning!C112 -> 0 | C12: =Beregning!D112 -> 0 | D12: =Beregning!E112 -> 0 | E12: =Beregning!F112 -> 0 | F12: =Beregning!G112 -> 0 | G12: =Beregning!H112 -> 0 | H12: =Beregning!I112 -> 0 | I12: =Beregning!J112 -> 0 | J12: =Beregning!K112 -> 0 | K12: =Beregning!L112 -> 0 | L12: =Beregning!M112 -> 0 | M12: =Beregning!N112 -> 0 | N12: =Beregning!O112 -> 0 | O12: =Beregning!P112 -> 0 | P12: =Beregning!Q112 -> 0 | Q12: =Beregning!R112 -> 0 | R12: =Beregning!S112 -> 0 | S12: =Beregning!T112 -> 0 | T12: =Beregning!U112 -> 0 | U12: =Beregning!V112 -> 0 | V12: =Beregning!W112 -> 0 | W12: =Beregning!X112 -> 0 | X12: =Beregning!Y112 -> 0 | Y12: =Beregning!Z112 -> 0
A13: Antal boliger i alt | B13: =Model!C33+B10+B11-B12 -> 3550 | C13: =B13+C10+C11-C12 -> 3550 | D13: 3550 | E13: 3550 | F13: 3550 | G13: 3550 | H13: 3550 | I13: 3550 | J13: 3550 | K13: 3550 | L13: 3550 | M13: 3550 | N13: 3550 | O13: 3550 | P13: 3550 | Q13: 3550 | R13: 3550 | S13: 3550 | T13: 3550 | U13: 3550 | V13: 3550 | W13: 3550 | X13: 3550 | Y13: 3550
A15: Tomgang ved fraflytning (md.) | B15: =Beregning!C114 -> 1 | C15: =Beregning!D114 -> 1 | D15: =Beregning!E114 -> 1 | E15: =Beregning!F114 -> 1 | F15: =Beregning!G114 -> 1 | G15: =Beregning!H114 -> 1 | H15: =Beregning!I114 -> 1 | I15: =Beregning!J114 -> 1 | J15: =Beregning!K114 -> 1 | K15: =Beregning!L114 -> 1 | L15: =Beregning!M114 -> 1 | M15: =Beregning!N114 -> 1 | N15: =Beregning!O114 -> 1 | O15: =Beregning!P114 -> 1 | P15: =Beregning!Q114 -> 1 | Q15: =Beregning!R114 -> 1 | R15: =Beregning!S114 -> 1 | S15: =Beregning!T114 -> 1 | T15: =Beregning!U114 -> 1 | U15: =Beregning!V114 -> 1 | V15: =Beregning!W114 -> 1 | W15: =Beregning!X114 -> 1 | X15: =Beregning!Y114 -> 1 | Y15: =Beregning!Z114 -> 1
A16: - svarende til antal boliger (Pr. måned) | B16: =Beregning!C115 -> 0 | C16: =Beregning!D115 -> 0 | D16: =Beregning!E115 -> 0 | E16: =Beregning!F115 -> 0 | F16: =Beregning!G115 -> 0 | G16: =Beregning!H115 -> 0 | H16: =Beregning!I115 -> 0 | I16: =Beregning!J115 -> 0 | J16: =Beregning!K115 -> 0 | K16: =Beregning!L115 -> 0 | L16: =Beregning!M115 -> 0 | M16: =Beregning!N115 -> 98.61111111 | N16: =Beregning!O115 -> 98.61111111 | O16: =Beregning!P115 -> 98.61111111 | P16: =Beregning!Q115 -> 98.61111111 | Q16: =Beregning!R115 -> 98.61111111 | R16: =Beregning!S115 -> 98.61111111 | S16: =Beregning!T115 -> 98.61111111 | T16: =Beregning!U115 -> 98.61111111 | U16: =Beregning!V115 -> 98.61111111 | V16: =Beregning!W115 -> 98.61111111 | W16: =Beregning!X115 -> 98.61111111 | X16: =Beregning!Y115 -> 98.61111111 | Y16: =Beregning!Z115 -> 98.61111111
A18: Behovsgrad pr. over 60-årig (pct.) | B18: =Beregning!C54 -> 3.594918752 | C18: =Beregning!D54 -> 3.500282838 | D18: =Beregning!E54 -> 3.402252415 | E18: =Beregning!F54 -> 3.308124901 | F18: =Beregning!G54 -> 3.233540575 | G18: =Beregning!H54 -> 3.156805393 | H18: =Beregning!I54 -> 3.107773964 | I18: =Beregning!J54 -> 3.081548417 | J18: =Beregning!K54 -> 3.049301836 | K18: =Beregning!L54 -> 3.025282767 | L18: =Beregning!M54 -> 2.983981712 | M18: =Beregning!N54 -> 3.03927562 | N18: =Beregning!O54 -> 3.099293865 | O18: =Beregning!P54 -> 3.136986458 | P18: =Beregning!Q54 -> 3.186457801 | Q18: =Beregning!R54 -> 3.242065314 | R18: =Beregning!S54 -> 3.300291269 | S18: =Beregning!T54 -> 3.346717359 | T18: =Beregning!U54 -> 3.381396213 | U18: =Beregning!V54 -> 3.431922015 | V18: =Beregning!W54 -> 3.485510512 | W18: =Beregning!X54 -> 3.538933965 | X18: =Beregning!Y54 -> 3.602503483 | Y18: =Beregning!Z54 -> 3.657515538
A19: Ændring ift. udgangsniveau (pct.point) | B19: =Beregning!C57 -> 0 | C19: =Beregning!D57 -> -0.08183958324 | D19: =Beregning!E57 -> -0.1654417226 | E19: =Beregning!F57 -> -0.2509276361 | F19: =Beregning!G57 -> -0.3394395966 | G19: =Beregning!H57 -> -0.4290750495 | H19: =Beregning!I57 -> -0.524248233 | I19: =Beregning!J57 -> -0.6237374587 | J19: =Beregning!K57 -> -0.7236299878 | K19: =Beregning!L57 -> -0.8285661447 | L19: =Beregning!M57 -> -0.9327542512 | M19: =Beregning!N57 -> -0.9407070755 | N19: =Beregning!O57 -> -0.9494091569 | O19: =Beregning!P57 -> -0.9510606794 | P19: =Beregning!Q57 -> -0.9562894349 | Q19: =Beregning!R57 -> -0.9641252123 | R19: =Beregning!S57 -> -0.9731918384 | S19: =Beregning!T57 -> -0.9847536106 | T19: =Beregning!U57 -> -0.9968471692 | U19: =Beregning!V57 -> -1.01338997 | V19: =Beregning!W57 -> -1.034082586 | W19: =Beregning!X57 -> -1.054533894 | X19: =Beregning!Y57 -> -1.077494494 | Y19: =Beregning!Z57 -> -1.099842891
A21: Nyvisiterede i løbet af året (Behov) | B21: =Beregning!C94 -> 1120.039308 | C21: =Beregning!D94 -> 1120.096789 | D21: =Beregning!E94 -> 1104.925215 | E21: =Beregning!F94 -> 1133.82214 | F21: =Beregning!G94 -> 1137.549491 | G21: =Beregning!H94 -> 1159.296815 | H21: =Beregning!I94 -> 1178.482953 | I21: =Beregning!J94 -> 1176.273589 | J21: =Beregning!K94 -> 1195.951391 | K21: =Beregning!L94 -> 1193.587942 | L21: =Beregning!M94 -> 1325.55648 | M21: =Beregning!N94 -> 1374.051727 | N21: =Beregning!O94 -> 1402.474572 | O21: =Beregning!P94 -> 1458.293776 | P21: =Beregning!Q94 -> 1497.054434 | Q21: =Beregning!R94 -> 1534.979477 | R21: =Beregning!S94 -> 1567.482502 | S21: =Beregning!T94 -> 1585.597209 | T21: =Beregning!U94 -> 1633.014867 | U21: =Beregning!V94 -> 1663.269644 | V21: =Beregning!W94 -> 1693.981317 | W21: =Beregning!X94 -> 1737.6235 | X21: =Beregning!Y94 -> 1766.222535 | Y21: =Beregning!Z94 -> 0
A22: Afgang i boliger i løbet af året | B22: =Beregning!C81 -> 1131.666667 | C22: =Beregning!D81 -> 1127.79088 | D22: =Beregning!E81 -> 1125.226183 | E22: =Beregning!F81 -> 1118.459194 | F22: =Beregning!G81 -> 1123.580176 | G22: =Beregning!H81 -> 1128.236614 | H22: =Beregning!I81 -> 1138.590014 | I22: =Beregning!J81 -> 1151.887661 | J22: =Beregning!K81 -> 1160.016303 | K22: =Beregning!L81 -> 1171.994666 | L22: =Beregning!M81 -> 1179.192425 | M22: =Beregning!N81 -> 1183.333333 | N22: =Beregning!O81 -> 1183.333333 | O22: =Beregning!P81 -> 1183.333333 | P22: =Beregning!Q81 -> 1183.333333 | Q22: =Beregning!R81 -> 1183.333333 | R22: =Beregning!S81 -> 1183.333333 | S22: =Beregning!T81 -> 1183.333333 | T22: =Beregning!U81 -> 1183.333333 | U22: =Beregning!V81 -> 1183.333333 | V22: =Beregning!W81 -> 1183.333333 | W22: =Beregning!X81 -> 1183.333333 | X22: =Beregning!Y81 -> 1183.333333
A23: Afgang i behov i løbet af året | B23: =Beregning!C82 -> 1131.666667 | C23: =Beregning!D82 -> 1127.79088 | D23: =Beregning!E82 -> 1125.226183 | E23: =Beregning!F82 -> 1118.459194 | F23: =Beregning!G82 -> 1123.580176 | G23: =Beregning!H82 -> 1128.236614 | H23: =Beregning!I82 -> 1138.590014 | I23: =Beregning!J82 -> 1151.887661 | J23: =Beregning!K82 -> 1160.016303 | K23: =Beregning!L82 -> 1171.994666 | L23: =Beregning!M82 -> 1179.192425 | M23: =Beregning!N82 -> 1227.980443 | N23: =Beregning!O82 -> 1276.670871 | O23: =Beregning!P82 -> 1318.605438 | P23: =Beregning!Q82 -> 1365.168217 | Q23: =Beregning!R82 -> 1409.13029 | R23: =Beregning!S82 -> 1451.080019 | S23: =Beregning!T82 -> 1489.880847 | T23: =Beregning!U82 -> 1521.786301 | U23: =Beregning!V82 -> 1558.862489 | V23: =Beregning!W82 -> 1593.664874 | W23: =Beregning!X82 -> 1627.103689 | X23: =Beregning!Y82 -> 1663.943626 | Y23: =Beregning!Z81 -> 1183.333333
A25: Beboere efter nettotilgang | B25: =MIN(B13-B16,B7-B23+B21) -> 3383.372641 | C25: =MIN(C13-C16,C7-C23+C21) -> 3375.67855 | D25: =MIN(D13-D16,D7-D23+D21) -> 3355.377581 | E25: =MIN(E13-E16,E7-E23+E21) -> 3370.740527 | F25: =MIN(F13-F16,F7-F23+F21) -> 3384.709843 | G25: 3415.770043 | H25: 3455.662982 | I25: 3480.04891 | J25: 3515.983998 | K25: 3537.577274 | L25: 3550 | M25: 3451.388889 | N25: 3451.388889 | O25: 3451.388889 | P25: 3451.388889 | Q25: 3451.388889 | R25: 3451.388889 | S25: 3451.388889 | T25: 3451.388889 | U25: 3451.388889 | V25: 3451.388889 | W25: 3451.388889 | X25: 3451.388889 | Y25: 2366.666667
A27: Beboere efter udnyttelse af evt. ledige boliger | B27: =B25+MIN(B5,B13-B16-B25) -> 3383.372641 | C27: =C25+MIN(C5,C13-C16-C25) -> 3375.67855 | D27: =D25+MIN(D5,D13-D16-D25) -> 3355.377581 | E27: =E25+MIN(E5,E13-E16-E25) -> 3370.740527 | F27: =F25+MIN(F5,F13-F16-F25) -> 3384.709843 | G27: 3415.770043 | H27: 3455.662982 | I27: 3480.04891 | J27: 3515.983998 | K27: 3537.577274 | L27: 3550 | M27: 3451.388889 | N27: 3451.388889 | O27: 3451.388889 | P27: 3451.388889 | Q27: 3451.388889 | R27: 3451.388889 | S27: 3451.388889 | T27: 3451.388889 | U27: 3451.388889 | V27: 3451.388889 | W27: 3451.388889 | X27: 3451.388889 | Y27: 3451.388889
A29: Ledige boliger ultimo året | B29: =B13-B16-B27 -> 166.6273585 | C29: 174.3214501 | D29: 194.6224189 | E29: 179.259473 | F29: 165.2901574 | G29: 134.2299567 | H29: 94.33701848 | I29: 69.95109037 | J29: 34.01600243 | K29: 12.42272649 | L29: 0 | M29: 0 | N29: 0 | O29: 0 | P29: 0 | Q29: 0 | R29: 0 | S29: 0 | T29: 0 | U29: 0 | V29: 0 | W29: 0 | X29: 0 | Y29: 0
A32: Venteliste ultimo året, personer | B32: =MAX(B8+B16-B13,0)+Model!C18 -> 0 | C32: =MAX(C8+C16-C13,0) -> 0 | D32: =MAX(D8+D16-D13,0) -> 0 | E32: 0 | F32: 0 | G32: 0 | H32: 0 | I32: 0 | J32: 0 | K32: 0 | L32: 0 | M32: 232.5524399 | N32: 378.623724 | O32: 504.427425 | P32: 644.1157628 | Q32: 776.0019798 | R32: 901.8511674 | S32: 1018.253651 | T32: 1113.970013 | U32: 1225.19858 | V32: 1329.605734 | W32: 1429.922177 | X32: 1540.441988 | Y32: 1642.720898
A33: ="-heraf på generel venteliste" -> -heraf på generel venteliste | B33: =B32*Model!$C$45/100 -> 0 | C33: =C32*Model!$C$45/100 -> 0 | D33: =D32*Model!$C$45/100 -> 0 | E33: =E32*Model!$C$45/100 -> 0 | F33: =F32*Model!$C$45/100 -> 0 | G33: =G32*Model!$C$45/100 -> 0 | H33: =H32*Model!$C$45/100 -> 0 | I33: =I32*Model!$C$45/100 -> 0 | J33: =J32*Model!$C$45/100 -> 0 | K33: =K32*Model!$C$45/100 -> 0 | L33: =L32*Model!$C$45/100 -> 0 | M33: =M32*Model!$C$45/100 -> 87.72042276 | N33: =N32*Model!$C$45/100 -> 142.8195428 | O33: =O32*Model!$C$45/100 -> 190.2735873 | P33: =P32*Model!$C$45/100 -> 242.9650149 | Q33: =Q32*Model!$C$45/100 -> 292.7134274 | R33: =R32*Model!$C$45/100 -> 340.1846298 | S33: =S32*Model!$C$45/100 -> 384.0924687 | T33: =T32*Model!$C$45/100 -> 420.1973564 | U33: =U32*Model!$C$45/100 -> 462.1535573 | V33: =V32*Model!$C$45/100 -> 501.5366733 | W33: =W32*Model!$C$45/100 -> 539.3767442 | X33: =X32*Model!$C$45/100 -> 581.0655974 | Y33: =Y32*Model!$C$45/100 -> 619.6459244
A35: Gns. ventetid ultimo året (md.) | B35: =MAX(B32/(B23/12),0) -> 0 | C35: =MAX(C32/(C23/12),0) -> 0 | D35: 0 | E35: 0 | F35: 0 | G35: 0 | H35: 0 | I35: 0 | J35: 0 | K35: 0 | L35: 0 | M35: 2.272535605 | N35: 3.558853571 | O35: 4.590553722 | P35: 5.661858411 | Q35: 6.608348303 | R35: 7.458040817 | S35: 8.201356396 | T35: 8.784176957 | U35: 9.431481644 | V35: 10.0116838 | W35: 10.54577299 | X35: 11.10933302 | Y35: =MAX(ROUND(Y32/(Y23/12),1),0) -> 16.7
A36: Gns. Ventetid ultimo året (Boliger) | B36: =B35*(B$22/12) -> 0 | C36: =C35*(C$22/12) -> 0 | D36: =D35*(D$22/12) -> 0 | E36: 0 | F36: 0 | G36: 0 | H36: 0 | I36: 0 | J36: 0 | K36: 0 | L36: 0 | M36: 224.0972611 | N36: 350.9425049 | O36: 452.6796031 | P36: 558.3221489 | Q36: 651.6565688 | R36: 735.4456917 | S36: 808.7448669 | T36: 866.2174499 | U36: 930.0488843 | V36: 987.2632638 | W36: 1039.930392 | X36: 1095.503672
A38: Grænse for ventetid (Måneder) | B38: 2 | C38: 2 | D38: 2 | E38: 2 | F38: 2 | G38: 2 | H38: 2 | I38: 2 | J38: 2 | K38: 2 | L38: 2 | M38: 2 | N38: 2 | O38: 2 | P38: 2 | Q38: 2 | R38: 2 | S38: 2 | T38: 2 | U38: 2 | V38: 2 | W38: 2 | X38: 2
A39: Grænse for ventetid (Boliger) | B39: =B38*(B$22/12) -> 188.6111111 | C39: =C38*(C$22/12) -> 187.9651467 | D39: 187.5376972 | E39: 186.4098656 | F39: 187.2633626 | G39: 188.0394357 | H39: 189.7650024 | I39: 191.9812768 | J39: 193.3360505 | K39: 195.3324443 | L39: 196.5320708 | M39: 197.2222222 | N39: 197.2222222 | O39: 197.2222222 | P39: 197.2222222 | Q39: 197.2222222 | R39: 197.2222222 | S39: 197.2222222 | T39: 197.2222222 | U39: 197.2222222 | V39: 197.2222222 | W39: 197.2222222 | X39: 197.2222222 | Y39: 0
A41: Overskredet grænse (I antal boliger) | B41: =MAX(B36-B39,0) -> 0 | C41: =MAX(C36-C39,0) -> 0 | D41: =MAX(D36-D39,0) -> 0 | E41: 0 | F41: 0 | G41: 0 | H41: 0 | I41: 0 | J41: 0 | K41: 0 | L41: 0 | M41: 26.87503884 | N41: 153.7202827 | O41: 255.4573809 | P41: 361.0999267 | Q41: 454.4343465 | R41: 538.2234695 | S41: 611.5226447 | T41: 668.9952277 | U41: 732.8266621 | V41: 790.0410416 | W41: 842.7081694 | X41: 898.2814502 | Y41: =IF(Y36>Y39,Y36-Y39,0) -> 0
A42: Tomgang | B42: =B15*(B41/Model!$C$24) -> 0 | C42: =C15*(C41/Model!$C$24) -> 0 | D42: =D15*(D41/Model!$C$24) -> 0 | E42: =E15*(E41/Model!$C$24) -> 0 | F42: =F15*(F41/Model!$C$24) -> 0 | G42: =G15*(G41/Model!$C$24) -> 0 | H42: =H15*(H41/Model!$C$24) -> 0 | I42: =I15*(I41/Model!$C$24) -> 0 | J42: =J15*(J41/Model!$C$24) -> 0 | K42: =K15*(K41/Model!$C$24) -> 0 | L42: =L15*(L41/Model!$C$24) -> 0 | M42: =M15*(M41/Model!$C$24) -> 0.7465288566 | N42: =N15*(N41/Model!$C$24) -> 4.270007852 | O42: =O15*(O41/Model!$C$24) -> 7.096038358 | P42: =P15*(P41/Model!$C$24) -> 10.03055352 | Q42: =Q15*(Q41/Model!$C$24) -> 12.62317629 | R42: =R15*(R41/Model!$C$24) -> 14.95065193 | S42: =S15*(S41/Model!$C$24) -> 16.98674013 | T42: =T15*(T41/Model!$C$24) -> 18.58320077 | U42: =U15*(U41/Model!$C$24) -> 20.35629617 | V42: =V15*(V41/Model!$C$24) -> 21.94558449 | W42: =W15*(W41/Model!$C$24) -> 23.40856026 | X42: =X15*(X41/Model!$C$24) -> 24.95226251
A44: Boliger som skal bygges for at reducere ventelisten til 2 måneder | B44: =B42+B41 -> 0 | C44: =C42+C41 -> 0 | D44: =D42+D41 -> 0 | E44: 0 | F44: 0 | G44: 0 | H44: 0 | I44: 0 | J44: 0 | K44: 0 | L44: 0 | M44: 27.62156769 | N44: 157.9902905 | O44: 262.5534192 | P44: 371.1304802 | Q44: 467.0575228 | R44: 553.1741214 | S44: 628.5093848 | T44: 687.5784284 | U44: 753.1829583 | V44: 811.986626 | W44: 866.1167297 | X44: 923.2337127
A46: Hvis kun den generelle venteliste havde behov
A47: Gns. ventetid ultimo året (md.) | B47: =MAX(B33/(B23/12),0) -> 0 | C47: =MAX(C33/(C23/12),0) -> 0 | D47: =MAX(D33/(D23/12),0) -> 0 | E47: 0 | F47: 0 | G47: 0 | H47: 0 | I47: 0 | J47: 0 | K47: 0 | L47: 0 | M47: 0.8572164803 | N47: 1.342424702 | O47: 1.731589285 | P47: 2.13569298 | Q47: 2.492715652 | R47: 2.813225669 | S47: 3.093609556 | T47: 3.313453587 | U47: 3.557621487 | V47: 3.776477839 | W47: 3.977940051 | X47: 4.190518874
A48: Gns. ventetid ultimo året (Boliger) | B48: =B47*(B$22/12) -> 0 | C48: =C47*(C$22/12) -> 0 | D48: =D47*(D$22/12) -> 0 | E48: 0 | F48: 0 | G48: 0 | H48: 0 | I48: 0 | J48: 0 | K48: 0 | L48: 0 | M48: 84.53106958 | N48: 132.3779914 | O48: 170.7539434 | P48: 210.6030578 | Q48: 245.8094601 | R48: 277.4153091 | S48: 305.0642756 | T48: 326.7433398 | U48: 350.8210077 | V48: 372.4026757 | W48: 392.2690883 | X48: 413.2317223 | Y48: =Y47*(Y$23/12) -> 0
A50: Grænse for ventetid (Måneder) | B50: 2 | C50: 2 | D50: 2 | E50: 2 | F50: 2 | G50: 2 | H50: 2 | I50: 2 | J50: 2 | K50: 2 | L50: 2 | M50: 2 | N50: 2 | O50: 2 | P50: 2 | Q50: 2 | R50: 2 | S50: 2 | T50: 2 | U50: 2 | V50: 2 | W50: 2 | X50: 2
A51: Grænse for ventetid (Boliger) | B51: =B50*(B$22/12) -> 188.6111111 | C51: =C38*(C$22/12) -> 187.9651467 | D51: =D38*(D$22/12) -> 187.5376972 | E51: 186.4098656 | F51: 187.2633626 | G51: 188.0394357 | H51: 189.7650024 | I51: 191.9812768 | J51: 193.3360505 | K51: 195.3324443 | L51: 196.5320708 | M51: 197.2222222 | N51: 197.2222222 | O51: 197.2222222 | P51: 197.2222222 | Q51: 197.2222222 | R51: 197.2222222 | S51: 197.2222222 | T51: 197.2222222 | U51: 197.2222222 | V51: 197.2222222 | W51: 197.2222222 | X51: 197.2222222
A53: Overskredet grænse (I antal boliger) | B53: =MAX(B48-B51,0) -> 0 | C53: =MAX(C48-C51,0) -> 0 | D53: =MAX(D48-D51,0) -> 0 | E53: 0 | F53: 0 | G53: 0 | H53: 0 | I53: 0 | J53: 0 | K53: 0 | L53: 0 | M53: 0 | N53: 0 | O53: 0 | P53: 13.38083554 | Q53: 48.5872379 | R53: 80.19308684 | S53: 107.8420534 | T53: 129.5211176 | U53: 153.5987855 | V53: 175.1804535 | W53: 195.0468661 | X53: 216.0095001
A54: Tomgang | B54: =B15*(B53/Model!$C$24) -> 0 | C54: =C15*(C53/Model!$C$24) -> 0 | D54: =D15*(D53/Model!$C$24) -> 0 | E54: =E15*(E53/Model!$C$24) -> 0 | F54: =F15*(F53/Model!$C$24) -> 0 | G54: =G15*(G53/Model!$C$24) -> 0 | H54: =H15*(H53/Model!$C$24) -> 0 | I54: =I15*(I53/Model!$C$24) -> 0 | J54: =J15*(J53/Model!$C$24) -> 0 | K54: =K15*(K53/Model!$C$24) -> 0 | L54: =L15*(L53/Model!$C$24) -> 0 | M54: =M15*(M53/Model!$C$24) -> 0 | N54: =N15*(N53/Model!$C$24) -> 0 | O54: =O15*(O53/Model!$C$24) -> 0 | P54: =P15*(P53/Model!$C$24) -> 0.3716898762 | Q54: =Q15*(Q53/Model!$C$24) -> 1.349645497 | R54: =R15*(R53/Model!$C$24) -> 2.227585746 | S54: =S15*(S53/Model!$C$24) -> 2.995612595 | T54: =T15*(T53/Model!$C$24) -> 3.597808823 | U54: =U15*(U53/Model!$C$24) -> 4.266632931 | V54: =V15*(V53/Model!$C$24) -> 4.866123709 | W54: =W15*(W53/Model!$C$24) -> 5.417968503 | X54: =X15*(X53/Model!$C$24) -> 6.000263892
A55: Boliger som skal bygges for at reducere den generelle venteliste til 2 måneder | B55: =B53+B54 -> 0 | C55: =C53+C54 -> 0 | D55: =D53+D54 -> 0 | E55: 0 | F55: 0 | G55: 0 | H55: 0 | I55: 0 | J55: 0 | K55: 0 | L55: 0 | M55: 0 | N55: 0 | O55: 0 | P55: 13.75252542 | Q55: 49.9368834 | R55: 82.42067259 | S55: 110.837666 | T55: 133.1189264 | U55: 157.8654184 | V55: 180.0465772 | W55: 200.4648346 | X55: 222.009764

Sheet Analyse behovsgrad (hidden)
A2: Scenarier:
A3: Ingen udvikling i behovsgrad
A4: Tilpasning til aktuelt landsgennemsnit for indskrevne
A5: Gennemsnitlig ændring i beboere 2018-2022, hele landet
A7: Valgt scenarie:
A8: 3
A10: Over antal år:
A11: =Model!M10 -> 10
A13: Under 60 år | B13: =IF($A$8=1,Model!E10,IF($A$8=2,K194,IF($A$8=3,D175,""))) -> 0.00533001026
A14: 60-64 år | B14: =IF($A$8=1,Model!E11,IF($A$8=2,K195,IF($A$8=3,D176,""))) -> 0.2252505088
A15: 65-66 år | B15: =IF($A$8=1,Model!E12,IF($A$8=2,K196,IF($A$8=3,D177,""))) -> 0.8236002694
A16: 67-74 år | B16: =IF($A$8=1,Model!E13,IF($A$8=2,K197,IF($A$8=3,D178,""))) -> 1.488658487
A17: 75-79 år | B17: =IF($A$8=1,Model!E14,IF($A$8=2,K198,IF($A$8=3,D179,""))) -> 2.898804591
A18: 80-84 år | B18: =IF($A$8=1,Model!E15,IF($A$8=2,K199,IF($A$8=3,D180,""))) -> 5.574847416
A19: 85-89 år | B19: =IF($A$8=1,Model!E16,IF($A$8=2,K200,IF($A$8=3,D181,""))) -> 11.63174153
A20: Over 90 år | B20: =IF($A$8=1,Model!E17,IF($A$8=2,K201,IF($A$8=3,D182,""))) -> 29.80234301
B24: Folketal pr. 1. januar efter område, alder og tid, FOLK1
C26: 2013K1 | D26: 2014K1 | E26: 2015K1 | F26: 2016K1 | G26: 2017K1 | H26: 2018K1 | I26: 2019K1 | J26: 2020K1 | K26: 2021K1 | L26: 2022K1
A27: Hele landet | B27: 0 år | C27: 58246 | D27: 56161 | E27: 57130 | F27: 58605 | G27: 62025 | H27: 61731 | I27: 61733 | J27: 61466 | K27: 61191 | L27: 63602
B28: 1 år | C28: 59718 | D28: 58721 | E28: 56748 | F28: 57894 | G28: 59253 | H28: 62508 | I28: 62046 | J28: 61916 | K28: 61663 | L28: 61514
B29: 2 år | C29: 64422 | D29: 60046 | E29: 59134 | F29: 57484 | G29: 58520 | H29: 59523 | I29: 62675 | J29: 62148 | K29: 61967 | L29: 61864
B30: 3 år | C30: 64006 | D30: 64638 | E30: 60389 | F30: 59803 | G30: 57977 | H30: 58831 | I30: 59608 | J30: 62697 | K30: 62185 | L30: 62135
B31: 4 år | C31: 66564 | D31: 64216 | E31: 64967 | F31: 60962 | G31: 60288 | H31: 58205 | I31: 58901 | J31: 59661 | K31: 62844 | L31: 62297
B32: 5 år | C32: 65643 | D32: 66742 | E32: 64546 | F32: 65616 | G32: 61484 | H32: 60478 | I32: 58352 | J32: 58993 | K32: 59740 | L32: 62893
B33: 6 år | C33: 66634 | D33: 65822 | E33: 67083 | F33: 65147 | G33: 66047 | H33: 61705 | I33: 60640 | J33: 58415 | K33: 59064 | L33: 59839
B34: 7 år | C34: 65676 | D34: 66762 | E34: 66122 | F34: 67681 | G34: 65636 | H34: 66236 | I34: 61798 | J34: 60745 | K34: 58551 | L34: 59165
B35: 8 år | C35: 65801 | D35: 65861 | E35: 67053 | F35: 66672 | G35: 68121 | H35: 65871 | I35: 66386 | J35: 61926 | K35: 60898 | L35: 58683
B36: 9 år | C36: 65766 | D36: 65959 | E36: 66143 | F36: 67509 | G36: 67155 | H36: 68391 | I36: 66077 | J36: 66522 | K36: 62107 | L36: 61034
B37: 10 år | C37: 65167 | D37: 65909 | E37: 66299 | F37: 66619 | G37: 67907 | H37: 67353 | I37: 68541 | J37: 66254 | K37: 66696 | L37: 62282
B38: 11 år | C38: 66273 | D38: 65311 | E38: 66211 | F38: 66703 | G38: 66987 | H38: 68155 | I38: 67526 | J38: 68649 | K38: 66428 | L38: 66845
B39: 12 år | C39: 68228 | D39: 66422 | E39: 65528 | F39: 66593 | G39: 67022 | H39: 67169 | I39: 68375 | J39: 67673 | K39: 68834 | L39: 66597
B40: 13 år | C40: 67549 | D40: 68371 | E40: 66661 | F40: 65887 | G40: 66928 | H40: 67267 | I40: 67345 | J40: 68523 | K40: 67896 | L40: 68985
B41: 14 år | C41: 67903 | D41: 67729 | E41: 68633 | F41: 67099 | G41: 66218 | H41: 67147 | I41: 67467 | J41: 67530 | K41: 68720 | L41: 68096
B42: 15 år | C42: 69593 | D42: 68174 | E42: 68119 | F42: 69127 | G42: 67555 | H42: 66614 | I42: 67512 | J42: 67768 | K42: 67877 | L42: 69009
B43: 16 år | C43: 70278 | D43: 70073 | E43: 68822 | F43: 68772 | G43: 69839 | H43: 68201 | I43: 67142 | J43: 67948 | K43: 68246 | L43: 68420
B44: 17 år | C44: 72834 | D44: 70507 | E44: 70306 | F44: 69287 | G44: 69260 | H44: 70115 | I44: 68260 | J44: 67304 | K44: 68088 | L44: 68469
B45: 18 år | C45: 73491 | D45: 73255 | E45: 70973 | F45: 71131 | G45: 70008 | H45: 69781 | I45: 70566 | J45: 68639 | K45: 67674 | L45: 68674
B46: 19 år | C46: 72028 | D46: 74737 | E46: 74684 | F46: 72647 | G46: 72688 | H46: 71269 | I46: 70935 | J46: 71623 | K46: 69581 | L46: 69151
B47: 20 år | C47: 73946 | D47: 73470 | E47: 76210 | F47: 76989 | G47: 74572 | H47: 74585 | I47: 72820 | J47: 72131 | K47: 72666 | L47: 71267
B48: 21 år | C48: 72131 | D48: 75528 | E48: 74883 | F48: 78470 | G48: 78567 | H48: 76294 | I48: 75806 | J48: 73901 | K48: 72840 | L48: 74538
B49: 22 år | C49: 72597 | D49: 73075 | E49: 76460 | F49: 76602 | G49: 79900 | H49: 79720 | I49: 77306 | J49: 76462 | K49: 74517 | L49: 74686
B50: 23 år | C50: 71337 | D50: 73849 | E50: 74419 | F50: 78420 | G50: 78399 | H50: 81298 | I50: 80841 | J50: 78029 | K50: 77321 | L50: 76345
B51: 24 år | C51: 69614 | D51: 72352 | E51: 75068 | F51: 76268 | G51: 79884 | H51: 79675 | I51: 82217 | J51: 81368 | K51: 78560 | L51: 78611
B52: 25 år | C52: 67004 | D52: 70466 | E52: 73224 | F52: 76637 | G52: 77491 | H52: 80773 | I52: 80203 | J52: 82438 | K52: 81455 | L52: 79475
B53: 26 år | C53: 66454 | D53: 67731 | E53: 71192 | F53: 74593 | G53: 77537 | H53: 78085 | I53: 81198 | J53: 80189 | K53: 82285 | L53: 82044
B54: 27 år | C54: 64870 | D54: 67040 | E54: 68448 | F54: 72478 | G54: 75429 | H54: 78238 | I54: 78497 | J54: 81165 | K54: 79907 | L54: 82795
B55: 28 år | C55: 62604 | D55: 65403 | E55: 67569 | F55: 69675 | G55: 73334 | H55: 75949 | I55: 78625 | J55: 78497 | K55: 80915 | L55: 80372
B56: 29 år | C56: 61290 | D56: 63067 | E56: 65925 | F56: 68600 | G56: 70326 | H56: 73732 | I56: 76366 | J56: 78521 | K56: 78274 | L56: 81389
B57: 30 år | C57: 62653 | D57: 61688 | E57: 63633 | F57: 66944 | G57: 69318 | H57: 70747 | I57: 73938 | J57: 76209 | K57: 78313 | L57: 78631
B58: 31 år | C58: 62371 | D58: 63077 | E58: 62306 | F58: 64561 | G58: 67511 | H58: 69599 | I58: 70861 | J58: 73803 | K58: 76025 | L58: 78620
B59: 32 år | C59: 66222 | D59: 62799 | E59: 63600 | F59: 63164 | G59: 65137 | H59: 67923 | I59: 69787 | J59: 70680 | K59: 73727 | L59: 76356
B60: 33 år | C60: 67399 | D60: 66506 | E60: 63364 | F60: 64409 | G60: 63691 | H60: 65377 | I60: 68128 | J60: 69626 | K60: 70658 | L60: 74222
B61: 34 år | C61: 69418 | D61: 67820 | E61: 66966 | F61: 64090 | G61: 64889 | H61: 64011 | I61: 65560 | J61: 68028 | K61: 69744 | L61: 71125
B62: 35 år | C62: 69096 | D62: 69729 | E62: 68267 | F62: 67715 | G62: 64543 | H62: 65269 | I62: 64248 | J62: 65478 | K62: 68085 | L62: 70235
B63: 36 år | C63: 71821 | D63: 69352 | E63: 70092 | F63: 68896 | G63: 68146 | H63: 64842 | I63: 65526 | J63: 64089 | K63: 65547 | L63: 68401
B64: 37 år | C64: 77798 | D64: 72065 | E64: 69770 | F64: 70636 | G64: 69259 | H64: 68297 | I64: 64925 | J64: 65452 | K64: 64162 | L64: 65943
B65: 38 år | C65: 76621 | D65: 77999 | E65: 72430 | F65: 70262 | G65: 70983 | H65: 69411 | I65: 68520 | J65: 64948 | K65: 65456 | L65: 64445
B66: 39 år | C66: 76635 | D66: 76790 | E66: 78306 | F66: 72916 | G66: 70492 | H66: 71189 | I66: 69668 | J66: 68495 | K66: 64962 | L66: 65792
B67: 40 år | C67: 79921 | D67: 76783 | E67: 77079 | F67: 78713 | G67: 73156 | H67: 70580 | I67: 71301 | J67: 69580 | K67: 68557 | L67: 65292
B68: 41 år | C68: 79047 | D68: 79984 | E68: 76944 | F68: 77450 | G68: 78923 | H68: 73322 | I68: 70752 | J68: 71301 | K68: 69601 | L68: 68851
B69: 42 år | C69: 75865 | D69: 79121 | E69: 80293 | F69: 77236 | G69: 77682 | H69: 79079 | I69: 73420 | J69: 70755 | K69: 71377 | L69: 69819
B70: 43 år | C70: 75538 | D70: 75905 | E70: 79273 | F70: 80591 | G70: 77344 | H70: 77816 | I70: 79183 | J70: 73376 | K70: 70813 | L70: 71567
B71: 44 år | C71: 78172 | D71: 75537 | E71: 76015 | F71: 79530 | G71: 80766 | H71: 77458 | I71: 77909 | J71: 79147 | K71: 73472 | L71: 71016
B72: 45 år | C72: 83608 | D72: 78207 | E72: 75617 | F72: 76230 | G72: 79623 | H72: 80860 | I72: 77501 | J72: 77918 | K72: 79216 | L72: 73676
B73: 46 år | C73: 89637 | D73: 83563 | E73: 78320 | F73: 75768 | G73: 76335 | H73: 79664 | I73: 80871 | J73: 77451 | K73: 77980 | L73: 79385
B74: 47 år | C74: 86726 | D74: 89566 | E74: 83592 | F74: 78457 | G74: 75795 | H74: 76329 | I74: 79687 | J74: 80790 | K74: 77444 | L74: 78123
B75: 48 år | C75: 84632 | D75: 86609 | E75: 89520 | F75: 83615 | G75: 78492 | H75: 75795 | I75: 76259 | J75: 79589 | K75: 80822 | L75: 77614
B76: 49 år | C76: 82748 | D76: 84480 | E76: 86555 | F76: 89569 | G76: 83596 | H76: 78441 | I76: 75765 | J76: 76141 | K76: 79542 | L76: 80908
B77: 50 år | C77: 78091 | D77: 82579 | E77: 84374 | F77: 86524 | G77: 89501 | H77: 83536 | I77: 78405 | J77: 75628 | K77: 76109 | L77: 79628
B78: 51 år | C78: 75819 | D78: 77902 | E78: 82413 | F78: 84268 | G78: 86422 | H78: 89348 | I78: 83435 | J78: 78262 | K78: 75552 | L78: 76108
B79: 52 år | C79: 75605 | D79: 75621 | E79: 77725 | F79: 82244 | G79: 84118 | H79: 86281 | I79: 89142 | J79: 83275 | K79: 78124 | L79: 75566
B80: 53 år | C80: 72384 | D80: 75360 | E80: 75418 | F80: 77537 | G80: 82117 | H80: 83915 | I80: 86087 | J80: 88906 | K80: 83153 | L80: 78092
B81: 54 år | C81: 72471 | D81: 72034 | E81: 75167 | F81: 75201 | G81: 77335 | H81: 81931 | I81: 83712 | J81: 85835 | K81: 88708 | L81: 83116
B82: 55 år | C82: 71700 | D82: 72234 | E82: 71738 | F82: 74921 | G82: 74929 | H82: 77080 | I82: 81630 | J82: 83408 | K82: 85600 | L82: 88557
B83: 56 år | C83: 71965 | D83: 71362 | E83: 71921 | F83: 71502 | G83: 74632 | H83: 74616 | I83: 76815 | J83: 81314 | K83: 83160 | L83: 85386
B84: 57 år | C84: 70706 | D84: 71558 | E84: 71035 | F84: 71602 | G84: 71143 | H84: 74291 | I84: 74277 | J84: 76439 | K84: 81013 | L84: 82937
B85: 58 år | C85: 69060 | D85: 70307 | E85: 71167 | F85: 70664 | G85: 71258 | H85: 70787 | I85: 73868 | J85: 73951 | K85: 76105 | L85: 80700
B86: 59 år | C86: 69950 | D86: 68585 | E86: 69920 | F86: 70785 | G86: 70248 | H86: 70839 | I86: 70404 | J86: 73426 | K86: 73642 | L86: 75759
B87: 60 år | C87: 68260 | D87: 69398 | E87: 68151 | F87: 69455 | G87: 70326 | H87: 69810 | I87: 70375 | J87: 69935 | K87: 72965 | L87: 73227
B88: 61 år | C88: 66782 | D88: 67697 | E88: 68833 | F88: 67597 | G88: 68926 | H88: 69833 | I88: 69363 | J88: 69869 | K88: 69498 | L88: 72500
B89: 62 år | C89: 68413 | D89: 66238 | E89: 67151 | F89: 68264 | G89: 67067 | H89: 68387 | I89: 69315 | J89: 68816 | K89: 69353 | L89: 69063
B90: 63 år | C90: 67546 | D90: 67784 | E90: 65587 | F90: 66543 | G90: 67677 | H90: 66507 | I90: 67737 | J90: 68692 | K90: 68219 | L90: 68822
B91: 64 år | C91: 70480 | D91: 66865 | E91: 67095 | F91: 65000 | G91: 65860 | H91: 67058 | I91: 65880 | J91: 67059 | K91: 68079 | L91: 67646
B92: 65 år | C92: 74300 | D92: 69801 | E92: 66180 | F92: 66392 | G92: 64274 | H92: 65188 | I92: 66404 | J92: 65209 | K92: 66442 | L92: 67399
B93: 66 år | C93: 75896 | D93: 73434 | E93: 69005 | F93: 65395 | G93: 65615 | H93: 63571 | I93: 64405 | J93: 65611 | K93: 64490 | L93: 65700
B94: 67 år | C94: 72355 | D94: 74907 | E94: 72556 | F94: 68177 | G94: 64559 | H94: 64841 | I94: 62766 | J94: 63587 | K94: 64797 | L94: 63765
B95: 68 år | C95: 67844 | D95: 71400 | E95: 73822 | F95: 71636 | G95: 67240 | H95: 63720 | I95: 63940 | J95: 61861 | K95: 62791 | L95: 63954
B96: 69 år | C96: 61640 | D96: 66770 | E96: 70317 | F96: 72748 | G96: 70608 | H96: 66308 | I96: 62744 | J96: 63007 | K96: 60949 | L96: 61874
B97: 70 år | C97: 57084 | D97: 60551 | E97: 65645 | F97: 69189 | G97: 71639 | H97: 69467 | I97: 65273 | J97: 61805 | K97: 61963 | L97: 59996
B98: 71 år | C98: 49923 | D98: 56023 | E98: 59414 | F98: 64462 | G98: 67932 | H98: 70445 | I98: 68244 | J98: 64190 | K98: 60762 | L98: 60925
B99: 72 år | C99: 47730 | D99: 48954 | E99: 54998 | F99: 58270 | G99: 63158 | H99: 66625 | I99: 69167 | J99: 67036 | K99: 63024 | L99: 59626
B100: 73 år | C100: 44338 | D100: 46611 | E100: 47876 | F100: 53758 | G100: 57059 | H100: 61802 | I100: 65221 | J100: 67743 | K100: 65776 | L100: 61729
B101: 74 år | C101: 42919 | D101: 43228 | E101: 45513 | F101: 46764 | G101: 52500 | H101: 55754 | I101: 60360 | J101: 63780 | K101: 66246 | L101: 64250
B102: 75 år | C102: 40170 | D102: 41726 | E102: 42093 | F102: 44315 | G102: 45541 | H102: 51165 | I102: 54278 | J102: 58778 | K102: 62193 | L102: 64618
B103: 76 år | C103: 37319 | D103: 38953 | E103: 40434 | F103: 40935 | G103: 43056 | H103: 44244 | I103: 49698 | J103: 52778 | K103: 57095 | L103: 60392
B104: 77 år | C104: 34311 | D104: 36015 | E104: 37706 | F104: 39125 | G104: 39650 | H104: 41718 | I104: 42819 | J104: 48254 | K104: 51146 | L104: 55334
B105: 78 år | C105: 31991 | D105: 32921 | E105: 34612 | F105: 36344 | G105: 37712 | H105: 38303 | I105: 40197 | J105: 41368 | K105: 46603 | L105: 49296
B106: 79 år | C106: 29298 | D106: 30549 | E106: 31549 | F106: 33154 | G106: 34908 | H106: 36218 | I106: 36801 | J106: 38658 | K106: 39889 | L106: 44870
B107: 80 år | C107: 27301 | D107: 27796 | E107: 29131 | F107: 30067 | G107: 31627 | H107: 33410 | I107: 34621 | J107: 35232 | K107: 37008 | L107: 38186
B108: 81 år | C108: 25324 | D108: 25738 | E108: 26327 | F108: 27539 | G108: 28520 | H108: 30040 | I108: 31702 | J108: 32993 | K108: 33551 | L108: 35206
B109: 82 år | C109: 23525 | D109: 23700 | E109: 24214 | F109: 24737 | G109: 25960 | H109: 26815 | I109: 28321 | J109: 29985 | K109: 31267 | L109: 31758
B110: 83 år | C110: 21673 | D110: 21816 | E110: 22111 | F110: 22606 | G110: 23077 | H110: 24224 | I110: 24980 | J110: 26583 | K110: 28176 | L110: 29384
B111: 84 år | C111: 20347 | D111: 19976 | E111: 20147 | F111: 20420 | G111: 20943 | H111: 21437 | I111: 22464 | J111: 23170 | K111: 24708 | L111: 26305
B112: 85 år | C112: 18030 | D112: 18532 | E112: 18401 | F112: 18487 | G112: 18751 | H112: 19192 | I112: 19696 | J112: 20704 | K112: 21349 | L112: 22686
B113: 86 år | C113: 16691 | D113: 16341 | E113: 16846 | F113: 16674 | G113: 16829 | H113: 17027 | I113: 17415 | J113: 17963 | K113: 18866 | L113: 19348
B114: 87 år | C114: 14804 | D114: 15038 | E114: 14724 | F114: 15126 | G114: 14918 | H114: 15043 | I114: 15166 | J114: 15647 | K114: 16096 | L114: 16870
B115: 88 år | C115: 13140 | D115: 13043 | E115: 13313 | F115: 13005 | G115: 13338 | H115: 13159 | I115: 13259 | J115: 13431 | K115: 13885 | L115: 14232
B116: 89 år | C116: 11216 | D116: 11386 | E116: 11422 | F116: 11633 | G116: 11382 | H116: 11707 | I116: 11379 | J116: 11590 | K116: 11742 | L116: 12048
B117: 90 år | C117: 9051 | D117: 9528 | E117: 9740 | F117: 9810 | G117: 9981 | H117: 9763 | I117: 9939 | J117: 9717 | K117: 9971 | L117: 10048
B118: 91 år | C118: 8130 | D118: 7614 | E118: 8061 | F118: 8172 | G118: 8262 | H118: 8401 | I118: 8117 | J118: 8368 | K118: 8144 | L118: 8352
B119: 92 år | C119: 6740 | D119: 6650 | E119: 6248 | F119: 6658 | G119: 6791 | H119: 6773 | I119: 6882 | J119: 6701 | K119: 6919 | L119: 6699
B120: 93 år | C120: 4552 | D120: 5430 | E120: 5422 | F120: 4914 | G120: 5400 | H120: 5471 | I120: 5446 | J120: 5605 | K120: 5392 | L120: 5573
B121: 94 år | C121: 3596 | D121: 3572 | E121: 4245 | F121: 4236 | G121: 3816 | H121: 4183 | I121: 4277 | J121: 4323 | K121: 4405 | L121: 4123
B122: 95 år | C122: 2616 | D122: 2739 | E122: 2824 | F122: 3268 | G122: 3273 | H122: 2931 | I122: 3159 | J122: 3265 | K122: 3309 | L122: 3303
B123: 96 år | C123: 2001 | D123: 1939 | E123: 2052 | F123: 2092 | G123: 2446 | H123: 2425 | I123: 2165 | J123: 2322 | K123: 2480 | L123: 2432
B124: 97 år | C124: 1354 | D124: 1486 | E124: 1418 | F124: 1504 | G124: 1531 | H124: 1761 | I124: 1708 | J124: 1578 | K124: 1730 | L124: 1792
B125: 98 år | C125: 982 | D125: 932 | E125: 1083 | F125: 1003 | G125: 1062 | H125: 1117 | I125: 1195 | J125: 1193 | K125: 1101 | L125: 1203
B126: 99 år | C126: 601 | D126: 639 | E126: 658 | F126: 749 | G126: 671 | H126: 722 | I126: 752 | J126: 822 | K126: 806 | L126: 720
B127: 100 år | C127: 462 | D127: 403 | E127: 416 | F127: 425 | G127: 505 | H127: 432 | I127: 458 | J127: 490 | K127: 531 | L127: 528
B128: 101 år | C128: 245 | D128: 279 | E128: 248 | F128: 258 | G128: 284 | H128: 307 | I128: 257 | J128: 290 | K128: 298 | L128: 330
B129: 102 år | C129: 133 | D129: 150 | E129: 180 | F129: 162 | G129: 154 | H129: 158 | I129: 184 | J129: 134 | K129: 173 | L129: 167
B130: 103 år | C130: 79 | D130: 76 | E130: 87 | F130: 111 | G130: 88 | H130: 88 | I130: 91 | J130: 108 | K130: 81 | L130: 106
B131: 104 år | C131: 55 | D131: 41 | E131: 49 | F131: 52 | G131: 60 | H131: 53 | I131: 51 | J131: 54 | K131: 64 | L131: 37
B132: 105 år | C132: 12 | D132: 33 | E132: 21 | F132: 22 | G132: 29 | H132: 37 | I132: 30 | J132: 30 | K132: 27 | L132: 31
B133: 106 år | C133: 14 | D133: 3 | E133: 14 | F133: 15 | G133: 14 | H133: 5 | I133: 21 | J133: 18 | K133: 14 | L133: 13
B134: 107 år | C134: 4 | D134: 7 | E134: 1 | F134: 9 | G134: 5 | H134: 9 | I134: 2 | J134: 8 | K134: 8 | L134: 5
B135: 108 år | C135: 3 | D135: 2 | E135: 4 | F135: 0 | G135: 3 | H135: 2 | I135: 5 | J135: 0 | K135: 4 | L135: 1
B136: 109 år | C136: 2 | D136: 1 | E136: 1 | F136: 3 | G136: 0 | H136: 2 | I136: 2 | J136: 1 | K136: 0 | L136: 1
B137: 110 år | C137: 0 | D137: 1 | E137: 1 | F137: 1 | G137: 1 | H137: 0 | I137: 2 | J137: 0 | K137: 1 | L137: 0
B139: Befolkningen i alt | C139: 2013K1 | D139: 2014K1 | E139: 2015K1 | F139: 2016K1 | G139: 2017K1 | H139: 2018K1 | I139: 2019K1 | J139: 2020K1 | K139: 2021K1 | L139: 2022K1
B140: Under 60 år | C140: =SUM(C27:C86) -> 4261346 | D140: =SUM(D27:D86) -> 4262519 | E140: 4271769 | F140: 4295970 | G140: 4313741 | H140: =SUM(H27:H86) -> 4323532 | I140: =SUM(I27:I86) -> 4327348 | J140: =SUM(J27:J86) -> 4322401 | K140: =SUM(K27:K86) -> 4315659 | L140: 4326946
B141: 60-64 år | C141: =SUM(C87:C91) -> 341481 | D141: =SUM(D87:D91) -> 337982 | E141: 336817 | F141: 336859 | G141: 339856 | H141: =SUM(H87:H91) -> 341595 | I141: 342670 | J141: =SUM(J87:J91) -> 344371 | K141: 348114 | L141: 351258
B142: 65-66 år | C142: =SUM(C92:C93) -> 150196 | D142: =SUM(D92:D93) -> 143235 | E142: 135185 | F142: 131787 | G142: 129889 | H142: =SUM(H92:H93) -> 128759 | I142: 130809 | J142: =SUM(J92:J93) -> 130820 | K142: 130932 | L142: 133099
B143: 67-74 år | C143: =SUM(C94:C101) -> 443833 | D143: 468444 | E143: 490141 | F143: 505004 | G143: 514695 | H143: =SUM(H94:H101) -> 518962 | I143: 517715 | J143: =SUM(J94:J101) -> 513009 | K143: 506308 | L143: 496119
B144: 75-79 år | C144: =SUM(C102:C106) -> 173089 | D144: 180164 | E144: 186394 | F144: 193873 | G144: 200867 | H144: =SUM(H102:H106) -> 211648 | I144: 223793 | J144: =SUM(J102:J106) -> 239836 | K144: 256926 | L144: 274510
B145: 80-84 år | C145: =SUM(C107:C111) -> 118170 | D145: 119026 | E145: 121930 | F145: 125369 | G145: 130127 | H145: =SUM(H107:H111) -> 135926 | I145: 142088 | J145: =SUM(J107:J111) -> 147963 | K145: 154710 | L145: 160839
B146: 85-89 år | C146: =SUM(C112:C116) -> 73881 | D146: 74340 | E146: 74706 | F146: 74925 | G146: 75218 | H146: =SUM(H112:H116) -> 76128 | I146: 76915 | J146: =SUM(J112:J116) -> 79335 | K146: 81938 | L146: 85184
B147: Over 90 år | C147: =SUM(C117:C137) -> 40632 | D147: 41525 | E147: 42773 | F147: 43464 | G147: 44376 | H147: =SUM(H117:H137) -> 44640 | I147: 44743 | J147: =SUM(J117:J137) -> 45027 | K147: 45458 | L147: 45464
B148: I alt | C148: =SUM(C140:C147) -> 5602628 | D148: =SUM(D27:D137) -> 5627235 | E148: 5659715 | F148: 5707251 | G148: 5748769 | H148: 5781190 | I148: 5806081 | J148: =SUM(J27:J137) -> 5822762 | K148: 5840045 | L148: 5873419
F150: Antal indskrevne
B152: Alle plejeboliger | C152: 2013K1 | D152: 2014K1 | E152: 2015K1 | F152: 2016K1 | G152: 2017K1 | H152: 2018K1 | I152: 2019K1 | J152: 2020K1 | K152: 2021K1 | L152: 2022K1
B153: Under 60 år | C153: 1231 | D153: 1108 | E153: 1230 | F153: 1164 | G153: 1184 | H153: 1137 | I153: 1139 | J153: =SUM('Registerdata indskrevne'!T4:W101) -> 1025 | K153: =SUM('Registerdata indskrevne'!X4:AA101) -> 998 | L153: =SUM('Registerdata indskrevne'!AB4:AE101) -> 920
B154: 60-64 år | C154: 1091 | D154: 1099 | E154: 1115 | F154: 1098 | G154: 1116 | H154: 1185 | I154: 1199 | J154: =SUM('Registerdata indskrevne'!T102:W199) -> 1089 | K154: =SUM('Registerdata indskrevne'!X102:AA199) -> 1085 | L154: =SUM('Registerdata indskrevne'!AB102:AE199) -> 1046
B155: 65-66 år | C155: 710 | D155: 668 | E155: 714 | F155: 733 | G155: 672 | H155: 782 | I155: 715 | J155: =SUM('Registerdata indskrevne'!T200:W297) -> 688 | K155: =SUM('Registerdata indskrevne'!X200:AA297) -> 758 | L155: =SUM('Registerdata indskrevne'!AB200:AE297) -> 776
B156: 67-74 år | C156: 4742 | D156: 4804 | E156: 4865 | F156: 5101 | G156: 5174 | H156: 5246 | I156: 5290 | J156: =SUM('Registerdata indskrevne'!T298:W395) -> 5079 | K156: =SUM('Registerdata indskrevne'!X298:AA395) -> 4992 | L156: =SUM('Registerdata indskrevne'!AB298:AE395) -> 4823
B157: 75-79 år | C157: 4980 | D157: 5049 | E157: 5164 | F157: 5237 | G157: 5300 | H157: 5525 | I157: 5781 | J157: =SUM('Registerdata indskrevne'!T396:W493) -> 5822 | K157: =SUM('Registerdata indskrevne'!X396:AA493) -> 6040 | L157: =SUM('Registerdata indskrevne'!AB396:AE493) -> 6337
B158: 80-84 år | C158: 7770 | D158: 7550 | E158: 7942 | F158: 7774 | G158: 7673 | H158: 7940 | I158: 7935 | J158: =SUM('Registerdata indskrevne'!T494:W591) -> 7978 | K158: =SUM('Registerdata indskrevne'!X494:AA591) -> 7968 | L158: =SUM('Registerdata indskrevne'!AB494:AE591) -> 7986
B159: 85-89 år | C159: 10088 | D159: 10127 | E159: 10061 | F159: 9811 | G159: 9559 | H159: 9355 | I159: 9320 | J159: =SUM('Registerdata indskrevne'!T592:W689) -> 9308 | K159: =SUM('Registerdata indskrevne'!X592:AA689) -> 9146 | L159: =SUM('Registerdata indskrevne'!AB592:AE689) -> 9118
B160: Over 90 år | C160: 11461 | D160: 11799 | E160: 12001 | F160: 11859 | G160: 11848 | H160: 11206 | I160: 11121 | J160: =SUM('Registerdata indskrevne'!T690:W787) -> 11475 | K160: =SUM('Registerdata indskrevne'!X690:AA787) -> 11014 | L160: =SUM('Registerdata indskrevne'!AB690:AE787) -> 10699
B161: alle | C161: 42073 | D161: 42204 | E161: 43092 | F161: 42777 | G161: 42526 | H161: 42378 | I161: 42500 | J161: =SUM(J153:J160) -> 42464 | K161: =SUM(K153:K160) -> 42001 | L161: 41705
B162: Dækningsgrader 2013-2022 | C162: 2013 | D162: 2014 | E162: 2015 | F162: 2016 | G162: 2017 | H162: 2018 | I162: 2019 | J162: 2020 | K162: 2021 | L162: 2022 | M162: Ændring 2018-2022 (2018=indeks=1) | N162: Årligt | O162: Årlig ændring i pct. | T162: Dækningsgrader 2020-2022
B163: Under 60 år | C163: =C153/C140*100 -> 0.02888758622 | D163: =D153/D140*100 -> 0.02599401903 | E163: =E153/E140*100 -> 0.02879369179 | F163: =F153/F140*100 -> 0.02709516128 | G163: 0.02744717404 | H163: =H153/H140*100 -> 0.02629794344 | I163: 0.02632097072 | J163: =J153/J140*100 -> 0.0237136721 | K163: 0.02312508935 | L163: =L153/L140*100 -> 0.02126210958 | M163: =L163/H163 -> 0.8085084535 | N163: =M163^(1/4) -> 0.9482462661 | O163: =-(1-N163)*100 -> -5.175373388 | U163: 2020 | V163: 2021 | W163: 2022 | X163: Ændring 2020-2022 (2020=indeks=1) | Y163: Årligt | Z163: Årlig ændring i pct.
B164: 60-64 år | C164: =C154/C141*100 -> 0.3194906891 | D164: 0.3251652455 | E164: 0.3310402978 | F164: 0.3259524014 | G164: 0.3283743703 | H164: 0.3469020331 | I164: =I154/I141*100 -> 0.34989932 | J164: =J154/J141*100 -> 0.3162287184 | K164: 0.3116795073 | L164: 0.297786812 | M164: =L164/H164 -> 0.8584176037 | N164: =M164^(1/4) -> 0.9625530042 | O164: =-(1-N164)*100 -> -3.744699584 | T164: Under 60 år | U164: =J153/J140*100 -> 0.0237136721 | V164: =K153/K140*100 -> 0.02312508935 | W164: =L153/L140*100 -> 0.02126210958 | X164: =W164/U164 -> 0.8966181826 | Y164: =X164^(1/2) -> 0.9468992463 | Z164: =-(1-Y164)*100 -> -5.310075375
B165: 65-66 år | C165: 0.4727156515 | D165: 0.4663664607 | E165: 0.5281651071 | F165: 0.5562005357 | G165: 0.5173648269 | H165: 0.6073361862 | I165: 0.5465984756 | J165: =J155/J142*100 -> 0.5259134689 | K165: 0.5789264656 | L165: 0.5830246659 | M165: =L165/H165 -> 0.9599702423 | N165: 0.98983873 | O165: -1.016127003 | T165: 60-64 år | U165: =J154/J141*100 -> 0.3162287184 | V165: 0.3116795073 | W165: 0.297786812 | X165: =W165/U165 -> 0.9416817468 | Y165: =X165^(1/2) -> 0.9704028786 | Z165: =-(1-Y165)*100 -> -2.95971214
B166: 67-74 år | C166: 1.068419879 | D166: 1.025522795 | E166: 0.9925715253 | F166: 1.010091009 | G166: 1.00525554 | H166: 1.010863994 | I166: 1.021797707 | J166: =J156/J143*100 -> 0.9900411104 | K166: 0.9859611146 | L166: 0.9721457957 | M166: 0.9616979154 | N166: 0.9902837867 | O166: -0.9716213327 | T166: 65-66 år | U166: 0.5259134689 | V166: 0.5789264656 | W166: 0.5830246659 | X166: 1.108594285 | Y166: 1.052898041 | Z166: 5.289804097
B167: 75-79 år | C167: 2.877132573 | D167: 2.80244666 | E167: 2.770475444 | F167: 2.701252882 | G167: 2.638561834 | H167: 2.610466435 | I167: 2.583190716 | J167: =J157/J144*100 -> 2.42749212 | K167: 2.350871457 | L167: 2.308476923 | M167: 0.88431588 | N167: 0.9697322879 | O167: -3.026771213 | T167: 67-74 år | U167: 0.9900411104 | V167: 0.9859611146 | W167: 0.9721457957 | X167: 0.9819246751 | Y167: 0.9909211246 | Z167: -0.9078875434
B168: 80-84 år | C168: 6.575272912 | D168: 6.343151916 | E168: 6.513573362 | F168: 6.200894958 | G168: 5.896547219 | H168: 5.84141371 | I168: 5.58456731 | J168: =J158/J145*100 -> 5.391888513 | K168: 5.150281171 | L168: 4.965213661 | M168: 0.8500020555 | N168: 0.9601851699 | O168: -3.981483011 | T168: 75-79 år | U168: 2.42749212 | V168: 2.350871457 | W168: 2.308476923 | X168: 0.9509719533 | Y168: 0.9751779085 | Z168: -2.482209148
B169: 85-89 år | C169: 13.65439017 | D169: 13.62254506 | E169: 13.46745911 | F169: 13.09442776 | G169: 12.70839427 | H169: 12.28851408 | I169: 12.11727231 | J169: =J159/J146*100 -> 11.73252663 | K169: 11.16209817 | L169: 10.70388805 | M169: 0.8710481986 | N169: 0.9660743396 | O169: -3.392566042 | T169: 80-84 år | U169: 5.391888513 | V169: 5.150281171 | W169: 4.965213661 | X169: 0.9208672711 | Y169: 0.9596182945 | Z169: -4.038170551
B170: Over 90 år | C170: 28.20683205 | D170: 28.41420831 | E170: 28.0574194 | F170: 27.28464936 | G170: 26.69911664 | H170: 25.10304659 | I170: 24.85528463 | J170: =J160/J147*100 -> 25.48470917 | K170: 24.2289586 | L170: 23.53290516 | M170: 0.9374521561 | N170: 0.9839822812 | O170: -1.601771877 | T170: 85-89 år | U170: 11.73252663 | V170: 11.16209817 | W170: 10.70388805 | X170: 0.9123259119 | Y170: 0.9551575325 | Z170: -4.484246751
B171: alle | C171: 0.7509511608 | D171: 0.7499953352 | E171: 0.7613810943 | F171: 0.7495202156 | G171: 0.7397409776 | H171: 0.7330324726 | I171: 0.7319911658 | J171: =J161/J148*100 -> 0.7292759003 | K171: 0.7191896638 | L171: 0.710063423 | M171: 0.9686657135 | N171: 0.9920726615 | O171: -0.7927338487 | T171: Over 90 år | U171: 25.48470917 | V171: 24.2289586 | W171: 23.53290516 | X171: 0.9234127411 | Y171: 0.9609436722 | Z171: -3.905632781
T172: alle | U172: 0.7292759003 | V172: 0.7191896638 | W172: 0.710063423 | X172: 0.9736554063 | Y172: 0.9867397865 | Z172: -1.32602135
B173: Udregning til senarie 3: Ændring i alder på indskrevne 2018-2022 | D173: Behovsgrad efter (år)
C174: Aktuel behovsgrad | D174: =Model!M10 -> 10 | E174: Årlig ændring i procentpoint
B175: Under 60 år | C175: =Model!E10 -> 0.009068106924 | D175: =C175*N163^$D$174 -> 0.00533001026 | E175: =(D175-C175)/$D$174 -> -0.0003738096664 | O175: (Ikke i brug) Udregning til senarie 4: Behovsgrad 2020-2022 | Q175: Behovsgrad efter (år)
B176: 60-64 år | C176: =Model!E11 -> 0.3299280518 | D176: =C176*N164^$D$174 -> 0.2252505088 | E176: =(D176-C176)/$D$174 -> -0.01046775431 | P176: Aktuel behovsgrad | Q176: =Model!M10 -> 10 | R176: Årlig ændring i procentpoint
B177: 65-66 år | C177: =Model!E12 -> 0.9121621622 | D177: =C177*N165^$D$174 -> 0.8236002694 | E177: -0.008856189279 | O177: Under 60 år | P177: =Model!E10 -> 0.009068106924 | Q177: =P177*Y164^$Q$176 -> 0.005254777611 | R177: =(Q177-P177)/$Q$176 -> -0.0003813329313
B178: 67-74 år | C178: =Model!E13 -> 1.641339386 | D178: 1.488658487 | E178: -0.01526808991 | O178: 60-64 år | P178: =Model!E11 -> 0.3299280518 | Q178: 0.2443093027 | R178: -0.008561874916
B179: 75-79 år | C179: =Model!E14 -> 3.941852603 | D179: 2.898804591 | E179: -0.1043048012 | O179: 65-66 år | P179: =Model!E12 -> 0.9121621622 | Q179: 1.527338255 | R179: 0.06151760924
B180: 80-84 år | C180: =Model!E15 -> 8.369182636 | D180: 5.574847416 | E180: -0.279433522 | O180: 67-74 år | P180: =Model!E13 -> 1.641339386 | Q180: 1.498267156 | R180: -0.01430722292
B181: 85-89 år | C181: =Model!E16 -> 16.42628205 | D181: 11.63174153 | E181: -0.4794540524 | O181: 75-79 år | P181: =Model!E14 -> 3.941852603 | Q181: 3.065765437 | R181: -0.08760871657
B182: Over 90 år | C182: =Model!E17 -> 35.0249584 | D182: =C182*N170^$D$174 -> 29.80234301 | E182: =(D182-C182)/$D$174 -> -0.5222615396 | O182: 80-84 år | P182: =Model!E15 -> 8.369182636 | Q182: 5.54202186 | R182: -0.2827160776
O183: 85-89 år | P183: =Model!E16 -> 16.42628205 | Q183: 10.38219843 | R183: -0.6044083622
O184: Over 90 år | P184: =Model!E17 -> 35.0249584 | Q184: 23.51564748 | R184: -1.150931092
A191: Udregning til senarie 2: Landsgennemsnit | D191: 2022
A192: Beregning af behovsgrad i udgangspunktet | C192: Indskrevne i alt
A193: Kommune | B193: Aldersgruppe | C193: Plejehjem | D193: Plejeboliger (2006-) | E193: Friplejeboliger | F193: Andre boliger for ældre | G193: Indskrevne i alt | H193: Venteliste | I193: Indskrevne i alt | J193: I befolkningen | K193: Indskrevne landgennemsnit | L193: Behovsgrad
A194: Hele landet | B194: Under 60 år | C194: =SUM('Registerdata indskrevne'!AB4:AB101) -> 41 | D194: =SUM('Registerdata indskrevne'!AC4:AC101) -> 820 | E194: =SUM('Registerdata indskrevne'!AD4:AD101) -> 59 | F194: =SUM('Registerdata indskrevne'!AE4:AE101) -> 0 | G194: =SUM(C194:F194) -> 920 | H194: =$H$202*G194/$G$202 -> 443.4441913 | I194: =SUM(G194:H194) -> 1363.444191 | J194: =+SUM(Befolkningsfremskrivning!J3:J100) -> 4326885 | K194: =G194/J194*100 -> 0.02126240933 | L194: =I194/J194*100 -> 0.0315109875
A195: Hele landet | B195: 60-64 år | C195: =SUM('Registerdata indskrevne'!AB102:AB199) -> 69 | D195: =SUM('Registerdata indskrevne'!AC102:AC199) -> 944 | E195: =SUM('Registerdata indskrevne'!AD102:AD199) -> 33 | F195: =SUM('Registerdata indskrevne'!AE102:AE199) -> 0 | G195: =SUM(C195:F195) -> 1046 | H195: =$H$202*G195/$G$202 -> 504.1767654 | I195: =SUM(G195:H195) -> 1550.176765 | J195: =+SUM(Befolkningsfremskrivning!J101:J198) -> 351247 | K195: =G195/J195*100 -> 0.2977961378 | L195: =I195/J195*100 -> 0.4413352329
A196: Hele landet | B196: 65-66 år | C196: =SUM('Registerdata indskrevne'!AB200:AB297) -> 60 | D196: =SUM('Registerdata indskrevne'!AC200:AC297) -> 679 | E196: =SUM('Registerdata indskrevne'!AD200:AD297) -> 37 | F196: =SUM('Registerdata indskrevne'!AE200:AE297) -> 0 | G196: 776 | H196: 374.0355353 | I196: 1150.035535 | J196: =+SUM(Befolkningsfremskrivning!J199:J296) -> 133096 | K196: 0.5830378073 | L196: 0.8640646866
A197: Hele landet | B197: 67-74 år | C197: =SUM('Registerdata indskrevne'!AB298:AB395) -> 330 | D197: =SUM('Registerdata indskrevne'!AC298:AC395) -> 4327 | E197: =SUM('Registerdata indskrevne'!AD298:AD395) -> 166 | F197: =SUM('Registerdata indskrevne'!AE298:AE395) -> 0 | G197: 4823 | H197: 2324.707973 | I197: 7147.707973 | J197: =+SUM(Befolkningsfremskrivning!J297:J394) -> 496112 | K197: 0.9721595124 | L197: 1.440744826
A198: Hele landet | B198: 75-79 år | C198: =SUM('Registerdata indskrevne'!AB396:AB493) -> 427 | D198: =SUM('Registerdata indskrevne'!AC396:AC493) -> 5698 | E198: =SUM('Registerdata indskrevne'!AD396:AD493) -> 212 | F198: =SUM('Registerdata indskrevne'!AE396:AE493) -> 0 | G198: 6337 | H198: 3054.46287 | I198: 9391.46287 | J198: =+SUM(Befolkningsfremskrivning!J395:J492) -> 274504 | K198: 2.30852738 | L198: 3.421248095
A199: Hele landet | B199: 80-84 år | C199: =SUM('Registerdata indskrevne'!AB494:AB591) -> 495 | D199: =SUM('Registerdata indskrevne'!AC494:AC591) -> 7157 | E199: =SUM('Registerdata indskrevne'!AD494:AD591) -> 334 | F199: =SUM('Registerdata indskrevne'!AE494:AE591) -> 0 | G199: 7986 | H199: 3849.288383 | I199: 11835.28838 | J199: =+SUM(Befolkningsfremskrivning!J493:J590) -> 160836 | K199: 4.965306275 | L199: 7.35860652
A200: Hele landet | B200: 85-89 år | C200: =SUM('Registerdata indskrevne'!AB592:AB689) -> 449 | D200: =SUM('Registerdata indskrevne'!AC592:AC689) -> 8245 | E200: =SUM('Registerdata indskrevne'!AD592:AD689) -> 424 | F200: =SUM('Registerdata indskrevne'!AE592:AE689) -> 0 | G200: 9118 | H200: 4394.91754 | I200: 13512.91754 | J200: =+SUM(Befolkningsfremskrivning!J591:J688) -> 85182 | K200: 10.70413937 | L200: 15.86358332
A201: Hele landet | B201: Over 90 år | C201: =SUM('Registerdata indskrevne'!AB690:AB787) -> 605 | D201: =SUM('Registerdata indskrevne'!AC690:AC787) -> 9565 | E201: =SUM('Registerdata indskrevne'!AD690:AD787) -> 529 | F201: =SUM('Registerdata indskrevne'!AE690:AE787) -> 0 | G201: 10699 | H201: 5156.966743 | I201: 15855.96674 | J201: =+SUM(Befolkningsfremskrivning!J689:J786) -> 45464 | K201: 23.53290516 | L201: =I201/J201*100 -> 34.87587265
A202: Hele landet | B202: I alt | C202: =SUM(C194:C201) -> 2476 | D202: =SUM(D194:D201) -> 37435 | E202: =SUM(E194:E201) -> 1794 | F202: 0 | G202: 41705 | H202: =SUM('Registerdata ventetid'!B6:B103) -> 20102 | I202: =SUM(G202:H202) -> 61807 | J202: =SUM(J194:J201) -> 5873326 | K202: 0.7100746664 | L202: 1.052333891
I203: Indskrevne ift. Befolkningen, giver netop landsgennemsnit
A205: Andel med god fysisk mobilitet blandt 60-årige eller derover
B206: 1987 | C206: 1994 | D206: 2000 | E206: 2005
A207: 60-66 år | B207: 68.4 | C207: 72.7 | D207: 79.4 | E207: 82.6
A208: 67+ år | B208: 43.7 | C208: 47.3 | D208: 56.2 | E208: 62.6
A210: Andel med dårlig fysisk mobilitet
B211: 1987 | C211: 1994 | D211: 2000 | E211: 2005 | F211: Ændring | G211: Ændring pr. år | H211: Årlig ændring i pct.
A212: 60-66 år | B212: =1-(B207/100) -> 0.316 | C212: =1-(C207/100) -> 0.273 | D212: 0.206 | E212: 0.174 | F212: =E212/B212 -> 0.5506329114 | G212: =F212^(1/18) -> 0.967394143 | H212: =-(1-G212)*100 -> -3.260585704
A213: 67+ år | B213: =1-(B208/100) -> 0.563 | C213: 0.527 | D213: 0.438 | E213: 0.374 | F213: =E213/B213 -> 0.6642984014 | G213: =F213^(1/18) -> 0.9775326891 | H213: =-(1-G213)*100 -> -2.24673109
C215: Behovsgrad efter (år)
B216: Aktuel behovsgrad | C216: =Model!M10 -> 10 | D216: Årlig ændring i procentpoint
A217: Under 60 år | B217: =Model!E10 -> 0.009068106924 | C217: =B217 -> 0.009068106924 | D217: =(C217-B217)/#REF! -> 
A218: 60-64 år | B218: =Model!E11 -> 0.3299280518 | C218: =B218*$G$212^$C$216 -> 0.2368393056 | D218: =(C218-B218)/#REF! -> 
A219: 65-66 år | B219: =Model!E12 -> 0.9121621622 | C219: =B219*$G$212^$C$216 -> 0.6547968622 | D219: =(C219-B219)/#REF! -> 
A220: 67-74 år | B220: =Model!E13 -> 1.641339386 | C220: =B220*$G$213^$C$216 -> 1.307709516 | D220: =(C220-B220)/#REF! -> 
... 5 more rows

Sheet Beregning (hidden)
A1: Beregninger
A2: 2022 | B2: Opdateret 19-09-2023
A3: Scenarier:
A4: Jeg har indtastet venteliste efter aldersgruppe
A5: Jeg har indtastet venteliste i alt
A7: Valgt scenarie: | B7: 2
A9: Under 60 år | B9: =IF($B$7=1,Model!C10,IF($B$7=2,L22,"")) -> 0
A10: 60-64 år | B10: =IF($B$7=1,Model!C11,IF($B$7=2,L23,IF($B$7=3,0,""))) -> 0
A11: 65-66 år | B11: =IF($B$7=1,Model!C12,IF($B$7=2,L24,IF($B$7=3,0,""))) -> 0
A12: 67-74 år | B12: =IF($B$7=1,Model!C13,IF($B$7=2,L25,IF($B$7=3,0,""))) -> 0
A13: 75-79 år | B13: =IF($B$7=1,Model!C14,IF($B$7=2,L26,IF($B$7=3,0,""))) -> 0
A14: 80-84 år | B14: =IF($B$7=1,Model!C15,IF($B$7=2,L27,IF($B$7=3,0,""))) -> 0
A15: 85-89 år | B15: =IF($B$7=1,Model!C16,IF($B$7=2,L28,IF($B$7=3,0,""))) -> 0
A16: Over 90 år | B16: =IF($B$7=1,Model!C17,IF($B$7=2,L29,IF($B$7=3,0,""))) -> 0
A17: I alt | B17: =IF($B$7=1,SUM(B9:B16),IF($B$7=2,L30,IF($B$7=3,0,""))) -> 0
A19: Gennemsnitligt antal år med behov | B19: =Model!C24/12 -> 3
A20: =+CONCATENATE("Beregning af behovsgrad ultimo"," ",A2) -> Beregning af behovsgrad ultimo 2022 | C20: =3+(A2-2016)*4 -> 27 | D20: =C20+1 -> 28 | E20: =D20+1 -> 29 | F20: 30
A21: Kommune | B21: Aldersgruppe | C21: Plejehjem | D21: Plejeboliger | E21: Friplejeboliger | F21: Indskrevne i alt | G21: Venteliste (alt efter valg af scenarie) | H21: Behov i alt | I21: I befolkningen | J21: Beboergrad | K21: Behovsgrad | L21: Venteliste (beregnet)
A22: =Model!$C$4 -> København | B22: Under 60 år | C22: =VLOOKUP($A22,'Registerdata indskrevne'!$B4:$XX101,C$20,FALSE) -> 17 | D22: =VLOOKUP($A22,'Registerdata indskrevne'!$B4:$XX101,D$20,FALSE) -> 33 | E22: =VLOOKUP($A22,'Registerdata indskrevne'!$B4:$XX101,E$20,FALSE) -> 0 | F22: =SUM(C22:E22) -> 50 | G22: =B9 -> 0 | H22: =F22+G22 -> 50 | I22: =C34 -> 551383 | J22: =F22/I22*100 -> 0.009068106924 | K22: =+H22/I22*100 -> 0.009068106924 | L22: =+$L$30*F22/$F$30 -> 0
A23: =Model!$C$4 -> København | B23: 60-64 år | C23: =VLOOKUP($A23,'Registerdata indskrevne'!$B102:$XX199,C20,FALSE) -> 29 | D23: =VLOOKUP($A23,'Registerdata indskrevne'!$B102:$XX199,D20,FALSE) -> 53 | E23: =VLOOKUP($A23,'Registerdata indskrevne'!$B102:$XX199,E20,FALSE) -> 1 | F23: =SUM(C23:E23) -> 83 | G23: =B10 -> 0 | H23: =F23+G23 -> 83 | I23: 25157 | J23: =F23/I23*100 -> 0.3299280518 | K23: 0.3299280518 | L23: =+$L$30*F23/$F$30 -> 0
A24: =Model!$C$4 -> København | B24: 65-66 år | C24: =VLOOKUP($A24,'Registerdata indskrevne'!$B200:$XX297,C20,FALSE) -> 29 | D24: =VLOOKUP($A24,'Registerdata indskrevne'!$B200:$XX297,D20,FALSE) -> 51 | E24: =VLOOKUP($A24,'Registerdata indskrevne'!$B200:$XX297,E20,FALSE) -> 1 | F24: 81 | G24: =B11 -> 0 | H24: 81 | I24: 8880 | J24: 0.9121621622 | K24: 0.9121621622 | L24: 0
A25: =Model!$C$4 -> København | B25: 67-74 år | C25: =VLOOKUP($A25,'Registerdata indskrevne'!$B298:$XX395,C20,FALSE) -> 163 | D25: =VLOOKUP($A25,'Registerdata indskrevne'!$B298:$XX395,D20,FALSE) -> 332 | E25: =VLOOKUP($A25,'Registerdata indskrevne'!$B298:$XX395,E20,FALSE) -> 4 | F25: 499 | G25: 0 | H25: 499 | I25: 30402 | J25: 1.641339386 | K25: 1.641339386 | L25: 0
A26: =Model!$C$4 -> København | B26: 75-79 år | C26: =VLOOKUP($A26,'Registerdata indskrevne'!$B396:$XX493,C20,FALSE) -> 192 | D26: =VLOOKUP($A26,'Registerdata indskrevne'!$B396:$XX493,D20,FALSE) -> 378 | E26: =VLOOKUP($A26,'Registerdata indskrevne'!$B396:$XX493,E20,FALSE) -> 13 | F26: 583 | G26: 0 | H26: 583 | I26: 14790 | J26: 3.941852603 | K26: 3.941852603 | L26: 0
A27: =Model!$C$4 -> København | B27: 80-84 år | C27: =VLOOKUP($A27,'Registerdata indskrevne'!$B494:$XX591,C20,FALSE) -> 196 | D27: =VLOOKUP($A27,'Registerdata indskrevne'!$B494:$XX591,D20,FALSE) -> 434 | E27: =VLOOKUP($A27,'Registerdata indskrevne'!$B494:$XX591,E20,FALSE) -> 12 | F27: 642 | G27: 0 | H27: 642 | I27: 7671 | J27: 8.369182636 | K27: 8.369182636 | L27: 0
A28: =Model!$C$4 -> København | B28: 85-89 år | C28: =VLOOKUP($A28,'Registerdata indskrevne'!$B592:$XX689,C20,FALSE) -> 177 | D28: =VLOOKUP($A28,'Registerdata indskrevne'!$B592:$XX689,D20,FALSE) -> 421 | E28: =VLOOKUP($A28,'Registerdata indskrevne'!$B592:$XX689,E20,FALSE) -> 17 | F28: 615 | G28: 0 | H28: 615 | I28: 3744 | J28: 16.42628205 | K28: 16.42628205 | L28: 0
A29: =Model!$C$4 -> København | B29: Over 90 år | C29: =VLOOKUP($A29,'Registerdata indskrevne'!$B690:$XX787,C20,FALSE) -> 247 | D29: =VLOOKUP($A29,'Registerdata indskrevne'!$B690:$XX787,D20,FALSE) -> 562 | E29: =VLOOKUP($A29,'Registerdata indskrevne'!$B690:$XX787,E20,FALSE) -> 33 | F29: 842 | G29: 0 | H29: 842 | I29: 2404 | J29: 35.0249584 | K29: 35.0249584 | L29: 0
A30: =Model!$C$4 -> København | B30: I alt | C30: =SUM(C22:C29) -> 1050 | D30: 2264 | E30: 81 | F30: 3395 | G30: 0 | H30: 3395 | I30: 644431 | J30: 0.5268213354 | K30: 0.5268213354 | L30: =Model!C18 -> 0
A32: Befolkningsfremskrivning (Fra Befolkningsfremskrivning og dermed befolkningsfremskriv - inddata)
A33: Kommune | B33: Aldersgruppe | C33: =A2 -> 2022 | D33: =C33+1 -> 2023 | E33: 2024 | F33: 2025 | G33: 2026 | H33: 2027 | I33: 2028 | J33: 2029 | K33: 2030 | L33: 2031 | M33: 2032 | N33: 2033 | O33: 2034 | P33: 2035 | Q33: 2036 | R33: 2037 | S33: 2038 | T33: 2039 | U33: 2040 | V33: 2041 | W33: 2042 | X33: 2043 | Y33: 2044 | Z33: 2045
A34: =Model!$C$4 -> København | B34: Under 60 år | C34: =VLOOKUP($A34,Befolkningsfremskrivning!$B3:$AG100,C$33-2013,FALSE) -> 551383 | D34: =VLOOKUP($A34,Befolkningsfremskrivning!$B3:$AG100,D$33-2013,FALSE) -> 558391 | E34: =VLOOKUP($A34,Befolkningsfremskrivning!$B3:$AG100,E$33-2013,FALSE) -> 562211 | F34: =VLOOKUP($A34,Befolkningsfremskrivning!$B3:$AG100,F$33-2013,FALSE) -> 560486 | G34: =VLOOKUP($A34,Befolkningsfremskrivning!$B3:$AG100,G$33-2013,FALSE) -> 562357 | H34: =VLOOKUP($A34,Befolkningsfremskrivning!$B3:$AG100,H$33-2013,FALSE) -> 564118 | I34: =VLOOKUP($A34,Befolkningsfremskrivning!$B3:$AG100,I$33-2013,FALSE) -> 566211 | J34: =VLOOKUP($A34,Befolkningsfremskrivning!$B3:$AG100,J$33-2013,FALSE) -> 568633 | K34: =VLOOKUP($A34,Befolkningsfremskrivning!$B3:$AG100,K$33-2013,FALSE) -> 571008 | L34: =VLOOKUP($A34,Befolkningsfremskrivning!$B3:$AG100,L$33-2013,FALSE) -> 572834 | M34: =VLOOKUP($A34,Befolkningsfremskrivning!$B3:$AG100,M$33-2013,FALSE) -> 573978 | N34: =VLOOKUP($A34,Befolkningsfremskrivning!$B3:$AG100,N$33-2013,FALSE) -> 574304 | O34: =VLOOKUP($A34,Befolkningsfremskrivning!$B3:$AG100,O$33-2013,FALSE) -> 574469 | P34: =VLOOKUP($A34,Befolkningsfremskrivning!$B3:$AG100,P$33-2013,FALSE) -> 574094 | Q34: =VLOOKUP($A34,Befolkningsfremskrivning!$B3:$AG100,Q$33-2013,FALSE) -> 573588 | R34: =VLOOKUP($A34,Befolkningsfremskrivning!$B3:$AG100,R$33-2013,FALSE) -> 573540 | S34: =VLOOKUP($A34,Befolkningsfremskrivning!$B3:$AG100,S$33-2013,FALSE) -> 573818 | T34: =VLOOKUP($A34,Befolkningsfremskrivning!$B3:$AG100,T$33-2013,FALSE) -> 573922 | U34: =VLOOKUP($A34,Befolkningsfremskrivning!$B3:$AG100,U$33-2013,FALSE) -> 574150 | V34: =VLOOKUP($A34,Befolkningsfremskrivning!$B3:$AG100,V$33-2013,FALSE) -> 574540 | W34: =VLOOKUP($A34,Befolkningsfremskrivning!$B3:$AG100,W$33-2013,FALSE) -> 575272 | X34: =VLOOKUP($A34,Befolkningsfremskrivning!$B3:$AG100,X$33-2013,FALSE) -> 576108 | Y34: =VLOOKUP($A34,Befolkningsfremskrivning!$B3:$AG100,Y$33-2013,FALSE) -> 576946 | Z34: =VLOOKUP($A34,Befolkningsfremskrivning!$B3:$AG100,Z$33-2013,FALSE) -> 577702
A35: =Model!$C$4 -> København | B35: 60-64 år | C35: =VLOOKUP($A35,Befolkningsfremskrivning!$B101:$AG198,C$33-2013,FALSE) -> 25157 | D35: =VLOOKUP($A35,Befolkningsfremskrivning!$B101:$AG198,D$33-2013,FALSE) -> 26140 | E35: =VLOOKUP($A35,Befolkningsfremskrivning!$B101:$AG198,E$33-2013,FALSE) -> 27384 | F35: =VLOOKUP($A35,Befolkningsfremskrivning!$B101:$AG198,F$33-2013,FALSE) -> 28522 | G35: =VLOOKUP($A35,Befolkningsfremskrivning!$B101:$AG198,G$33-2013,FALSE) -> 29800 | H35: =VLOOKUP($A35,Befolkningsfremskrivning!$B101:$AG198,H$33-2013,FALSE) -> 31146 | I35: =VLOOKUP($A35,Befolkningsfremskrivning!$B101:$AG198,I$33-2013,FALSE) -> 32101 | J35: =VLOOKUP($A35,Befolkningsfremskrivning!$B101:$AG198,J$33-2013,FALSE) -> 32201 | K35: =VLOOKUP($A35,Befolkningsfremskrivning!$B101:$AG198,K$33-2013,FALSE) -> 31938 | L35: =VLOOKUP($A35,Befolkningsfremskrivning!$B101:$AG198,L$33-2013,FALSE) -> 31619 | M35: =VLOOKUP($A35,Befolkningsfremskrivning!$B101:$AG198,M$33-2013,FALSE) -> 31428 | N35: =VLOOKUP($A35,Befolkningsfremskrivning!$B101:$AG198,N$33-2013,FALSE) -> 31812 | O35: =VLOOKUP($A35,Befolkningsfremskrivning!$B101:$AG198,O$33-2013,FALSE) -> 32315 | P35: =VLOOKUP($A35,Befolkningsfremskrivning!$B101:$AG198,P$33-2013,FALSE) -> 33211 | Q35: =VLOOKUP($A35,Befolkningsfremskrivning!$B101:$AG198,Q$33-2013,FALSE) -> 33899 | R35: =VLOOKUP($A35,Befolkningsfremskrivning!$B101:$AG198,R$33-2013,FALSE) -> 33803 | S35: =VLOOKUP($A35,Befolkningsfremskrivning!$B101:$AG198,S$33-2013,FALSE) -> 33098 | T35: =VLOOKUP($A35,Befolkningsfremskrivning!$B101:$AG198,T$33-2013,FALSE) -> 32797 | U35: =VLOOKUP($A35,Befolkningsfremskrivning!$B101:$AG198,U$33-2013,FALSE) -> 32149 | V35: =VLOOKUP($A35,Befolkningsfremskrivning!$B101:$AG198,V$33-2013,FALSE) -> 31377 | W35: =VLOOKUP($A35,Befolkningsfremskrivning!$B101:$AG198,W$33-2013,FALSE) -> 30745 | X35: =VLOOKUP($A35,Befolkningsfremskrivning!$B101:$AG198,X$33-2013,FALSE) -> 30274 | Y35: =VLOOKUP($A35,Befolkningsfremskrivning!$B101:$AG198,Y$33-2013,FALSE) -> 29555 | Z35: =VLOOKUP($A35,Befolkningsfremskrivning!$B101:$AG198,Z$33-2013,FALSE) -> 29085
A36: =Model!$C$4 -> København | B36: 65-66 år | C36: =VLOOKUP($A36,Befolkningsfremskrivning!$B199:$AG296,C$33-2013,FALSE) -> 8880 | D36: =VLOOKUP($A36,Befolkningsfremskrivning!$B199:$AG296,D$33-2013,FALSE) -> 8919 | E36: =VLOOKUP($A36,Befolkningsfremskrivning!$B199:$AG296,E$33-2013,FALSE) -> 8987 | F36: =VLOOKUP($A36,Befolkningsfremskrivning!$B199:$AG296,F$33-2013,FALSE) -> 9159 | G36: =VLOOKUP($A36,Befolkningsfremskrivning!$B199:$AG296,G$33-2013,FALSE) -> 9489 | H36: =VLOOKUP($A36,Befolkningsfremskrivning!$B199:$AG296,H$33-2013,FALSE) -> 9876 | I36: =VLOOKUP($A36,Befolkningsfremskrivning!$B199:$AG296,I$33-2013,FALSE) -> 10169 | J36: =VLOOKUP($A36,Befolkningsfremskrivning!$B199:$AG296,J$33-2013,FALSE) -> 10801 | K36: =VLOOKUP($A36,Befolkningsfremskrivning!$B199:$AG296,K$33-2013,FALSE) -> 11441 | L36: =VLOOKUP($A36,Befolkningsfremskrivning!$B199:$AG296,L$33-2013,FALSE) -> 11872 | M36: =VLOOKUP($A36,Befolkningsfremskrivning!$B199:$AG296,M$33-2013,FALSE) -> 12321 | N36: =VLOOKUP($A36,Befolkningsfremskrivning!$B199:$AG296,N$33-2013,FALSE) -> 12328 | O36: =VLOOKUP($A36,Befolkningsfremskrivning!$B199:$AG296,O$33-2013,FALSE) -> 11803 | P36: =VLOOKUP($A36,Befolkningsfremskrivning!$B199:$AG296,P$33-2013,FALSE) -> 11316 | Q36: =VLOOKUP($A36,Befolkningsfremskrivning!$B199:$AG296,Q$33-2013,FALSE) -> 11340 | R36: =VLOOKUP($A36,Befolkningsfremskrivning!$B199:$AG296,R$33-2013,FALSE) -> 11812 | S36: =VLOOKUP($A36,Befolkningsfremskrivning!$B199:$AG296,S$33-2013,FALSE) -> 12434 | T36: =VLOOKUP($A36,Befolkningsfremskrivning!$B199:$AG296,T$33-2013,FALSE) -> 12565 | U36: =VLOOKUP($A36,Befolkningsfremskrivning!$B199:$AG296,U$33-2013,FALSE) -> 12601 | V36: =VLOOKUP($A36,Befolkningsfremskrivning!$B199:$AG296,V$33-2013,FALSE) -> 12813 | W36: =VLOOKUP($A36,Befolkningsfremskrivning!$B199:$AG296,W$33-2013,FALSE) -> 12388 | X36: =VLOOKUP($A36,Befolkningsfremskrivning!$B199:$AG296,X$33-2013,FALSE) -> 11724 | Y36: =VLOOKUP($A36,Befolkningsfremskrivning!$B199:$AG296,Y$33-2013,FALSE) -> 11661 | Z36: =VLOOKUP($A36,Befolkningsfremskrivning!$B199:$AG296,Z$33-2013,FALSE) -> 11712
A37: =Model!$C$4 -> København | B37: 67-74 år | C37: =VLOOKUP($A37,Befolkningsfremskrivning!$B297:$AG394,C$33-2013,FALSE) -> 30402 | D37: =VLOOKUP($A37,Befolkningsfremskrivning!$B297:$AG394,D$33-2013,FALSE) -> 30272 | E37: =VLOOKUP($A37,Befolkningsfremskrivning!$B297:$AG394,E$33-2013,FALSE) -> 30403 | F37: =VLOOKUP($A37,Befolkningsfremskrivning!$B297:$AG394,F$33-2013,FALSE) -> 30566 | G37: =VLOOKUP($A37,Befolkningsfremskrivning!$B297:$AG394,G$33-2013,FALSE) -> 30801 | H37: =VLOOKUP($A37,Befolkningsfremskrivning!$B297:$AG394,H$33-2013,FALSE) -> 31204 | I37: =VLOOKUP($A37,Befolkningsfremskrivning!$B297:$AG394,I$33-2013,FALSE) -> 31848 | J37: =VLOOKUP($A37,Befolkningsfremskrivning!$B297:$AG394,J$33-2013,FALSE) -> 32474 | K37: =VLOOKUP($A37,Befolkningsfremskrivning!$B297:$AG394,K$33-2013,FALSE) -> 33365 | L37: =VLOOKUP($A37,Befolkningsfremskrivning!$B297:$AG394,L$33-2013,FALSE) -> 34589 | M37: =VLOOKUP($A37,Befolkningsfremskrivning!$B297:$AG394,M$33-2013,FALSE) -> 35855 | N37: =VLOOKUP($A37,Befolkningsfremskrivning!$B297:$AG394,N$33-2013,FALSE) -> 37409 | O37: =VLOOKUP($A37,Befolkningsfremskrivning!$B297:$AG394,O$33-2013,FALSE) -> 39000 | P37: =VLOOKUP($A37,Befolkningsfremskrivning!$B297:$AG394,P$33-2013,FALSE) -> 40322 | Q37: =VLOOKUP($A37,Befolkningsfremskrivning!$B297:$AG394,Q$33-2013,FALSE) -> 41077 | R37: =VLOOKUP($A37,Befolkningsfremskrivning!$B297:$AG394,R$33-2013,FALSE) -> 41563 | S37: =VLOOKUP($A37,Befolkningsfremskrivning!$B297:$AG394,S$33-2013,FALSE) -> 42067 | T37: =VLOOKUP($A37,Befolkningsfremskrivning!$B297:$AG394,T$33-2013,FALSE) -> 42480 | U37: =VLOOKUP($A37,Befolkningsfremskrivning!$B297:$AG394,U$33-2013,FALSE) -> 43040 | V37: =VLOOKUP($A37,Befolkningsfremskrivning!$B297:$AG394,V$33-2013,FALSE) -> 43202 | W37: =VLOOKUP($A37,Befolkningsfremskrivning!$B297:$AG394,W$33-2013,FALSE) -> 43402 | X37: =VLOOKUP($A37,Befolkningsfremskrivning!$B297:$AG394,X$33-2013,FALSE) -> 43757 | Y37: =VLOOKUP($A37,Befolkningsfremskrivning!$B297:$AG394,Y$33-2013,FALSE) -> 43979 | Z37: =VLOOKUP($A37,Befolkningsfremskrivning!$B297:$AG394,Z$33-2013,FALSE) -> 44080
A38: =Model!$C$4 -> København | B38: 75-79 år | C38: =VLOOKUP($A38,Befolkningsfremskrivning!$B395:$AG492,C$33-2013,FALSE) -> 14790 | D38: =VLOOKUP($A38,Befolkningsfremskrivning!$B395:$AG492,D$33-2013,FALSE) -> 15510 | E38: =VLOOKUP($A38,Befolkningsfremskrivning!$B395:$AG492,E$33-2013,FALSE) -> 15841 | F38: =VLOOKUP($A38,Befolkningsfremskrivning!$B395:$AG492,F$33-2013,FALSE) -> 15740 | G38: =VLOOKUP($A38,Befolkningsfremskrivning!$B395:$AG492,G$33-2013,FALSE) -> 15675 | H38: =VLOOKUP($A38,Befolkningsfremskrivning!$B395:$AG492,H$33-2013,FALSE) -> 15438 | I38: =VLOOKUP($A38,Befolkningsfremskrivning!$B395:$AG492,I$33-2013,FALSE) -> 15174 | J38: =VLOOKUP($A38,Befolkningsfremskrivning!$B395:$AG492,J$33-2013,FALSE) -> 15222 | K38: =VLOOKUP($A38,Befolkningsfremskrivning!$B395:$AG492,K$33-2013,FALSE) -> 15391 | L38: =VLOOKUP($A38,Befolkningsfremskrivning!$B395:$AG492,L$33-2013,FALSE) -> 15491 | M38: =VLOOKUP($A38,Befolkningsfremskrivning!$B395:$AG492,M$33-2013,FALSE) -> 15775 | N38: =VLOOKUP($A38,Befolkningsfremskrivning!$B395:$AG492,N$33-2013,FALSE) -> 15969 | O38: =VLOOKUP($A38,Befolkningsfremskrivning!$B395:$AG492,O$33-2013,FALSE) -> 16177 | P38: =VLOOKUP($A38,Befolkningsfremskrivning!$B395:$AG492,P$33-2013,FALSE) -> 16522 | Q38: =VLOOKUP($A38,Befolkningsfremskrivning!$B395:$AG492,Q$33-2013,FALSE) -> 16993 | R38: =VLOOKUP($A38,Befolkningsfremskrivning!$B395:$AG492,R$33-2013,FALSE) -> 17465 | S38: =VLOOKUP($A38,Befolkningsfremskrivning!$B395:$AG492,S$33-2013,FALSE) -> 18118 | T38: =VLOOKUP($A38,Befolkningsfremskrivning!$B395:$AG492,T$33-2013,FALSE) -> 19011 | U38: =VLOOKUP($A38,Befolkningsfremskrivning!$B395:$AG492,U$33-2013,FALSE) -> 19987 | V38: =VLOOKUP($A38,Befolkningsfremskrivning!$B395:$AG492,V$33-2013,FALSE) -> 20959 | W38: =VLOOKUP($A38,Befolkningsfremskrivning!$B395:$AG492,W$33-2013,FALSE) -> 21984 | X38: =VLOOKUP($A38,Befolkningsfremskrivning!$B395:$AG492,X$33-2013,FALSE) -> 22704 | Y38: =VLOOKUP($A38,Befolkningsfremskrivning!$B395:$AG492,Y$33-2013,FALSE) -> 22813 | Z38: =VLOOKUP($A38,Befolkningsfremskrivning!$B395:$AG492,Z$33-2013,FALSE) -> 22669
A39: =Model!$C$4 -> København | B39: 80-84 år | C39: =VLOOKUP($A39,Befolkningsfremskrivning!$B493:$AG590,C$33-2013,FALSE) -> 7671 | D39: =VLOOKUP($A39,Befolkningsfremskrivning!$B493:$AG590,D$33-2013,FALSE) -> 8272 | E39: =VLOOKUP($A39,Befolkningsfremskrivning!$B493:$AG590,E$33-2013,FALSE) -> 8927 | F39: =VLOOKUP($A39,Befolkningsfremskrivning!$B493:$AG590,F$33-2013,FALSE) -> 9621 | G39: =VLOOKUP($A39,Befolkningsfremskrivning!$B493:$AG590,G$33-2013,FALSE) -> 10422 | H39: =VLOOKUP($A39,Befolkningsfremskrivning!$B493:$AG590,H$33-2013,FALSE) -> 11296 | I39: =VLOOKUP($A39,Befolkningsfremskrivning!$B493:$AG590,I$33-2013,FALSE) -> 11913 | J39: =VLOOKUP($A39,Befolkningsfremskrivning!$B493:$AG590,J$33-2013,FALSE) -> 12192 | K39: =VLOOKUP($A39,Befolkningsfremskrivning!$B493:$AG590,K$33-2013,FALSE) -> 12162 | L39: =VLOOKUP($A39,Befolkningsfremskrivning!$B493:$AG590,L$33-2013,FALSE) -> 12161 | M39: =VLOOKUP($A39,Befolkningsfremskrivning!$B493:$AG590,M$33-2013,FALSE) -> 12020 | N39: =VLOOKUP($A39,Befolkningsfremskrivning!$B493:$AG590,N$33-2013,FALSE) -> 11877 | O39: =VLOOKUP($A39,Befolkningsfremskrivning!$B493:$AG590,O$33-2013,FALSE) -> 11977 | P39: =VLOOKUP($A39,Befolkningsfremskrivning!$B493:$AG590,P$33-2013,FALSE) -> 12147 | Q39: =VLOOKUP($A39,Befolkningsfremskrivning!$B493:$AG590,Q$33-2013,FALSE) -> 12274 | R39: =VLOOKUP($A39,Befolkningsfremskrivning!$B493:$AG590,R$33-2013,FALSE) -> 12547 | S39: =VLOOKUP($A39,Befolkningsfremskrivning!$B493:$AG590,S$33-2013,FALSE) -> 12741 | T39: =VLOOKUP($A39,Befolkningsfremskrivning!$B493:$AG590,T$33-2013,FALSE) -> 12954 | U39: =VLOOKUP($A39,Befolkningsfremskrivning!$B493:$AG590,U$33-2013,FALSE) -> 13266 | V39: =VLOOKUP($A39,Befolkningsfremskrivning!$B493:$AG590,V$33-2013,FALSE) -> 13693 | W39: =VLOOKUP($A39,Befolkningsfremskrivning!$B493:$AG590,W$33-2013,FALSE) -> 14123 | X39: =VLOOKUP($A39,Befolkningsfremskrivning!$B493:$AG590,X$33-2013,FALSE) -> 14694 | Y39: =VLOOKUP($A39,Befolkningsfremskrivning!$B493:$AG590,Y$33-2013,FALSE) -> 15469 | Z39: =VLOOKUP($A39,Befolkningsfremskrivning!$B493:$AG590,Z$33-2013,FALSE) -> 16307
A40: =Model!$C$4 -> København | B40: 85-89 år | C40: =VLOOKUP($A40,Befolkningsfremskrivning!$B591:$AG688,C$33-2013,FALSE) -> 3744 | D40: =VLOOKUP($A40,Befolkningsfremskrivning!$B591:$AG688,D$33-2013,FALSE) -> 3833 | E40: =VLOOKUP($A40,Befolkningsfremskrivning!$B591:$AG688,E$33-2013,FALSE) -> 4083 | F40: =VLOOKUP($A40,Befolkningsfremskrivning!$B591:$AG688,F$33-2013,FALSE) -> 4358 | G40: =VLOOKUP($A40,Befolkningsfremskrivning!$B591:$AG688,G$33-2013,FALSE) -> 4642 | H40: =VLOOKUP($A40,Befolkningsfremskrivning!$B591:$AG688,H$33-2013,FALSE) -> 4853 | I40: =VLOOKUP($A40,Befolkningsfremskrivning!$B591:$AG688,I$33-2013,FALSE) -> 5287 | J40: =VLOOKUP($A40,Befolkningsfremskrivning!$B591:$AG688,J$33-2013,FALSE) -> 5754 | K40: =VLOOKUP($A40,Befolkningsfremskrivning!$B591:$AG688,K$33-2013,FALSE) -> 6253 | L40: =VLOOKUP($A40,Befolkningsfremskrivning!$B591:$AG688,L$33-2013,FALSE) -> 6810 | M40: =VLOOKUP($A40,Befolkningsfremskrivning!$B591:$AG688,M$33-2013,FALSE) -> 7401 | N40: =VLOOKUP($A40,Befolkningsfremskrivning!$B591:$AG688,N$33-2013,FALSE) -> 7832 | O40: =VLOOKUP($A40,Befolkningsfremskrivning!$B591:$AG688,O$33-2013,FALSE) -> 8038 | P40: =VLOOKUP($A40,Befolkningsfremskrivning!$B591:$AG688,P$33-2013,FALSE) -> 8029 | Q40: =VLOOKUP($A40,Befolkningsfremskrivning!$B591:$AG688,Q$33-2013,FALSE) -> 8064 | R40: =VLOOKUP($A40,Befolkningsfremskrivning!$B591:$AG688,R$33-2013,FALSE) -> 8005 | S40: =VLOOKUP($A40,Befolkningsfremskrivning!$B591:$AG688,S$33-2013,FALSE) -> 7965 | T40: =VLOOKUP($A40,Befolkningsfremskrivning!$B591:$AG688,T$33-2013,FALSE) -> 8080 | U40: =VLOOKUP($A40,Befolkningsfremskrivning!$B591:$AG688,U$33-2013,FALSE) -> 8228 | V40: =VLOOKUP($A40,Befolkningsfremskrivning!$B591:$AG688,V$33-2013,FALSE) -> 8350 | W40: =VLOOKUP($A40,Befolkningsfremskrivning!$B591:$AG688,W$33-2013,FALSE) -> 8577 | X40: =VLOOKUP($A40,Befolkningsfremskrivning!$B591:$AG688,X$33-2013,FALSE) -> 8743 | Y40: =VLOOKUP($A40,Befolkningsfremskrivning!$B591:$AG688,Y$33-2013,FALSE) -> 8928 | Z40: =VLOOKUP($A40,Befolkningsfremskrivning!$B591:$AG688,Z$33-2013,FALSE) -> 9175
A41: =Model!$C$4 -> København | B41: Over 90 år | C41: =VLOOKUP($A41,Befolkningsfremskrivning!$B689:$AG786,C$33-2013,FALSE) -> 2404 | D41: =VLOOKUP($A41,Befolkningsfremskrivning!$B689:$AG786,D$33-2013,FALSE) -> 2327 | E41: =VLOOKUP($A41,Befolkningsfremskrivning!$B689:$AG786,E$33-2013,FALSE) -> 2219 | F41: =VLOOKUP($A41,Befolkningsfremskrivning!$B689:$AG786,F$33-2013,FALSE) -> 2116 | G41: =VLOOKUP($A41,Befolkningsfremskrivning!$B689:$AG786,G$33-2013,FALSE) -> 2097 | H41: =VLOOKUP($A41,Befolkningsfremskrivning!$B689:$AG786,H$33-2013,FALSE) -> 2120 | I41: =VLOOKUP($A41,Befolkningsfremskrivning!$B689:$AG786,I$33-2013,FALSE) -> 2175 | J41: =VLOOKUP($A41,Befolkningsfremskrivning!$B689:$AG786,J$33-2013,FALSE) -> 2306 | K41: =VLOOKUP($A41,Befolkningsfremskrivning!$B689:$AG786,K$33-2013,FALSE) -> 2438 | L41: =VLOOKUP($A41,Befolkningsfremskrivning!$B689:$AG786,L$33-2013,FALSE) -> 2598 | M41: =VLOOKUP($A41,Befolkningsfremskrivning!$B689:$AG786,M$33-2013,FALSE) -> 2727 | N41: =VLOOKUP($A41,Befolkningsfremskrivning!$B689:$AG786,N$33-2013,FALSE) -> 2977 | O41: =VLOOKUP($A41,Befolkningsfremskrivning!$B689:$AG786,O$33-2013,FALSE) -> 3279 | P41: =VLOOKUP($A41,Befolkningsfremskrivning!$B689:$AG786,P$33-2013,FALSE) -> 3580 | Q41: =VLOOKUP($A41,Befolkningsfremskrivning!$B689:$AG786,Q$33-2013,FALSE) -> 3922 | R41: =VLOOKUP($A41,Befolkningsfremskrivning!$B689:$AG786,R$33-2013,FALSE) -> 4254 | S41: =VLOOKUP($A41,Befolkningsfremskrivning!$B689:$AG786,S$33-2013,FALSE) -> 4555 | T41: =VLOOKUP($A41,Befolkningsfremskrivning!$B689:$AG786,T$33-2013,FALSE) -> 4752 | U41: =VLOOKUP($A41,Befolkningsfremskrivning!$B689:$AG786,U$33-2013,FALSE) -> 4838 | V41: =VLOOKUP($A41,Befolkningsfremskrivning!$B689:$AG786,V$33-2013,FALSE) -> 4981 | W41: =VLOOKUP($A41,Befolkningsfremskrivning!$B689:$AG786,W$33-2013,FALSE) -> 5069 | X41: =VLOOKUP($A41,Befolkningsfremskrivning!$B689:$AG786,X$33-2013,FALSE) -> 5168 | Y41: =VLOOKUP($A41,Befolkningsfremskrivning!$B689:$AG786,Y$33-2013,FALSE) -> 5307 | Z41: =VLOOKUP($A41,Befolkningsfremskrivning!$B689:$AG786,Z$33-2013,FALSE) -> 5408
A42: =Model!$C$4 -> København | B42: I alt | C42: =SUM(C34:C41) -> 644431 | D42: =SUM(D34:D41) -> 653664 | E42: 660055 | F42: 660568 | G42: 665283 | H42: 670051 | I42: 674878 | J42: 679583 | K42: 683996 | L42: 687974 | M42: 691505 | N42: 694508 | O42: 697058 | P42: 699221 | Q42: 701157 | R42: 702989 | S42: 704796 | T42: 706561 | U42: 708259 | V42: 709915 | W42: 711560 | X42: 713172 | Y42: 714658 | Z42: 716138
A44: Fremskrivning af behovsgrader
A45: Kommune | B45: Aldersgruppe | C45: =C33 -> 2022 | D45: =C45+1 -> 2023 | E45: 2024 | F45: 2025 | G45: 2026 | H45: 2027 | I45: 2028 | J45: 2029 | K45: 2030 | L45: 2031 | M45: 2032 | N45: 2033 | O45: 2034 | P45: 2035 | Q45: 2036 | R45: 2037 | S45: 2038 | T45: 2039 | U45: 2040 | V45: 2041 | W45: 2042 | X45: 2043 | Y45: 2044 | Z45: 2045
A46: =Model!$C$4 -> København | B46: Under 60 år | C46: =K22 -> 0.009068106924 | D46: =MIN(MAX(0,C46+IF(D$45-$C$45<=Model!$M$10,IF(AND(ISNUMBER(Model!$K10),ISNUMBER(Model!$M$10)),(Model!$K10-Model!$E10)/Model!$M$10),0)),100) -> 0.008694297258 | E46: =MIN(MAX(0,D46+IF(E$45-$C$45<=Model!$M$10,IF(AND(ISNUMBER(Model!$K10),ISNUMBER(Model!$M$10)),(Model!$K10-Model!$E10)/Model!$M$10),0)),100) -> 0.008320487591 | F46: =MIN(MAX(0,E46+IF(F$45-$C$45<=Model!$M$10,IF(AND(ISNUMBER(Model!$K10),ISNUMBER(Model!$M$10)),(Model!$K10-Model!$E10)/Model!$M$10),0)),100) -> 0.007946677925 | G46: =MIN(MAX(0,F46+IF(G$45-$C$45<=Model!$M$10,IF(AND(ISNUMBER(Model!$K10),ISNUMBER(Model!$M$10)),(Model!$K10-Model!$E10)/Model!$M$10),0)),100) -> 0.007572868258 | H46: =MIN(MAX(0,G46+IF(H$45-$C$45<=Model!$M$10,IF(AND(ISNUMBER(Model!$K10),ISNUMBER(Model!$M$10)),(Model!$K10-Model!$E10)/Model!$M$10),0)),100) -> 0.007199058592 | I46: =MIN(MAX(0,H46+IF(I$45-$C$45<=Model!$M$10,IF(AND(ISNUMBER(Model!$K10),ISNUMBER(Model!$M$10)),(Model!$K10-Model!$E10)/Model!$M$10),0)),100) -> 0.006825248926 | J46: =MIN(MAX(0,I46+IF(J$45-$C$45<=Model!$M$10,IF(AND(ISNUMBER(Model!$K10),ISNUMBER(Model!$M$10)),(Model!$K10-Model!$E10)/Model!$M$10),0)),100) -> 0.006451439259 | K46: =MIN(MAX(0,J46+IF(K$45-$C$45<=Model!$M$10,IF(AND(ISNUMBER(Model!$K10),ISNUMBER(Model!$M$10)),(Model!$K10-Model!$E10)/Model!$M$10),0)),100) -> 0.006077629593 | L46: =MIN(MAX(0,K46+IF(L$45-$C$45<=Model!$M$10,IF(AND(ISNUMBER(Model!$K10),ISNUMBER(Model!$M$10)),(Model!$K10-Model!$E10)/Model!$M$10),0)),100) -> 0.005703819927 | M46: =MIN(MAX(0,L46+IF(M$45-$C$45<=Model!$M$10,IF(AND(ISNUMBER(Model!$K10),ISNUMBER(Model!$M$10)),(Model!$K10-Model!$E10)/Model!$M$10),0)),100) -> 0.00533001026 | N46: =MIN(MAX(0,M46+IF(N$45-$C$45<=Model!$M$10,IF(AND(ISNUMBER(Model!$K10),ISNUMBER(Model!$M$10)),(Model!$K10-Model!$E10)/Model!$M$10),0)),100) -> 0.00533001026 | O46: =MIN(MAX(0,N46+IF(O$45-$C$45<=Model!$M$10,IF(AND(ISNUMBER(Model!$K10),ISNUMBER(Model!$M$10)),(Model!$K10-Model!$E10)/Model!$M$10),0)),100) -> 0.00533001026 | P46: =MIN(MAX(0,O46+IF(P$45-$C$45<=Model!$M$10,IF(AND(ISNUMBER(Model!$K10),ISNUMBER(Model!$M$10)),(Model!$K10-Model!$E10)/Model!$M$10),0)),100) -> 0.00533001026 | Q46: =MIN(MAX(0,P46+IF(Q$45-$C$45<=Model!$M$10,IF(AND(ISNUMBER(Model!$K10),ISNUMBER(Model!$M$10)),(Model!$K10-Model!$E10)/Model!$M$10),0)),100) -> 0.00533001026 | R46: =MIN(MAX(0,Q46+IF(R$45-$C$45<=Model!$M$10,IF(AND(ISNUMBER(Model!$K10),ISNUMBER(Model!$M$10)),(Model!$K10-Model!$E10)/Model!$M$10),0)),100) -> 0.00533001026 | S46: =MIN(MAX(0,R46+IF(S$45-$C$45<=Model!$M$10,IF(AND(ISNUMBER(Model!$K10),ISNUMBER(Model!$M$10)),(Model!$K10-Model!$E10)/Model!$M$10),0)),100) -> 0.00533001026 | T46: =MIN(MAX(0,S46+IF(T$45-$C$45<=Model!$M$10,IF(AND(ISNUMBER(Model!$K10),ISNUMBER(Model!$M$10)),(Model!$K10-Model!$E10)/Model!$M$10),0)),100) -> 0.00533001026 | U46: =MIN(MAX(0,T46+IF(U$45-$C$45<=Model!$M$10,IF(AND(ISNUMBER(Model!$K10),ISNUMBER(Model!$M$10)),(Model!$K10-Model!$E10)/Model!$M$10),0)),100) -> 0.00533001026 | V46: =MIN(MAX(0,U46+IF(V$45-$C$45<=Model!$M$10,IF(AND(ISNUMBER(Model!$K10),ISNUMBER(Model!$M$10)),(Model!$K10-Model!$E10)/Model!$M$10),0)),100) -> 0.00533001026 | W46: =MIN(MAX(0,V46+IF(W$45-$C$45<=Model!$M$10,IF(AND(ISNUMBER(Model!$K10),ISNUMBER(Model!$M$10)),(Model!$K10-Model!$E10)/Model!$M$10),0)),100) -> 0.00533001026 | X46: =MIN(MAX(0,W46+IF(X$45-$C$45<=Model!$M$10,IF(AND(ISNUMBER(Model!$K10),ISNUMBER(Model!$M$10)),(Model!$K10-Model!$E10)/Model!$M$10),0)),100) -> 0.00533001026 | Y46: =MIN(MAX(0,X46+IF(Y$45-$C$45<=Model!$M$10,IF(AND(ISNUMBER(Model!$K10),ISNUMBER(Model!$M$10)),(Model!$K10-Model!$E10)/Model!$M$10),0)),100) -> 0.00533001026 | Z46: =MIN(MAX(0,Y46+IF(Z$45-$C$45<=Model!$M$10,IF(AND(ISNUMBER(Model!$K10),ISNUMBER(Model!$M$10)),(Model!$K10-Model!$E10)/Model!$M$10),0)),100) -> 0.00533001026
A47: =Model!$C$4 -> København | B47: 60-64 år | C47: =K23 -> 0.3299280518 | D47: =MIN(MAX(0,C47+IF(D$45-$C$45<=Model!$M$10,IF(AND(ISNUMBER(Model!$K11),ISNUMBER(Model!$M$10)),(Model!$K11-Model!$E11)/Model!$M$10),0)),100) -> 0.3194602975 | E47: =MIN(MAX(0,D47+IF(E$45-$C$45<=Model!$M$10,IF(AND(ISNUMBER(Model!$K11),ISNUMBER(Model!$M$10)),(Model!$K11-Model!$E11)/Model!$M$10),0)),100) -> 0.3089925432 | F47: =MIN(MAX(0,E47+IF(F$45-$C$45<=Model!$M$10,IF(AND(ISNUMBER(Model!$K11),ISNUMBER(Model!$M$10)),(Model!$K11-Model!$E11)/Model!$M$10),0)),100) -> 0.2985247889 | G47: =MIN(MAX(0,F47+IF(G$45-$C$45<=Model!$M$10,IF(AND(ISNUMBER(Model!$K11),ISNUMBER(Model!$M$10)),(Model!$K11-Model!$E11)/Model!$M$10),0)),100) -> 0.2880570346 | H47: =MIN(MAX(0,G47+IF(H$45-$C$45<=Model!$M$10,IF(AND(ISNUMBER(Model!$K11),ISNUMBER(Model!$M$10)),(Model!$K11-Model!$E11)/Model!$M$10),0)),100) -> 0.2775892803 | I47: =MIN(MAX(0,H47+IF(I$45-$C$45<=Model!$M$10,IF(AND(ISNUMBER(Model!$K11),ISNUMBER(Model!$M$10)),(Model!$K11-Model!$E11)/Model!$M$10),0)),100) -> 0.267121526 | J47: =MIN(MAX(0,I47+IF(J$45-$C$45<=Model!$M$10,IF(AND(ISNUMBER(Model!$K11),ISNUMBER(Model!$M$10)),(Model!$K11-Model!$E11)/Model!$M$10),0)),100) -> 0.2566537717 | K47: =MIN(MAX(0,J47+IF(K$45-$C$45<=Model!$M$10,IF(AND(ISNUMBER(Model!$K11),ISNUMBER(Model!$M$10)),(Model!$K11-Model!$E11)/Model!$M$10),0)),100) -> 0.2461860174 | L47: =MIN(MAX(0,K47+IF(L$45-$C$45<=Model!$M$10,IF(AND(ISNUMBER(Model!$K11),ISNUMBER(Model!$M$10)),(Model!$K11-Model!$E11)/Model!$M$10),0)),100) -> 0.2357182631 | M47: =MIN(MAX(0,L47+IF(M$45-$C$45<=Model!$M$10,IF(AND(ISNUMBER(Model!$K11),ISNUMBER(Model!$M$10)),(Model!$K11-Model!$E11)/Model!$M$10),0)),100) -> 0.2252505088 | N47: =MIN(MAX(0,M47+IF(N$45-$C$45<=Model!$M$10,IF(AND(ISNUMBER(Model!$K11),ISNUMBER(Model!$M$10)),(Model!$K11-Model!$E11)/Model!$M$10),0)),100) -> 0.2252505088 | O47: =MIN(MAX(0,N47+IF(O$45-$C$45<=Model!$M$10,IF(AND(ISNUMBER(Model!$K11),ISNUMBER(Model!$M$10)),(Model!$K11-Model!$E11)/Model!$M$10),0)),100) -> 0.2252505088 | P47: =MIN(MAX(0,O47+IF(P$45-$C$45<=Model!$M$10,IF(AND(ISNUMBER(Model!$K11),ISNUMBER(Model!$M$10)),(Model!$K11-Model!$E11)/Model!$M$10),0)),100) -> 0.2252505088 | Q47: =MIN(MAX(0,P47+IF(Q$45-$C$45<=Model!$M$10,IF(AND(ISNUMBER(Model!$K11),ISNUMBER(Model!$M$10)),(Model!$K11-Model!$E11)/Model!$M$10),0)),100) -> 0.2252505088 | R47: =MIN(MAX(0,Q47+IF(R$45-$C$45<=Model!$M$10,IF(AND(ISNUMBER(Model!$K11),ISNUMBER(Model!$M$10)),(Model!$K11-Model!$E11)/Model!$M$10),0)),100) -> 0.2252505088 | S47: =MIN(MAX(0,R47+IF(S$45-$C$45<=Model!$M$10,IF(AND(ISNUMBER(Model!$K11),ISNUMBER(Model!$M$10)),(Model!$K11-Model!$E11)/Model!$M$10),0)),100) -> 0.2252505088 | T47: =MIN(MAX(0,S47+IF(T$45-$C$45<=Model!$M$10,IF(AND(ISNUMBER(Model!$K11),ISNUMBER(Model!$M$10)),(Model!$K11-Model!$E11)/Model!$M$10),0)),100) -> 0.2252505088 | U47: =MIN(MAX(0,T47+IF(U$45-$C$45<=Model!$M$10,IF(AND(ISNUMBER(Model!$K11),ISNUMBER(Model!$M$10)),(Model!$K11-Model!$E11)/Model!$M$10),0)),100) -> 0.2252505088 | V47: =MIN(MAX(0,U47+IF(V$45-$C$45<=Model!$M$10,IF(AND(ISNUMBER(Model!$K11),ISNUMBER(Model!$M$10)),(Model!$K11-Model!$E11)/Model!$M$10),0)),100) -> 0.2252505088 | W47: =MIN(MAX(0,V47+IF(W$45-$C$45<=Model!$M$10,IF(AND(ISNUMBER(Model!$K11),ISNUMBER(Model!$M$10)),(Model!$K11-Model!$E11)/Model!$M$10),0)),100) -> 0.2252505088 | X47: =MIN(MAX(0,W47+IF(X$45-$C$45<=Model!$M$10,IF(AND(ISNUMBER(Model!$K11),ISNUMBER(Model!$M$10)),(Model!$K11-Model!$E11)/Model!$M$10),0)),100) -> 0.2252505088 | Y47: =MIN(MAX(0,X47+IF(Y$45-$C$45<=Model!$M$10,IF(AND(ISNUMBER(Model!$K11),ISNUMBER(Model!$M$10)),(Model!$K11-Model!$E11)/Model!$M$10),0)),100) -> 0.2252505088 | Z47: =MIN(MAX(0,Y47+IF(Z$45-$C$45<=Model!$M$10,IF(AND(ISNUMBER(Model!$K11),ISNUMBER(Model!$M$10)),(Model!$K11-Model!$E11)/Model!$M$10),0)),100) -> 0.2252505088
A48: =Model!$C$4 -> København | B48: 65-66 år | C48: 0.9121621622 | D48: =MIN(MAX(0,C48+IF(D$45-$C$45<=Model!$M$10,IF(AND(ISNUMBER(Model!$K12),ISNUMBER(Model!$M$10)),(Model!$K12-Model!$E12)/Model!$M$10),0)),100) -> 0.9033059729 | E48: =MIN(MAX(0,D48+IF(E$45-$C$45<=Model!$M$10,IF(AND(ISNUMBER(Model!$K12),ISNUMBER(Model!$M$10)),(Model!$K12-Model!$E12)/Model!$M$10),0)),100) -> 0.8944497836 | F48: =MIN(MAX(0,E48+IF(F$45-$C$45<=Model!$M$10,IF(AND(ISNUMBER(Model!$K12),ISNUMBER(Model!$M$10)),(Model!$K12-Model!$E12)/Model!$M$10),0)),100) -> 0.8855935943 | G48: =MIN(MAX(0,F48+IF(G$45-$C$45<=Model!$M$10,IF(AND(ISNUMBER(Model!$K12),ISNUMBER(Model!$M$10)),(Model!$K12-Model!$E12)/Model!$M$10),0)),100) -> 0.876737405 | H48: =MIN(MAX(0,G48+IF(H$45-$C$45<=Model!$M$10,IF(AND(ISNUMBER(Model!$K12),ISNUMBER(Model!$M$10)),(Model!$K12-Model!$E12)/Model!$M$10),0)),100) -> 0.8678812158 | I48: =MIN(MAX(0,H48+IF(I$45-$C$45<=Model!$M$10,IF(AND(ISNUMBER(Model!$K12),ISNUMBER(Model!$M$10)),(Model!$K12-Model!$E12)/Model!$M$10),0)),100) -> 0.8590250265 | J48: =MIN(MAX(0,I48+IF(J$45-$C$45<=Model!$M$10,IF(AND(ISNUMBER(Model!$K12),ISNUMBER(Model!$M$10)),(Model!$K12-Model!$E12)/Model!$M$10),0)),100) -> 0.8501688372 | K48: =MIN(MAX(0,J48+IF(K$45-$C$45<=Model!$M$10,IF(AND(ISNUMBER(Model!$K12),ISNUMBER(Model!$M$10)),(Model!$K12-Model!$E12)/Model!$M$10),0)),100) -> 0.8413126479 | L48: =MIN(MAX(0,K48+IF(L$45-$C$45<=Model!$M$10,IF(AND(ISNUMBER(Model!$K12),ISNUMBER(Model!$M$10)),(Model!$K12-Model!$E12)/Model!$M$10),0)),100) -> 0.8324564587 | M48: =MIN(MAX(0,L48+IF(M$45-$C$45<=Model!$M$10,IF(AND(ISNUMBER(Model!$K12),ISNUMBER(Model!$M$10)),(Model!$K12-Model!$E12)/Model!$M$10),0)),100) -> 0.8236002694 | N48: =MIN(MAX(0,M48+IF(N$45-$C$45<=Model!$M$10,IF(AND(ISNUMBER(Model!$K12),ISNUMBER(Model!$M$10)),(Model!$K12-Model!$E12)/Model!$M$10),0)),100) -> 0.8236002694 | O48: =MIN(MAX(0,N48+IF(O$45-$C$45<=Model!$M$10,IF(AND(ISNUMBER(Model!$K12),ISNUMBER(Model!$M$10)),(Model!$K12-Model!$E12)/Model!$M$10),0)),100) -> 0.8236002694 | P48: =MIN(MAX(0,O48+IF(P$45-$C$45<=Model!$M$10,IF(AND(ISNUMBER(Model!$K12),ISNUMBER(Model!$M$10)),(Model!$K12-Model!$E12)/Model!$M$10),0)),100) -> 0.8236002694 | Q48: =MIN(MAX(0,P48+IF(Q$45-$C$45<=Model!$M$10,IF(AND(ISNUMBER(Model!$K12),ISNUMBER(Model!$M$10)),(Model!$K12-Model!$E12)/Model!$M$10),0)),100) -> 0.8236002694 | R48: =MIN(MAX(0,Q48+IF(R$45-$C$45<=Model!$M$10,IF(AND(ISNUMBER(Model!$K12),ISNUMBER(Model!$M$10)),(Model!$K12-Model!$E12)/Model!$M$10),0)),100) -> 0.8236002694 | S48: =MIN(MAX(0,R48+IF(S$45-$C$45<=Model!$M$10,IF(AND(ISNUMBER(Model!$K12),ISNUMBER(Model!$M$10)),(Model!$K12-Model!$E12)/Model!$M$10),0)),100) -> 0.8236002694 | T48: =MIN(MAX(0,S48+IF(T$45-$C$45<=Model!$M$10,IF(AND(ISNUMBER(Model!$K12),ISNUMBER(Model!$M$10)),(Model!$K12-Model!$E12)/Model!$M$10),0)),100) -> 0.8236002694 | U48: =MIN(MAX(0,T48+IF(U$45-$C$45<=Model!$M$10,IF(AND(ISNUMBER(Model!$K12),ISNUMBER(Model!$M$10)),(Model!$K12-Model!$E12)/Model!$M$10),0)),100) -> 0.8236002694 | V48: =MIN(MAX(0,U48+IF(V$45-$C$45<=Model!$M$10,IF(AND(ISNUMBER(Model!$K12),ISNUMBER(Model!$M$10)),(Model!$K12-Model!$E12)/Model!$M$10),0)),100) -> 0.8236002694 | W48: =MIN(MAX(0,V48+IF(W$45-$C$45<=Model!$M$10,IF(AND(ISNUMBER(Model!$K12),ISNUMBER(Model!$M$10)),(Model!$K12-Model!$E12)/Model!$M$10),0)),100) -> 0.8236002694 | X48: =MIN(MAX(0,W48+IF(X$45-$C$45<=Model!$M$10,IF(AND(ISNUMBER(Model!$K12),ISNUMBER(Model!$M$10)),(Model!$K12-Model!$E12)/Model!$M$10),0)),100) -> 0.8236002694 | Y48: =MIN(MAX(0,X48+IF(Y$45-$C$45<=Model!$M$10,IF(AND(ISNUMBER(Model!$K12),ISNUMBER(Model!$M$10)),(Model!$K12-Model!$E12)/Model!$M$10),0)),100) -> 0.8236002694 | Z48: =MIN(MAX(0,Y48+IF(Z$45-$C$45<=Model!$M$10,IF(AND(ISNUMBER(Model!$K12),ISNUMBER(Model!$M$10)),(Model!$K12-Model!$E12)/Model!$M$10),0)),100) -> 0.8236002694
A49: =Model!$C$4 -> København | B49: 67-74 år | C49: 1.641339386 | D49: =MIN(MAX(0,C49+IF(D$45-$C$45<=Model!$M$10,IF(AND(ISNUMBER(Model!$K13),ISNUMBER(Model!$M$10)),(Model!$K13-Model!$E13)/Model!$M$10),0)),100) -> 1.626071296 | E49: =MIN(MAX(0,D49+IF(E$45-$C$45<=Model!$M$10,IF(AND(ISNUMBER(Model!$K13),ISNUMBER(Model!$M$10)),(Model!$K13-Model!$E13)/Model!$M$10),0)),100) -> 1.610803206 | F49: =MIN(MAX(0,E49+IF(F$45-$C$45<=Model!$M$10,IF(AND(ISNUMBER(Model!$K13),ISNUMBER(Model!$M$10)),(Model!$K13-Model!$E13)/Model!$M$10),0)),100) -> 1.595535116 | G49: =MIN(MAX(0,F49+IF(G$45-$C$45<=Model!$M$10,IF(AND(ISNUMBER(Model!$K13),ISNUMBER(Model!$M$10)),(Model!$K13-Model!$E13)/Model!$M$10),0)),100) -> 1.580267026 | H49: =MIN(MAX(0,G49+IF(H$45-$C$45<=Model!$M$10,IF(AND(ISNUMBER(Model!$K13),ISNUMBER(Model!$M$10)),(Model!$K13-Model!$E13)/Model!$M$10),0)),100) -> 1.564998936 | I49: =MIN(MAX(0,H49+IF(I$45-$C$45<=Model!$M$10,IF(AND(ISNUMBER(Model!$K13),ISNUMBER(Model!$M$10)),(Model!$K13-Model!$E13)/Model!$M$10),0)),100) -> 1.549730846 | J49: =MIN(MAX(0,I49+IF(J$45-$C$45<=Model!$M$10,IF(AND(ISNUMBER(Model!$K13),ISNUMBER(Model!$M$10)),(Model!$K13-Model!$E13)/Model!$M$10),0)),100) -> 1.534462756 | K49: =MIN(MAX(0,J49+IF(K$45-$C$45<=Model!$M$10,IF(AND(ISNUMBER(Model!$K13),ISNUMBER(Model!$M$10)),(Model!$K13-Model!$E13)/Model!$M$10),0)),100) -> 1.519194666 | L49: =MIN(MAX(0,K49+IF(L$45-$C$45<=Model!$M$10,IF(AND(ISNUMBER(Model!$K13),ISNUMBER(Model!$M$10)),(Model!$K13-Model!$E13)/Model!$M$10),0)),100) -> 1.503926576 | M49: =MIN(MAX(0,L49+IF(M$45-$C$45<=Model!$M$10,IF(AND(ISNUMBER(Model!$K13),ISNUMBER(Model!$M$10)),(Model!$K13-Model!$E13)/Model!$M$10),0)),100) -> 1.488658487 | N49: =MIN(MAX(0,M49+IF(N$45-$C$45<=Model!$M$10,IF(AND(ISNUMBER(Model!$K13),ISNUMBER(Model!$M$10)),(Model!$K13-Model!$E13)/Model!$M$10),0)),100) -> 1.488658487 | O49: =MIN(MAX(0,N49+IF(O$45-$C$45<=Model!$M$10,IF(AND(ISNUMBER(Model!$K13),ISNUMBER(Model!$M$10)),(Model!$K13-Model!$E13)/Model!$M$10),0)),100) -> 1.488658487 | P49: =MIN(MAX(0,O49+IF(P$45-$C$45<=Model!$M$10,IF(AND(ISNUMBER(Model!$K13),ISNUMBER(Model!$M$10)),(Model!$K13-Model!$E13)/Model!$M$10),0)),100) -> 1.488658487 | Q49: =MIN(MAX(0,P49+IF(Q$45-$C$45<=Model!$M$10,IF(AND(ISNUMBER(Model!$K13),ISNUMBER(Model!$M$10)),(Model!$K13-Model!$E13)/Model!$M$10),0)),100) -> 1.488658487 | R49: =MIN(MAX(0,Q49+IF(R$45-$C$45<=Model!$M$10,IF(AND(ISNUMBER(Model!$K13),ISNUMBER(Model!$M$10)),(Model!$K13-Model!$E13)/Model!$M$10),0)),100) -> 1.488658487 | S49: =MIN(MAX(0,R49+IF(S$45-$C$45<=Model!$M$10,IF(AND(ISNUMBER(Model!$K13),ISNUMBER(Model!$M$10)),(Model!$K13-Model!$E13)/Model!$M$10),0)),100) -> 1.488658487 | T49: =MIN(MAX(0,S49+IF(T$45-$C$45<=Model!$M$10,IF(AND(ISNUMBER(Model!$K13),ISNUMBER(Model!$M$10)),(Model!$K13-Model!$E13)/Model!$M$10),0)),100) -> 1.488658487 | U49: =MIN(MAX(0,T49+IF(U$45-$C$45<=Model!$M$10,IF(AND(ISNUMBER(Model!$K13),ISNUMBER(Model!$M$10)),(Model!$K13-Model!$E13)/Model!$M$10),0)),100) -> 1.488658487 | V49: =MIN(MAX(0,U49+IF(V$45-$C$45<=Model!$M$10,IF(AND(ISNUMBER(Model!$K13),ISNUMBER(Model!$M$10)),(Model!$K13-Model!$E13)/Model!$M$10),0)),100) -> 1.488658487 | W49: =MIN(MAX(0,V49+IF(W$45-$C$45<=Model!$M$10,IF(AND(ISNUMBER(Model!$K13),ISNUMBER(Model!$M$10)),(Model!$K13-Model!$E13)/Model!$M$10),0)),100) -> 1.488658487 | X49: =MIN(MAX(0,W49+IF(X$45-$C$45<=Model!$M$10,IF(AND(ISNUMBER(Model!$K13),ISNUMBER(Model!$M$10)),(Model!$K13-Model!$E13)/Model!$M$10),0)),100) -> 1.488658487 | Y49: =MIN(MAX(0,X49+IF(Y$45-$C$45<=Model!$M$10,IF(AND(ISNUMBER(Model!$K13),ISNUMBER(Model!$M$10)),(Model!$K13-Model!$E13)/Model!$M$10),0)),100) -> 1.488658487 | Z49: =MIN(MAX(0,Y49+IF(Z$45-$C$45<=Model!$M$10,IF(AND(ISNUMBER(Model!$K13),ISNUMBER(Model!$M$10)),(Model!$K13-Model!$E13)/Model!$M$10),0)),100) -> 1.488658487
A50: =Model!$C$4 -> København | B50: 75-79 år | C50: 3.941852603 | D50: =MIN(MAX(0,C50+IF(D$45-$C$45<=Model!$M$10,IF(AND(ISNUMBER(Model!$K14),ISNUMBER(Model!$M$10)),(Model!$K14-Model!$E14)/Model!$M$10),0)),100) -> 3.837547802 | E50: =MIN(MAX(0,D50+IF(E$45-$C$45<=Model!$M$10,IF(AND(ISNUMBER(Model!$K14),ISNUMBER(Model!$M$10)),(Model!$K14-Model!$E14)/Model!$M$10),0)),100) -> 3.733243001 | F50: =MIN(MAX(0,E50+IF(F$45-$C$45<=Model!$M$10,IF(AND(ISNUMBER(Model!$K14),ISNUMBER(Model!$M$10)),(Model!$K14-Model!$E14)/Model!$M$10),0)),100) -> 3.628938199 | G50: =MIN(MAX(0,F50+IF(G$45-$C$45<=Model!$M$10,IF(AND(ISNUMBER(Model!$K14),ISNUMBER(Model!$M$10)),(Model!$K14-Model!$E14)/Model!$M$10),0)),100) -> 3.524633398 | H50: =MIN(MAX(0,G50+IF(H$45-$C$45<=Model!$M$10,IF(AND(ISNUMBER(Model!$K14),ISNUMBER(Model!$M$10)),(Model!$K14-Model!$E14)/Model!$M$10),0)),100) -> 3.420328597 | I50: =MIN(MAX(0,H50+IF(I$45-$C$45<=Model!$M$10,IF(AND(ISNUMBER(Model!$K14),ISNUMBER(Model!$M$10)),(Model!$K14-Model!$E14)/Model!$M$10),0)),100) -> 3.316023796 | J50: =MIN(MAX(0,I50+IF(J$45-$C$45<=Model!$M$10,IF(AND(ISNUMBER(Model!$K14),ISNUMBER(Model!$M$10)),(Model!$K14-Model!$E14)/Model!$M$10),0)),100) -> 3.211718995 | K50: =MIN(MAX(0,J50+IF(K$45-$C$45<=Model!$M$10,IF(AND(ISNUMBER(Model!$K14),ISNUMBER(Model!$M$10)),(Model!$K14-Model!$E14)/Model!$M$10),0)),100) -> 3.107414193 | L50: =MIN(MAX(0,K50+IF(L$45-$C$45<=Model!$M$10,IF(AND(ISNUMBER(Model!$K14),ISNUMBER(Model!$M$10)),(Model!$K14-Model!$E14)/Model!$M$10),0)),100) -> 3.003109392 | M50: =MIN(MAX(0,L50+IF(M$45-$C$45<=Model!$M$10,IF(AND(ISNUMBER(Model!$K14),ISNUMBER(Model!$M$10)),(Model!$K14-Model!$E14)/Model!$M$10),0)),100) -> 2.898804591 | N50: =MIN(MAX(0,M50+IF(N$45-$C$45<=Model!$M$10,IF(AND(ISNUMBER(Model!$K14),ISNUMBER(Model!$M$10)),(Model!$K14-Model!$E14)/Model!$M$10),0)),100) -> 2.898804591 | O50: =MIN(MAX(0,N50+IF(O$45-$C$45<=Model!$M$10,IF(AND(ISNUMBER(Model!$K14),ISNUMBER(Model!$M$10)),(Model!$K14-Model!$E14)/Model!$M$10),0)),100) -> 2.898804591 | P50: =MIN(MAX(0,O50+IF(P$45-$C$45<=Model!$M$10,IF(AND(ISNUMBER(Model!$K14),ISNUMBER(Model!$M$10)),(Model!$K14-Model!$E14)/Model!$M$10),0)),100) -> 2.898804591 | Q50: =MIN(MAX(0,P50+IF(Q$45-$C$45<=Model!$M$10,IF(AND(ISNUMBER(Model!$K14),ISNUMBER(Model!$M$10)),(Model!$K14-Model!$E14)/Model!$M$10),0)),100) -> 2.898804591 | R50: =MIN(MAX(0,Q50+IF(R$45-$C$45<=Model!$M$10,IF(AND(ISNUMBER(Model!$K14),ISNUMBER(Model!$M$10)),(Model!$K14-Model!$E14)/Model!$M$10),0)),100) -> 2.898804591 | S50: =MIN(MAX(0,R50+IF(S$45-$C$45<=Model!$M$10,IF(AND(ISNUMBER(Model!$K14),ISNUMBER(Model!$M$10)),(Model!$K14-Model!$E14)/Model!$M$10),0)),100) -> 2.898804591 | T50: =MIN(MAX(0,S50+IF(T$45-$C$45<=Model!$M$10,IF(AND(ISNUMBER(Model!$K14),ISNUMBER(Model!$M$10)),(Model!$K14-Model!$E14)/Model!$M$10),0)),100) -> 2.898804591 | U50: =MIN(MAX(0,T50+IF(U$45-$C$45<=Model!$M$10,IF(AND(ISNUMBER(Model!$K14),ISNUMBER(Model!$M$10)),(Model!$K14-Model!$E14)/Model!$M$10),0)),100) -> 2.898804591 | V50: =MIN(MAX(0,U50+IF(V$45-$C$45<=Model!$M$10,IF(AND(ISNUMBER(Model!$K14),ISNUMBER(Model!$M$10)),(Model!$K14-Model!$E14)/Model!$M$10),0)),100) -> 2.898804591 | W50: =MIN(MAX(0,V50+IF(W$45-$C$45<=Model!$M$10,IF(AND(ISNUMBER(Model!$K14),ISNUMBER(Model!$M$10)),(Model!$K14-Model!$E14)/Model!$M$10),0)),100) -> 2.898804591 | X50: =MIN(MAX(0,W50+IF(X$45-$C$45<=Model!$M$10,IF(AND(ISNUMBER(Model!$K14),ISNUMBER(Model!$M$10)),(Model!$K14-Model!$E14)/Model!$M$10),0)),100) -> 2.898804591 | Y50: =MIN(MAX(0,X50+IF(Y$45-$C$45<=Model!$M$10,IF(AND(ISNUMBER(Model!$K14),ISNUMBER(Model!$M$10)),(Model!$K14-Model!$E14)/Model!$M$10),0)),100) -> 2.898804591 | Z50: =MIN(MAX(0,Y50+IF(Z$45-$C$45<=Model!$M$10,IF(AND(ISNUMBER(Model!$K14),ISNUMBER(Model!$M$10)),(Model!$K14-Model!$E14)/Model!$M$10),0)),100) -> 2.898804591
A51: =Model!$C$4 -> København | B51: 80-84 år | C51: 8.369182636 | D51: =MIN(MAX(0,C51+IF(D$45-$C$45<=Model!$M$10,IF(AND(ISNUMBER(Model!$K15),ISNUMBER(Model!$M$10)),(Model!$K15-Model!$E15)/Model!$M$10),0)),100) -> 8.089749114 | E51: =MIN(MAX(0,D51+IF(E$45-$C$45<=Model!$M$10,IF(AND(ISNUMBER(Model!$K15),ISNUMBER(Model!$M$10)),(Model!$K15-Model!$E15)/Model!$M$10),0)),100) -> 7.810315592 | F51: =MIN(MAX(0,E51+IF(F$45-$C$45<=Model!$M$10,IF(AND(ISNUMBER(Model!$K15),ISNUMBER(Model!$M$10)),(Model!$K15-Model!$E15)/Model!$M$10),0)),100) -> 7.53088207 | G51: =MIN(MAX(0,F51+IF(G$45-$C$45<=Model!$M$10,IF(AND(ISNUMBER(Model!$K15),ISNUMBER(Model!$M$10)),(Model!$K15-Model!$E15)/Model!$M$10),0)),100) -> 7.251448548 | H51: =MIN(MAX(0,G51+IF(H$45-$C$45<=Model!$M$10,IF(AND(ISNUMBER(Model!$K15),ISNUMBER(Model!$M$10)),(Model!$K15-Model!$E15)/Model!$M$10),0)),100) -> 6.972015026 | I51: =MIN(MAX(0,H51+IF(I$45-$C$45<=Model!$M$10,IF(AND(ISNUMBER(Model!$K15),ISNUMBER(Model!$M$10)),(Model!$K15-Model!$E15)/Model!$M$10),0)),100) -> 6.692581504 | J51: =MIN(MAX(0,I51+IF(J$45-$C$45<=Model!$M$10,IF(AND(ISNUMBER(Model!$K15),ISNUMBER(Model!$M$10)),(Model!$K15-Model!$E15)/Model!$M$10),0)),100) -> 6.413147982 | K51: =MIN(MAX(0,J51+IF(K$45-$C$45<=Model!$M$10,IF(AND(ISNUMBER(Model!$K15),ISNUMBER(Model!$M$10)),(Model!$K15-Model!$E15)/Model!$M$10),0)),100) -> 6.13371446 | L51: =MIN(MAX(0,K51+IF(L$45-$C$45<=Model!$M$10,IF(AND(ISNUMBER(Model!$K15),ISNUMBER(Model!$M$10)),(Model!$K15-Model!$E15)/Model!$M$10),0)),100) -> 5.854280938 | M51: =MIN(MAX(0,L51+IF(M$45-$C$45<=Model!$M$10,IF(AND(ISNUMBER(Model!$K15),ISNUMBER(Model!$M$10)),(Model!$K15-Model!$E15)/Model!$M$10),0)),100) -> 5.574847416 | N51: =MIN(MAX(0,M51+IF(N$45-$C$45<=Model!$M$10,IF(AND(ISNUMBER(Model!$K15),ISNUMBER(Model!$M$10)),(Model!$K15-Model!$E15)/Model!$M$10),0)),100) -> 5.574847416 | O51: =MIN(MAX(0,N51+IF(O$45-$C$45<=Model!$M$10,IF(AND(ISNUMBER(Model!$K15),ISNUMBER(Model!$M$10)),(Model!$K15-Model!$E15)/Model!$M$10),0)),100) -> 5.574847416 | P51: =MIN(MAX(0,O51+IF(P$45-$C$45<=Model!$M$10,IF(AND(ISNUMBER(Model!$K15),ISNUMBER(Model!$M$10)),(Model!$K15-Model!$E15)/Model!$M$10),0)),100) -> 5.574847416 | Q51: =MIN(MAX(0,P51+IF(Q$45-$C$45<=Model!$M$10,IF(AND(ISNUMBER(Model!$K15),ISNUMBER(Model!$M$10)),(Model!$K15-Model!$E15)/Model!$M$10),0)),100) -> 5.574847416 | R51: =MIN(MAX(0,Q51+IF(R$45-$C$45<=Model!$M$10,IF(AND(ISNUMBER(Model!$K15),ISNUMBER(Model!$M$10)),(Model!$K15-Model!$E15)/Model!$M$10),0)),100) -> 5.574847416 | S51: =MIN(MAX(0,R51+IF(S$45-$C$45<=Model!$M$10,IF(AND(ISNUMBER(Model!$K15),ISNUMBER(Model!$M$10)),(Model!$K15-Model!$E15)/Model!$M$10),0)),100) -> 5.574847416 | T51: =MIN(MAX(0,S51+IF(T$45-$C$45<=Model!$M$10,IF(AND(ISNUMBER(Model!$K15),ISNUMBER(Model!$M$10)),(Model!$K15-Model!$E15)/Model!$M$10),0)),100) -> 5.574847416 | U51: =MIN(MAX(0,T51+IF(U$45-$C$45<=Model!$M$10,IF(AND(ISNUMBER(Model!$K15),ISNUMBER(Model!$M$10)),(Model!$K15-Model!$E15)/Model!$M$10),0)),100) -> 5.574847416 | V51: =MIN(MAX(0,U51+IF(V$45-$C$45<=Model!$M$10,IF(AND(ISNUMBER(Model!$K15),ISNUMBER(Model!$M$10)),(Model!$K15-Model!$E15)/Model!$M$10),0)),100) -> 5.574847416 | W51: =MIN(MAX(0,V51+IF(W$45-$C$45<=Model!$M$10,IF(AND(ISNUMBER(Model!$K15),ISNUMBER(Model!$M$10)),(Model!$K15-Model!$E15)/Model!$M$10),0)),100) -> 5.574847416 | X51: =MIN(MAX(0,W51+IF(X$45-$C$45<=Model!$M$10,IF(AND(ISNUMBER(Model!$K15),ISNUMBER(Model!$M$10)),(Model!$K15-Model!$E15)/Model!$M$10),0)),100) -> 5.574847416 | Y51: =MIN(MAX(0,X51+IF(Y$45-$C$45<=Model!$M$10,IF(AND(ISNUMBER(Model!$K15),ISNUMBER(Model!$M$10)),(Model!$K15-Model!$E15)/Model!$M$10),0)),100) -> 5.574847416 | Z51: =MIN(MAX(0,Y51+IF(Z$45-$C$45<=Model!$M$10,IF(AND(ISNUMBER(Model!$K15),ISNUMBER(Model!$M$10)),(Model!$K15-Model!$E15)/Model!$M$10),0)),100) -> 5.574847416
A52: =Model!$C$4 -> København | B52: 85-89 år | C52: 16.42628205 | D52: =MIN(MAX(0,C52+IF(D$45-$C$45<=Model!$M$10,IF(AND(ISNUMBER(Model!$K16),ISNUMBER(Model!$M$10)),(Model!$K16-Model!$E16)/Model!$M$10),0)),100) -> 15.946828 | E52: =MIN(MAX(0,D52+IF(E$45-$C$45<=Model!$M$10,IF(AND(ISNUMBER(Model!$K16),ISNUMBER(Model!$M$10)),(Model!$K16-Model!$E16)/Model!$M$10),0)),100) -> 15.46737395 | F52: =MIN(MAX(0,E52+IF(F$45-$C$45<=Model!$M$10,IF(AND(ISNUMBER(Model!$K16),ISNUMBER(Model!$M$10)),(Model!$K16-Model!$E16)/Model!$M$10),0)),100) -> 14.98791989 | G52: =MIN(MAX(0,F52+IF(G$45-$C$45<=Model!$M$10,IF(AND(ISNUMBER(Model!$K16),ISNUMBER(Model!$M$10)),(Model!$K16-Model!$E16)/Model!$M$10),0)),100) -> 14.50846584 | H52: =MIN(MAX(0,G52+IF(H$45-$C$45<=Model!$M$10,IF(AND(ISNUMBER(Model!$K16),ISNUMBER(Model!$M$10)),(Model!$K16-Model!$E16)/Model!$M$10),0)),100) -> 14.02901179 | I52: =MIN(MAX(0,H52+IF(I$45-$C$45<=Model!$M$10,IF(AND(ISNUMBER(Model!$K16),ISNUMBER(Model!$M$10)),(Model!$K16-Model!$E16)/Model!$M$10),0)),100) -> 13.54955774 | J52: =MIN(MAX(0,I52+IF(J$45-$C$45<=Model!$M$10,IF(AND(ISNUMBER(Model!$K16),ISNUMBER(Model!$M$10)),(Model!$K16-Model!$E16)/Model!$M$10),0)),100) -> 13.07010368 | K52: =MIN(MAX(0,J52+IF(K$45-$C$45<=Model!$M$10,IF(AND(ISNUMBER(Model!$K16),ISNUMBER(Model!$M$10)),(Model!$K16-Model!$E16)/Model!$M$10),0)),100) -> 12.59064963 | L52: =MIN(MAX(0,K52+IF(L$45-$C$45<=Model!$M$10,IF(AND(ISNUMBER(Model!$K16),ISNUMBER(Model!$M$10)),(Model!$K16-Model!$E16)/Model!$M$10),0)),100) -> 12.11119558 | M52: =MIN(MAX(0,L52+IF(M$45-$C$45<=Model!$M$10,IF(AND(ISNUMBER(Model!$K16),ISNUMBER(Model!$M$10)),(Model!$K16-Model!$E16)/Model!$M$10),0)),100) -> 11.63174153 | N52: =MIN(MAX(0,M52+IF(N$45-$C$45<=Model!$M$10,IF(AND(ISNUMBER(Model!$K16),ISNUMBER(Model!$M$10)),(Model!$K16-Model!$E16)/Model!$M$10),0)),100) -> 11.63174153 | O52: =MIN(MAX(0,N52+IF(O$45-$C$45<=Model!$M$10,IF(AND(ISNUMBER(Model!$K16),ISNUMBER(Model!$M$10)),(Model!$K16-Model!$E16)/Model!$M$10),0)),100) -> 11.63174153 | P52: =MIN(MAX(0,O52+IF(P$45-$C$45<=Model!$M$10,IF(AND(ISNUMBER(Model!$K16),ISNUMBER(Model!$M$10)),(Model!$K16-Model!$E16)/Model!$M$10),0)),100) -> 11.63174153 | Q52: =MIN(MAX(0,P52+IF(Q$45-$C$45<=Model!$M$10,IF(AND(ISNUMBER(Model!$K16),ISNUMBER(Model!$M$10)),(Model!$K16-Model!$E16)/Model!$M$10),0)),100) -> 11.63174153 | R52: =MIN(MAX(0,Q52+IF(R$45-$C$45<=Model!$M$10,IF(AND(ISNUMBER(Model!$K16),ISNUMBER(Model!$M$10)),(Model!$K16-Model!$E16)/Model!$M$10),0)),100) -> 11.63174153 | S52: =MIN(MAX(0,R52+IF(S$45-$C$45<=Model!$M$10,IF(AND(ISNUMBER(Model!$K16),ISNUMBER(Model!$M$10)),(Model!$K16-Model!$E16)/Model!$M$10),0)),100) -> 11.63174153 | T52: =MIN(MAX(0,S52+IF(T$45-$C$45<=Model!$M$10,IF(AND(ISNUMBER(Model!$K16),ISNUMBER(Model!$M$10)),(Model!$K16-Model!$E16)/Model!$M$10),0)),100) -> 11.63174153 | U52: =MIN(MAX(0,T52+IF(U$45-$C$45<=Model!$M$10,IF(AND(ISNUMBER(Model!$K16),ISNUMBER(Model!$M$10)),(Model!$K16-Model!$E16)/Model!$M$10),0)),100) -> 11.63174153 | V52: =MIN(MAX(0,U52+IF(V$45-$C$45<=Model!$M$10,IF(AND(ISNUMBER(Model!$K16),ISNUMBER(Model!$M$10)),(Model!$K16-Model!$E16)/Model!$M$10),0)),100) -> 11.63174153 | W52: =MIN(MAX(0,V52+IF(W$45-$C$45<=Model!$M$10,IF(AND(ISNUMBER(Model!$K16),ISNUMBER(Model!$M$10)),(Model!$K16-Model!$E16)/Model!$M$10),0)),100) -> 11.63174153 | X52: =MIN(MAX(0,W52+IF(X$45-$C$45<=Model!$M$10,IF(AND(ISNUMBER(Model!$K16),ISNUMBER(Model!$M$10)),(Model!$K16-Model!$E16)/Model!$M$10),0)),100) -> 11.63174153 | Y52: =MIN(MAX(0,X52+IF(Y$45-$C$45<=Model!$M$10,IF(AND(ISNUMBER(Model!$K16),ISNUMBER(Model!$M$10)),(Model!$K16-Model!$E16)/Model!$M$10),0)),100) -> 11.63174153 | Z52: =MIN(MAX(0,Y52+IF(Z$45-$C$45<=Model!$M$10,IF(AND(ISNUMBER(Model!$K16),ISNUMBER(Model!$M$10)),(Model!$K16-Model!$E16)/Model!$M$10),0)),100) -> 11.63174153
A53: =Model!$C$4 -> København | B53: Over 90 år | C53: 35.0249584 | D53: =MIN(MAX(0,C53+IF(D$45-$C$45<=Model!$M$10,IF(AND(ISNUMBER(Model!$K17),ISNUMBER(Model!$M$10)),(Model!$K17-Model!$E17)/Model!$M$10),0)),100) -> 34.50269686 | E53: =MIN(MAX(0,D53+IF(E$45-$C$45<=Model!$M$10,IF(AND(ISNUMBER(Model!$K17),ISNUMBER(Model!$M$10)),(Model!$K17-Model!$E17)/Model!$M$10),0)),100) -> 33.98043532 | F53: =MIN(MAX(0,E53+IF(F$45-$C$45<=Model!$M$10,IF(AND(ISNUMBER(Model!$K17),ISNUMBER(Model!$M$10)),(Model!$K17-Model!$E17)/Model!$M$10),0)),100) -> 33.45817378 | G53: =MIN(MAX(0,F53+IF(G$45-$C$45<=Model!$M$10,IF(AND(ISNUMBER(Model!$K17),ISNUMBER(Model!$M$10)),(Model!$K17-Model!$E17)/Model!$M$10),0)),100) -> 32.93591224 | H53: =MIN(MAX(0,G53+IF(H$45-$C$45<=Model!$M$10,IF(AND(ISNUMBER(Model!$K17),ISNUMBER(Model!$M$10)),(Model!$K17-Model!$E17)/Model!$M$10),0)),100) -> 32.4136507 | I53: =MIN(MAX(0,H53+IF(I$45-$C$45<=Model!$M$10,IF(AND(ISNUMBER(Model!$K17),ISNUMBER(Model!$M$10)),(Model!$K17-Model!$E17)/Model!$M$10),0)),100) -> 31.89138917 | J53: =MIN(MAX(0,I53+IF(J$45-$C$45<=Model!$M$10,IF(AND(ISNUMBER(Model!$K17),ISNUMBER(Model!$M$10)),(Model!$K17-Model!$E17)/Model!$M$10),0)),100) -> 31.36912763 | K53: =MIN(MAX(0,J53+IF(K$45-$C$45<=Model!$M$10,IF(AND(ISNUMBER(Model!$K17),ISNUMBER(Model!$M$10)),(Model!$K17-Model!$E17)/Model!$M$10),0)),100) -> 30.84686609 | L53: =MIN(MAX(0,K53+IF(L$45-$C$45<=Model!$M$10,IF(AND(ISNUMBER(Model!$K17),ISNUMBER(Model!$M$10)),(Model!$K17-Model!$E17)/Model!$M$10),0)),100) -> 30.32460455 | M53: =MIN(MAX(0,L53+IF(M$45-$C$45<=Model!$M$10,IF(AND(ISNUMBER(Model!$K17),ISNUMBER(Model!$M$10)),(Model!$K17-Model!$E17)/Model!$M$10),0)),100) -> 29.80234301 | N53: =MIN(MAX(0,M53+IF(N$45-$C$45<=Model!$M$10,IF(AND(ISNUMBER(Model!$K17),ISNUMBER(Model!$M$10)),(Model!$K17-Model!$E17)/Model!$M$10),0)),100) -> 29.80234301 | O53: =MIN(MAX(0,N53+IF(O$45-$C$45<=Model!$M$10,IF(AND(ISNUMBER(Model!$K17),ISNUMBER(Model!$M$10)),(Model!$K17-Model!$E17)/Model!$M$10),0)),100) -> 29.80234301 | P53: =MIN(MAX(0,O53+IF(P$45-$C$45<=Model!$M$10,IF(AND(ISNUMBER(Model!$K17),ISNUMBER(Model!$M$10)),(Model!$K17-Model!$E17)/Model!$M$10),0)),100) -> 29.80234301 | Q53: =MIN(MAX(0,P53+IF(Q$45-$C$45<=Model!$M$10,IF(AND(ISNUMBER(Model!$K17),ISNUMBER(Model!$M$10)),(Model!$K17-Model!$E17)/Model!$M$10),0)),100) -> 29.80234301 | R53: =MIN(MAX(0,Q53+IF(R$45-$C$45<=Model!$M$10,IF(AND(ISNUMBER(Model!$K17),ISNUMBER(Model!$M$10)),(Model!$K17-Model!$E17)/Model!$M$10),0)),100) -> 29.80234301 | S53: =MIN(MAX(0,R53+IF(S$45-$C$45<=Model!$M$10,IF(AND(ISNUMBER(Model!$K17),ISNUMBER(Model!$M$10)),(Model!$K17-Model!$E17)/Model!$M$10),0)),100) -> 29.80234301 | T53: =MIN(MAX(0,S53+IF(T$45-$C$45<=Model!$M$10,IF(AND(ISNUMBER(Model!$K17),ISNUMBER(Model!$M$10)),(Model!$K17-Model!$E17)/Model!$M$10),0)),100) -> 29.80234301 | U53: =MIN(MAX(0,T53+IF(U$45-$C$45<=Model!$M$10,IF(AND(ISNUMBER(Model!$K17),ISNUMBER(Model!$M$10)),(Model!$K17-Model!$E17)/Model!$M$10),0)),100) -> 29.80234301 | V53: =MIN(MAX(0,U53+IF(V$45-$C$45<=Model!$M$10,IF(AND(ISNUMBER(Model!$K17),ISNUMBER(Model!$M$10)),(Model!$K17-Model!$E17)/Model!$M$10),0)),100) -> 29.80234301 | W53: =MIN(MAX(0,V53+IF(W$45-$C$45<=Model!$M$10,IF(AND(ISNUMBER(Model!$K17),ISNUMBER(Model!$M$10)),(Model!$K17-Model!$E17)/Model!$M$10),0)),100) -> 29.80234301 | X53: =MIN(MAX(0,W53+IF(X$45-$C$45<=Model!$M$10,IF(AND(ISNUMBER(Model!$K17),ISNUMBER(Model!$M$10)),(Model!$K17-Model!$E17)/Model!$M$10),0)),100) -> 29.80234301 | Y53: =MIN(MAX(0,X53+IF(Y$45-$C$45<=Model!$M$10,IF(AND(ISNUMBER(Model!$K17),ISNUMBER(Model!$M$10)),(Model!$K17-Model!$E17)/Model!$M$10),0)),100) -> 29.80234301 | Z53: =MIN(MAX(0,Y53+IF(Z$45-$C$45<=Model!$M$10,IF(AND(ISNUMBER(Model!$K17),ISNUMBER(Model!$M$10)),(Model!$K17-Model!$E17)/Model!$M$10),0)),100) -> 29.80234301
A54: =Model!$C$4 -> København | B54: I alt over 60 | C54: =SUM(C62:C68)/SUM(C35:C41)*100 -> 3.594918752 | D54: =SUM(D62:D68)/SUM(D35:D41)*100 -> 3.500282838 | E54: =SUM(E62:E68)/SUM(E35:E41)*100 -> 3.402252415 | F54: 3.308124901 | G54: 3.233540575 | H54: 3.156805393 | I54: 3.107773964 | J54: =SUM(J62:J68)/SUM(J35:J41)*100 -> 3.081548417 | K54: 3.049301836 | L54: 3.025282767 | M54: 2.983981712 | N54: 3.03927562 | O54: 3.099293865 | P54: 3.136986458 | Q54: 3.186457801 | R54: 3.242065314 | S54: 3.300291269 | T54: 3.346717359 | U54: 3.381396213 | V54: 3.431922015 | W54: 3.485510512 | X54: 3.538933965 | Y54: 3.602503483 | Z54: 3.657515538
A56: Forventede behovsgrader | B56: I alt over 60 | C56: =SUMPRODUCT(C35:C41,$K23:$K29)/SUM(C35:C41) -> 3.594918752 | D56: 3.582122421 | E56: 3.567694138 | F56: 3.559052538 | G56: 3.572980172 | H56: 3.585880443 | I56: 3.632022197 | J56: 3.705285876 | K56: 3.772931824 | L56: 3.853848912 | M56: 3.916735964 | N56: 3.979982696 | O56: 4.048703022 | P56: 4.088047137 | Q56: 4.142747236 | R56: 4.206190526 | S56: 4.273483107 | T56: 4.33147097 | U56: 4.378243383 | V56: 4.445311984 | W56: 4.519593098 | X56: 4.593467859 | Y56: 4.679997977 | Z56: 4.757358429
A57: Forskel til forventet | B57: I alt over 60 | C57: =C54-C56 -> 0 | D57: =D54-D56 -> -0.08183958324 | E57: =E54-E56 -> -0.1654417226 | F57: -0.2509276361 | G57: -0.3394395966 | H57: -0.4290750495 | I57: -0.524248233 | J57: -0.6237374587 | K57: -0.7236299878 | L57: -0.8285661447 | M57: -0.9327542512 | N57: -0.9407070755 | O57: -0.9494091569 | P57: -0.9510606794 | Q57: -0.9562894349 | R57: -0.9641252123 | S57: -0.9731918384 | T57: -0.9847536106 | U57: -0.9968471692 | V57: -1.01338997 | W57: =W54-W56 -> -1.034082586 | X57: =X54-X56 -> -1.054533894 | Y57: -1.077494494 | Z57: -1.099842891
A59: Behovsfremskrivning
A60: Kommune | B60: Aldersgruppe | C60: =C33 -> 2022 | D60: 2023 | E60: 2024 | F60: 2025 | G60: 2026 | H60: 2027 | I60: 2028 | J60: 2029 | K60: 2030 | L60: 2031 | M60: 2032 | N60: 2033 | O60: 2034 | P60: 2035 | Q60: 2036 | R60: 2037 | S60: 2038 | T60: 2039 | U60: 2040 | V60: 2041 | W60: 2042 | X60: 2043 | Y60: 2044 | Z60: 2045
A61: =Model!$C$4 -> København | B61: Under 60 år | C61: =C34*(C46/100) -> 50 | D61: =D34*(D46/100) -> 48.5481734 | E61: =E34*(E46/100) -> 46.77869649 | F61: 44.54001723 | G61: 42.58655475 | H61: 40.61118535 | I61: 38.64531019 | J61: 36.6850126 | K61: 34.70375119 | L61: 32.67341984 | M61: 30.59308629 | N61: 30.61046213 | O61: 30.61925664 | P61: 30.5992691 | Q61: 30.57229925 | R61: 30.56974085 | S61: 30.58455828 | T61: 30.59010149 | U61: 30.60225391 | V61: 30.62304095 | W61: 30.66205662 | X61: 30.70661551 | Y61: 30.751281 | Z61: 30.79157587
A62: =Model!$C$4 -> København | B62: 60-64 år | C62: =C35*(C47/100) -> 83 | D62: 83.50692177 | E62: 84.61451804 | F62: 85.14524029 | G62: 85.84099631 | H62: 86.45795724 | I62: 85.74868106 | J62: 82.64508102 | K62: 78.62689023 | L62: 74.5317576 | M62: 70.79172989 | N62: 71.65669185 | O62: 72.78970191 | P62: 74.80794646 | Q62: 76.35766996 | R62: 76.14142948 | S62: 74.55341339 | T62: 73.87540936 | U62: 72.41578606 | V62: 70.67685213 | W62: 69.25326892 | X62: 68.19233902 | Y62: 66.57278786 | Z62: 65.51411047
A63: =Model!$C$4 -> København | B63: 65-66 år | C63: =C36*(C48/100) -> 81 | D63: 80.56585972 | E63: 80.38420205 | F63: 81.1115173 | G63: 83.19361236 | H63: 85.71194887 | I63: 87.35425494 | J63: 91.82673611 | K63: 96.25458005 | L63: 98.82923077 | M63: 101.4757892 | N63: 101.5334412 | O63: 97.20953979 | P63: 93.19860648 | Q63: 93.39627055 | R63: 97.28366382 | S63: 102.4064575 | T63: 103.4853738 | U63: 103.7818699 | V63: 105.5279025 | W63: 102.0276014 | X63: 96.55889558 | Y63: 96.04002741 | Z63: 96.46006355
A64: =Model!$C$4 -> København | B64: 67-74 år | C64: =C37*(C49/100) -> 499 | D64: 492.2443026 | E64: 489.7324986 | F64: 487.6912635 | G64: 486.7380467 | H64: 488.342268 | I64: 493.5582799 | J64: 498.3014355 | K64: 506.8793004 | L64: 520.1931635 | M64: 533.7585003 | N64: 556.8922532 | O64: 580.5768097 | P64: 600.2568749 | Q64: 611.4962465 | R64: 618.7311267 | S64: 626.2339655 | T64: 632.3821251 | U64: 640.7186126 | V64: 643.1302393 | W64: 646.1075563 | X64: 651.3922939 | Y64: 654.6971158 | Z64: 656.2006609
A65: =Model!$C$4 -> København | B65: 75-79 år | C65: =C38*(C50/100) -> 583 | D65: 595.2036641 | E65: 591.3830237 | F65: 571.1948726 | G65: 552.4862852 | H65: 528.0303288 | I65: 503.1734508 | J65: 488.8878654 | K65: 478.2621185 | L65: 465.2116759 | M65: 457.2864242 | N65: 462.9101051 | O65: 468.9396187 | P65: 478.9404945 | Q65: 492.5938641 | R65: 506.2762218 | S65: 525.2054158 | T65: 551.0917408 | U65: 579.3840736 | V65: 607.5604542 | W65: 637.2732013 | X65: 658.1445943 | Y65: 661.3042913 | Z65: 657.1300127
A66: =Model!$C$4 -> København | B66: 80-84 år | C66: =C39*(C51/100) -> 642 | D66: =D39*(D51/100) -> 669.1840467 | E66: 697.2268729 | F66: 724.5461639 | G66: 755.7459676 | H66: 787.5588173 | I66: 797.2872345 | J66: 781.8910019 | K66: 745.9823526 | L66: 711.9391048 | M66: 670.0966593 | N66: 662.1246275 | O66: 667.699475 | P66: 677.1767156 | Q66: 684.2567718 | R66: 699.4761052 | S66: 710.2913092 | T66: 722.1657342 | U66: 739.5592581 | V66: 763.3638566 | W66: 787.3357005 | X66: 819.1680792 | Y66: 862.3731467 | Z66: 909.090368
A67: =Model!$C$4 -> København | B67: 85-89 år | C67: =C40*(C52/100) -> 615 | D67: 611.2419172 | E67: 631.5328782 | F67: 653.173549 | G67: 673.4829844 | H67: 680.8279421 | I67: 716.3651176 | J67: 752.053766 | K67: 787.2933215 | L67: 824.772419 | M67: 860.8651904 | N67: 910.9979964 | O67: 934.959384 | P67: 933.9125272 | Q67: 937.9836368 | R67: 931.1209093 | S67: 926.4682127 | T67: 939.8447154 | U67: 957.0596929 | V67: 971.2504175 | W67: 997.6544708 | X67: 1016.963162 | Y67: 1038.481884 | Z67: 1067.212285
A68: =Model!$C$4 -> København | B68: Over 90 år | C68: =C41*(C53/100) -> 842 | D68: 802.877756 | E68: 754.0258598 | F68: 707.9749573 | G68: 690.6660798 | H68: 687.1693949 | I68: 693.6377143 | J68: 723.372083 | K68: 752.0465952 | L68: 787.8332261 | M68: 812.7098938 | N68: 887.2157513 | O68: 977.2188272 | P68: 1066.92388 | Q68: 1168.847893 | R68: 1267.791672 | S68: 1357.496724 | T68: 1416.20734 | U68: 1441.837355 | V68: 1484.454705 | W68: 1510.680767 | X68: 1540.185087 | Y68: 1581.610343 | Z68: 1611.71071
A69: =Model!$C$4 -> København | B69: I alt | C69: =SUM(C61:C68) -> 3395 | D69: =SUM(D61:D68) -> 3383.372641 | E69: =SUM(E61:E68) -> 3375.67855 | F69: 3355.377581 | G69: 3370.740527 | H69: 3384.709843 | I69: 3415.770043 | J69: 3455.662982 | K69: 3480.04891 | L69: 3515.983998 | M69: 3537.577274 | N69: 3683.941329 | O69: 3830.012613 | P69: 3955.816314 | Q69: 4095.504652 | R69: 4227.390869 | S69: 4353.240056 | T69: 4469.64254 | U69: 4565.358902 | V69: 4676.587468 | W69: =SUM(W61:W68) -> 4780.994623 | X69: 4881.311066 | Y69: 4991.830877 | Z69: 5094.109786
A71: Afgang (Obs. For de enkelte aldersgrupper er udregnet på baggrund af antal personer med behov, og altså ikke taget højde for, om der er plads i plejeboliger til alle disse personer)
A72: Kommune | B72: Aldersgruppe | C72: =C60 -> 2022 | D72: 2023 | E72: 2024 | F72: 2025 | G72: 2026 | H72: 2027 | I72: 2028 | J72: 2029 | K72: 2030 | L72: 2031 | M72: 2032 | N72: 2033 | O72: 2034 | P72: 2035 | Q72: 2036 | R72: 2037 | S72: 2038 | T72: 2039 | U72: 2040 | V72: 2041 | W72: 2042 | X72: 2043 | Y72: 2044 | Z72: 2045
A73: =Model!$C$4 -> København | B73: Under 60 år | C73: =C61/$B$19 -> 16.66666667 | D73: =D61/$B$19 -> 16.18272447 | E73: 15.59289883 | F73: 14.84667241 | G73: 14.19551825 | H73: 13.53706178 | I73: 12.88177006 | J73: 12.22833753 | K73: 11.56791706 | L73: 10.89113995 | M73: 10.19769543 | N73: 10.20348738 | O73: 10.20641888 | P73: 10.19975637 | Q73: 10.19076642 | R73: 10.18991362 | S73: 10.19485276 | T73: 10.1967005 | U73: 10.2007513 | V73: 10.20768032 | W73: 10.22068554 | X73: 10.2355385 | Y73: 10.250427 | Z73: 10.26385862
A74: =Model!$C$4 -> København | B74: 60-64 år | C74: =C62/$B$19 -> 27.66666667 | D74: 27.83564059 | E74: 28.20483935 | F74: 28.38174676 | G74: 28.61366544 | H74: 28.81931908 | I74: 28.58289369 | J74: 27.54836034 | K74: 26.20896341 | L74: 24.8439192 | M74: 23.5972433 | N74: 23.88556395 | O74: 24.26323397 | P74: 24.93598215 | Q74: 25.45255665 | R74: 25.38047649 | S74: 24.8511378 | T74: 24.62513645 | U74: 24.13859535 | V74: 23.55895071 | W74: 23.08442297 | X74: 22.73077967 | Y74: 22.19092929 | Z74: 21.83803682
A75: =Model!$C$4 -> København | B75: 65-66 år | C75: =C63/$B$19 -> 27 | D75: 26.85528657 | E75: 26.79473402 | F75: 27.03717243 | G75: 27.73120412 | H75: 28.57064962 | I75: 29.11808498 | J75: 30.60891204 | K75: 32.08486002 | L75: 32.94307692 | M75: 33.82526306 | N75: 33.8444804 | O75: 32.40317993 | P75: 31.06620216 | Q75: 31.13209018 | R75: 32.42788794 | S75: 34.13548583 | T75: 34.49512462 | U75: 34.59395665 | V75: 35.1759675 | W75: 34.00920046 | X75: 32.18629853 | Y75: 32.01334247 | Z75: 32.15335452
A76: =Model!$C$4 -> København | B76: 67-74 år | C76: =C64/$B$19 -> 166.3333333 | D76: 164.0814342 | E76: 163.2441662 | F76: 162.5637545 | G76: 162.2460156 | H76: 162.780756 | I76: 164.5194266 | J76: 166.1004785 | K76: 168.9597668 | L76: 173.3977212 | M76: 177.9195001 | N76: 185.6307511 | O76: 193.5256032 | P76: 200.085625 | Q76: 203.8320822 | R76: 206.2437089 | S76: 208.7446552 | T76: 210.7940417 | U76: 213.5728709 | V76: 214.3767464 | W76: 215.3691854 | X76: 217.1307646 | Y76: 218.2323719 | Z76: 218.7335536
A77: =Model!$C$4 -> København | B77: 75-79 år | C77: =C65/$B$19 -> 194.3333333 | D77: 198.4012214 | E77: 197.1276746 | F77: 190.3982909 | G77: 184.1620951 | H77: 176.0101096 | I77: 167.7244836 | J77: 162.9626218 | K77: 159.4207062 | L77: 155.0705586 | M77: 152.4288081 | N77: 154.3033684 | O77: 156.3132062 | P77: 159.6468315 | Q77: 164.1979547 | R77: 168.7587406 | S77: 175.0684719 | T77: 183.6972469 | U77: 193.1280245 | V77: 202.5201514 | W77: 212.4244004 | X77: 219.3815314 | Y77: 220.4347638 | Z77: 219.0433376
A78: =Model!$C$4 -> København | B78: 80-84 år | C78: =C66/$B$19 -> 214 | D78: 223.0613489 | E78: 232.4089576 | F78: 241.515388 | G78: 251.9153225 | H78: 262.5196058 | I78: 265.7624115 | J78: 260.630334 | K78: 248.6607842 | L78: 237.3130349 | M78: 223.3655531 | N78: 220.7082092 | O78: 222.5664917 | P78: 225.7255719 | Q78: 228.0855906 | R78: 233.1587017 | S78: 236.7637697 | T78: 240.7219114 | U78: 246.5197527 | V78: 254.4546189 | W78: 262.4452335 | X78: 273.0560264 | Y78: 287.4577156 | Z78: 303.0301227
A79: =Model!$C$4 -> København | B79: 85-89 år | C79: =C67/$B$19 -> 205 | D79: 203.7473057 | E79: 210.5109594 | F79: 217.7245163 | G79: 224.4943281 | H79: 226.9426474 | I79: 238.7883725 | J79: 250.6845887 | K79: 262.4311072 | L79: 274.9241397 | M79: 286.9550635 | N79: 303.6659988 | O79: 311.653128 | P79: 311.3041757 | Q79: 312.6612123 | R79: 310.3736364 | S79: 308.8227376 | T79: 313.2815718 | U79: 319.0198976 | V79: 323.7501392 | W79: 332.5514903 | X79: 338.9877206 | Y79: 346.1606279 | Z79: 355.7374284
A80: =Model!$C$4 -> København | B80: Over 90 år | C80: =C68/$B$19 -> 280.6666667 | D80: 267.6259187 | E80: 251.3419533 | F80: 235.9916524 | G80: 230.2220266 | H80: 229.056465 | I80: 231.2125714 | J80: 241.1240277 | K80: 250.6821984 | L80: 262.6110754 | M80: 270.9032979 | N80: 295.7385838 | O80: 325.7396091 | P80: 355.6412932 | Q80: 389.6159642 | R80: 422.5972238 | S80: 452.498908 | T80: 472.0691132 | U80: 480.6124516 | V80: 494.8182351 | W80: 503.5602557 | X80: 513.3950289 | Y80: 527.2034478 | Z80: 537.2369033
A81: =Model!$C$4 -> København | B81: I alt (Returnerer mindsteværdi) | C81: =MIN(C69,$C$103+SUM($C$110:C$111)-SUM($C$112:C112))/$B$19 -> 1131.666667 | D81: =MIN(D69,$C$103+SUM($C$110:D$111)-SUM($C$112:D112))/$B$19 -> 1127.79088 | E81: =MIN(E69,$C$103+SUM($C$110:E$111)-SUM($C$112:E112))/$B$19 -> 1125.226183 | F81: =MIN(F69,$C$103+SUM($C$110:F$111)-SUM($C$112:F112))/$B$19 -> 1118.459194 | G81: =MIN(G69,$C$103+SUM($C$110:G$111)-SUM($C$112:G112))/$B$19 -> 1123.580176 | H81: =MIN(H69,$C$103+SUM($C$110:H$111)-SUM($C$112:H112))/$B$19 -> 1128.236614 | I81: =MIN(I69,$C$103+SUM($C$110:I$111)-SUM($C$112:I112))/$B$19 -> 1138.590014 | J81: =MIN(J69,$C$103+SUM($C$110:J$111)-SUM($C$112:J112))/$B$19 -> 1151.887661 | K81: =MIN(K69,$C$103+SUM($C$110:K$111)-SUM($C$112:K112))/$B$19 -> 1160.016303 | L81: =MIN(L69,$C$103+SUM($C$110:L$111)-SUM($C$112:L112))/$B$19 -> 1171.994666 | M81: =MIN(M69,$C$103+SUM($C$110:M$111)-SUM($C$112:M112))/$B$19 -> 1179.192425 | N81: =MIN(N69,$C$103+SUM($C$110:N$111)-SUM($C$112:N112))/$B$19 -> 1183.333333 | O81: =MIN(O69,$C$103+SUM($C$110:O$111)-SUM($C$112:O112))/$B$19 -> 1183.333333 | P81: =MIN(P69,$C$103+SUM($C$110:P$111)-SUM($C$112:P112))/$B$19 -> 1183.333333 | Q81: =MIN(Q69,$C$103+SUM($C$110:Q$111)-SUM($C$112:Q112))/$B$19 -> 1183.333333 | R81: =MIN(R69,$C$103+SUM($C$110:R$111)-SUM($C$112:R112))/$B$19 -> 1183.333333 | S81: =MIN(S69,$C$103+SUM($C$110:S$111)-SUM($C$112:S112))/$B$19 -> 1183.333333 | T81: =MIN(T69,$C$103+SUM($C$110:T$111)-SUM($C$112:T112))/$B$19 -> 1183.333333 | U81: =MIN(U69,$C$103+SUM($C$110:U$111)-SUM($C$112:U112))/$B$19 -> 1183.333333 | V81: =MIN(V69,$C$103+SUM($C$110:V$111)-SUM($C$112:V112))/$B$19 -> 1183.333333 | W81: =MIN(W69,$C$103+SUM($C$110:W$111)-SUM($C$112:W112))/$B$19 -> 1183.333333 | X81: =MIN(X69,$C$103+SUM($C$110:X$111)-SUM($C$112:X112))/$B$19 -> 1183.333333 | Y81: =MIN(Y69,$C$103+SUM($C$110:Y$111)-SUM($C$112:Y112))/$B$19 -> 1183.333333 | Z81: =MIN(Z69,$C$103+SUM($C$110:Z$111)-SUM($C$112:Z112))/$B$19 -> 1183.333333
B82: Alternativ afgang 1 (Kun behov/gns. År) | C82: =SUM(C73:C80) -> 1131.666667 | D82: =SUM(D73:D80) -> 1127.79088 | E82: =SUM(E73:E80) -> 1125.226183 | F82: 1118.459194 | G82: 1123.580176 | H82: 1128.236614 | I82: 1138.590014 | J82: 1151.887661 | K82: 1160.016303 | L82: 1171.994666 | M82: 1179.192425 | N82: 1227.980443 | O82: 1276.670871 | P82: 1318.605438 | Q82: 1365.168217 | R82: 1409.13029 | S82: 1451.080019 | T82: 1489.880847 | U82: 1521.786301 | V82: 1558.862489 | W82: 1593.664874 | X82: 1627.103689 | Y82: 1663.943626 | Z82: 1698.036595
B83: Alternativ afgang 2 (MAKS()) | C83: =MAX(C69,$C$103+SUM($C$110:C$111)-SUM($C$112:C112))/$B$19 -> 1183.333333 | D83: =MAX(D69,$C$103+SUM($C$110:D$111)-SUM($C$112:D112))/$B$19 -> 1183.333333 | E83: =MAX(E69,$C$103+SUM($C$110:E$111)-SUM($C$112:E112))/$B$19 -> 1183.333333 | F83: =MAX(F69,$C$103+SUM($C$110:F$111)-SUM($C$112:F112))/$B$19 -> 1183.333333 | G83: =MAX(G69,$C$103+SUM($C$110:G$111)-SUM($C$112:G112))/$B$19 -> 1183.333333 | H83: =MAX(H69,$C$103+SUM($C$110:H$111)-SUM($C$112:H112))/$B$19 -> 1183.333333 | I83: =MAX(I69,$C$103+SUM($C$110:I$111)-SUM($C$112:I112))/$B$19 -> 1183.333333 | J83: =MAX(J69,$C$103+SUM($C$110:J$111)-SUM($C$112:J112))/$B$19 -> 1183.333333 | K83: =MAX(K69,$C$103+SUM($C$110:K$111)-SUM($C$112:K112))/$B$19 -> 1183.333333 | L83: =MAX(L69,$C$103+SUM($C$110:L$111)-SUM($C$112:L112))/$B$19 -> 1183.333333 | M83: =MAX(M69,$C$103+SUM($C$110:M$111)-SUM($C$112:M112))/$B$19 -> 1183.333333 | N83: =MAX(N69,$C$103+SUM($C$110:N$111)-SUM($C$112:N112))/$B$19 -> 1227.980443 | O83: =MAX(O69,$C$103+SUM($C$110:O$111)-SUM($C$112:O112))/$B$19 -> 1276.670871 | P83: =MAX(P69,$C$103+SUM($C$110:P$111)-SUM($C$112:P112))/$B$19 -> 1318.605438 | Q83: =MAX(Q69,$C$103+SUM($C$110:Q$111)-SUM($C$112:Q112))/$B$19 -> 1365.168217 | R83: =MAX(R69,$C$103+SUM($C$110:R$111)-SUM($C$112:R112))/$B$19 -> 1409.13029 | S83: =MAX(S69,$C$103+SUM($C$110:S$111)-SUM($C$112:S112))/$B$19 -> 1451.080019 | T83: =MAX(T69,$C$103+SUM($C$110:T$111)-SUM($C$112:T112))/$B$19 -> 1489.880847 | U83: =MAX(U69,$C$103+SUM($C$110:U$111)-SUM($C$112:U112))/$B$19 -> 1521.786301 | V83: =MAX(V69,$C$103+SUM($C$110:V$111)-SUM($C$112:V112))/$B$19 -> 1558.862489 | W83: =MAX(W69,$C$103+SUM($C$110:W$111)-SUM($C$112:W112))/$B$19 -> 1593.664874 | X83: =MAX(X69,$C$103+SUM($C$110:X$111)-SUM($C$112:X112))/$B$19 -> 1627.103689 | Y83: =MAX(Y69,$C$103+SUM($C$110:Y$111)-SUM($C$112:Y112))/$B$19 -> 1663.943626 | Z83: =MAX(Z69,$C$103+SUM($C$110:Z$111)-SUM($C$112:Z112))/$B$19 -> 1698.036595
A84: Tilgang
A85: Kommune | B85: Aldersgruppe | C85: =C72 -> 2022 | D85: 2023 | E85: 2024 | F85: 2025 | G85: 2026 | H85: 2027 | I85: 2028 | J85: 2029 | K85: 2030 | L85: 2031 | M85: 2032 | N85: 2033 | O85: 2034 | P85: 2035 | Q85: 2036 | R85: 2037 | S85: 2038 | T85: 2039 | U85: 2040 | V85: 2041 | W85: 2042 | X85: 2043 | Y85: 2044 | Z85: 2045
A86: =Model!$C$4 -> København | B86: Under 60 år | C86: =D61-C61+C73 -> 15.21484007 | D86: =E61-D61+D73 -> 14.41324756 | E86: 13.35421957 | F86: 12.89320993 | G86: 12.22014885 | H86: 11.57118663 | I86: 10.92147247 | J86: 10.24707612 | K86: 9.537585714 | L86: 8.810806399 | M86: 10.21507126 | N86: 10.21228189 | O86: 10.18643134 | P86: 10.17278652 | Q86: 10.18820801 | R86: 10.20473104 | S86: 10.20039597 | T86: 10.20885292 | U86: 10.22153834 | V86: 10.24669599 | W86: 10.26524443 | X86: 10.28020399 | Y86: 10.29072188 | Z86: =MAX(0,AA61-Z61+Z73) -> 0
A87: =Model!$C$4 -> København | B87: 60-64 år | C87: =D62-C62+C74 -> 28.17358844 | D87: =E62-D62+D74 -> 28.94323685 | E87: 28.7355616 | F87: 29.07750278 | G87: 29.23062637 | H87: 28.1100429 | I87: 25.47929365 | J87: 23.53016955 | K87: 22.11383078 | L87: 21.10389149 | M87: 24.46220525 | N87: 25.01857401 | O87: 26.28147853 | P87: 26.48570565 | Q87: 25.23631617 | R87: 23.79246041 | S87: 24.17313376 | T87: 23.16551316 | U87: 22.39966143 | V87: 22.1353675 | W87: =X62-W62+W74 -> 22.02349308 | X87: 21.11122852 | Y87: 21.1322519 | Z87: 0
A88: =Model!$C$4 -> København | B88: 65-66 år | C88: =D63-C63+C75 -> 26.56585972 | D88: =E63-D63+D75 -> 26.6736289 | E88: 27.52204927 | F88: 29.1192675 | G88: 30.24954063 | H88: 30.2129557 | I88: 33.59056614 | J88: 35.03675598 | K88: 34.65951074 | L88: 35.58963534 | M88: 33.88291508 | N88: 29.52057899 | O88: 28.39224662 | P88: 31.26386623 | Q88: 35.01948345 | R88: 37.55068161 | S88: 35.21440218 | T88: 34.79162071 | U88: 36.33998922 | V88: 31.67566636 | W88: 28.54049467 | X88: 31.66743036 | Y88: 32.43337861 | Z88: 0
A89: =Model!$C$4 -> København | B89: 67-74 år | C89: 159.577636 | D89: =E64-D64+D76 -> 161.5696302 | E89: 161.2029311 | F89: 161.6105377 | G89: 163.8502369 | H89: 167.9967679 | I89: 169.2625822 | J89: 174.6783434 | K89: 182.2736299 | L89: 186.963058 | M89: 201.053253 | N89: 209.3153076 | O89: 213.2056684 | P89: 211.3249965 | Q89: 211.0669624 | R89: 213.7465477 | S89: 214.8928147 | T89: 219.1305292 | U89: 215.9844976 | V89: 217.3540634 | W89: 220.6539231 | X89: 220.4355865 | Y89: 219.735917 | Z89: 0
A90: =Model!$C$4 -> København | B90: 75-79 år | C90: 206.5369974 | D90: =E65-D65+D77 -> 194.580581 | E90: 176.9395234 | F90: 171.6897034 | G90: 159.7061387 | H90: 151.1532316 | I90: 153.4388982 | J90: 152.3368749 | K90: 146.3702636 | L90: 147.1453069 | M90: 158.052489 | N90: 160.3328819 | O90: 166.3140821 | P90: 173.3002011 | Q90: 177.8803124 | R90: 187.6879346 | S90: 200.9547969 | T90: 211.9895797 | U90: 221.3044052 | V90: 232.2328985 | W90: 233.2957935 | X90: 222.5412284 | Y90: 216.2604852 | Z90: 0
A91: =Model!$C$4 -> København | B91: 80-84 år | C91: 241.1840467 | D91: =E66-D66+D78 -> 251.1041751 | E91: 259.7282487 | F91: 272.7151917 | G91: 283.7281722 | H91: 272.248023 | I91: 250.3661789 | J91: 224.7216846 | K91: 214.6175364 | L91: 195.4705895 | M91: 215.3935213 | N91: 226.2830566 | O91: 232.0437323 | P91: 232.8056281 | Q91: 243.304924 | R91: 243.9739057 | S91: 248.6381947 | T91: 258.1154353 | U91: 270.3243512 | V91: 278.4264628 | W91: 294.2776122 | X91: 316.2610939 | Y91: 334.1749369 | Z91: 0
A92: =Model!$C$4 -> København | B92: 85-89 år | C92: 201.2419172 | D92: =E67-D67+D79 -> 224.0382668 | E92: 232.1516302 | F92: 238.0339517 | G92: 231.8392859 | H92: 262.4798228 | I92: 274.477021 | J92: 285.9241442 | K92: 299.9102047 | L92: 311.0169111 | M92: 337.0878695 | N92: 327.6273864 | O92: 310.6062713 | P92: 315.3752853 | Q92: 305.7984848 | R92: 305.7209398 | S92: 322.1992403 | T92: 330.4965493 | U92: 333.2106223 | V92: 350.1541924 | W92: 351.8601812 | X92: 360.5064424 | Y92: 374.8910294 | Z92: 0
A93: =Model!$C$4 -> København | B93: Over 90 år | C93: 241.5444227 | D93: =E68-D68+D80 -> 218.7740225 | E93: =F68-E68+E80 -> 205.2910507 | F93: =G68-F68+F80 -> 218.6827749 | G93: 226.7253418 | H93: 235.5247844 | I93: 260.9469401 | J93: 269.7985398 | K93: 286.4688293 | L93: 287.4877431 | M93: 345.4091554 | N93: 385.7416596 | O93: 415.4446615 | P93: 457.5653063 | Q93: 488.559743 | R93: 512.3022763 | S93: 511.2095237 | T93: 497.6991282 | U93: 523.2298021 | V93: 521.0442969 | W93: 533.0645752 | X93: 554.8202856 | Y93: 557.3038142 | Z93: 0
A94: =Model!$C$4 -> København | B94: I alt | C94: =SUM(C86:C93) -> 1120.039308 | D94: =SUM(D86:D93) -> 1120.096789 | E94: =SUM(E86:E93) -> 1104.925215 | F94: 1133.82214 | G94: 1137.549491 | H94: 1159.296815 | I94: 1178.482953 | J94: 1176.273589 | K94: 1195.951391 | L94: 1193.587942 | M94: 1325.55648 | N94: 1374.051727 | O94: 1402.474572 | P94: 1458.293776 | Q94: 1497.054434 | R94: 1534.979477 | S94: 1567.482502 | T94: 1585.597209 | U94: 1633.014867 | V94: 1663.269644 | W94: =SUM(W86:W93) -> 1693.981317 | X94: 1737.6235 | Y94: 1766.222535 | Z94: 0
A97: Antal boliger
A98: Kommune | B98: Boligtype | C98: Pladser
A99: =Model!$C$4 -> København | B99: Plejehjem | C99: =VLOOKUP($A99,'Registerdata pladser'!B$4:H$101,2,FALSE) -> 1206
A100: =Model!$C$4 -> København | B100: Plejeboliger (2006-) | C100: =VLOOKUP($A100,'Registerdata pladser'!B$4:H$101,4,FALSE) -> 2166
A101: =Model!$C$4 -> København | B101: Friplejeboliger | C101: =VLOOKUP($A101,'Registerdata pladser'!B$4:H$101,7,FALSE) -> 178
A102: =Model!$C$4 -> København | B102: Andre boliger for ældre | C102: =VLOOKUP($A102,'Registerdata pladser'!B$4:H$101,6,FALSE) -> 0
A103: =Model!$C$4 -> København | B103: Plejeboliger i alt | C103: =SUM(C99:C102) -> 3550
A105: =Model!$C$4 -> København | B105: Ældreboliger | C105: =VLOOKUP($A105,'Registerdata pladser'!B$4:H$101,5,FALSE) -> 3305
A108: Planlagte kapacitetsændringer
A109: År | C109: =C33 -> 2022 | D109: 2023 | E109: 2024 | F109: 2025 | G109: 2026 | H109: 2027 | I109: 2028 | J109: 2029 | K109: 2030 | L109: 2031 | M109: 2032 | N109: 2033 | O109: 2034 | P109: 2035 | Q109: 2036 | R109: 2037 | S109: 2038 | T109: 2039 | U109: 2040 | V109: 2041 | W109: 2042 | X109: 2043 | Y109: 2044 | Z109: 2045
A110: Nyetablerede plejeboliger | C110: =IF(Model!$J30=Beregning!C109,Model!$K30)+IF(Model!$J31=Beregning!C109,Model!$K31)+IF(Model!$J32=Beregning!C109,Model!$K32)+IF(Model!$J33=Beregning!C109,Model!$K33)+IF(Model!$J34=Beregning!C109,Model!$K34)+IF(Model!$J35=Beregning!C109,Model!$K35)+IF(Model!$J36=Beregning!C109,Model!$K36)+IF(Model!$J37=Beregning!C109,Model!$K37) -> 0 | D110: =IF(Model!$J30=Beregning!D109,Model!$K30)+IF(Model!$J31=Beregning!D109,Model!$K31)+IF(Model!$J32=Beregning!D109,Model!$K32)+IF(Model!$J33=Beregning!D109,Model!$K33)+IF(Model!$J34=Beregning!D109,Model!$K34)+IF(Model!$J35=Beregning!D109,Model!$K35)+IF(Model!$J36=Beregning!D109,Model!$K36)+IF(Model!$J37=Beregning!D109,Model!$K37) -> 0 | E110: =IF(Model!$J30=Beregning!E109,Model!$K30)+IF(Model!$J31=Beregning!E109,Model!$K31)+IF(Model!$J32=Beregning!E109,Model!$K32)+IF(Model!$J33=Beregning!E109,Model!$K33)+IF(Model!$J34=Beregning!E109,Model!$K34)+IF(Model!$J35=Beregning!E109,Model!$K35)+IF(Model!$J36=Beregning!E109,Model!$K36)+IF(Model!$J37=Beregning!E109,Model!$K37) -> 0 | F110: =IF(Model!$J30=Beregning!F109,Model!$K30)+IF(Model!$J31=Beregning!F109,Model!$K31)+IF(Model!$J32=Beregning!F109,Model!$K32)+IF(Model!$J33=Beregning!F109,Model!$K33)+IF(Model!$J34=Beregning!F109,Model!$K34)+IF(Model!$J35=Beregning!F109,Model!$K35)+IF(Model!$J36=Beregning!F109,Model!$K36)+IF(Model!$J37=Beregning!F109,Model!$K37) -> 0 | G110: =IF(Model!$J30=Beregning!G109,Model!$K30)+IF(Model!$J31=Beregning!G109,Model!$K31)+IF(Model!$J32=Beregning!G109,Model!$K32)+IF(Model!$J33=Beregning!G109,Model!$K33)+IF(Model!$J34=Beregning!G109,Model!$K34)+IF(Model!$J35=Beregning!G109,Model!$K35)+IF(Model!$J36=Beregning!G109,Model!$K36)+IF(Model!$J37=Beregning!G109,Model!$K37) -> 0 | H110: =IF(Model!$J30=Beregning!H109,Model!$K30)+IF(Model!$J31=Beregning!H109,Model!$K31)+IF(Model!$J32=Beregning!H109,Model!$K32)+IF(Model!$J33=Beregning!H109,Model!$K33)+IF(Model!$J34=Beregning!H109,Model!$K34)+IF(Model!$J35=Beregning!H109,Model!$K35)+IF(Model!$J36=Beregning!H109,Model!$K36)+IF(Model!$J37=Beregning!H109,Model!$K37) -> 0 | I110: =IF(Model!$J30=Beregning!I109,Model!$K30)+IF(Model!$J31=Beregning!I109,Model!$K31)+IF(Model!$J32=Beregning!I109,Model!$K32)+IF(Model!$J33=Beregning!I109,Model!$K33)+IF(Model!$J34=Beregning!I109,Model!$K34)+IF(Model!$J35=Beregning!I109,Model!$K35)+IF(Model!$J36=Beregning!I109,Model!$K36)+IF(Model!$J37=Beregning!I109,Model!$K37) -> 0 | J110: =IF(Model!$J30=Beregning!J109,Model!$K30)+IF(Model!$J31=Beregning!J109,Model!$K31)+IF(Model!$J32=Beregning!J109,Model!$K32)+IF(Model!$J33=Beregning!J109,Model!$K33)+IF(Model!$J34=Beregning!J109,Model!$K34)+IF(Model!$J35=Beregning!J109,Model!$K35)+IF(Model!$J36=Beregning!J109,Model!$K36)+IF(Model!$J37=Beregning!J109,Model!$K37) -> 0 | K110: =IF(Model!$J30=Beregning!K109,Model!$K30)+IF(Model!$J31=Beregning!K109,Model!$K31)+IF(Model!$J32=Beregning!K109,Model!$K32)+IF(Model!$J33=Beregning!K109,Model!$K33)+IF(Model!$J34=Beregning!K109,Model!$K34)+IF(Model!$J35=Beregning!K109,Model!$K35)+IF(Model!$J36=Beregning!K109,Model!$K36)+IF(Model!$J37=Beregning!K109,Model!$K37) -> 0 | L110: =IF(Model!$J30=Beregning!L109,Model!$K30)+IF(Model!$J31=Beregning!L109,Model!$K31)+IF(Model!$J32=Beregning!L109,Model!$K32)+IF(Model!$J33=Beregning!L109,Model!$K33)+IF(Model!$J34=Beregning!L109,Model!$K34)+IF(Model!$J35=Beregning!L109,Model!$K35)+IF(Model!$J36=Beregning!L109,Model!$K36)+IF(Model!$J37=Beregning!L109,Model!$K37) -> 0 | M110: =IF(Model!$J30=Beregning!M109,Model!$K30)+IF(Model!$J31=Beregning!M109,Model!$K31)+IF(Model!$J32=Beregning!M109,Model!$K32)+IF(Model!$J33=Beregning!M109,Model!$K33)+IF(Model!$J34=Beregning!M109,Model!$K34)+IF(Model!$J35=Beregning!M109,Model!$K35)+IF(Model!$J36=Beregning!M109,Model!$K36)+IF(Model!$J37=Beregning!M109,Model!$K37) -> 0 | N110: =IF(Model!$J30=Beregning!N109,Model!$K30)+IF(Model!$J31=Beregning!N109,Model!$K31)+IF(Model!$J32=Beregning!N109,Model!$K32)+IF(Model!$J33=Beregning!N109,Model!$K33)+IF(Model!$J34=Beregning!N109,Model!$K34)+IF(Model!$J35=Beregning!N109,Model!$K35)+IF(Model!$J36=Beregning!N109,Model!$K36)+IF(Model!$J37=Beregning!N109,Model!$K37) -> 0 | O110: =IF(Model!$J30=Beregning!O109,Model!$K30)+IF(Model!$J31=Beregning!O109,Model!$K31)+IF(Model!$J32=Beregning!O109,Model!$K32)+IF(Model!$J33=Beregning!O109,Model!$K33)+IF(Model!$J34=Beregning!O109,Model!$K34)+IF(Model!$J35=Beregning!O109,Model!$K35)+IF(Model!$J36=Beregning!O109,Model!$K36)+IF(Model!$J37=Beregning!O109,Model!$K37) -> 0 | P110: =IF(Model!$J30=Beregning!P109,Model!$K30)+IF(Model!$J31=Beregning!P109,Model!$K31)+IF(Model!$J32=Beregning!P109,Model!$K32)+IF(Model!$J33=Beregning!P109,Model!$K33)+IF(Model!$J34=Beregning!P109,Model!$K34)+IF(Model!$J35=Beregning!P109,Model!$K35)+IF(Model!$J36=Beregning!P109,Model!$K36)+IF(Model!$J37=Beregning!P109,Model!$K37) -> 0 | Q110: =IF(Model!$J30=Beregning!Q109,Model!$K30)+IF(Model!$J31=Beregning!Q109,Model!$K31)+IF(Model!$J32=Beregning!Q109,Model!$K32)+IF(Model!$J33=Beregning!Q109,Model!$K33)+IF(Model!$J34=Beregning!Q109,Model!$K34)+IF(Model!$J35=Beregning!Q109,Model!$K35)+IF(Model!$J36=Beregning!Q109,Model!$K36)+IF(Model!$J37=Beregning!Q109,Model!$K37) -> 0 | R110: =IF(Model!$J30=Beregning!R109,Model!$K30)+IF(Model!$J31=Beregning!R109,Model!$K31)+IF(Model!$J32=Beregning!R109,Model!$K32)+IF(Model!$J33=Beregning!R109,Model!$K33)+IF(Model!$J34=Beregning!R109,Model!$K34)+IF(Model!$J35=Beregning!R109,Model!$K35)+IF(Model!$J36=Beregning!R109,Model!$K36)+IF(Model!$J37=Beregning!R109,Model!$K37) -> 0 | S110: =IF(Model!$J30=Beregning!S109,Model!$K30)+IF(Model!$J31=Beregning!S109,Model!$K31)+IF(Model!$J32=Beregning!S109,Model!$K32)+IF(Model!$J33=Beregning!S109,Model!$K33)+IF(Model!$J34=Beregning!S109,Model!$K34)+IF(Model!$J35=Beregning!S109,Model!$K35)+IF(Model!$J36=Beregning!S109,Model!$K36)+IF(Model!$J37=Beregning!S109,Model!$K37) -> 0 | T110: =IF(Model!$J30=Beregning!T109,Model!$K30)+IF(Model!$J31=Beregning!T109,Model!$K31)+IF(Model!$J32=Beregning!T109,Model!$K32)+IF(Model!$J33=Beregning!T109,Model!$K33)+IF(Model!$J34=Beregning!T109,Model!$K34)+IF(Model!$J35=Beregning!T109,Model!$K35)+IF(Model!$J36=Beregning!T109,Model!$K36)+IF(Model!$J37=Beregning!T109,Model!$K37) -> 0 | U110: =IF(Model!$J30=Beregning!U109,Model!$K30)+IF(Model!$J31=Beregning!U109,Model!$K31)+IF(Model!$J32=Beregning!U109,Model!$K32)+IF(Model!$J33=Beregning!U109,Model!$K33)+IF(Model!$J34=Beregning!U109,Model!$K34)+IF(Model!$J35=Beregning!U109,Model!$K35)+IF(Model!$J36=Beregning!U109,Model!$K36)+IF(Model!$J37=Beregning!U109,Model!$K37) -> 0 | V110: =IF(Model!$J30=Beregning!V109,Model!$K30)+IF(Model!$J31=Beregning!V109,Model!$K31)+IF(Model!$J32=Beregning!V109,Model!$K32)+IF(Model!$J33=Beregning!V109,Model!$K33)+IF(Model!$J34=Beregning!V109,Model!$K34)+IF(Model!$J35=Beregning!V109,Model!$K35)+IF(Model!$J36=Beregning!V109,Model!$K36)+IF(Model!$J37=Beregning!V109,Model!$K37) -> 0 | W110: =IF(Model!$J30=Beregning!W109,Model!$K30)+IF(Model!$J31=Beregning!W109,Model!$K31)+IF(Model!$J32=Beregning!W109,Model!$K32)+IF(Model!$J33=Beregning!W109,Model!$K33)+IF(Model!$J34=Beregning!W109,Model!$K34)+IF(Model!$J35=Beregning!W109,Model!$K35)+IF(Model!$J36=Beregning!W109,Model!$K36)+IF(Model!$J37=Beregning!W109,Model!$K37) -> 0 | X110: =IF(Model!$J30=Beregning!X109,Model!$K30)+IF(Model!$J31=Beregning!X109,Model!$K31)+IF(Model!$J32=Beregning!X109,Model!$K32)+IF(Model!$J33=Beregning!X109,Model!$K33)+IF(Model!$J34=Beregning!X109,Model!$K34)+IF(Model!$J35=Beregning!X109,Model!$K35)+IF(Model!$J36=Beregning!X109,Model!$K36)+IF(Model!$J37=Beregning!X109,Model!$K37) -> 0 | Y110: =IF(Model!$J30=Beregning!Y109,Model!$K30)+IF(Model!$J31=Beregning!Y109,Model!$K31)+IF(Model!$J32=Beregning!Y109,Model!$K32)+IF(Model!$J33=Beregning!Y109,Model!$K33)+IF(Model!$J34=Beregning!Y109,Model!$K34)+IF(Model!$J35=Beregning!Y109,Model!$K35)+IF(Model!$J36=Beregning!Y109,Model!$K36)+IF(Model!$J37=Beregning!Y109,Model!$K37) -> 0 | Z110: =IF(Model!$J30=Beregning!Z109,Model!$K30)+IF(Model!$J31=Beregning!Z109,Model!$K31)+IF(Model!$J32=Beregning!Z109,Model!$K32)+IF(Model!$J33=Beregning!Z109,Model!$K33)+IF(Model!$J34=Beregning!Z109,Model!$K34)+IF(Model!$J35=Beregning!Z109,Model!$K35)+IF(Model!$J36=Beregning!Z109,Model!$K36)+IF(Model!$J37=Beregning!Z109,Model!$K37) -> 0
A111: Konverterede ældreboliger | C111: =IF(Model!$L$38<>"Fejl!",IF(Model!$J30=Beregning!C109,Model!$L30)+IF(Model!$J31=Beregning!C109,Model!$L31)+IF(Model!$J32=Beregning!C109,Model!$L32)+IF(Model!$J33=Beregning!C109,Model!$L33)+IF(Model!$J34=Beregning!C109,Model!$L34)+IF(Model!$J35=Beregning!C109,Model!$L35)+IF(Model!$J36=Beregning!C109,Model!$L36)+IF(Model!$J37=Beregning!C109,Model!$L37),0) -> 0 | D111: =IF(Model!$L$38<>"Fejl!",IF(Model!$J30=Beregning!D109,Model!$L30)+IF(Model!$J31=Beregning!D109,Model!$L31)+IF(Model!$J32=Beregning!D109,Model!$L32)+IF(Model!$J33=Beregning!D109,Model!$L33)+IF(Model!$J34=Beregning!D109,Model!$L34)+IF(Model!$J35=Beregning!D109,Model!$L35)+IF(Model!$J36=Beregning!D109,Model!$L36)+IF(Model!$J37=Beregning!D109,Model!$L37),0) -> 0 | E111: =IF(Model!$L$38<>"Fejl!",IF(Model!$J30=Beregning!E109,Model!$L30)+IF(Model!$J31=Beregning!E109,Model!$L31)+IF(Model!$J32=Beregning!E109,Model!$L32)+IF(Model!$J33=Beregning!E109,Model!$L33)+IF(Model!$J34=Beregning!E109,Model!$L34)+IF(Model!$J35=Beregning!E109,Model!$L35)+IF(Model!$J36=Beregning!E109,Model!$L36)+IF(Model!$J37=Beregning!E109,Model!$L37),0) -> 0 | F111: =IF(Model!$L$38<>"Fejl!",IF(Model!$J30=Beregning!F109,Model!$L30)+IF(Model!$J31=Beregning!F109,Model!$L31)+IF(Model!$J32=Beregning!F109,Model!$L32)+IF(Model!$J33=Beregning!F109,Model!$L33)+IF(Model!$J34=Beregning!F109,Model!$L34)+IF(Model!$J35=Beregning!F109,Model!$L35)+IF(Model!$J36=Beregning!F109,Model!$L36)+IF(Model!$J37=Beregning!F109,Model!$L37),0) -> 0 | G111: =IF(Model!$L$38<>"Fejl!",IF(Model!$J30=Beregning!G109,Model!$L30)+IF(Model!$J31=Beregning!G109,Model!$L31)+IF(Model!$J32=Beregning!G109,Model!$L32)+IF(Model!$J33=Beregning!G109,Model!$L33)+IF(Model!$J34=Beregning!G109,Model!$L34)+IF(Model!$J35=Beregning!G109,Model!$L35)+IF(Model!$J36=Beregning!G109,Model!$L36)+IF(Model!$J37=Beregning!G109,Model!$L37),0) -> 0 | H111: =IF(Model!$L$38<>"Fejl!",IF(Model!$J30=Beregning!H109,Model!$L30)+IF(Model!$J31=Beregning!H109,Model!$L31)+IF(Model!$J32=Beregning!H109,Model!$L32)+IF(Model!$J33=Beregning!H109,Model!$L33)+IF(Model!$J34=Beregning!H109,Model!$L34)+IF(Model!$J35=Beregning!H109,Model!$L35)+IF(Model!$J36=Beregning!H109,Model!$L36)+IF(Model!$J37=Beregning!H109,Model!$L37),0) -> 0 | I111: =IF(Model!$L$38<>"Fejl!",IF(Model!$J30=Beregning!I109,Model!$L30)+IF(Model!$J31=Beregning!I109,Model!$L31)+IF(Model!$J32=Beregning!I109,Model!$L32)+IF(Model!$J33=Beregning!I109,Model!$L33)+IF(Model!$J34=Beregning!I109,Model!$L34)+IF(Model!$J35=Beregning!I109,Model!$L35)+IF(Model!$J36=Beregning!I109,Model!$L36)+IF(Model!$J37=Beregning!I109,Model!$L37),0) -> 0 | J111: =IF(Model!$L$38<>"Fejl!",IF(Model!$J30=Beregning!J109,Model!$L30)+IF(Model!$J31=Beregning!J109,Model!$L31)+IF(Model!$J32=Beregning!J109,Model!$L32)+IF(Model!$J33=Beregning!J109,Model!$L33)+IF(Model!$J34=Beregning!J109,Model!$L34)+IF(Model!$J35=Beregning!J109,Model!$L35)+IF(Model!$J36=Beregning!J109,Model!$L36)+IF(Model!$J37=Beregning!J109,Model!$L37),0) -> 0 | K111: =IF(Model!$L$38<>"Fejl!",IF(Model!$J30=Beregning!K109,Model!$L30)+IF(Model!$J31=Beregning!K109,Model!$L31)+IF(Model!$J32=Beregning!K109,Model!$L32)+IF(Model!$J33=Beregning!K109,Model!$L33)+IF(Model!$J34=Beregning!K109,Model!$L34)+IF(Model!$J35=Beregning!K109,Model!$L35)+IF(Model!$J36=Beregning!K109,Model!$L36)+IF(Model!$J37=Beregning!K109,Model!$L37),0) -> 0 | L111: =IF(Model!$L$38<>"Fejl!",IF(Model!$J30=Beregning!L109,Model!$L30)+IF(Model!$J31=Beregning!L109,Model!$L31)+IF(Model!$J32=Beregning!L109,Model!$L32)+IF(Model!$J33=Beregning!L109,Model!$L33)+IF(Model!$J34=Beregning!L109,Model!$L34)+IF(Model!$J35=Beregning!L109,Model!$L35)+IF(Model!$J36=Beregning!L109,Model!$L36)+IF(Model!$J37=Beregning!L109,Model!$L37),0) -> 0 | M111: =IF(Model!$L$38<>"Fejl!",IF(Model!$J30=Beregning!M109,Model!$L30)+IF(Model!$J31=Beregning!M109,Model!$L31)+IF(Model!$J32=Beregning!M109,Model!$L32)+IF(Model!$J33=Beregning!M109,Model!$L33)+IF(Model!$J34=Beregning!M109,Model!$L34)+IF(Model!$J35=Beregning!M109,Model!$L35)+IF(Model!$J36=Beregning!M109,Model!$L36)+IF(Model!$J37=Beregning!M109,Model!$L37),0) -> 0 | N111: =IF(Model!$L$38<>"Fejl!",IF(Model!$J30=Beregning!N109,Model!$L30)+IF(Model!$J31=Beregning!N109,Model!$L31)+IF(Model!$J32=Beregning!N109,Model!$L32)+IF(Model!$J33=Beregning!N109,Model!$L33)+IF(Model!$J34=Beregning!N109,Model!$L34)+IF(Model!$J35=Beregning!N109,Model!$L35)+IF(Model!$J36=Beregning!N109,Model!$L36)+IF(Model!$J37=Beregning!N109,Model!$L37),0) -> 0 | O111: =IF(Model!$L$38<>"Fejl!",IF(Model!$J30=Beregning!O109,Model!$L30)+IF(Model!$J31=Beregning!O109,Model!$L31)+IF(Model!$J32=Beregning!O109,Model!$L32)+IF(Model!$J33=Beregning!O109,Model!$L33)+IF(Model!$J34=Beregning!O109,Model!$L34)+IF(Model!$J35=Beregning!O109,Model!$L35)+IF(Model!$J36=Beregning!O109,Model!$L36)+IF(Model!$J37=Beregning!O109,Model!$L37),0) -> 0 | P111: =IF(Model!$L$38<>"Fejl!",IF(Model!$J30=Beregning!P109,Model!$L30)+IF(Model!$J31=Beregning!P109,Model!$L31)+IF(Model!$J32=Beregning!P109,Model!$L32)+IF(Model!$J33=Beregning!P109,Model!$L33)+IF(Model!$J34=Beregning!P109,Model!$L34)+IF(Model!$J35=Beregning!P109,Model!$L35)+IF(Model!$J36=Beregning!P109,Model!$L36)+IF(Model!$J37=Beregning!P109,Model!$L37),0) -> 0 | Q111: =IF(Model!$L$38<>"Fejl!",IF(Model!$J30=Beregning!Q109,Model!$L30)+IF(Model!$J31=Beregning!Q109,Model!$L31)+IF(Model!$J32=Beregning!Q109,Model!$L32)+IF(Model!$J33=Beregning!Q109,Model!$L33)+IF(Model!$J34=Beregning!Q109,Model!$L34)+IF(Model!$J35=Beregning!Q109,Model!$L35)+IF(Model!$J36=Beregning!Q109,Model!$L36)+IF(Model!$J37=Beregning!Q109,Model!$L37),0) -> 0 | R111: =IF(Model!$L$38<>"Fejl!",IF(Model!$J30=Beregning!R109,Model!$L30)+IF(Model!$J31=Beregning!R109,Model!$L31)+IF(Model!$J32=Beregning!R109,Model!$L32)+IF(Model!$J33=Beregning!R109,Model!$L33)+IF(Model!$J34=Beregning!R109,Model!$L34)+IF(Model!$J35=Beregning!R109,Model!$L35)+IF(Model!$J36=Beregning!R109,Model!$L36)+IF(Model!$J37=Beregning!R109,Model!$L37),0) -> 0 | S111: =IF(Model!$L$38<>"Fejl!",IF(Model!$J30=Beregning!S109,Model!$L30)+IF(Model!$J31=Beregning!S109,Model!$L31)+IF(Model!$J32=Beregning!S109,Model!$L32)+IF(Model!$J33=Beregning!S109,Model!$L33)+IF(Model!$J34=Beregning!S109,Model!$L34)+IF(Model!$J35=Beregning!S109,Model!$L35)+IF(Model!$J36=Beregning!S109,Model!$L36)+IF(Model!$J37=Beregning!S109,Model!$L37),0) -> 0 | T111: =IF(Model!$L$38<>"Fejl!",IF(Model!$J30=Beregning!T109,Model!$L30)+IF(Model!$J31=Beregning!T109,Model!$L31)+IF(Model!$J32=Beregning!T109,Model!$L32)+IF(Model!$J33=Beregning!T109,Model!$L33)+IF(Model!$J34=Beregning!T109,Model!$L34)+IF(Model!$J35=Beregning!T109,Model!$L35)+IF(Model!$J36=Beregning!T109,Model!$L36)+IF(Model!$J37=Beregning!T109,Model!$L37),0) -> 0 | U111: =IF(Model!$L$38<>"Fejl!",IF(Model!$J30=Beregning!U109,Model!$L30)+IF(Model!$J31=Beregning!U109,Model!$L31)+IF(Model!$J32=Beregning!U109,Model!$L32)+IF(Model!$J33=Beregning!U109,Model!$L33)+IF(Model!$J34=Beregning!U109,Model!$L34)+IF(Model!$J35=Beregning!U109,Model!$L35)+IF(Model!$J36=Beregning!U109,Model!$L36)+IF(Model!$J37=Beregning!U109,Model!$L37),0) -> 0 | V111: =IF(Model!$L$38<>"Fejl!",IF(Model!$J30=Beregning!V109,Model!$L30)+IF(Model!$J31=Beregning!V109,Model!$L31)+IF(Model!$J32=Beregning!V109,Model!$L32)+IF(Model!$J33=Beregning!V109,Model!$L33)+IF(Model!$J34=Beregning!V109,Model!$L34)+IF(Model!$J35=Beregning!V109,Model!$L35)+IF(Model!$J36=Beregning!V109,Model!$L36)+IF(Model!$J37=Beregning!V109,Model!$L37),0) -> 0 | W111: =IF(Model!$L$38<>"Fejl!",IF(Model!$J30=Beregning!W109,Model!$L30)+IF(Model!$J31=Beregning!W109,Model!$L31)+IF(Model!$J32=Beregning!W109,Model!$L32)+IF(Model!$J33=Beregning!W109,Model!$L33)+IF(Model!$J34=Beregning!W109,Model!$L34)+IF(Model!$J35=Beregning!W109,Model!$L35)+IF(Model!$J36=Beregning!W109,Model!$L36)+IF(Model!$J37=Beregning!W109,Model!$L37),0) -> 0 | X111: =IF(Model!$L$38<>"Fejl!",IF(Model!$J30=Beregning!X109,Model!$L30)+IF(Model!$J31=Beregning!X109,Model!$L31)+IF(Model!$J32=Beregning!X109,Model!$L32)+IF(Model!$J33=Beregning!X109,Model!$L33)+IF(Model!$J34=Beregning!X109,Model!$L34)+IF(Model!$J35=Beregning!X109,Model!$L35)+IF(Model!$J36=Beregning!X109,Model!$L36)+IF(Model!$J37=Beregning!X109,Model!$L37),0) -> 0 | Y111: =IF(Model!$L$38<>"Fejl!",IF(Model!$J30=Beregning!Y109,Model!$L30)+IF(Model!$J31=Beregning!Y109,Model!$L31)+IF(Model!$J32=Beregning!Y109,Model!$L32)+IF(Model!$J33=Beregning!Y109,Model!$L33)+IF(Model!$J34=Beregning!Y109,Model!$L34)+IF(Model!$J35=Beregning!Y109,Model!$L35)+IF(Model!$J36=Beregning!Y109,Model!$L36)+IF(Model!$J37=Beregning!Y109,Model!$L37),0) -> 0 | Z111: =IF(Model!$L$38<>"Fejl!",IF(Model!$J30=Beregning!Z109,Model!$L30)+IF(Model!$J31=Beregning!Z109,Model!$L31)+IF(Model!$J32=Beregning!Z109,Model!$L32)+IF(Model!$J33=Beregning!Z109,Model!$L33)+IF(Model!$J34=Beregning!Z109,Model!$L34)+IF(Model!$J35=Beregning!Z109,Model!$L35)+IF(Model!$J36=Beregning!Z109,Model!$L36)+IF(Model!$J37=Beregning!Z109,Model!$L37),0) -> 0
A112: Nedlagte plejeboliger | C112: =IF(Model!$J30=Beregning!C109,Model!$M30)+IF(Model!$J31=Beregning!C109,Model!$M31)+IF(Model!$J32=Beregning!C109,Model!$M32)+IF(Model!$J33=Beregning!C109,Model!$M33)+IF(Model!$J34=Beregning!C109,Model!$M34)+IF(Model!$J35=Beregning!C109,Model!$M35)+IF(Model!$J36=Beregning!C109,Model!$M36)+IF(Model!$J37=Beregning!C109,Model!$M37) -> 0 | D112: =IF(Model!$J30=Beregning!D109,Model!$M30)+IF(Model!$J31=Beregning!D109,Model!$M31)+IF(Model!$J32=Beregning!D109,Model!$M32)+IF(Model!$J33=Beregning!D109,Model!$M33)+IF(Model!$J34=Beregning!D109,Model!$M34)+IF(Model!$J35=Beregning!D109,Model!$M35)+IF(Model!$J36=Beregning!D109,Model!$M36)+IF(Model!$J37=Beregning!D109,Model!$M37) -> 0 | E112: =IF(Model!$J30=Beregning!E109,Model!$M30)+IF(Model!$J31=Beregning!E109,Model!$M31)+IF(Model!$J32=Beregning!E109,Model!$M32)+IF(Model!$J33=Beregning!E109,Model!$M33)+IF(Model!$J34=Beregning!E109,Model!$M34)+IF(Model!$J35=Beregning!E109,Model!$M35)+IF(Model!$J36=Beregning!E109,Model!$M36)+IF(Model!$J37=Beregning!E109,Model!$M37) -> 0 | F112: =IF(Model!$J30=Beregning!F109,Model!$M30)+IF(Model!$J31=Beregning!F109,Model!$M31)+IF(Model!$J32=Beregning!F109,Model!$M32)+IF(Model!$J33=Beregning!F109,Model!$M33)+IF(Model!$J34=Beregning!F109,Model!$M34)+IF(Model!$J35=Beregning!F109,Model!$M35)+IF(Model!$J36=Beregning!F109,Model!$M36)+IF(Model!$J37=Beregning!F109,Model!$M37) -> 0 | G112: =IF(Model!$J30=Beregning!G109,Model!$M30)+IF(Model!$J31=Beregning!G109,Model!$M31)+IF(Model!$J32=Beregning!G109,Model!$M32)+IF(Model!$J33=Beregning!G109,Model!$M33)+IF(Model!$J34=Beregning!G109,Model!$M34)+IF(Model!$J35=Beregning!G109,Model!$M35)+IF(Model!$J36=Beregning!G109,Model!$M36)+IF(Model!$J37=Beregning!G109,Model!$M37) -> 0 | H112: =IF(Model!$J30=Beregning!H109,Model!$M30)+IF(Model!$J31=Beregning!H109,Model!$M31)+IF(Model!$J32=Beregning!H109,Model!$M32)+IF(Model!$J33=Beregning!H109,Model!$M33)+IF(Model!$J34=Beregning!H109,Model!$M34)+IF(Model!$J35=Beregning!H109,Model!$M35)+IF(Model!$J36=Beregning!H109,Model!$M36)+IF(Model!$J37=Beregning!H109,Model!$M37) -> 0 | I112: =IF(Model!$J30=Beregning!I109,Model!$M30)+IF(Model!$J31=Beregning!I109,Model!$M31)+IF(Model!$J32=Beregning!I109,Model!$M32)+IF(Model!$J33=Beregning!I109,Model!$M33)+IF(Model!$J34=Beregning!I109,Model!$M34)+IF(Model!$J35=Beregning!I109,Model!$M35)+IF(Model!$J36=Beregning!I109,Model!$M36)+IF(Model!$J37=Beregning!I109,Model!$M37) -> 0 | J112: =IF(Model!$J30=Beregning!J109,Model!$M30)+IF(Model!$J31=Beregning!J109,Model!$M31)+IF(Model!$J32=Beregning!J109,Model!$M32)+IF(Model!$J33=Beregning!J109,Model!$M33)+IF(Model!$J34=Beregning!J109,Model!$M34)+IF(Model!$J35=Beregning!J109,Model!$M35)+IF(Model!$J36=Beregning!J109,Model!$M36)+IF(Model!$J37=Beregning!J109,Model!$M37) -> 0 | K112: =IF(Model!$J30=Beregning!K109,Model!$M30)+IF(Model!$J31=Beregning!K109,Model!$M31)+IF(Model!$J32=Beregning!K109,Model!$M32)+IF(Model!$J33=Beregning!K109,Model!$M33)+IF(Model!$J34=Beregning!K109,Model!$M34)+IF(Model!$J35=Beregning!K109,Model!$M35)+IF(Model!$J36=Beregning!K109,Model!$M36)+IF(Model!$J37=Beregning!K109,Model!$M37) -> 0 | L112: =IF(Model!$J30=Beregning!L109,Model!$M30)+IF(Model!$J31=Beregning!L109,Model!$M31)+IF(Model!$J32=Beregning!L109,Model!$M32)+IF(Model!$J33=Beregning!L109,Model!$M33)+IF(Model!$J34=Beregning!L109,Model!$M34)+IF(Model!$J35=Beregning!L109,Model!$M35)+IF(Model!$J36=Beregning!L109,Model!$M36)+IF(Model!$J37=Beregning!L109,Model!$M37) -> 0 | M112: =IF(Model!$J30=Beregning!M109,Model!$M30)+IF(Model!$J31=Beregning!M109,Model!$M31)+IF(Model!$J32=Beregning!M109,Model!$M32)+IF(Model!$J33=Beregning!M109,Model!$M33)+IF(Model!$J34=Beregning!M109,Model!$M34)+IF(Model!$J35=Beregning!M109,Model!$M35)+IF(Model!$J36=Beregning!M109,Model!$M36)+IF(Model!$J37=Beregning!M109,Model!$M37) -> 0 | N112: =IF(Model!$J30=Beregning!N109,Model!$M30)+IF(Model!$J31=Beregning!N109,Model!$M31)+IF(Model!$J32=Beregning!N109,Model!$M32)+IF(Model!$J33=Beregning!N109,Model!$M33)+IF(Model!$J34=Beregning!N109,Model!$M34)+IF(Model!$J35=Beregning!N109,Model!$M35)+IF(Model!$J36=Beregning!N109,Model!$M36)+IF(Model!$J37=Beregning!N109,Model!$M37) -> 0 | O112: =IF(Model!$J30=Beregning!O109,Model!$M30)+IF(Model!$J31=Beregning!O109,Model!$M31)+IF(Model!$J32=Beregning!O109,Model!$M32)+IF(Model!$J33=Beregning!O109,Model!$M33)+IF(Model!$J34=Beregning!O109,Model!$M34)+IF(Model!$J35=Beregning!O109,Model!$M35)+IF(Model!$J36=Beregning!O109,Model!$M36)+IF(Model!$J37=Beregning!O109,Model!$M37) -> 0 | P112: =IF(Model!$J30=Beregning!P109,Model!$M30)+IF(Model!$J31=Beregning!P109,Model!$M31)+IF(Model!$J32=Beregning!P109,Model!$M32)+IF(Model!$J33=Beregning!P109,Model!$M33)+IF(Model!$J34=Beregning!P109,Model!$M34)+IF(Model!$J35=Beregning!P109,Model!$M35)+IF(Model!$J36=Beregning!P109,Model!$M36)+IF(Model!$J37=Beregning!P109,Model!$M37) -> 0 | Q112: =IF(Model!$J30=Beregning!Q109,Model!$M30)+IF(Model!$J31=Beregning!Q109,Model!$M31)+IF(Model!$J32=Beregning!Q109,Model!$M32)+IF(Model!$J33=Beregning!Q109,Model!$M33)+IF(Model!$J34=Beregning!Q109,Model!$M34)+IF(Model!$J35=Beregning!Q109,Model!$M35)+IF(Model!$J36=Beregning!Q109,Model!$M36)+IF(Model!$J37=Beregning!Q109,Model!$M37) -> 0 | R112: =IF(Model!$J30=Beregning!R109,Model!$M30)+IF(Model!$J31=Beregning!R109,Model!$M31)+IF(Model!$J32=Beregning!R109,Model!$M32)+IF(Model!$J33=Beregning!R109,Model!$M33)+IF(Model!$J34=Beregning!R109,Model!$M34)+IF(Model!$J35=Beregning!R109,Model!$M35)+IF(Model!$J36=Beregning!R109,Model!$M36)+IF(Model!$J37=Beregning!R109,Model!$M37) -> 0 | S112: =IF(Model!$J30=Beregning!S109,Model!$M30)+IF(Model!$J31=Beregning!S109,Model!$M31)+IF(Model!$J32=Beregning!S109,Model!$M32)+IF(Model!$J33=Beregning!S109,Model!$M33)+IF(Model!$J34=Beregning!S109,Model!$M34)+IF(Model!$J35=Beregning!S109,Model!$M35)+IF(Model!$J36=Beregning!S109,Model!$M36)+IF(Model!$J37=Beregning!S109,Model!$M37) -> 0 | T112: =IF(Model!$J30=Beregning!T109,Model!$M30)+IF(Model!$J31=Beregning!T109,Model!$M31)+IF(Model!$J32=Beregning!T109,Model!$M32)+IF(Model!$J33=Beregning!T109,Model!$M33)+IF(Model!$J34=Beregning!T109,Model!$M34)+IF(Model!$J35=Beregning!T109,Model!$M35)+IF(Model!$J36=Beregning!T109,Model!$M36)+IF(Model!$J37=Beregning!T109,Model!$M37) -> 0 | U112: =IF(Model!$J30=Beregning!U109,Model!$M30)+IF(Model!$J31=Beregning!U109,Model!$M31)+IF(Model!$J32=Beregning!U109,Model!$M32)+IF(Model!$J33=Beregning!U109,Model!$M33)+IF(Model!$J34=Beregning!U109,Model!$M34)+IF(Model!$J35=Beregning!U109,Model!$M35)+IF(Model!$J36=Beregning!U109,Model!$M36)+IF(Model!$J37=Beregning!U109,Model!$M37) -> 0 | V112: =IF(Model!$J30=Beregning!V109,Model!$M30)+IF(Model!$J31=Beregning!V109,Model!$M31)+IF(Model!$J32=Beregning!V109,Model!$M32)+IF(Model!$J33=Beregning!V109,Model!$M33)+IF(Model!$J34=Beregning!V109,Model!$M34)+IF(Model!$J35=Beregning!V109,Model!$M35)+IF(Model!$J36=Beregning!V109,Model!$M36)+IF(Model!$J37=Beregning!V109,Model!$M37) -> 0 | W112: =IF(Model!$J30=Beregning!W109,Model!$M30)+IF(Model!$J31=Beregning!W109,Model!$M31)+IF(Model!$J32=Beregning!W109,Model!$M32)+IF(Model!$J33=Beregning!W109,Model!$M33)+IF(Model!$J34=Beregning!W109,Model!$M34)+IF(Model!$J35=Beregning!W109,Model!$M35)+IF(Model!$J36=Beregning!W109,Model!$M36)+IF(Model!$J37=Beregning!W109,Model!$M37) -> 0 | X112: =IF(Model!$J30=Beregning!X109,Model!$M30)+IF(Model!$J31=Beregning!X109,Model!$M31)+IF(Model!$J32=Beregning!X109,Model!$M32)+IF(Model!$J33=Beregning!X109,Model!$M33)+IF(Model!$J34=Beregning!X109,Model!$M34)+IF(Model!$J35=Beregning!X109,Model!$M35)+IF(Model!$J36=Beregning!X109,Model!$M36)+IF(Model!$J37=Beregning!X109,Model!$M37) -> 0 | Y112: =IF(Model!$J30=Beregning!Y109,Model!$M30)+IF(Model!$J31=Beregning!Y109,Model!$M31)+IF(Model!$J32=Beregning!Y109,Model!$M32)+IF(Model!$J33=Beregning!Y109,Model!$M33)+IF(Model!$J34=Beregning!Y109,Model!$M34)+IF(Model!$J35=Beregning!Y109,Model!$M35)+IF(Model!$J36=Beregning!Y109,Model!$M36)+IF(Model!$J37=Beregning!Y109,Model!$M37) -> 0 | Z112: =IF(Model!$J30=Beregning!Z109,Model!$M30)+IF(Model!$J31=Beregning!Z109,Model!$M31)+IF(Model!$J32=Beregning!Z109,Model!$M32)+IF(Model!$J33=Beregning!Z109,Model!$M33)+IF(Model!$J34=Beregning!Z109,Model!$M34)+IF(Model!$J35=Beregning!Z109,Model!$M35)+IF(Model!$J36=Beregning!Z109,Model!$M36)+IF(Model!$J37=Beregning!Z109,Model!$M37) -> 0
A114: Tomgang md. | C114: =Model!C40 -> 1 | D114: =IF(Model!$L$43>Model!$C$40,IF(ISNUMBER(Model!$L$43),MIN(C114-(Model!$C$40-Model!$L$43)/MAX(INT(Model!$L$44),1),Model!$L43),Model!$C40),IF(ISNUMBER(Model!$L$43),MAX(C114-(Model!$C$40-Model!$L$43)/MAX(INT(Model!$L$44),1),Model!$L43),Model!$C40)) -> 1 | E114: =IF(Model!$L$43>Model!$C$40,IF(ISNUMBER(Model!$L$43),MIN(D114-(Model!$C$40-Model!$L$43)/MAX(INT(Model!$L$44),1),Model!$L43),Model!$C40),IF(ISNUMBER(Model!$L$43),MAX(D114-(Model!$C$40-Model!$L$43)/MAX(INT(Model!$L$44),1),Model!$L43),Model!$C40)) -> 1 | F114: =IF(Model!$L$43>Model!$C$40,IF(ISNUMBER(Model!$L$43),MIN(E114-(Model!$C$40-Model!$L$43)/MAX(INT(Model!$L$44),1),Model!$L43),Model!$C40),IF(ISNUMBER(Model!$L$43),MAX(E114-(Model!$C$40-Model!$L$43)/MAX(INT(Model!$L$44),1),Model!$L43),Model!$C40)) -> 1 | G114: =IF(Model!$L$43>Model!$C$40,IF(ISNUMBER(Model!$L$43),MIN(F114-(Model!$C$40-Model!$L$43)/MAX(INT(Model!$L$44),1),Model!$L43),Model!$C40),IF(ISNUMBER(Model!$L$43),MAX(F114-(Model!$C$40-Model!$L$43)/MAX(INT(Model!$L$44),1),Model!$L43),Model!$C40)) -> 1 | H114: =IF(Model!$L$43>Model!$C$40,IF(ISNUMBER(Model!$L$43),MIN(G114-(Model!$C$40-Model!$L$43)/MAX(INT(Model!$L$44),1),Model!$L43),Model!$C40),IF(ISNUMBER(Model!$L$43),MAX(G114-(Model!$C$40-Model!$L$43)/MAX(INT(Model!$L$44),1),Model!$L43),Model!$C40)) -> 1 | I114: =IF(Model!$L$43>Model!$C$40,IF(ISNUMBER(Model!$L$43),MIN(H114-(Model!$C$40-Model!$L$43)/MAX(INT(Model!$L$44),1),Model!$L43),Model!$C40),IF(ISNUMBER(Model!$L$43),MAX(H114-(Model!$C$40-Model!$L$43)/MAX(INT(Model!$L$44),1),Model!$L43),Model!$C40)) -> 1 | J114: =IF(Model!$L$43>Model!$C$40,IF(ISNUMBER(Model!$L$43),MIN(I114-(Model!$C$40-Model!$L$43)/MAX(INT(Model!$L$44),1),Model!$L43),Model!$C40),IF(ISNUMBER(Model!$L$43),MAX(I114-(Model!$C$40-Model!$L$43)/MAX(INT(Model!$L$44),1),Model!$L43),Model!$C40)) -> 1 | K114: =IF(Model!$L$43>Model!$C$40,IF(ISNUMBER(Model!$L$43),MIN(J114-(Model!$C$40-Model!$L$43)/MAX(INT(Model!$L$44),1),Model!$L43),Model!$C40),IF(ISNUMBER(Model!$L$43),MAX(J114-(Model!$C$40-Model!$L$43)/MAX(INT(Model!$L$44),1),Model!$L43),Model!$C40)) -> 1 | L114: =IF(Model!$L$43>Model!$C$40,IF(ISNUMBER(Model!$L$43),MIN(K114-(Model!$C$40-Model!$L$43)/MAX(INT(Model!$L$44),1),Model!$L43),Model!$C40),IF(ISNUMBER(Model!$L$43),MAX(K114-(Model!$C$40-Model!$L$43)/MAX(INT(Model!$L$44),1),Model!$L43),Model!$C40)) -> 1 | M114: =IF(Model!$L$43>Model!$C$40,IF(ISNUMBER(Model!$L$43),MIN(L114-(Model!$C$40-Model!$L$43)/MAX(INT(Model!$L$44),1),Model!$L43),Model!$C40),IF(ISNUMBER(Model!$L$43),MAX(L114-(Model!$C$40-Model!$L$43)/MAX(INT(Model!$L$44),1),Model!$L43),Model!$C40)) -> 1 | N114: =IF(Model!$L$43>Model!$C$40,IF(ISNUMBER(Model!$L$43),MIN(M114-(Model!$C$40-Model!$L$43)/MAX(INT(Model!$L$44),1),Model!$L43),Model!$C40),IF(ISNUMBER(Model!$L$43),MAX(M114-(Model!$C$40-Model!$L$43)/MAX(INT(Model!$L$44),1),Model!$L43),Model!$C40)) -> 1 | O114: =IF(Model!$L$43>Model!$C$40,IF(ISNUMBER(Model!$L$43),MIN(N114-(Model!$C$40-Model!$L$43)/MAX(INT(Model!$L$44),1),Model!$L43),Model!$C40),IF(ISNUMBER(Model!$L$43),MAX(N114-(Model!$C$40-Model!$L$43)/MAX(INT(Model!$L$44),1),Model!$L43),Model!$C40)) -> 1 | P114: =IF(Model!$L$43>Model!$C$40,IF(ISNUMBER(Model!$L$43),MIN(O114-(Model!$C$40-Model!$L$43)/MAX(INT(Model!$L$44),1),Model!$L43),Model!$C40),IF(ISNUMBER(Model!$L$43),MAX(O114-(Model!$C$40-Model!$L$43)/MAX(INT(Model!$L$44),1),Model!$L43),Model!$C40)) -> 1 | Q114: =IF(Model!$L$43>Model!$C$40,IF(ISNUMBER(Model!$L$43),MIN(P114-(Model!$C$40-Model!$L$43)/MAX(INT(Model!$L$44),1),Model!$L43),Model!$C40),IF(ISNUMBER(Model!$L$43),MAX(P114-(Model!$C$40-Model!$L$43)/MAX(INT(Model!$L$44),1),Model!$L43),Model!$C40)) -> 1 | R114: =IF(Model!$L$43>Model!$C$40,IF(ISNUMBER(Model!$L$43),MIN(Q114-(Model!$C$40-Model!$L$43)/MAX(INT(Model!$L$44),1),Model!$L43),Model!$C40),IF(ISNUMBER(Model!$L$43),MAX(Q114-(Model!$C$40-Model!$L$43)/MAX(INT(Model!$L$44),1),Model!$L43),Model!$C40)) -> 1 | S114: =IF(Model!$L$43>Model!$C$40,IF(ISNUMBER(Model!$L$43),MIN(R114-(Model!$C$40-Model!$L$43)/MAX(INT(Model!$L$44),1),Model!$L43),Model!$C40),IF(ISNUMBER(Model!$L$43),MAX(R114-(Model!$C$40-Model!$L$43)/MAX(INT(Model!$L$44),1),Model!$L43),Model!$C40)) -> 1 | T114: =IF(Model!$L$43>Model!$C$40,IF(ISNUMBER(Model!$L$43),MIN(S114-(Model!$C$40-Model!$L$43)/MAX(INT(Model!$L$44),1),Model!$L43),Model!$C40),IF(ISNUMBER(Model!$L$43),MAX(S114-(Model!$C$40-Model!$L$43)/MAX(INT(Model!$L$44),1),Model!$L43),Model!$C40)) -> 1 | U114: =IF(Model!$L$43>Model!$C$40,IF(ISNUMBER(Model!$L$43),MIN(T114-(Model!$C$40-Model!$L$43)/MAX(INT(Model!$L$44),1),Model!$L43),Model!$C40),IF(ISNUMBER(Model!$L$43),MAX(T114-(Model!$C$40-Model!$L$43)/MAX(INT(Model!$L$44),1),Model!$L43),Model!$C40)) -> 1 | V114: =IF(Model!$L$43>Model!$C$40,IF(ISNUMBER(Model!$L$43),MIN(U114-(Model!$C$40-Model!$L$43)/MAX(INT(Model!$L$44),1),Model!$L43),Model!$C40),IF(ISNUMBER(Model!$L$43),MAX(U114-(Model!$C$40-Model!$L$43)/MAX(INT(Model!$L$44),1),Model!$L43),Model!$C40)) -> 1 | W114: =IF(Model!$L$43>Model!$C$40,IF(ISNUMBER(Model!$L$43),MIN(V114-(Model!$C$40-Model!$L$43)/MAX(INT(Model!$L$44),1),Model!$L43),Model!$C40),IF(ISNUMBER(Model!$L$43),MAX(V114-(Model!$C$40-Model!$L$43)/MAX(INT(Model!$L$44),1),Model!$L43),Model!$C40)) -> 1 | X114: =IF(Model!$L$43>Model!$C$40,IF(ISNUMBER(Model!$L$43),MIN(W114-(Model!$C$40-Model!$L$43)/MAX(INT(Model!$L$44),1),Model!$L43),Model!$C40),IF(ISNUMBER(Model!$L$43),MAX(W114-(Model!$C$40-Model!$L$43)/MAX(INT(Model!$L$44),1),Model!$L43),Model!$C40)) -> 1 | Y114: =IF(Model!$L$43>Model!$C$40,IF(ISNUMBER(Model!$L$43),MIN(X114-(Model!$C$40-Model!$L$43)/MAX(INT(Model!$L$44),1),Model!$L43),Model!$C40),IF(ISNUMBER(Model!$L$43),MAX(X114-(Model!$C$40-Model!$L$43)/MAX(INT(Model!$L$44),1),Model!$L43),Model!$C40)) -> 1 | Z114: =IF(Model!$L$43>Model!$C$40,IF(ISNUMBER(Model!$L$43),MIN(Y114-(Model!$C$40-Model!$L$43)/MAX(INT(Model!$L$44),1),Model!$L43),Model!$C40),IF(ISNUMBER(Model!$L$43),MAX(Y114-(Model!$C$40-Model!$L$43)/MAX(INT(Model!$L$44),1),Model!$L43),Model!$C40)) -> 1
A115: Tomgang boliger | C115: =IF($C$103+SUM($C$110:C111)-SUM($C$112:C112)<C69,C114*($C$103+SUM($C$110:C111)-SUM($C$112:C112))/($B$19*12),0) -> 0 | D115: =IF($C$103+SUM($C$110:D111)-SUM($C$112:D112)<D69,D114*($C$103+SUM($C$110:D111)-SUM($C$112:D112))/($B$19*12),0) -> 0 | E115: =IF($C$103+SUM($C$110:E111)-SUM($C$112:E112)<E69,E114*($C$103+SUM($C$110:E111)-SUM($C$112:E112))/($B$19*12),0) -> 0 | F115: =IF($C$103+SUM($C$110:F111)-SUM($C$112:F112)<F69,F114*($C$103+SUM($C$110:F111)-SUM($C$112:F112))/($B$19*12),0) -> 0 | G115: =IF($C$103+SUM($C$110:G111)-SUM($C$112:G112)<G69,G114*($C$103+SUM($C$110:G111)-SUM($C$112:G112))/($B$19*12),0) -> 0 | H115: =IF($C$103+SUM($C$110:H111)-SUM($C$112:H112)<H69,H114*($C$103+SUM($C$110:H111)-SUM($C$112:H112))/($B$19*12),0) -> 0 | I115: =IF($C$103+SUM($C$110:I111)-SUM($C$112:I112)<I69,I114*($C$103+SUM($C$110:I111)-SUM($C$112:I112))/($B$19*12),0) -> 0 | J115: =IF($C$103+SUM($C$110:J111)-SUM($C$112:J112)<J69,J114*($C$103+SUM($C$110:J111)-SUM($C$112:J112))/($B$19*12),0) -> 0 | K115: =IF($C$103+SUM($C$110:K111)-SUM($C$112:K112)<K69,K114*($C$103+SUM($C$110:K111)-SUM($C$112:K112))/($B$19*12),0) -> 0 | L115: =IF($C$103+SUM($C$110:L111)-SUM($C$112:L112)<L69,L114*($C$103+SUM($C$110:L111)-SUM($C$112:L112))/($B$19*12),0) -> 0 | M115: =IF($C$103+SUM($C$110:M111)-SUM($C$112:M112)<M69,M114*($C$103+SUM($C$110:M111)-SUM($C$112:M112))/($B$19*12),0) -> 0 | N115: =IF($C$103+SUM($C$110:N111)-SUM($C$112:N112)<N69,N114*($C$103+SUM($C$110:N111)-SUM($C$112:N112))/($B$19*12),0) -> 98.61111111 | O115: =IF($C$103+SUM($C$110:O111)-SUM($C$112:O112)<O69,O114*($C$103+SUM($C$110:O111)-SUM($C$112:O112))/($B$19*12),0) -> 98.61111111 | P115: =IF($C$103+SUM($C$110:P111)-SUM($C$112:P112)<P69,P114*($C$103+SUM($C$110:P111)-SUM($C$112:P112))/($B$19*12),0) -> 98.61111111 | Q115: =IF($C$103+SUM($C$110:Q111)-SUM($C$112:Q112)<Q69,Q114*($C$103+SUM($C$110:Q111)-SUM($C$112:Q112))/($B$19*12),0) -> 98.61111111 | R115: =IF($C$103+SUM($C$110:R111)-SUM($C$112:R112)<R69,R114*($C$103+SUM($C$110:R111)-SUM($C$112:R112))/($B$19*12),0) -> 98.61111111 | S115: =IF($C$103+SUM($C$110:S111)-SUM($C$112:S112)<S69,S114*($C$103+SUM($C$110:S111)-SUM($C$112:S112))/($B$19*12),0) -> 98.61111111 | T115: =IF($C$103+SUM($C$110:T111)-SUM($C$112:T112)<T69,T114*($C$103+SUM($C$110:T111)-SUM($C$112:T112))/($B$19*12),0) -> 98.61111111 | U115: =IF($C$103+SUM($C$110:U111)-SUM($C$112:U112)<U69,U114*($C$103+SUM($C$110:U111)-SUM($C$112:U112))/($B$19*12),0) -> 98.61111111 | V115: =IF($C$103+SUM($C$110:V111)-SUM($C$112:V112)<V69,V114*($C$103+SUM($C$110:V111)-SUM($C$112:V112))/($B$19*12),0) -> 98.61111111 | W115: =IF($C$103+SUM($C$110:W111)-SUM($C$112:W112)<W69,W114*($C$103+SUM($C$110:W111)-SUM($C$112:W112))/($B$19*12),0) -> 98.61111111 | X115: =IF($C$103+SUM($C$110:X111)-SUM($C$112:X112)<X69,X114*($C$103+SUM($C$110:X111)-SUM($C$112:X112))/($B$19*12),0) -> 98.61111111 | Y115: =IF($C$103+SUM($C$110:Y111)-SUM($C$112:Y112)<Y69,Y114*($C$103+SUM($C$110:Y111)-SUM($C$112:Y112))/($B$19*12),0) -> 98.61111111 | Z115: =IF($C$103+SUM($C$110:Z111)-SUM($C$112:Z112)<Z69,Z114*($C$103+SUM($C$110:Z111)-SUM($C$112:Z112))/($B$19*12),0) -> 98.61111111
C116: =MIN(C69,$C$103+SUM(C110:C112))/Model!$C$24*Beregning!C114 -> 94.30555556 | D116: =MIN(D69,$C$103+SUM(D110:D112))/Model!$C$24*Beregning!D114 -> 93.98257337 | E116: =MIN(E69,$C$103+SUM(E110:E112))/Model!$C$24*Beregning!E114 -> 93.76884861 | F116: =MIN(F69,$C$103+SUM(F110:F112))/Model!$C$24*Beregning!F114 -> 93.20493281 | G116: =MIN(G69,$C$103+SUM(G110:G112))/Model!$C$24*Beregning!G114 -> 93.63168131 | H116: =MIN(H69,$C$103+SUM(H110:H112))/Model!$C$24*Beregning!H114 -> 94.01971785 | I116: =MIN(I69,$C$103+SUM(I110:I112))/Model!$C$24*Beregning!I114 -> 94.8825012 | J116: =MIN(J69,$C$103+SUM(J110:J112))/Model!$C$24*Beregning!J114 -> 95.99063838 | K116: =MIN(K69,$C$103+SUM(K110:K112))/Model!$C$24*Beregning!K114 -> 96.66802527 | L116: =MIN(L69,$C$103+SUM(L110:L112))/Model!$C$24*Beregning!L114 -> 97.66622215 | M116: =MIN(M69,$C$103+SUM(M110:M112))/Model!$C$24*Beregning!M114 -> 98.26603538 | N116: =MIN(N69,$C$103+SUM(N110:N112))/Model!$C$24*Beregning!N114 -> 98.61111111 | O116: =MIN(O69,$C$103+SUM(O110:O112))/Model!$C$24*Beregning!O114 -> 98.61111111 | P116: =MIN(P69,$C$103+SUM(P110:P112))/Model!$C$24*Beregning!P114 -> 98.61111111 | Q116: =MIN(Q69,$C$103+SUM(Q110:Q112))/Model!$C$24*Beregning!Q114 -> 98.61111111 | R116: =MIN(R69,$C$103+SUM(R110:R112))/Model!$C$24*Beregning!R114 -> 98.61111111 | S116: =MIN(S69,$C$103+SUM(S110:S112))/Model!$C$24*Beregning!S114 -> 98.61111111 | T116: =MIN(T69,$C$103+SUM(T110:T112))/Model!$C$24*Beregning!T114 -> 98.61111111 | U116: =MIN(U69,$C$103+SUM(U110:U112))/Model!$C$24*Beregning!U114 -> 98.61111111 | V116: =MIN(V69,$C$103+SUM(V110:V112))/Model!$C$24*Beregning!V114 -> 98.61111111 | W116: =MIN(W69,$C$103+SUM(W110:W112))/Model!$C$24*Beregning!W114 -> 98.61111111 | X116: =MIN(X69,$C$103+SUM(X110:X112))/Model!$C$24*Beregning!X114 -> 98.61111111 | Y116: =MIN(Y69,$C$103+SUM(Y110:Y112))/Model!$C$24*Beregning!Y114 -> 98.61111111 | Z116: =MIN(Z69,$C$103+SUM(Z110:Z112))/Model!$C$24*Beregning!Z114 -> 98.61111111
A119: Ventetid | B119: Personer på venteliste i alt | C119: Personer visiteret til den generelle venteliste | D119: Personer der vælger frit valg | E119: Andel af personer på venteliste i alt, der vælger frit valg, procent | F119: Andel af personer på generel venteliste | G119: Gennemsnitlig ventetid til plejebolig for personer på generel venteliste, som har fået tilbudt bolig i året, måneder
A120: =Model!$C$4 -> København | B120: =VLOOKUP($A$120,'Registerdata ventetid'!$A$6:$H$103, 2, FALSE) -> 1246 | C120: =VLOOKUP($A$120,'Registerdata ventetid'!$A$6:$H$103, 3, FALSE) -> 470 | D120: =VLOOKUP($A$120,'Registerdata ventetid'!$A$6:$H$103, 4, FALSE) -> 776 | E120: =VLOOKUP($A$120,'Registerdata ventetid'!$A$6:$H$103, 5, FALSE) -> 62 | F120: =VLOOKUP($A$120,'Registerdata ventetid'!$A$6:$H$103, 6, FALSE) -> 0.3772070626 | G120: =VLOOKUP($A$120,'Registerdata ventetid'!$A$6:$H$103, 7, FALSE) -> 0.197260274

Sheet Registerdata indskrevne
A1: Opdateret d. 14/02 2023 af MAKA
A2: Kilde: DST, Tabel RESI01 | D2: 2016 | H2: 2017 | L2: 2018 | P2: 2019 | T2: 2020 | X2: 2021 | AB2: 2022
B3: Kommune | C3: Aldersgruppe | D3: Plejehjem | E3: Plejeboliger fortrinsvis til | F3: Friplejeboliger (2009-) | G3: Andre boliger for ældre | H3: Plejehjem | I3: pelejeboliger fortrinsvis ældre (2006-) | J3: Friplejeboliger (2009-) | K3: Andre boliger for ældre | L3: Plejehjem | M3: Plejeboliger fortrinsvis til ældre (2006-) | N3: Friplejeboliger (2009-) | O3: Andre boliger ældre | P3: Plejehjem | Q3: Plejeboliger fortrinsvis til ældre (2006-) | R3: Friplejeboliger (2009-) | S3: Andre boliger ældre | T3: Plejehjem | U3: Plejeboliger fortrinsvis til ældre (2006-) | V3: Friplejeboliger (2009-) | W3: Andre boliger ældre | X3: Plejehjem | Y3: Plejeboliger fortrinsvis til ældre (2006-) | Z3: Friplejeboliger (2009-) | AA3: Andre boliger ældre | AB3: Plejehjem | AC3: Plejeboliger fortrinsvis til ældre (2006-) | AD3: Friplejeboliger (2009-) | AE3: Andre boliger ældre
A4: 1 | B4: København | C4: under 60 år | D4: 54 | E4: 36 | F4: 6 | G4: 0 | H4: 35 | I4: 38 | J4: 1 | K4: 0 | L4: 28 | M4: 27 | N4: 1 | O4: 0 | P4: 24 | Q4: 40 | R4: 7 | S4: 0 | T4: 20 | U4: 38 | V4: 12 | W4: 0 | X4: 20 | Y4: 37 | Z4: 10 | AA4: 0 | AB4: 17 | AC4: 33 | AD4: 0 | AE4: 0
A5: 2 | B5: Frederiksberg | C5: under 60 år | D5: 5 | E5: 9 | F5: 0 | G5: 0 | H5: 3 | I5: 6 | J5: 0 | K5: 0 | L5: 2 | M5: 8 | N5: 0 | O5: 0 | P5: 1 | Q5: 8 | R5: 0 | S5: 0 | T5: 0 | U5: 11 | V5: 0 | W5: 0 | X5: 2 | Y5: 9 | Z5: 0 | AA5: 0 | AB5: 0 | AC5: 11 | AD5: 0 | AE5: 0
A6: 3 | B6: Dragør | C6: under 60 år | D6: 0 | E6: 4 | F6: 0 | G6: 0 | H6: 0 | I6: 3 | J6: 0 | K6: 0 | L6: 0 | M6: 1 | N6: 0 | O6: 0 | P6: 0 | Q6: 0 | R6: 0 | S6: 0 | T6: 0 | U6: 1 | V6: 0 | W6: 0 | X6: 0 | Y6: 1 | Z6: 0 | AA6: 0 | AB6: 0 | AC6: 0 | AD6: 0 | AE6: 0
A7: 4 | B7: Tårnby | C7: under 60 år | D7: 7 | E7: 1 | F7: 0 | G7: 0 | H7: 4 | I7: 2 | J7: 0 | K7: 0 | L7: 3 | M7: 1 | N7: 0 | O7: 0 | P7: 3 | Q7: 1 | R7: 0 | S7: 0 | T7: 4 | U7: 2 | V7: 0 | W7: 0 | X7: 3 | Y7: 3 | Z7: 0 | AA7: 0 | AB7: 2 | AC7: 2 | AD7: 0 | AE7: 0
A8: 5 | B8: Albertslund | C8: under 60 år | D8: 0 | E8: 3 | F8: 0 | G8: 0 | H8: 0 | I8: 3 | J8: 0 | K8: 0 | L8: 0 | M8: 3 | N8: 0 | O8: 0 | P8: 0 | Q8: 5 | R8: 0 | S8: 0 | T8: 0 | U8: 3 | V8: 0 | W8: 0 | X8: 0 | Y8: 6 | Z8: 0 | AA8: 0 | AB8: 0 | AC8: 5 | AD8: 0 | AE8: 0
A9: 6 | B9: Ballerup | C9: under 60 år | D9: 0 | E9: 4 | F9: 0 | G9: 0 | H9: 0 | I9: 5 | J9: 0 | K9: 0 | L9: 0 | M9: 0 | N9: 0 | O9: 0 | P9: 0 | Q9: 7 | R9: 0 | S9: 0 | T9: 0 | U9: 2 | V9: 0 | W9: 0 | X9: 0 | Y9: 2 | Z9: 0 | AA9: 0 | AB9: 0 | AC9: 5 | AD9: 0 | AE9: 0
A10: 7 | B10: Brøndby | C10: under 60 år | D10: 0 | E10: 14 | F10: 0 | G10: 0 | H10: 0 | I10: 15 | J10: 0 | K10: 0 | L10: 0 | M10: 10 | N10: 0 | O10: 0 | P10: 0 | Q10: 27 | R10: 0 | S10: 0 | T10: 0 | U10: 8 | V10: 0 | W10: 0 | X10: 0 | Y10: 1 | Z10: 0 | AA10: 0 | AB10: 0 | AC10: 0 | AD10: 0 | AE10: 0
A11: 8 | B11: Gentofte | C11: under 60 år | D11: 0 | E11: 12 | F11: 0 | G11: 0 | H11: 0 | I11: 15 | J11: 0 | K11: 0 | L11: 0 | M11: 11 | N11: 0 | O11: 0 | P11: 1 | Q11: 10 | R11: 0 | S11: 0 | T11: 1 | U11: 15 | V11: 0 | W11: 0 | X11: 0 | Y11: 11 | Z11: 0 | AA11: 0 | AB11: 0 | AC11: 8 | AD11: 0 | AE11: 0
A12: 9 | B12: Gladsaxe | C12: under 60 år | D12: 0 | E12: 9 | F12: 1 | G12: 0 | H12: 0 | I12: 29 | J12: 0 | K12: 0 | L12: 0 | M12: 14 | N12: 0 | O12: 0 | P12: 0 | Q12: 17 | R12: 0 | S12: 0 | T12: 0 | U12: 9 | V12: 0 | W12: 0 | X12: 0 | Y12: 11 | Z12: 0 | AA12: 0 | AB12: 0 | AC12: 12 | AD12: 0 | AE12: 0
A13: 10 | B13: Glostrup | C13: under 60 år | D13: 0 | E13: 1 | F13: 0 | G13: 0 | H13: 0 | I13: 2 | J13: 0 | K13: 0 | L13: 0 | M13: 1 | N13: 0 | O13: 0 | P13: 0 | Q13: 2 | R13: 0 | S13: 0 | T13: 0 | U13: 4 | V13: 0 | W13: 0 | X13: 0 | Y13: 5 | Z13: 0 | AA13: 0 | AB13: 0 | AC13: 2 | AD13: 0 | AE13: 0
A14: 11 | B14: Herlev | C14: under 60 år | D14: 0 | E14: 6 | F14: 0 | G14: 0 | H14: 0 | I14: 15 | J14: 0 | K14: 0 | L14: 0 | M14: 15 | N14: 0 | O14: 0 | P14: 0 | Q14: 15 | R14: 0 | S14: 0 | T14: 0 | U14: 8 | V14: 0 | W14: 0 | X14: 0 | Y14: 5 | Z14: 0 | AA14: 0 | AB14: 0 | AC14: 4 | AD14: 0 | AE14: 0
A15: 12 | B15: Hvidovre | C15: under 60 år | D15: 0 | E15: 19 | F15: 0 | G15: 0 | H15: 1 | I15: 15 | J15: 0 | K15: 0 | L15: 0 | M15: 23 | N15: 1 | O15: 0 | P15: 0 | Q15: 23 | R15: 1 | S15: 0 | T15: 0 | U15: 5 | V15: 0 | W15: 0 | X15: 1 | Y15: 6 | Z15: 0 | AA15: 0 | AB15: 0 | AC15: 7 | AD15: 0 | AE15: 0
A16: 13 | B16: Høje-Taastrup | C16: under 60 år | D16: 0 | E16: 0 | F16: 0 | G16: 0 | H16: 0 | I16: 1 | J16: 0 | K16: 0 | L16: 0 | M16: 1 | N16: 0 | O16: 0 | P16: 0 | Q16: 1 | R16: 0 | S16: 0 | T16: 0 | U16: 3 | V16: 0 | W16: 0 | X16: 0 | Y16: 1 | Z16: 0 | AA16: 0 | AB16: 0 | AC16: 1 | AD16: 0 | AE16: 0
A17: 14 | B17: Ishøj | C17: under 60 år | D17: 0 | E17: 5 | F17: 0 | G17: 0 | H17: 0 | I17: 4 | J17: 0 | K17: 0 | L17: 0 | M17: 1 | N17: 0 | O17: 0 | P17: 0 | Q17: 7 | R17: 0 | S17: 0 | T17: 0 | U17: 10 | V17: 0 | W17: 0 | X17: 0 | Y17: 4 | Z17: 0 | AA17: 0 | AB17: 0 | AC17: 10 | AD17: 0 | AE17: 0
A18: 15 | B18: Lyngby-Taarbæk | C18: under 60 år | D18: 3 | E18: 12 | F18: 0 | G18: 0 | H18: 1 | I18: 6 | J18: 0 | K18: 0 | L18: 4 | M18: 9 | N18: 0 | O18: 0 | P18: 4 | Q18: 6 | R18: 0 | S18: 0 | T18: 0 | U18: 2 | V18: 0 | W18: 0 | X18: 0 | Y18: 4 | Z18: 0 | AA18: 0 | AB18: 0 | AC18: 3 | AD18: 0 | AE18: 0
A19: 16 | B19: Rødovre | C19: under 60 år | D19: 0 | E19: 2 | F19: 0 | G19: 0 | H19: 0 | I19: 2 | J19: 0 | K19: 0 | L19: 0 | M19: 1 | N19: 0 | O19: 0 | P19: 0 | Q19: 1 | R19: 0 | S19: 0 | T19: 0 | U19: 1 | V19: 0 | W19: 0 | X19: 0 | Y19: 2 | Z19: 0 | AA19: 0 | AB19: 0 | AC19: 2 | AD19: 0 | AE19: 0
A20: 17 | B20: Vallensbæk | C20: under 60 år | D20: 0 | E20: 0 | F20: 0 | G20: 0 | H20: 0 | I20: 1 | J20: 0 | K20: 0 | L20: 0 | M20: 0 | N20: 0 | O20: 0 | P20: 0 | Q20: 0 | R20: 0 | S20: 0 | T20: 0 | U20: 0 | V20: 0 | W20: 0 | X20: 0 | Y20: 0 | Z20: 0 | AA20: 0 | AB20: 0 | AC20: 0 | AD20: 0 | AE20: 0
A21: 18 | B21: Allerød | C21: under 60 år | D21: 0 | E21: 4 | F21: 0 | G21: 0 | H21: 0 | I21: 1 | J21: 0 | K21: 0 | L21: 0 | M21: 1 | N21: 0 | O21: 0 | P21: 0 | Q21: 1 | R21: 0 | S21: 0 | T21: 0 | U21: 1 | V21: 0 | W21: 0 | X21: 0 | Y21: 2 | Z21: 0 | AA21: 0 | AB21: 0 | AC21: 4 | AD21: 0 | AE21: 0
A22: 19 | B22: Egedal | C22: under 60 år | D22: 0 | E22: 2 | F22: 0 | G22: 0 | H22: 0 | I22: 2 | J22: 0 | K22: 0 | L22: 0 | M22: 2 | N22: 0 | O22: 0 | P22: 0 | Q22: 1 | R22: 0 | S22: 0 | T22: 0 | U22: 4 | V22: 0 | W22: 0 | X22: 0 | Y22: 3 | Z22: 0 | AA22: 0 | AB22: 0 | AC22: 2 | AD22: 0 | AE22: 0
A23: 20 | B23: Fredensborg | C23: under 60 år | D23: 0 | E23: 4 | F23: 0 | G23: 0 | H23: 0 | I23: 4 | J23: 0 | K23: 0 | L23: 0 | M23: 5 | N23: 0 | O23: 0 | P23: 0 | Q23: 5 | R23: 0 | S23: 0 | T23: 0 | U23: 7 | V23: 0 | W23: 0 | X23: 0 | Y23: 7 | Z23: 0 | AA23: 0 | AB23: 0 | AC23: 5 | AD23: 0 | AE23: 0
A24: 21 | B24: Frederikssund | C24: under 60 år | D24: 0 | E24: 8 | F24: 0 | G24: 0 | H24: 0 | I24: 6 | J24: 0 | K24: 0 | L24: 0 | M24: 7 | N24: 0 | O24: 0 | P24: 0 | Q24: 7 | R24: 0 | S24: 0 | T24: 0 | U24: 5 | V24: 0 | W24: 0 | X24: 0 | Y24: 3 | Z24: 1 | AA24: 0 | AB24: 0 | AC24: 5 | AD24: 0 | AE24: 0
A25: 22 | B25: Furesø | C25: under 60 år | D25: 4 | E25: 6 | F25: 0 | G25: 0 | H25: 3 | I25: 7 | J25: 0 | K25: 0 | L25: 0 | M25: 8 | N25: 0 | O25: 0 | P25: 0 | Q25: 8 | R25: 0 | S25: 0 | T25: 0 | U25: 9 | V25: 0 | W25: 0 | X25: 0 | Y25: 10 | Z25: 0 | AA25: 0 | AB25: 0 | AC25: 7 | AD25: 0 | AE25: 0
A26: 23 | B26: Gribskov | C26: under 60 år | D26: 0 | E26: 7 | F26: 0 | G26: 0 | H26: 0 | I26: 9 | J26: 0 | K26: 0 | L26: 0 | M26: 6 | N26: 0 | O26: 0 | P26: 0 | Q26: 7 | R26: 0 | S26: 0 | T26: 0 | U26: 2 | V26: 0 | W26: 0 | X26: 0 | Y26: 1 | Z26: 0 | AA26: 0 | AB26: 0 | AC26: 2 | AD26: 0 | AE26: 0
A27: 24 | B27: Halsnæs | C27: under 60 år | D27: 0 | E27: 6 | F27: 0 | G27: 0 | H27: 0 | I27: 6 | J27: 0 | K27: 0 | L27: 0 | M27: 9 | N27: 0 | O27: 0 | P27: 0 | Q27: 12 | R27: 0 | S27: 0 | T27: 0 | U27: 6 | V27: 0 | W27: 0 | X27: 0 | Y27: 7 | Z27: 0 | AA27: 0 | AB27: 0 | AC27: 7 | AD27: 0 | AE27: 0
A28: 25 | B28: Helsingør | C28: under 60 år | D28: 3 | E28: 5 | F28: 0 | G28: 0 | H28: 9 | I28: 11 | J28: 0 | K28: 0 | L28: 9 | M28: 11 | N28: 0 | O28: 0 | P28: 1 | Q28: 10 | R28: 0 | S28: 0 | T28: 4 | U28: 6 | V28: 0 | W28: 0 | X28: 1 | Y28: 10 | Z28: 0 | AA28: 0 | AB28: 0 | AC28: 12 | AD28: 0 | AE28: 0
A29: 26 | B29: Hillerød | C29: under 60 år | D29: 0 | E29: 5 | F29: 0 | G29: 0 | H29: 0 | I29: 4 | J29: 0 | K29: 0 | L29: 0 | M29: 10 | N29: 0 | O29: 0 | P29: 0 | Q29: 12 | R29: 0 | S29: 0 | T29: 0 | U29: 4 | V29: 0 | W29: 0 | X29: 0 | Y29: 5 | Z29: 0 | AA29: 0 | AB29: 0 | AC29: 5 | AD29: 0 | AE29: 0
A30: 27 | B30: Hørsholm | C30: under 60 år | D30: 0 | E30: 2 | F30: 0 | G30: 0 | H30: 1 | I30: 2 | J30: 0 | K30: 0 | L30: 1 | M30: 3 | N30: 0 | O30: 0 | P30: 2 | Q30: 6 | R30: 0 | S30: 0 | T30: 0 | U30: 5 | V30: 0 | W30: 0 | X30: 0 | Y30: 7 | Z30: 0 | AA30: 0 | AB30: 0 | AC30: 3 | AD30: 0 | AE30: 0
A31: 28 | B31: Rudersdal | C31: under 60 år | D31: 1 | E31: 5 | F31: 0 | G31: 0 | H31: 0 | I31: 8 | J31: 0 | K31: 0 | L31: 2 | M31: 8 | N31: 0 | O31: 0 | P31: 3 | Q31: 13 | R31: 0 | S31: 0 | T31: 0 | U31: 6 | V31: 0 | W31: 0 | X31: 0 | Y31: 10 | Z31: 0 | AA31: 0 | AB31: 0 | AC31: 7 | AD31: 1 | AE31: 0
A32: 29 | B32: Bornholm | C32: under 60 år | D32: 2 | E32: 18 | F32: 0 | G32: 0 | H32: 2 | I32: 21 | J32: 0 | K32: 0 | L32: 3 | M32: 23 | N32: 0 | O32: 0 | P32: 2 | Q32: 20 | R32: 0 | S32: 0 | T32: 2 | U32: 18 | V32: 0 | W32: 0 | X32: 0 | Y32: 17 | Z32: 0 | AA32: 0 | AB32: 3 | AC32: 18 | AD32: 0 | AE32: 0
A33: 30 | B33: Greve | C33: under 60 år | D33: 0 | E33: 8 | F33: 0 | G33: 0 | H33: 0 | I33: 9 | J33: 0 | K33: 0 | L33: 0 | M33: 11 | N33: 0 | O33: 0 | P33: 0 | Q33: 7 | R33: 0 | S33: 0 | T33: 0 | U33: 7 | V33: 0 | W33: 0 | X33: 0 | Y33: 10 | Z33: 0 | AA33: 0 | AB33: 0 | AC33: 11 | AD33: 0 | AE33: 0
A34: 31 | B34: Køge | C34: under 60 år | D34: 1 | E34: 16 | F34: 0 | G34: 0 | H34: 1 | I34: 12 | J34: 0 | K34: 0 | L34: 2 | M34: 14 | N34: 0 | O34: 0 | P34: 1 | Q34: 13 | R34: 0 | S34: 0 | T34: 2 | U34: 16 | V34: 0 | W34: 0 | X34: 3 | Y34: 17 | Z34: 0 | AA34: 0 | AB34: 2 | AC34: 15 | AD34: 0 | AE34: 0
A35: 32 | B35: Lejre | C35: under 60 år | D35: 0 | E35: 3 | F35: 0 | G35: 0 | H35: 0 | I35: 4 | J35: 0 | K35: 0 | L35: 0 | M35: 5 | N35: 0 | O35: 0 | P35: 0 | Q35: 5 | R35: 0 | S35: 0 | T35: 0 | U35: 5 | V35: 0 | W35: 0 | X35: 0 | Y35: 5 | Z35: 0 | AA35: 0 | AB35: 0 | AC35: 3 | AD35: 0 | AE35: 0
A36: 33 | B36: Roskilde | C36: under 60 år | D36: 8 | E36: 7 | F36: 0 | G36: 0 | H36: 7 | I36: 5 | J36: 0 | K36: 0 | L36: 5 | M36: 4 | N36: 0 | O36: 0 | P36: 4 | Q36: 5 | R36: 0 | S36: 0 | T36: 4 | U36: 5 | V36: 0 | W36: 0 | X36: 0 | Y36: 1 | Z36: 0 | AA36: 0 | AB36: 0 | AC36: 10 | AD36: 0 | AE36: 0
A37: 34 | B37: Solrød | C37: under 60 år | D37: 0 | E37: 3 | F37: 0 | G37: 0 | H37: 0 | I37: 3 | J37: 0 | K37: 0 | L37: 0 | M37: 1 | N37: 0 | O37: 0 | P37: 0 | Q37: 1 | R37: 0 | S37: 0 | T37: 0 | U37: 4 | V37: 0 | W37: 0 | X37: 0 | Y37: 3 | Z37: 0 | AA37: 0 | AB37: 0 | AC37: 4 | AD37: 0 | AE37: 0
A38: 35 | B38: Faxe | C38: under 60 år | D38: 0 | E38: 3 | F38: 0 | G38: 0 | H38: 0 | I38: 2 | J38: 0 | K38: 0 | L38: 0 | M38: 3 | N38: 0 | O38: 0 | P38: 0 | Q38: 4 | R38: 0 | S38: 0 | T38: 0 | U38: 2 | V38: 0 | W38: 0 | X38: 0 | Y38: 2 | Z38: 0 | AA38: 0 | AB38: 0 | AC38: 3 | AD38: 0 | AE38: 0
A39: 36 | B39: Guldborgsund | C39: under 60 år | D39: 1 | E39: 15 | F39: 0 | G39: 0 | H39: 1 | I39: 7 | J39: 0 | K39: 0 | L39: 1 | M39: 7 | N39: 1 | O39: 0 | P39: 0 | Q39: 8 | R39: 1 | S39: 0 | T39: 0 | U39: 6 | V39: 1 | W39: 0 | X39: 1 | Y39: 7 | Z39: 1 | AA39: 0 | AB39: 0 | AC39: 5 | AD39: 1 | AE39: 0
A40: 37 | B40: Holbæk | C40: under 60 år | D40: 2 | E40: 6 | F40: 4 | G40: 0 | H40: 0 | I40: 10 | J40: 0 | K40: 0 | L40: 0 | M40: 5 | N40: 0 | O40: 0 | P40: 0 | Q40: 6 | R40: 0 | S40: 0 | T40: 0 | U40: 5 | V40: 0 | W40: 0 | X40: 0 | Y40: 6 | Z40: 0 | AA40: 0 | AB40: 0 | AC40: 7 | AD40: 0 | AE40: 0
A41: 38 | B41: Kalundborg | C41: under 60 år | D41: 0 | E41: 3 | F41: 0 | G41: 0 | H41: 0 | I41: 33 | J41: 0 | K41: 0 | L41: 0 | M41: 1 | N41: 0 | O41: 0 | P41: 0 | Q41: 7 | R41: 0 | S41: 0 | T41: 0 | U41: 6 | V41: 0 | W41: 0 | X41: 0 | Y41: 6 | Z41: 0 | AA41: 0 | AB41: 0 | AC41: 4 | AD41: 0 | AE41: 0
A42: 39 | B42: Lolland | C42: under 60 år | D42: 0 | E42: 10 | F42: 0 | G42: 0 | H42: 0 | I42: 8 | J42: 0 | K42: 0 | L42: 0 | M42: 10 | N42: 0 | O42: 0 | P42: 0 | Q42: 4 | R42: 1 | S42: 0 | T42: 0 | U42: 4 | V42: 1 | W42: 0 | X42: 0 | Y42: 5 | Z42: 0 | AA42: 0 | AB42: 0 | AC42: 6 | AD42: 0 | AE42: 0
A43: 40 | B43: Næstved | C43: under 60 år | D43: 0 | E43: 9 | F43: 0 | G43: 0 | H43: 0 | I43: 6 | J43: 0 | K43: 0 | L43: 0 | M43: 22 | N43: 0 | O43: 0 | P43: 0 | Q43: 22 | R43: 0 | S43: 0 | T43: 0 | U43: 16 | V43: 0 | W43: 0 | X43: 0 | Y43: 14 | Z43: 0 | AA43: 0 | AB43: 0 | AC43: 12 | AD43: 0 | AE43: 0
A44: 41 | B44: Odsherred | C44: under 60 år | D44: 0 | E44: 3 | F44: 0 | G44: 0 | H44: 0 | I44: 3 | J44: 0 | K44: 0 | L44: 0 | M44: 3 | N44: 0 | O44: 0 | P44: 0 | Q44: 1 | R44: 2 | S44: 0 | T44: 0 | U44: 4 | V44: 19 | W44: 0 | X44: 0 | Y44: 4 | Z44: 19 | AA44: 0 | AB44: 0 | AC44: 3 | AD44: 20 | AE44: 0
A45: 42 | B45: Ringsted | C45: under 60 år | D45: 0 | E45: 7 | F45: 0 | G45: 0 | H45: 0 | I45: 4 | J45: 0 | K45: 0 | L45: 0 | M45: 5 | N45: 0 | O45: 0 | P45: 0 | Q45: 4 | R45: 0 | S45: 0 | T45: 0 | U45: 5 | V45: 0 | W45: 0 | X45: 0 | Y45: 6 | Z45: 0 | AA45: 0 | AB45: 0 | AC45: 6 | AD45: 0 | AE45: 0
A46: 43 | B46: Slagelse | C46: under 60 år | D46: 1 | E46: 8 | F46: 0 | G46: 0 | H46: 3 | I46: 12 | J46: 0 | K46: 0 | L46: 3 | M46: 14 | N46: 0 | O46: 0 | P46: 1 | Q46: 9 | R46: 0 | S46: 0 | T46: 2 | U46: 12 | V46: 0 | W46: 0 | X46: 1 | Y46: 13 | Z46: 0 | AA46: 0 | AB46: 2 | AC46: 14 | AD46: 0 | AE46: 0
A47: 44 | B47: Sorø | C47: under 60 år | D47: 0 | E47: 3 | F47: 0 | G47: 0 | H47: 0 | I47: 3 | J47: 0 | K47: 0 | L47: 0 | M47: 8 | N47: 0 | O47: 0 | P47: 0 | Q47: 11 | R47: 0 | S47: 0 | T47: 0 | U47: 5 | V47: 0 | W47: 0 | X47: 0 | Y47: 4 | Z47: 0 | AA47: 0 | AB47: 0 | AC47: 3 | AD47: 0 | AE47: 0
A48: 45 | B48: Stevns | C48: under 60 år | D48: 0 | E48: 3 | F48: 0 | G48: 0 | H48: 0 | I48: 3 | J48: 0 | K48: 0 | L48: 0 | M48: 2 | N48: 0 | O48: 0 | P48: 0 | Q48: 2 | R48: 0 | S48: 0 | T48: 0 | U48: 3 | V48: 0 | W48: 0 | X48: 0 | Y48: 2 | Z48: 0 | AA48: 0 | AB48: 0 | AC48: 1 | AD48: 0 | AE48: 0
A49: 46 | B49: Vordingborg | C49: under 60 år | D49: 0 | E49: 15 | F49: 0 | G49: 0 | H49: 0 | I49: 16 | J49: 0 | K49: 0 | L49: 0 | M49: 13 | N49: 0 | O49: 0 | P49: 0 | Q49: 14 | R49: 0 | S49: 0 | T49: 0 | U49: 8 | V49: 0 | W49: 0 | X49: 0 | Y49: 9 | Z49: 0 | AA49: 0 | AB49: 0 | AC49: 9 | AD49: 0 | AE49: 0
A50: 47 | B50: Assens | C50: under 60 år | D50: 0 | E50: 8 | F50: 0 | G50: 0 | H50: 0 | I50: 11 | J50: 0 | K50: 0 | L50: 0 | M50: 7 | N50: 0 | O50: 0 | P50: 0 | Q50: 6 | R50: 0 | S50: 0 | T50: 0 | U50: 7 | V50: 0 | W50: 0 | X50: 0 | Y50: 7 | Z50: 0 | AA50: 0 | AB50: 0 | AC50: 4 | AD50: 0 | AE50: 0
A51: 48 | B51: Faaborg-Midtfyn | C51: under 60 år | D51: 0 | E51: 6 | F51: 0 | G51: 0 | H51: 0 | I51: 6 | J51: 0 | K51: 0 | L51: 0 | M51: 6 | N51: 0 | O51: 0 | P51: 0 | Q51: 19 | R51: 0 | S51: 0 | T51: 0 | U51: 8 | V51: 0 | W51: 0 | X51: 0 | Y51: 7 | Z51: 0 | AA51: 0 | AB51: 0 | AC51: 4 | AD51: 0 | AE51: 0
A52: 49 | B52: Kerteminde | C52: under 60 år | D52: 0 | E52: 3 | F52: 0 | G52: 0 | H52: 0 | I52: 6 | J52: 0 | K52: 0 | L52: 0 | M52: 6 | N52: 0 | O52: 0 | P52: 0 | Q52: 9 | R52: 0 | S52: 0 | T52: 0 | U52: 6 | V52: 0 | W52: 0 | X52: 0 | Y52: 7 | Z52: 0 | AA52: 0 | AB52: 0 | AC52: 5 | AD52: 0 | AE52: 0
A53: 50 | B53: Langeland | C53: under 60 år | D53: 0 | E53: 5 | F53: 0 | G53: 0 | H53: 0 | I53: 1 | J53: 0 | K53: 0 | L53: 0 | M53: 1 | N53: 0 | O53: 0 | P53: 0 | Q53: 1 | R53: 0 | S53: 0 | T53: 0 | U53: 2 | V53: 0 | W53: 0 | X53: 0 | Y53: 2 | Z53: 0 | AA53: 0 | AB53: 0 | AC53: 9 | AD53: 0 | AE53: 0
A54: 51 | B54: Middelfart | C54: under 60 år | D54: 0 | E54: 12 | F54: 2 | G54: 0 | H54: 0 | I54: 20 | J54: 4 | K54: 0 | L54: 0 | M54: 13 | N54: 1 | O54: 0 | P54: 0 | Q54: 8 | R54: 1 | S54: 0 | T54: 0 | U54: 8 | V54: 1 | W54: 0 | X54: 0 | Y54: 5 | Z54: 2 | AA54: 0 | AB54: 0 | AC54: 9 | AD54: 0 | AE54: 0
A55: 52 | B55: Nordfyns | C55: under 60 år | D55: 0 | E55: 5 | F55: 0 | G55: 0 | H55: 0 | I55: 5 | J55: 0 | K55: 0 | L55: 0 | M55: 4 | N55: 0 | O55: 0 | P55: 0 | Q55: 3 | R55: 0 | S55: 0 | T55: 0 | U55: 3 | V55: 0 | W55: 0 | X55: 0 | Y55: 3 | Z55: 0 | AA55: 0 | AB55: 0 | AC55: 3 | AD55: 0 | AE55: 0
A56: 53 | B56: Nyborg | C56: under 60 år | D56: 0 | E56: 9 | F56: 0 | G56: 0 | H56: 0 | I56: 8 | J56: 0 | K56: 0 | L56: 0 | M56: 6 | N56: 0 | O56: 0 | P56: 0 | Q56: 4 | R56: 0 | S56: 0 | T56: 0 | U56: 2 | V56: 0 | W56: 0 | X56: 0 | Y56: 2 | Z56: 0 | AA56: 0 | AB56: 0 | AC56: 3 | AD56: 0 | AE56: 0
A57: 54 | B57: Odense | C57: under 60 år | D57: 0 | E57: 73 | F57: 2 | G57: 0 | H57: 0 | I57: 77 | J57: 3 | K57: 0 | L57: 0 | M57: 85 | N57: 3 | O57: 0 | P57: 0 | Q57: 83 | R57: 3 | S57: 0 | T57: 0 | U57: 70 | V57: 3 | W57: 0 | X57: 0 | Y57: 76 | Z57: 2 | AA57: 0 | AB57: 0 | AC57: 70 | AD57: 2 | AE57: 0
A58: 55 | B58: Svendborg | C58: under 60 år | D58: 0 | E58: 45 | F58: 0 | G58: 0 | H58: 0 | I58: 48 | J58: 0 | K58: 0 | L58: 0 | M58: 85 | N58: 0 | O58: 0 | P58: 0 | Q58: 76 | R58: 0 | S58: 0 | T58: 0 | U58: 36 | V58: 1 | W58: 0 | X58: 0 | Y58: 38 | Z58: 1 | AA58: 0 | AB58: 0 | AC58: 24 | AD58: 2 | AE58: 0
A59: 56 | B59: Ærø | C59: under 60 år | D59: 0 | E59: 1 | F59: 0 | G59: 0 | H59: 0 | I59: 2 | J59: 0 | K59: 0 | L59: 0 | M59: 2 | N59: 0 | O59: 0 | P59: 0 | Q59: 4 | R59: 0 | S59: 0 | T59: 0 | U59: 2 | V59: 0 | W59: 0 | X59: 0 | Y59: 2 | Z59: 0 | AA59: 0 | AB59: 0 | AC59: 2 | AD59: 0 | AE59: 0
A60: 57 | B60: Billund | C60: under 60 år | D60: 0 | E60: 3 | F60: 0 | G60: 0 | H60: 0 | I60: 8 | J60: 0 | K60: 0 | L60: 0 | M60: 8 | N60: 0 | O60: 0 | P60: 0 | Q60: 7 | R60: 0 | S60: 0 | T60: 0 | U60: 9 | V60: 0 | W60: 0 | X60: 0 | Y60: 6 | Z60: 0 | AA60: 0 | AB60: 0 | AC60: 6 | AD60: 0 | AE60: 0
A61: 58 | B61: Esbjerg | C61: under 60 år | D61: 7 | E61: 16 | F61: 0 | G61: 0 | H61: 7 | I61: 20 | J61: 0 | K61: 0 | L61: 6 | M61: 13 | N61: 0 | O61: 0 | P61: 6 | Q61: 13 | R61: 0 | S61: 0 | T61: 8 | U61: 14 | V61: 0 | W61: 0 | X61: 8 | Y61: 11 | Z61: 1 | AA61: 0 | AB61: 4 | AC61: 15 | AD61: 1 | AE61: 0
A62: 59 | B62: Fanø | C62: under 60 år | D62: 0 | E62: 0 | F62: 0 | G62: 0 | H62: 0 | I62: 0 | J62: 0 | K62: 0 | L62: 0 | M62: 1 | N62: 0 | O62: 0 | P62: 0 | Q62: 0 | R62: 0 | S62: 0 | T62: 0 | U62: 0 | V62: 0 | W62: 0 | X62: 0 | Y62: 0 | Z62: 0 | AA62: 0 | AB62: 0 | AC62: 1 | AD62: 0 | AE62: 0
A63: 60 | B63: Fredericia | C63: under 60 år | D63: 0 | E63: 8 | F63: 0 | G63: 0 | H63: 0 | I63: 8 | J63: 0 | K63: 0 | L63: 0 | M63: 5 | N63: 0 | O63: 0 | P63: 0 | Q63: 6 | R63: 0 | S63: 0 | T63: 0 | U63: 9 | V63: 0 | W63: 0 | X63: 0 | Y63: 7 | Z63: 0 | AA63: 0 | AB63: 0 | AC63: 10 | AD63: 0 | AE63: 0
A64: 61 | B64: Haderslev | C64: under 60 år | D64: 0 | E64: 10 | F64: 0 | G64: 0 | H64: 0 | I64: 14 | J64: 0 | K64: 0 | L64: 0 | M64: 13 | N64: 0 | O64: 0 | P64: 0 | Q64: 17 | R64: 0 | S64: 0 | T64: 0 | U64: 12 | V64: 0 | W64: 0 | X64: 0 | Y64: 14 | Z64: 0 | AA64: 0 | AB64: 0 | AC64: 14 | AD64: 0 | AE64: 0
A65: 62 | B65: Kolding | C65: under 60 år | D65: 0 | E65: 11 | F65: 0 | G65: 0 | H65: 0 | I65: 10 | J65: 0 | K65: 0 | L65: 0 | M65: 10 | N65: 0 | O65: 0 | P65: 0 | Q65: 16 | R65: 0 | S65: 0 | T65: 0 | U65: 18 | V65: 0 | W65: 0 | X65: 0 | Y65: 14 | Z65: 0 | AA65: 0 | AB65: 0 | AC65: 10 | AD65: 0 | AE65: 0
A66: 63 | B66: Sønderborg | C66: under 60 år | D66: 0 | E66: 6 | F66: 0 | G66: 0 | H66: 0 | I66: 6 | J66: 0 | K66: 0 | L66: 0 | M66: 4 | N66: 0 | O66: 0 | P66: 0 | Q66: 3 | R66: 0 | S66: 0 | T66: 0 | U66: 2 | V66: 0 | W66: 0 | X66: 0 | Y66: 5 | Z66: 0 | AA66: 0 | AB66: 0 | AC66: 2 | AD66: 0 | AE66: 0
A67: 64 | B67: Tønder | C67: under 60 år | D67: 0 | E67: 11 | F67: 0 | G67: 0 | H67: 0 | I67: 10 | J67: 0 | K67: 0 | L67: 0 | M67: 6 | N67: 0 | O67: 0 | P67: 0 | Q67: 3 | R67: 0 | S67: 0 | T67: 0 | U67: 5 | V67: 0 | W67: 0 | X67: 0 | Y67: 6 | Z67: 0 | AA67: 0 | AB67: 0 | AC67: 2 | AD67: 0 | AE67: 0
A68: 65 | B68: Varde | C68: under 60 år | D68: 0 | E68: 10 | F68: 0 | G68: 0 | H68: 0 | I68: 17 | J68: 0 | K68: 0 | L68: 0 | M68: 16 | N68: 0 | O68: 0 | P68: 0 | Q68: 12 | R68: 2 | S68: 0 | T68: 0 | U68: 14 | V68: 0 | W68: 0 | X68: 0 | Y68: 13 | Z68: 0 | AA68: 0 | AB68: 0 | AC68: 11 | AD68: 0 | AE68: 0
A69: 66 | B69: Vejen | C69: under 60 år | D69: 0 | E69: 5 | F69: 0 | G69: 0 | H69: 0 | I69: 8 | J69: 0 | K69: 0 | L69: 0 | M69: 8 | N69: 0 | O69: 0 | P69: 0 | Q69: 8 | R69: 0 | S69: 0 | T69: 0 | U69: 6 | V69: 0 | W69: 0 | X69: 0 | Y69: 6 | Z69: 0 | AA69: 0 | AB69: 0 | AC69: 11 | AD69: 0 | AE69: 0
A70: 67 | B70: Vejle | C70: under 60 år | D70: 0 | E70: 19 | F70: 6 | G70: 0 | H70: 0 | I70: 26 | J70: 7 | K70: 0 | L70: 0 | M70: 26 | N70: 7 | O70: 0 | P70: 0 | Q70: 26 | R70: 9 | S70: 0 | T70: 0 | U70: 22 | V70: 8 | W70: 0 | X70: 0 | Y70: 24 | Z70: 8 | AA70: 0 | AB70: 0 | AC70: 22 | AD70: 8 | AE70: 0
A71: 68 | B71: Aabenraa | C71: under 60 år | D71: 0 | E71: 4 | F71: 0 | G71: 0 | H71: 0 | I71: 6 | J71: 0 | K71: 0 | L71: 0 | M71: 5 | N71: 0 | O71: 0 | P71: 0 | Q71: 10 | R71: 0 | S71: 0 | T71: 0 | U71: 9 | V71: 0 | W71: 0 | X71: 0 | Y71: 11 | Z71: 0 | AA71: 0 | AB71: 0 | AC71: 9 | AD71: 1 | AE71: 0
A72: 69 | B72: Favrskov | C72: under 60 år | D72: 0 | E72: 8 | F72: 0 | G72: 0 | H72: 0 | I72: 7 | J72: 0 | K72: 0 | L72: 0 | M72: 11 | N72: 0 | O72: 0 | P72: 0 | Q72: 7 | R72: 0 | S72: 0 | T72: 0 | U72: 6 | V72: 0 | W72: 0 | X72: 0 | Y72: 5 | Z72: 0 | AA72: 0 | AB72: 0 | AC72: 4 | AD72: 0 | AE72: 0
A73: 70 | B73: Hedensted | C73: under 60 år | D73: 0 | E73: 5 | F73: 0 | G73: 0 | H73: 0 | I73: 3 | J73: 0 | K73: 0 | L73: 0 | M73: 1 | N73: 0 | O73: 0 | P73: 0 | Q73: 2 | R73: 0 | S73: 0 | T73: 0 | U73: 4 | V73: 0 | W73: 0 | X73: 0 | Y73: 2 | Z73: 0 | AA73: 0 | AB73: 0 | AC73: 3 | AD73: 0 | AE73: 0
A74: 71 | B74: Horsens | C74: under 60 år | D74: 0 | E74: 15 | F74: 0 | G74: 0 | H74: 0 | I74: 25 | J74: 0 | K74: 0 | L74: 0 | M74: 16 | N74: 0 | O74: 0 | P74: 0 | Q74: 23 | R74: 0 | S74: 0 | T74: 0 | U74: 21 | V74: 0 | W74: 0 | X74: 0 | Y74: 26 | Z74: 0 | AA74: 0 | AB74: 0 | AC74: 16 | AD74: 5 | AE74: 0
A75: 72 | B75: Norddjurs | C75: under 60 år | D75: 0 | E75: 14 | F75: 0 | G75: 0 | H75: 0 | I75: 15 | J75: 0 | K75: 0 | L75: 0 | M75: 22 | N75: 0 | O75: 0 | P75: 0 | Q75: 12 | R75: 0 | S75: 0 | T75: 0 | U75: 10 | V75: 0 | W75: 0 | X75: 0 | Y75: 10 | Z75: 0 | AA75: 0 | AB75: 0 | AC75: 5 | AD75: 0 | AE75: 0
A76: 73 | B76: Odder | C76: under 60 år | D76: 0 | E76: 2 | F76: 1 | G76: 0 | H76: 0 | I76: 2 | J76: 1 | K76: 0 | L76: 0 | M76: 2 | N76: 1 | O76: 0 | P76: 0 | Q76: 1 | R76: 0 | S76: 0 | T76: 0 | U76: 0 | V76: 0 | W76: 0 | X76: 0 | Y76: 1 | Z76: 0 | AA76: 0 | AB76: 0 | AC76: 1 | AD76: 0 | AE76: 0
A77: 74 | B77: Randers | C77: under 60 år | D77: 0 | E77: 46 | F77: 0 | G77: 0 | H77: 0 | I77: 43 | J77: 0 | K77: 0 | L77: 0 | M77: 49 | N77: 0 | O77: 0 | P77: 0 | Q77: 42 | R77: 0 | S77: 0 | T77: 0 | U77: 43 | V77: 0 | W77: 0 | X77: 0 | Y77: 47 | Z77: 0 | AA77: 0 | AB77: 0 | AC77: 47 | AD77: 0 | AE77: 0
A78: 75 | B78: Samsø | C78: under 60 år | D78: 0 | E78: 1 | F78: 0 | G78: 0 | H78: 0 | I78: 1 | J78: 0 | K78: 0 | L78: 0 | M78: 0 | N78: 0 | O78: 0 | P78: 0 | Q78: 0 | R78: 0 | S78: 0 | T78: 0 | U78: 0 | V78: 0 | W78: 0 | X78: 0 | Y78: 0 | Z78: 0 | AA78: 0 | AB78: 0 | AC78: 0 | AD78: 0 | AE78: 0
A79: 76 | B79: Silkeborg | C79: under 60 år | D79: 0 | E79: 16 | F79: 0 | G79: 0 | H79: 0 | I79: 19 | J79: 0 | K79: 0 | L79: 0 | M79: 14 | N79: 0 | O79: 0 | P79: 0 | Q79: 14 | R79: 0 | S79: 0 | T79: 0 | U79: 15 | V79: 0 | W79: 0 | X79: 0 | Y79: 13 | Z79: 0 | AA79: 0 | AB79: 0 | AC79: 17 | AD79: 0 | AE79: 0
A80: 77 | B80: Skanderborg | C80: under 60 år | D80: 1 | E80: 10 | F80: 0 | G80: 0 | H80: 0 | I80: 12 | J80: 0 | K80: 0 | L80: 1 | M80: 8 | N80: 0 | O80: 0 | P80: 1 | Q80: 6 | R80: 0 | S80: 0 | T80: 0 | U80: 15 | V80: 0 | W80: 0 | X80: 0 | Y80: 4 | Z80: 0 | AA80: 0 | AB80: 0 | AC80: 5 | AD80: 0 | AE80: 0
A81: 78 | B81: Syddjurs | C81: under 60 år | D81: 0 | E81: 7 | F81: 0 | G81: 0 | H81: 0 | I81: 6 | J81: 0 | K81: 0 | L81: 0 | M81: 1 | N81: 0 | O81: 0 | P81: 0 | Q81: 1 | R81: 0 | S81: 0 | T81: 0 | U81: 1 | V81: 0 | W81: 0 | X81: 0 | Y81: 2 | Z81: 0 | AA81: 0 | AB81: 0 | AC81: 2 | AD81: 0 | AE81: 0
A82: 79 | B82: Aarhus | C82: under 60 år | D82: 3 | E82: 61 | F82: 0 | G82: 0 | H82: 2 | I82: 46 | J82: 0 | K82: 0 | L82: 2 | M82: 52 | N82: 0 | O82: 0 | P82: 4 | Q82: 45 | R82: 0 | S82: 0 | T82: 11 | U82: 47 | V82: 0 | W82: 0 | X82: 8 | Y82: 40 | Z82: 0 | AA82: 0 | AB82: 1 | AC82: 37 | AD82: 0 | AE82: 0
A83: 80 | B83: Herning | C83: under 60 år | D83: 0 | E83: 25 | F83: 1 | G83: 0 | H83: 0 | I83: 31 | J83: 1 | K83: 0 | L83: 1 | M83: 24 | N83: 1 | O83: 0 | P83: 1 | Q83: 24 | R83: 1 | S83: 0 | T83: 0 | U83: 24 | V83: 1 | W83: 0 | X83: 0 | Y83: 24 | Z83: 1 | AA83: 0 | AB83: 0 | AC83: 21 | AD83: 1 | AE83: 0
A84: 81 | B84: Holstebro | C84: under 60 år | D84: 0 | E84: 19 | F84: 0 | G84: 0 | H84: 0 | I84: 17 | J84: 0 | K84: 0 | L84: 0 | M84: 6 | N84: 0 | O84: 0 | P84: 0 | Q84: 9 | R84: 0 | S84: 0 | T84: 0 | U84: 9 | V84: 0 | W84: 0 | X84: 0 | Y84: 9 | Z84: 0 | AA84: 0 | AB84: 0 | AC84: 6 | AD84: 1 | AE84: 0
A85: 82 | B85: Ikast-Brande | C85: under 60 år | D85: 0 | E85: 2 | F85: 2 | G85: 0 | H85: 0 | I85: 3 | J85: 1 | K85: 0 | L85: 0 | M85: 1 | N85: 0 | O85: 0 | P85: 0 | Q85: 1 | R85: 0 | S85: 0 | T85: 0 | U85: 1 | V85: 0 | W85: 0 | X85: 0 | Y85: 0 | Z85: 1 | AA85: 0 | AB85: 0 | AC85: 2 | AD85: 1 | AE85: 0
A86: 83 | B86: Lemvig | C86: under 60 år | D86: 0 | E86: 9 | F86: 0 | G86: 0 | H86: 0 | I86: 6 | J86: 0 | K86: 0 | L86: 0 | M86: 6 | N86: 0 | O86: 0 | P86: 4 | Q86: 4 | R86: 0 | S86: 0 | T86: 0 | U86: 6 | V86: 0 | W86: 0 | X86: 0 | Y86: 0 | Z86: 0 | AA86: 0 | AB86: 0 | AC86: 5 | AD86: 0 | AE86: 0
A87: 84 | B87: Ringkøbing-Skjern | C87: under 60 år | D87: 0 | E87: 4 | F87: 1 | G87: 0 | H87: 0 | I87: 7 | J87: 1 | K87: 0 | L87: 0 | M87: 14 | N87: 1 | O87: 0 | P87: 0 | Q87: 7 | R87: 0 | S87: 0 | T87: 0 | U87: 7 | V87: 0 | W87: 0 | X87: 0 | Y87: 10 | Z87: 0 | AA87: 0 | AB87: 0 | AC87: 7 | AD87: 0 | AE87: 0
A88: 85 | B88: Skive | C88: under 60 år | D88: 0 | E88: 18 | F88: 0 | G88: 0 | H88: 0 | I88: 6 | J88: 0 | K88: 0 | L88: 0 | M88: 25 | N88: 0 | O88: 0 | P88: 0 | Q88: 3 | R88: 0 | S88: 0 | T88: 0 | U88: 7 | V88: 0 | W88: 0 | X88: 0 | Y88: 7 | Z88: 1 | AA88: 0 | AB88: 0 | AC88: 7 | AD88: 0 | AE88: 0
A89: 86 | B89: Struer | C89: under 60 år | D89: 1 | E89: 4 | F89: 0 | G89: 0 | H89: 1 | I89: 4 | J89: 0 | K89: 0 | L89: 1 | M89: 3 | N89: 0 | O89: 0 | P89: 0 | Q89: 2 | R89: 0 | S89: 0 | T89: 0 | U89: 1 | V89: 0 | W89: 0 | X89: 0 | Y89: 2 | Z89: 0 | AA89: 0 | AB89: 0 | AC89: 2 | AD89: 0 | AE89: 0
A90: 87 | B90: Viborg | C90: under 60 år | D90: 0 | E90: 10 | F90: 0 | G90: 0 | H90: 0 | I90: 16 | J90: 0 | K90: 0 | L90: 0 | M90: 30 | N90: 2 | O90: 0 | P90: 0 | Q90: 25 | R90: 2 | S90: 0 | T90: 0 | U90: 24 | V90: 2 | W90: 0 | X90: 0 | Y90: 21 | Z90: 2 | AA90: 0 | AB90: 0 | AC90: 18 | AD90: 3 | AE90: 0
A91: 88 | B91: Brønderslev | C91: under 60 år | D91: 1 | E91: 7 | F91: 9 | G91: 0 | H91: 0 | I91: 4 | J91: 0 | K91: 0 | L91: 0 | M91: 5 | N91: 0 | O91: 0 | P91: 1 | Q91: 3 | R91: 1 | S91: 0 | T91: 1 | U91: 4 | V91: 1 | W91: 0 | X91: 2 | Y91: 3 | Z91: 1 | AA91: 0 | AB91: 0 | AC91: 2 | AD91: 1 | AE91: 0
A92: 89 | B92: Frederikshavn | C92: under 60 år | D92: 0 | E92: 19 | F92: 0 | G92: 0 | H92: 0 | I92: 6 | J92: 0 | K92: 0 | L92: 0 | M92: 4 | N92: 0 | O92: 0 | P92: 0 | Q92: 3 | R92: 0 | S92: 0 | T92: 0 | U92: 9 | V92: 0 | W92: 0 | X92: 0 | Y92: 9 | Z92: 0 | AA92: 0 | AB92: 0 | AC92: 6 | AD92: 0 | AE92: 0
A93: 90 | B93: Hjørring | C93: under 60 år | D93: 0 | E93: 4 | F93: 0 | G93: 0 | H93: 0 | I93: 5 | J93: 0 | K93: 0 | L93: 0 | M93: 1 | N93: 0 | O93: 0 | P93: 0 | Q93: 12 | R93: 0 | S93: 0 | T93: 0 | U93: 11 | V93: 8 | W93: 0 | X93: 0 | Y93: 13 | Z93: 6 | AA93: 0 | AB93: 0 | AC93: 9 | AD93: 8 | AE93: 0
A94: 91 | B94: Jammerbugt | C94: under 60 år | D94: 2 | E94: 6 | F94: 0 | G94: 0 | H94: 2 | I94: 8 | J94: 0 | K94: 0 | L94: 0 | M94: 2 | N94: 0 | O94: 0 | P94: 0 | Q94: 2 | R94: 0 | S94: 0 | T94: 0 | U94: 3 | V94: 0 | W94: 0 | X94: 0 | Y94: 3 | Z94: 1 | AA94: 0 | AB94: 0 | AC94: 3 | AD94: 2 | AE94: 0
A95: 92 | B95: Læsø | C95: under 60 år | D95: 0 | E95: 0 | F95: 0 | G95: 0 | H95: 0 | I95: 0 | J95: 0 | K95: 0 | L95: 0 | M95: 0 | N95: 0 | O95: 0 | P95: 0 | Q95: 0 | R95: 0 | S95: 0 | T95: 0 | U95: 0 | V95: 0 | W95: 0 | X95: 0 | Y95: 0 | Z95: 0 | AA95: 0 | AB95: 0 | AC95: 0 | AD95: 0 | AE95: 0
A96: 93 | B96: Mariagerfjord | C96: under 60 år | D96: 0 | E96: 2 | F96: 0 | G96: 0 | H96: 0 | I96: 1 | J96: 0 | K96: 0 | L96: 0 | M96: 3 | N96: 0 | O96: 0 | P96: 0 | Q96: 2 | R96: 0 | S96: 0 | T96: 0 | U96: 5 | V96: 0 | W96: 0 | X96: 0 | Y96: 5 | Z96: 0 | AA96: 0 | AB96: 0 | AC96: 5 | AD96: 0 | AE96: 0
A97: 94 | B97: Morsø | C97: under 60 år | D97: 0 | E97: 6 | F97: 0 | G97: 0 | H97: 0 | I97: 6 | J97: 0 | K97: 0 | L97: 0 | M97: 8 | N97: 0 | O97: 0 | P97: 0 | Q97: 8 | R97: 0 | S97: 0 | T97: 0 | U97: 7 | V97: 0 | W97: 0 | X97: 0 | Y97: 8 | Z97: 0 | AA97: 0 | AB97: 0 | AC97: 9 | AD97: 0 | AE97: 0
A98: 95 | B98: Rebild | C98: under 60 år | D98: 0 | E98: 1 | F98: 0 | G98: 0 | H98: 0 | I98: 1 | J98: 0 | K98: 0 | L98: 0 | M98: 1 | N98: 0 | O98: 0 | P98: 0 | Q98: 2 | R98: 0 | S98: 0 | T98: 0 | U98: 4 | V98: 0 | W98: 0 | X98: 0 | Y98: 3 | Z98: 0 | AA98: 0 | AB98: 0 | AC98: 2 | AD98: 0 | AE98: 0
A99: 96 | B99: Thisted | C99: under 60 år | D99: 0 | E99: 18 | F99: 0 | G99: 0 | H99: 0 | I99: 15 | J99: 0 | K99: 0 | L99: 0 | M99: 11 | N99: 0 | O99: 0 | P99: 0 | Q99: 12 | R99: 0 | S99: 0 | T99: 0 | U99: 7 | V99: 0 | W99: 0 | X99: 0 | Y99: 8 | Z99: 0 | AA99: 0 | AB99: 0 | AC99: 5 | AD99: 0 | AE99: 0
A100: 97 | B100: Vesthimmerlands | C100: under 60 år | D100: 0 | E100: 3 | F100: 0 | G100: 0 | H100: 0 | I100: 8 | J100: 0 | K100: 0 | L100: 0 | M100: 3 | N100: 0 | O100: 0 | P100: 0 | Q100: 3 | R100: 0 | S100: 0 | T100: 0 | U100: 4 | V100: 0 | W100: 0 | X100: 0 | Y100: 2 | Z100: 0 | AA100: 0 | AB100: 0 | AC100: 2 | AD100: 0 | AE100: 0
A101: 98 | B101: Aalborg | C101: under 60 år | D101: 6 | E101: 98 | F101: 2 | G101: 0 | H101: 13 | I101: 30 | J101: 0 | K101: 0 | L101: 11 | M101: 35 | N101: 0 | O101: 0 | P101: 12 | Q101: 27 | R101: 1 | S101: 0 | T101: 8 | U101: 33 | V101: 0 | W101: 0 | X101: 11 | Y101: 32 | Z101: 0 | AA101: 0 | AB101: 10 | AC101: 28 | AD101: 1 | AE101: 0
A102: 1 | B102: København | C102: 60-64 år | D102: 50 | E102: 30 | F102: 2 | G102: 0 | H102: 41 | I102: 36 | J102: 2 | K102: 0 | L102: 42 | M102: 42 | N102: 1 | O102: 0 | P102: 33 | Q102: 59 | R102: 2 | S102: 0 | T102: 32 | U102: 66 | V102: 1 | W102: 0 | X102: 32 | Y102: 65 | Z102: 2 | AA102: 0 | AB102: 29 | AC102: 53 | AD102: 1 | AE102: 0
A103: 2 | B103: Frederiksberg | C103: 60-64 år | D103: 7 | E103: 15 | F103: 0 | G103: 0 | H103: 3 | I103: 19 | J103: 0 | K103: 0 | L103: 3 | M103: 15 | N103: 0 | O103: 0 | P103: 4 | Q103: 9 | R103: 0 | S103: 0 | T103: 4 | U103: 9 | V103: 0 | W103: 0 | X103: 5 | Y103: 11 | Z103: 0 | AA103: 0 | AB103: 4 | AC103: 11 | AD103: 0 | AE103: 0
A104: 3 | B104: Dragør | C104: 60-64 år | D104: 0 | E104: 1 | F104: 0 | G104: 0 | H104: 0 | I104: 1 | J104: 0 | K104: 0 | L104: 0 | M104: 2 | N104: 0 | O104: 0 | P104: 0 | Q104: 3 | R104: 0 | S104: 0 | T104: 0 | U104: 2 | V104: 0 | W104: 0 | X104: 0 | Y104: 2 | Z104: 0 | AA104: 0 | AB104: 0 | AC104: 2 | AD104: 0 | AE104: 0
A105: 4 | B105: Tårnby | C105: 60-64 år | D105: 7 | E105: 1 | F105: 0 | G105: 0 | H105: 9 | I105: 5 | J105: 0 | K105: 0 | L105: 7 | M105: 2 | N105: 0 | O105: 0 | P105: 4 | Q105: 2 | R105: 0 | S105: 0 | T105: 6 | U105: 4 | V105: 0 | W105: 0 | X105: 7 | Y105: 3 | Z105: 0 | AA105: 0 | AB105: 5 | AC105: 5 | AD105: 0 | AE105: 0
A106: 5 | B106: Albertslund | C106: 60-64 år | D106: 0 | E106: 3 | F106: 0 | G106: 0 | H106: 0 | I106: 2 | J106: 0 | K106: 0 | L106: 0 | M106: 5 | N106: 0 | O106: 0 | P106: 0 | Q106: 3 | R106: 0 | S106: 0 | T106: 0 | U106: 4 | V106: 0 | W106: 0 | X106: 0 | Y106: 4 | Z106: 0 | AA106: 0 | AB106: 0 | AC106: 5 | AD106: 0 | AE106: 0
A107: 6 | B107: Ballerup | C107: 60-64 år | D107: 0 | E107: 4 | F107: 0 | G107: 0 | H107: 0 | I107: 3 | J107: 0 | K107: 0 | L107: 0 | M107: 10 | N107: 0 | O107: 0 | P107: 0 | Q107: 9 | R107: 0 | S107: 0 | T107: 0 | U107: 8 | V107: 0 | W107: 0 | X107: 0 | Y107: 6 | Z107: 0 | AA107: 0 | AB107: 0 | AC107: 7 | AD107: 0 | AE107: 0
A108: 7 | B108: Brøndby | C108: 60-64 år | D108: 0 | E108: 9 | F108: 0 | G108: 0 | H108: 0 | I108: 12 | J108: 0 | K108: 0 | L108: 0 | M108: 9 | N108: 0 | O108: 0 | P108: 0 | Q108: 19 | R108: 0 | S108: 0 | T108: 0 | U108: 15 | V108: 0 | W108: 0 | X108: 0 | Y108: 8 | Z108: 0 | AA108: 0 | AB108: 0 | AC108: 6 | AD108: 0 | AE108: 0
A109: 8 | B109: Gentofte | C109: 60-64 år | D109: 1 | E109: 23 | F109: 0 | G109: 0 | H109: 0 | I109: 19 | J109: 0 | K109: 0 | L109: 0 | M109: 16 | N109: 0 | O109: 0 | P109: 0 | Q109: 15 | R109: 0 | S109: 0 | T109: 0 | U109: 12 | V109: 0 | W109: 0 | X109: 0 | Y109: 13 | Z109: 0 | AA109: 0 | AB109: 0 | AC109: 12 | AD109: 0 | AE109: 0
A110: 9 | B110: Gladsaxe | C110: 60-64 år | D110: 0 | E110: 7 | F110: 0 | G110: 0 | H110: 0 | I110: 16 | J110: 0 | K110: 0 | L110: 0 | M110: 13 | N110: 0 | O110: 0 | P110: 0 | Q110: 20 | R110: 0 | S110: 0 | T110: 0 | U110: 11 | V110: 0 | W110: 0 | X110: 0 | Y110: 12 | Z110: 0 | AA110: 0 | AB110: 0 | AC110: 10 | AD110: 0 | AE110: 0
A111: 10 | B111: Glostrup | C111: 60-64 år | D111: 0 | E111: 2 | F111: 0 | G111: 0 | H111: 0 | I111: 4 | J111: 0 | K111: 0 | L111: 0 | M111: 5 | N111: 0 | O111: 0 | P111: 0 | Q111: 4 | R111: 0 | S111: 0 | T111: 0 | U111: 6 | V111: 0 | W111: 0 | X111: 0 | Y111: 6 | Z111: 0 | AA111: 0 | AB111: 0 | AC111: 5 | AD111: 0 | AE111: 0
A112: 11 | B112: Herlev | C112: 60-64 år | D112: 0 | E112: 4 | F112: 0 | G112: 0 | H112: 0 | I112: 8 | J112: 0 | K112: 0 | L112: 0 | M112: 10 | N112: 0 | O112: 0 | P112: 0 | Q112: 9 | R112: 0 | S112: 0 | T112: 0 | U112: 9 | V112: 0 | W112: 0 | X112: 0 | Y112: 6 | Z112: 0 | AA112: 0 | AB112: 0 | AC112: 2 | AD112: 0 | AE112: 0
A113: 12 | B113: Hvidovre | C113: 60-64 år | D113: 1 | E113: 20 | F113: 0 | G113: 0 | H113: 3 | I113: 16 | J113: 0 | K113: 0 | L113: 0 | M113: 18 | N113: 0 | O113: 0 | P113: 0 | Q113: 18 | R113: 0 | S113: 0 | T113: 0 | U113: 9 | V113: 0 | W113: 0 | X113: 0 | Y113: 9 | Z113: 0 | AA113: 0 | AB113: 0 | AC113: 9 | AD113: 0 | AE113: 0
A114: 13 | B114: Høje-Taastrup | C114: 60-64 år | D114: 0 | E114: 8 | F114: 0 | G114: 0 | H114: 0 | I114: 9 | J114: 0 | K114: 0 | L114: 0 | M114: 9 | N114: 0 | O114: 0 | P114: 0 | Q114: 1 | R114: 0 | S114: 0 | T114: 0 | U114: 0 | V114: 0 | W114: 0 | X114: 0 | Y114: 4 | Z114: 0 | AA114: 0 | AB114: 0 | AC114: 2 | AD114: 0 | AE114: 0
A115: 14 | B115: Ishøj | C115: 60-64 år | D115: 0 | E115: 6 | F115: 0 | G115: 0 | H115: 0 | I115: 2 | J115: 0 | K115: 0 | L115: 0 | M115: 1 | N115: 0 | O115: 0 | P115: 0 | Q115: 2 | R115: 0 | S115: 0 | T115: 0 | U115: 2 | V115: 0 | W115: 0 | X115: 0 | Y115: 3 | Z115: 0 | AA115: 0 | AB115: 0 | AC115: 4 | AD115: 0 | AE115: 0
A116: 15 | B116: Lyngby-Taarbæk | C116: 60-64 år | D116: 3 | E116: 11 | F116: 0 | G116: 0 | H116: 1 | I116: 6 | J116: 0 | K116: 0 | L116: 5 | M116: 10 | N116: 0 | O116: 0 | P116: 0 | Q116: 12 | R116: 0 | S116: 0 | T116: 2 | U116: 6 | V116: 0 | W116: 0 | X116: 2 | Y116: 7 | Z116: 0 | AA116: 0 | AB116: 1 | AC116: 9 | AD116: 0 | AE116: 0
A117: 16 | B117: Rødovre | C117: 60-64 år | D117: 0 | E117: 11 | F117: 0 | G117: 0 | H117: 0 | I117: 8 | J117: 0 | K117: 0 | L117: 0 | M117: 6 | N117: 0 | O117: 0 | P117: 0 | Q117: 7 | R117: 0 | S117: 0 | T117: 0 | U117: 8 | V117: 0 | W117: 0 | X117: 0 | Y117: 6 | Z117: 0 | AA117: 0 | AB117: 0 | AC117: 6 | AD117: 0 | AE117: 0
A118: 17 | B118: Vallensbæk | C118: 60-64 år | D118: 0 | E118: 0 | F118: 0 | G118: 0 | H118: 0 | I118: 0 | J118: 0 | K118: 0 | L118: 0 | M118: 0 | N118: 0 | O118: 0 | P118: 0 | Q118: 1 | R118: 0 | S118: 0 | T118: 0 | U118: 0 | V118: 0 | W118: 0 | X118: 0 | Y118: 0 | Z118: 0 | AA118: 0 | AB118: 0 | AC118: 0 | AD118: 0 | AE118: 0
A119: 18 | B119: Allerød | C119: 60-64 år | D119: 0 | E119: 3 | F119: 0 | G119: 0 | H119: 0 | I119: 3 | J119: 0 | K119: 0 | L119: 0 | M119: 2 | N119: 0 | O119: 0 | P119: 0 | Q119: 2 | R119: 0 | S119: 0 | T119: 0 | U119: 2 | V119: 0 | W119: 0 | X119: 0 | Y119: 2 | Z119: 0 | AA119: 0 | AB119: 0 | AC119: 3 | AD119: 0 | AE119: 0
A120: 19 | B120: Egedal | C120: 60-64 år | D120: 0 | E120: 4 | F120: 0 | G120: 0 | H120: 0 | I120: 2 | J120: 0 | K120: 0 | L120: 0 | M120: 4 | N120: 0 | O120: 0 | P120: 0 | Q120: 3 | R120: 0 | S120: 0 | T120: 0 | U120: 2 | V120: 0 | W120: 0 | X120: 0 | Y120: 3 | Z120: 0 | AA120: 0 | AB120: 0 | AC120: 3 | AD120: 0 | AE120: 0
A121: 20 | B121: Fredensborg | C121: 60-64 år | D121: 0 | E121: 8 | F121: 0 | G121: 0 | H121: 0 | I121: 4 | J121: 0 | K121: 0 | L121: 0 | M121: 5 | N121: 0 | O121: 0 | P121: 0 | Q121: 7 | R121: 0 | S121: 0 | T121: 0 | U121: 6 | V121: 0 | W121: 0 | X121: 0 | Y121: 6 | Z121: 0 | AA121: 0 | AB121: 0 | AC121: 6 | AD121: 0 | AE121: 0
A122: 21 | B122: Frederikssund | C122: 60-64 år | D122: 0 | E122: 7 | F122: 0 | G122: 0 | H122: 0 | I122: 7 | J122: 0 | K122: 0 | L122: 0 | M122: 9 | N122: 0 | O122: 0 | P122: 0 | Q122: 11 | R122: 0 | S122: 0 | T122: 0 | U122: 7 | V122: 3 | W122: 0 | X122: 0 | Y122: 10 | Z122: 1 | AA122: 0 | AB122: 0 | AC122: 9 | AD122: 0 | AE122: 0
A123: 22 | B123: Furesø | C123: 60-64 år | D123: 0 | E123: 3 | F123: 0 | G123: 0 | H123: 0 | I123: 4 | J123: 0 | K123: 0 | L123: 0 | M123: 5 | N123: 0 | O123: 0 | P123: 0 | Q123: 5 | R123: 0 | S123: 0 | T123: 0 | U123: 3 | V123: 0 | W123: 0 | X123: 0 | Y123: 3 | Z123: 0 | AA123: 0 | AB123: 0 | AC123: 7 | AD123: 0 | AE123: 0
A124: 23 | B124: Gribskov | C124: 60-64 år | D124: 0 | E124: 5 | F124: 0 | G124: 0 | H124: 0 | I124: 9 | J124: 0 | K124: 0 | L124: 0 | M124: 10 | N124: 0 | O124: 0 | P124: 0 | Q124: 9 | R124: 1 | S124: 0 | T124: 0 | U124: 4 | V124: 2 | W124: 0 | X124: 0 | Y124: 2 | Z124: 1 | AA124: 0 | AB124: 0 | AC124: 2 | AD124: 1 | AE124: 0
A125: 24 | B125: Halsnæs | C125: 60-64 år | D125: 0 | E125: 7 | F125: 0 | G125: 0 | H125: 0 | I125: 6 | J125: 0 | K125: 0 | L125: 0 | M125: 13 | N125: 0 | O125: 0 | P125: 0 | Q125: 9 | R125: 0 | S125: 0 | T125: 0 | U125: 4 | V125: 0 | W125: 0 | X125: 0 | Y125: 3 | Z125: 0 | AA125: 0 | AB125: 0 | AC125: 3 | AD125: 0 | AE125: 0
A126: 25 | B126: Helsingør | C126: 60-64 år | D126: 3 | E126: 17 | F126: 0 | G126: 0 | H126: 3 | I126: 12 | J126: 0 | K126: 0 | L126: 3 | M126: 12 | N126: 0 | O126: 0 | P126: 2 | Q126: 8 | R126: 0 | S126: 0 | T126: 1 | U126: 10 | V126: 0 | W126: 0 | X126: 0 | Y126: 10 | Z126: 0 | AA126: 0 | AB126: 0 | AC126: 11 | AD126: 0 | AE126: 0
A127: 26 | B127: Hillerød | C127: 60-64 år | D127: 0 | E127: 6 | F127: 0 | G127: 0 | H127: 0 | I127: 7 | J127: 0 | K127: 0 | L127: 0 | M127: 10 | N127: 1 | O127: 0 | P127: 0 | Q127: 12 | R127: 0 | S127: 0 | T127: 0 | U127: 12 | V127: 0 | W127: 0 | X127: 0 | Y127: 9 | Z127: 0 | AA127: 0 | AB127: 0 | AC127: 9 | AD127: 0 | AE127: 0
A128: 27 | B128: Hørsholm | C128: 60-64 år | D128: 1 | E128: 3 | F128: 0 | G128: 0 | H128: 0 | I128: 4 | J128: 0 | K128: 0 | L128: 0 | M128: 1 | N128: 0 | O128: 0 | P128: 1 | Q128: 7 | R128: 0 | S128: 0 | T128: 1 | U128: 2 | V128: 0 | W128: 0 | X128: 1 | Y128: 3 | Z128: 0 | AA128: 0 | AB128: 1 | AC128: 4 | AD128: 0 | AE128: 0
A129: 28 | B129: Rudersdal | C129: 60-64 år | D129: 0 | E129: 6 | F129: 0 | G129: 0 | H129: 1 | I129: 6 | J129: 0 | K129: 0 | L129: 2 | M129: 6 | N129: 0 | O129: 0 | P129: 3 | Q129: 8 | R129: 0 | S129: 0 | T129: 1 | U129: 12 | V129: 0 | W129: 0 | X129: 2 | Y129: 14 | Z129: 0 | AA129: 0 | AB129: 3 | AC129: 11 | AD129: 0 | AE129: 0
A130: 29 | B130: Bornholm | C130: 60-64 år | D130: 3 | E130: 12 | F130: 0 | G130: 0 | H130: 3 | I130: 11 | J130: 0 | K130: 0 | L130: 0 | M130: 11 | N130: 0 | O130: 0 | P130: 2 | Q130: 14 | R130: 0 | S130: 0 | T130: 2 | U130: 15 | V130: 0 | W130: 0 | X130: 1 | Y130: 13 | Z130: 0 | AA130: 0 | AB130: 0 | AC130: 9 | AD130: 0 | AE130: 0
A131: 30 | B131: Greve | C131: 60-64 år | D131: 0 | E131: 10 | F131: 0 | G131: 0 | H131: 0 | I131: 11 | J131: 0 | K131: 0 | L131: 0 | M131: 10 | N131: 0 | O131: 0 | P131: 0 | Q131: 8 | R131: 0 | S131: 0 | T131: 0 | U131: 7 | V131: 0 | W131: 0 | X131: 0 | Y131: 6 | Z131: 0 | AA131: 0 | AB131: 0 | AC131: 5 | AD131: 0 | AE131: 0
A132: 31 | B132: Køge | C132: 60-64 år | D132: 2 | E132: 12 | F132: 0 | G132: 0 | H132: 2 | I132: 12 | J132: 0 | K132: 0 | L132: 2 | M132: 13 | N132: 0 | O132: 0 | P132: 1 | Q132: 13 | R132: 0 | S132: 0 | T132: 0 | U132: 13 | V132: 0 | W132: 0 | X132: 0 | Y132: 11 | Z132: 0 | AA132: 0 | AB132: 3 | AC132: 7 | AD132: 0 | AE132: 0
A133: 32 | B133: Lejre | C133: 60-64 år | D133: 0 | E133: 2 | F133: 0 | G133: 0 | H133: 0 | I133: 3 | J133: 0 | K133: 0 | L133: 0 | M133: 2 | N133: 0 | O133: 0 | P133: 0 | Q133: 2 | R133: 0 | S133: 0 | T133: 0 | U133: 2 | V133: 0 | W133: 0 | X133: 0 | Y133: 2 | Z133: 0 | AA133: 0 | AB133: 0 | AC133: 2 | AD133: 0 | AE133: 0
A134: 33 | B134: Roskilde | C134: 60-64 år | D134: 4 | E134: 6 | F134: 0 | G134: 0 | H134: 3 | I134: 7 | J134: 0 | K134: 0 | L134: 5 | M134: 8 | N134: 0 | O134: 0 | P134: 6 | Q134: 6 | R134: 0 | S134: 0 | T134: 6 | U134: 6 | V134: 0 | W134: 0 | X134: 2 | Y134: 6 | Z134: 0 | AA134: 0 | AB134: 1 | AC134: 8 | AD134: 0 | AE134: 0
A135: 34 | B135: Solrød | C135: 60-64 år | D135: 0 | E135: 1 | F135: 0 | G135: 0 | H135: 0 | I135: 2 | J135: 0 | K135: 0 | L135: 0 | M135: 2 | N135: 0 | O135: 0 | P135: 0 | Q135: 2 | R135: 0 | S135: 0 | T135: 0 | U135: 1 | V135: 0 | W135: 0 | X135: 0 | Y135: 2 | Z135: 0 | AA135: 0 | AB135: 0 | AC135: 2 | AD135: 0 | AE135: 0
A136: 35 | B136: Faxe | C136: 60-64 år | D136: 0 | E136: 7 | F136: 0 | G136: 0 | H136: 0 | I136: 10 | J136: 0 | K136: 0 | L136: 0 | M136: 11 | N136: 0 | O136: 0 | P136: 0 | Q136: 5 | R136: 0 | S136: 0 | T136: 0 | U136: 5 | V136: 0 | W136: 0 | X136: 0 | Y136: 9 | Z136: 0 | AA136: 0 | AB136: 0 | AC136: 8 | AD136: 0 | AE136: 0
A137: 36 | B137: Guldborgsund | C137: 60-64 år | D137: 1 | E137: 16 | F137: 0 | G137: 0 | H137: 0 | I137: 10 | J137: 0 | K137: 0 | L137: 0 | M137: 12 | N137: 1 | O137: 0 | P137: 0 | Q137: 9 | R137: 0 | S137: 0 | T137: 1 | U137: 13 | V137: 0 | W137: 0 | X137: 1 | Y137: 10 | Z137: 0 | AA137: 0 | AB137: 0 | AC137: 10 | AD137: 0 | AE137: 0
A138: 37 | B138: Holbæk | C138: 60-64 år | D138: 2 | E138: 6 | F138: 1 | G138: 0 | H138: 0 | I138: 10 | J138: 0 | K138: 0 | L138: 0 | M138: 14 | N138: 0 | O138: 0 | P138: 0 | Q138: 7 | R138: 0 | S138: 0 | T138: 0 | U138: 10 | V138: 0 | W138: 0 | X138: 0 | Y138: 7 | Z138: 0 | AA138: 0 | AB138: 0 | AC138: 5 | AD138: 1 | AE138: 0
A139: 38 | B139: Kalundborg | C139: 60-64 år | D139: 0 | E139: 11 | F139: 0 | G139: 0 | H139: 0 | I139: 12 | J139: 0 | K139: 0 | L139: 0 | M139: 7 | N139: 0 | O139: 0 | P139: 2 | Q139: 14 | R139: 0 | S139: 0 | T139: 0 | U139: 6 | V139: 0 | W139: 0 | X139: 0 | Y139: 6 | Z139: 0 | AA139: 0 | AB139: 0 | AC139: 7 | AD139: 0 | AE139: 0
A140: 39 | B140: Lolland | C140: 60-64 år | D140: 0 | E140: 10 | F140: 0 | G140: 0 | H140: 0 | I140: 12 | J140: 0 | K140: 0 | L140: 0 | M140: 15 | N140: 0 | O140: 0 | P140: 0 | Q140: 11 | R140: 0 | S140: 0 | T140: 0 | U140: 7 | V140: 0 | W140: 0 | X140: 0 | Y140: 11 | Z140: 0 | AA140: 0 | AB140: 0 | AC140: 6 | AD140: 0 | AE140: 0
A141: 40 | B141: Næstved | C141: 60-64 år | D141: 0 | E141: 2 | F141: 0 | G141: 0 | H141: 0 | I141: 4 | J141: 0 | K141: 0 | L141: 0 | M141: 12 | N141: 0 | O141: 0 | P141: 0 | Q141: 19 | R141: 0 | S141: 0 | T141: 0 | U141: 16 | V141: 0 | W141: 0 | X141: 0 | Y141: 16 | Z141: 0 | AA141: 0 | AB141: 0 | AC141: 17 | AD141: 0 | AE141: 0
A142: 41 | B142: Odsherred | C142: 60-64 år | D142: 0 | E142: 8 | F142: 0 | G142: 0 | H142: 0 | I142: 12 | J142: 0 | K142: 0 | L142: 0 | M142: 11 | N142: 0 | O142: 0 | P142: 0 | Q142: 0 | R142: 1 | S142: 0 | T142: 0 | U142: 3 | V142: 2 | W142: 0 | X142: 0 | Y142: 7 | Z142: 2 | AA142: 0 | AB142: 0 | AC142: 11 | AD142: 2 | AE142: 0
A143: 42 | B143: Ringsted | C143: 60-64 år | D143: 0 | E143: 7 | F143: 0 | G143: 0 | H143: 0 | I143: 7 | J143: 0 | K143: 0 | L143: 0 | M143: 6 | N143: 0 | O143: 0 | P143: 0 | Q143: 7 | R143: 0 | S143: 0 | T143: 0 | U143: 7 | V143: 0 | W143: 0 | X143: 0 | Y143: 6 | Z143: 0 | AA143: 0 | AB143: 0 | AC143: 6 | AD143: 0 | AE143: 0
A144: 43 | B144: Slagelse | C144: 60-64 år | D144: 0 | E144: 7 | F144: 0 | G144: 0 | H144: 0 | I144: 13 | J144: 0 | K144: 0 | L144: 1 | M144: 11 | N144: 0 | O144: 0 | P144: 1 | Q144: 9 | R144: 0 | S144: 0 | T144: 1 | U144: 16 | V144: 0 | W144: 0 | X144: 1 | Y144: 16 | Z144: 0 | AA144: 0 | AB144: 1 | AC144: 13 | AD144: 0 | AE144: 0
A145: 44 | B145: Sorø | C145: 60-64 år | D145: 0 | E145: 4 | F145: 0 | G145: 0 | H145: 0 | I145: 3 | J145: 0 | K145: 0 | L145: 0 | M145: 5 | N145: 0 | O145: 0 | P145: 0 | Q145: 5 | R145: 0 | S145: 0 | T145: 0 | U145: 6 | V145: 0 | W145: 0 | X145: 0 | Y145: 1 | Z145: 0 | AA145: 0 | AB145: 0 | AC145: 2 | AD145: 0 | AE145: 0
A146: 45 | B146: Stevns | C146: 60-64 år | D146: 0 | E146: 1 | F146: 0 | G146: 0 | H146: 0 | I146: 2 | J146: 0 | K146: 0 | L146: 0 | M146: 1 | N146: 0 | O146: 0 | P146: 0 | Q146: 2 | R146: 0 | S146: 0 | T146: 0 | U146: 2 | V146: 0 | W146: 0 | X146: 0 | Y146: 3 | Z146: 0 | AA146: 0 | AB146: 0 | AC146: 2 | AD146: 0 | AE146: 0
A147: 46 | B147: Vordingborg | C147: 60-64 år | D147: 0 | E147: 14 | F147: 0 | G147: 0 | H147: 0 | I147: 15 | J147: 0 | K147: 0 | L147: 0 | M147: 17 | N147: 0 | O147: 0 | P147: 0 | Q147: 15 | R147: 0 | S147: 0 | T147: 0 | U147: 19 | V147: 0 | W147: 0 | X147: 0 | Y147: 15 | Z147: 0 | AA147: 0 | AB147: 0 | AC147: 9 | AD147: 0 | AE147: 0
A148: 47 | B148: Assens | C148: 60-64 år | D148: 0 | E148: 3 | F148: 0 | G148: 0 | H148: 0 | I148: 5 | J148: 0 | K148: 0 | L148: 0 | M148: 7 | N148: 0 | O148: 0 | P148: 0 | Q148: 9 | R148: 0 | S148: 0 | T148: 0 | U148: 13 | V148: 0 | W148: 0 | X148: 0 | Y148: 10 | Z148: 0 | AA148: 0 | AB148: 0 | AC148: 11 | AD148: 0 | AE148: 0
A149: 48 | B149: Faaborg-Midtfyn | C149: 60-64 år | D149: 0 | E149: 12 | F149: 0 | G149: 0 | H149: 0 | I149: 10 | J149: 0 | K149: 0 | L149: 0 | M149: 9 | N149: 0 | O149: 0 | P149: 0 | Q149: 11 | R149: 0 | S149: 0 | T149: 0 | U149: 10 | V149: 0 | W149: 0 | X149: 0 | Y149: 7 | Z149: 0 | AA149: 0 | AB149: 0 | AC149: 4 | AD149: 0 | AE149: 0
A150: 49 | B150: Kerteminde | C150: 60-64 år | D150: 0 | E150: 2 | F150: 0 | G150: 0 | H150: 0 | I150: 1 | J150: 0 | K150: 0 | L150: 0 | M150: 4 | N150: 0 | O150: 0 | P150: 0 | Q150: 6 | R150: 0 | S150: 0 | T150: 0 | U150: 4 | V150: 0 | W150: 0 | X150: 0 | Y150: 2 | Z150: 0 | AA150: 0 | AB150: 0 | AC150: 4 | AD150: 0 | AE150: 0
A151: 50 | B151: Langeland | C151: 60-64 år | D151: 0 | E151: 4 | F151: 0 | G151: 0 | H151: 0 | I151: 5 | J151: 0 | K151: 0 | L151: 0 | M151: 7 | N151: 0 | O151: 0 | P151: 0 | Q151: 7 | R151: 0 | S151: 0 | T151: 0 | U151: 7 | V151: 0 | W151: 0 | X151: 0 | Y151: 1 | Z151: 0 | AA151: 0 | AB151: 0 | AC151: 5 | AD151: 0 | AE151: 0
A152: 51 | B152: Middelfart | C152: 60-64 år | D152: 0 | E152: 5 | F152: 2 | G152: 0 | H152: 0 | I152: 8 | J152: 1 | K152: 0 | L152: 0 | M152: 5 | N152: 1 | O152: 0 | P152: 0 | Q152: 5 | R152: 1 | S152: 0 | T152: 0 | U152: 7 | V152: 0 | W152: 0 | X152: 0 | Y152: 7 | Z152: 1 | AA152: 0 | AB152: 0 | AC152: 4 | AD152: 2 | AE152: 0
A153: 52 | B153: Nordfyns | C153: 60-64 år | D153: 0 | E153: 6 | F153: 0 | G153: 0 | H153: 0 | I153: 6 | J153: 0 | K153: 0 | L153: 0 | M153: 7 | N153: 0 | O153: 0 | P153: 0 | Q153: 6 | R153: 0 | S153: 0 | T153: 0 | U153: 6 | V153: 0 | W153: 0 | X153: 0 | Y153: 5 | Z153: 0 | AA153: 0 | AB153: 0 | AC153: 3 | AD153: 0 | AE153: 0
A154: 53 | B154: Nyborg | C154: 60-64 år | D154: 0 | E154: 4 | F154: 0 | G154: 0 | H154: 0 | I154: 9 | J154: 0 | K154: 0 | L154: 0 | M154: 9 | N154: 0 | O154: 0 | P154: 0 | Q154: 4 | R154: 0 | S154: 0 | T154: 0 | U154: 6 | V154: 0 | W154: 0 | X154: 0 | Y154: 7 | Z154: 0 | AA154: 0 | AB154: 0 | AC154: 8 | AD154: 0 | AE154: 0
A155: 54 | B155: Odense | C155: 60-64 år | D155: 0 | E155: 40 | F155: 1 | G155: 0 | H155: 0 | I155: 42 | J155: 1 | K155: 0 | L155: 0 | M155: 46 | N155: 2 | O155: 0 | P155: 0 | Q155: 59 | R155: 2 | S155: 0 | T155: 0 | U155: 41 | V155: 3 | W155: 0 | X155: 0 | Y155: 43 | Z155: 2 | AA155: 0 | AB155: 0 | AC155: 48 | AD155: 2 | AE155: 0
A156: 55 | B156: Svendborg | C156: 60-64 år | D156: 0 | E156: 38 | F156: 0 | G156: 0 | H156: 0 | I156: 41 | J156: 0 | K156: 0 | L156: 0 | M156: 54 | N156: 0 | O156: 0 | P156: 0 | Q156: 53 | R156: 0 | S156: 0 | T156: 0 | U156: 34 | V156: 0 | W156: 0 | X156: 0 | Y156: 36 | Z156: 0 | AA156: 0 | AB156: 0 | AC156: 34 | AD156: 0 | AE156: 0
A157: 56 | B157: Ærø | C157: 60-64 år | D157: 0 | E157: 2 | F157: 0 | G157: 0 | H157: 0 | I157: 3 | J157: 0 | K157: 0 | L157: 0 | M157: 3 | N157: 0 | O157: 0 | P157: 0 | Q157: 3 | R157: 0 | S157: 0 | T157: 0 | U157: 3 | V157: 0 | W157: 0 | X157: 0 | Y157: 4 | Z157: 0 | AA157: 0 | AB157: 0 | AC157: 4 | AD157: 0 | AE157: 0
A158: 57 | B158: Billund | C158: 60-64 år | D158: 0 | E158: 5 | F158: 0 | G158: 0 | H158: 0 | I158: 7 | J158: 0 | K158: 0 | L158: 0 | M158: 8 | N158: 0 | O158: 0 | P158: 0 | Q158: 10 | R158: 0 | S158: 0 | T158: 0 | U158: 4 | V158: 0 | W158: 0 | X158: 0 | Y158: 3 | Z158: 1 | AA158: 0 | AB158: 0 | AC158: 3 | AD158: 1 | AE158: 0
A159: 58 | B159: Esbjerg | C159: 60-64 år | D159: 9 | E159: 17 | F159: 0 | G159: 0 | H159: 8 | I159: 24 | J159: 0 | K159: 0 | L159: 14 | M159: 26 | N159: 0 | O159: 0 | P159: 14 | Q159: 26 | R159: 0 | S159: 0 | T159: 8 | U159: 16 | V159: 0 | W159: 0 | X159: 6 | Y159: 20 | Z159: 0 | AA159: 0 | AB159: 7 | AC159: 15 | AD159: 0 | AE159: 0
A160: 59 | B160: Fanø | C160: 60-64 år | D160: 0 | E160: 0 | F160: 0 | G160: 0 | H160: 0 | I160: 1 | J160: 0 | K160: 0 | L160: 0 | M160: 0 | N160: 0 | O160: 0 | P160: 0 | Q160: 1 | R160: 0 | S160: 0 | T160: 0 | U160: 0 | V160: 0 | W160: 0 | X160: 0 | Y160: 0 | Z160: 0 | AA160: 0 | AB160: 0 | AC160: 1 | AD160: 0 | AE160: 0
A161: 60 | B161: Fredericia | C161: 60-64 år | D161: 0 | E161: 12 | F161: 0 | G161: 0 | H161: 0 | I161: 12 | J161: 0 | K161: 0 | L161: 0 | M161: 13 | N161: 0 | O161: 0 | P161: 0 | Q161: 5 | R161: 0 | S161: 0 | T161: 0 | U161: 10 | V161: 0 | W161: 0 | X161: 0 | Y161: 10 | Z161: 0 | AA161: 0 | AB161: 0 | AC161: 9 | AD161: 0 | AE161: 0
A162: 61 | B162: Haderslev | C162: 60-64 år | D162: 0 | E162: 10 | F162: 0 | G162: 0 | H162: 0 | I162: 9 | J162: 0 | K162: 0 | L162: 0 | M162: 9 | N162: 0 | O162: 0 | P162: 0 | Q162: 21 | R162: 0 | S162: 0 | T162: 0 | U162: 15 | V162: 0 | W162: 0 | X162: 0 | Y162: 22 | Z162: 0 | AA162: 0 | AB162: 0 | AC162: 22 | AD162: 0 | AE162: 0
A163: 62 | B163: Kolding | C163: 60-64 år | D163: 0 | E163: 14 | F163: 0 | G163: 0 | H163: 0 | I163: 14 | J163: 0 | K163: 0 | L163: 0 | M163: 15 | N163: 0 | O163: 0 | P163: 0 | Q163: 12 | R163: 0 | S163: 0 | T163: 0 | U163: 11 | V163: 0 | W163: 0 | X163: 0 | Y163: 7 | Z163: 0 | AA163: 0 | AB163: 0 | AC163: 7 | AD163: 0 | AE163: 0
A164: 63 | B164: Sønderborg | C164: 60-64 år | D164: 0 | E164: 20 | F164: 0 | G164: 0 | H164: 0 | I164: 15 | J164: 0 | K164: 0 | L164: 0 | M164: 14 | N164: 0 | O164: 0 | P164: 0 | Q164: 10 | R164: 0 | S164: 0 | T164: 0 | U164: 5 | V164: 0 | W164: 0 | X164: 0 | Y164: 5 | Z164: 0 | AA164: 0 | AB164: 0 | AC164: 5 | AD164: 0 | AE164: 0
A165: 64 | B165: Tønder | C165: 60-64 år | D165: 0 | E165: 5 | F165: 0 | G165: 0 | H165: 0 | I165: 10 | J165: 0 | K165: 0 | L165: 0 | M165: 8 | N165: 2 | O165: 0 | P165: 0 | Q165: 14 | R165: 1 | S165: 0 | T165: 0 | U165: 15 | V165: 1 | W165: 0 | X165: 0 | Y165: 15 | Z165: 0 | AA165: 0 | AB165: 0 | AC165: 8 | AD165: 0 | AE165: 0
A166: 65 | B166: Varde | C166: 60-64 år | D166: 0 | E166: 11 | F166: 0 | G166: 0 | H166: 0 | I166: 10 | J166: 0 | K166: 0 | L166: 0 | M166: 9 | N166: 0 | O166: 0 | P166: 0 | Q166: 9 | R166: 0 | S166: 0 | T166: 0 | U166: 13 | V166: 0 | W166: 0 | X166: 0 | Y166: 13 | Z166: 0 | AA166: 0 | AB166: 0 | AC166: 10 | AD166: 0 | AE166: 0
A167: 66 | B167: Vejen | C167: 60-64 år | D167: 0 | E167: 5 | F167: 0 | G167: 0 | H167: 0 | I167: 6 | J167: 0 | K167: 0 | L167: 0 | M167: 8 | N167: 0 | O167: 0 | P167: 0 | Q167: 6 | R167: 0 | S167: 0 | T167: 0 | U167: 7 | V167: 0 | W167: 0 | X167: 0 | Y167: 1 | Z167: 0 | AA167: 0 | AB167: 0 | AC167: 6 | AD167: 0 | AE167: 0
A168: 67 | B168: Vejle | C168: 60-64 år | D168: 0 | E168: 25 | F168: 4 | G168: 0 | H168: 0 | I168: 16 | J168: 3 | K168: 0 | L168: 0 | M168: 16 | N168: 3 | O168: 0 | P168: 0 | Q168: 27 | R168: 4 | S168: 0 | T168: 0 | U168: 28 | V168: 2 | W168: 0 | X168: 0 | Y168: 19 | Z168: 4 | AA168: 0 | AB168: 0 | AC168: 28 | AD168: 2 | AE168: 0
A169: 68 | B169: Aabenraa | C169: 60-64 år | D169: 0 | E169: 6 | F169: 0 | G169: 0 | H169: 0 | I169: 8 | J169: 0 | K169: 0 | L169: 0 | M169: 8 | N169: 0 | O169: 0 | P169: 0 | Q169: 12 | R169: 0 | S169: 0 | T169: 0 | U169: 13 | V169: 0 | W169: 0 | X169: 0 | Y169: 15 | Z169: 0 | AA169: 0 | AB169: 0 | AC169: 17 | AD169: 10 | AE169: 0
A170: 69 | B170: Favrskov | C170: 60-64 år | D170: 0 | E170: 2 | F170: 0 | G170: 0 | H170: 0 | I170: 4 | J170: 1 | K170: 0 | L170: 0 | M170: 7 | N170: 1 | O170: 0 | P170: 0 | Q170: 11 | R170: 1 | S170: 0 | T170: 0 | U170: 10 | V170: 0 | W170: 0 | X170: 0 | Y170: 8 | Z170: 0 | AA170: 0 | AB170: 0 | AC170: 8 | AD170: 0 | AE170: 0
A171: 70 | B171: Hedensted | C171: 60-64 år | D171: 0 | E171: 4 | F171: 0 | G171: 0 | H171: 0 | I171: 3 | J171: 0 | K171: 0 | L171: 0 | M171: 3 | N171: 0 | O171: 0 | P171: 0 | Q171: 5 | R171: 0 | S171: 0 | T171: 0 | U171: 5 | V171: 0 | W171: 0 | X171: 0 | Y171: 4 | Z171: 0 | AA171: 0 | AB171: 0 | AC171: 4 | AD171: 0 | AE171: 0
A172: 71 | B172: Horsens | C172: 60-64 år | D172: 0 | E172: 15 | F172: 0 | G172: 0 | H172: 0 | I172: 25 | J172: 0 | K172: 0 | L172: 0 | M172: 19 | N172: 0 | O172: 0 | P172: 0 | Q172: 17 | R172: 0 | S172: 0 | T172: 0 | U172: 25 | V172: 0 | W172: 0 | X172: 0 | Y172: 25 | Z172: 0 | AA172: 0 | AB172: 0 | AC172: 14 | AD172: 3 | AE172: 0
A173: 72 | B173: Norddjurs | C173: 60-64 år | D173: 0 | E173: 6 | F173: 0 | G173: 0 | H173: 0 | I173: 10 | J173: 0 | K173: 0 | L173: 0 | M173: 12 | N173: 0 | O173: 0 | P173: 0 | Q173: 11 | R173: 0 | S173: 0 | T173: 0 | U173: 8 | V173: 0 | W173: 0 | X173: 0 | Y173: 6 | Z173: 0 | AA173: 0 | AB173: 0 | AC173: 12 | AD173: 0 | AE173: 0
A174: 73 | B174: Odder | C174: 60-64 år | D174: 0 | E174: 2 | F174: 1 | G174: 0 | H174: 0 | I174: 1 | J174: 1 | K174: 0 | L174: 0 | M174: 0 | N174: 1 | O174: 0 | P174: 0 | Q174: 2 | R174: 1 | S174: 0 | T174: 0 | U174: 2 | V174: 0 | W174: 0 | X174: 0 | Y174: 3 | Z174: 0 | AA174: 0 | AB174: 0 | AC174: 4 | AD174: 0 | AE174: 0
A175: 74 | B175: Randers | C175: 60-64 år | D175: 0 | E175: 35 | F175: 0 | G175: 0 | H175: 0 | I175: 41 | J175: 0 | K175: 0 | L175: 0 | M175: 43 | N175: 0 | O175: 0 | P175: 0 | Q175: 43 | R175: 0 | S175: 0 | T175: 0 | U175: 42 | V175: 0 | W175: 0 | X175: 0 | Y175: 46 | Z175: 0 | AA175: 0 | AB175: 0 | AC175: 44 | AD175: 0 | AE175: 0
A176: 75 | B176: Samsø | C176: 60-64 år | D176: 0 | E176: 0 | F176: 0 | G176: 0 | H176: 0 | I176: 0 | J176: 0 | K176: 0 | L176: 0 | M176: 1 | N176: 0 | O176: 0 | P176: 0 | Q176: 1 | R176: 0 | S176: 0 | T176: 0 | U176: 2 | V176: 0 | W176: 0 | X176: 0 | Y176: 0 | Z176: 0 | AA176: 0 | AB176: 0 | AC176: 1 | AD176: 0 | AE176: 0
A177: 76 | B177: Silkeborg | C177: 60-64 år | D177: 1 | E177: 17 | F177: 0 | G177: 0 | H177: 0 | I177: 24 | J177: 0 | K177: 0 | L177: 0 | M177: 24 | N177: 0 | O177: 0 | P177: 0 | Q177: 24 | R177: 0 | S177: 0 | T177: 0 | U177: 16 | V177: 0 | W177: 0 | X177: 0 | Y177: 18 | Z177: 0 | AA177: 0 | AB177: 0 | AC177: 24 | AD177: 0 | AE177: 0
A178: 77 | B178: Skanderborg | C178: 60-64 år | D178: 1 | E178: 13 | F178: 0 | G178: 0 | H178: 2 | I178: 6 | J178: 0 | K178: 0 | L178: 3 | M178: 9 | N178: 0 | O178: 0 | P178: 2 | Q178: 7 | R178: 0 | S178: 0 | T178: 0 | U178: 12 | V178: 0 | W178: 0 | X178: 0 | Y178: 3 | Z178: 0 | AA178: 0 | AB178: 0 | AC178: 4 | AD178: 0 | AE178: 0
A179: 78 | B179: Syddjurs | C179: 60-64 år | D179: 0 | E179: 7 | F179: 0 | G179: 0 | H179: 0 | I179: 12 | J179: 0 | K179: 0 | L179: 0 | M179: 11 | N179: 0 | O179: 0 | P179: 0 | Q179: 8 | R179: 0 | S179: 0 | T179: 0 | U179: 8 | V179: 0 | W179: 0 | X179: 0 | Y179: 8 | Z179: 0 | AA179: 0 | AB179: 0 | AC179: 10 | AD179: 0 | AE179: 0
A180: 79 | B180: Aarhus | C180: 60-64 år | D180: 4 | E180: 66 | F180: 0 | G180: 0 | H180: 4 | I180: 42 | J180: 0 | K180: 0 | L180: 4 | M180: 38 | N180: 0 | O180: 0 | P180: 6 | Q180: 51 | R180: 0 | S180: 0 | T180: 5 | U180: 52 | V180: 1 | W180: 0 | X180: 11 | Y180: 56 | Z180: 1 | AA180: 0 | AB180: 6 | AC180: 47 | AD180: 1 | AE180: 0
A181: 80 | B181: Herning | C181: 60-64 år | D181: 0 | E181: 16 | F181: 2 | G181: 0 | H181: 0 | I181: 16 | J181: 2 | K181: 0 | L181: 1 | M181: 11 | N181: 2 | O181: 0 | P181: 1 | Q181: 11 | R181: 2 | S181: 0 | T181: 0 | U181: 16 | V181: 2 | W181: 0 | X181: 0 | Y181: 19 | Z181: 1 | AA181: 0 | AB181: 0 | AC181: 19 | AD181: 1 | AE181: 0
A182: 81 | B182: Holstebro | C182: 60-64 år | D182: 0 | E182: 10 | F182: 0 | G182: 0 | H182: 0 | I182: 10 | J182: 0 | K182: 0 | L182: 0 | M182: 6 | N182: 0 | O182: 0 | P182: 0 | Q182: 7 | R182: 0 | S182: 0 | T182: 0 | U182: 6 | V182: 0 | W182: 0 | X182: 0 | Y182: 11 | Z182: 0 | AA182: 0 | AB182: 0 | AC182: 10 | AD182: 2 | AE182: 0
A183: 82 | B183: Ikast-Brande | C183: 60-64 år | D183: 0 | E183: 8 | F183: 0 | G183: 0 | H183: 0 | I183: 8 | J183: 0 | K183: 0 | L183: 0 | M183: 6 | N183: 0 | O183: 0 | P183: 0 | Q183: 7 | R183: 0 | S183: 0 | T183: 0 | U183: 7 | V183: 0 | W183: 0 | X183: 0 | Y183: 5 | Z183: 0 | AA183: 0 | AB183: 0 | AC183: 3 | AD183: 0 | AE183: 0
A184: 83 | B184: Lemvig | C184: 60-64 år | D184: 0 | E184: 4 | F184: 0 | G184: 0 | H184: 0 | I184: 6 | J184: 0 | K184: 0 | L184: 0 | M184: 6 | N184: 0 | O184: 0 | P184: 3 | Q184: 1 | R184: 0 | S184: 0 | T184: 0 | U184: 5 | V184: 0 | W184: 0 | X184: 0 | Y184: 5 | Z184: 0 | AA184: 0 | AB184: 0 | AC184: 3 | AD184: 0 | AE184: 0
A185: 84 | B185: Ringkøbing-Skjern | C185: 60-64 år | D185: 0 | E185: 6 | F185: 0 | G185: 0 | H185: 0 | I185: 3 | J185: 0 | K185: 0 | L185: 0 | M185: 7 | N185: 2 | O185: 0 | P185: 0 | Q185: 3 | R185: 1 | S185: 0 | T185: 0 | U185: 8 | V185: 2 | W185: 0 | X185: 0 | Y185: 14 | Z185: 1 | AA185: 0 | AB185: 0 | AC185: 8 | AD185: 1 | AE185: 0
A186: 85 | B186: Skive | C186: 60-64 år | D186: 0 | E186: 14 | F186: 0 | G186: 0 | H186: 0 | I186: 10 | J186: 0 | K186: 0 | L186: 0 | M186: 13 | N186: 0 | O186: 0 | P186: 0 | Q186: 8 | R186: 0 | S186: 0 | T186: 0 | U186: 8 | V186: 0 | W186: 0 | X186: 0 | Y186: 10 | Z186: 1 | AA186: 0 | AB186: 0 | AC186: 8 | AD186: 0 | AE186: 0
A187: 86 | B187: Struer | C187: 60-64 år | D187: 1 | E187: 4 | F187: 0 | G187: 0 | H187: 3 | I187: 6 | J187: 0 | K187: 0 | L187: 3 | M187: 3 | N187: 0 | O187: 0 | P187: 2 | Q187: 3 | R187: 0 | S187: 0 | T187: 0 | U187: 5 | V187: 0 | W187: 0 | X187: 0 | Y187: 5 | Z187: 0 | AA187: 0 | AB187: 0 | AC187: 4 | AD187: 0 | AE187: 0
A188: 87 | B188: Viborg | C188: 60-64 år | D188: 0 | E188: 9 | F188: 1 | G188: 0 | H188: 0 | I188: 16 | J188: 2 | K188: 0 | L188: 0 | M188: 25 | N188: 3 | O188: 0 | P188: 0 | Q188: 23 | R188: 3 | S188: 0 | T188: 0 | U188: 13 | V188: 5 | W188: 0 | X188: 0 | Y188: 17 | Z188: 1 | AA188: 0 | AB188: 0 | AC188: 18 | AD188: 1 | AE188: 0
A189: 88 | B189: Brønderslev | C189: 60-64 år | D189: 0 | E189: 3 | F189: 0 | G189: 0 | H189: 0 | I189: 4 | J189: 0 | K189: 0 | L189: 0 | M189: 7 | N189: 1 | O189: 0 | P189: 0 | Q189: 5 | R189: 1 | S189: 0 | T189: 0 | U189: 2 | V189: 1 | W189: 0 | X189: 0 | Y189: 6 | Z189: 1 | AA189: 0 | AB189: 2 | AC189: 5 | AD189: 1 | AE189: 0
A190: 89 | B190: Frederikshavn | C190: 60-64 år | D190: 0 | E190: 22 | F190: 0 | G190: 0 | H190: 0 | I190: 13 | J190: 0 | K190: 0 | L190: 0 | M190: 18 | N190: 0 | O190: 0 | P190: 0 | Q190: 16 | R190: 0 | S190: 0 | T190: 0 | U190: 11 | V190: 0 | W190: 0 | X190: 0 | Y190: 13 | Z190: 0 | AA190: 0 | AB190: 0 | AC190: 13 | AD190: 0 | AE190: 0
A191: 90 | B191: Hjørring | C191: 60-64 år | D191: 0 | E191: 9 | F191: 0 | G191: 0 | H191: 0 | I191: 11 | J191: 0 | K191: 0 | L191: 0 | M191: 11 | N191: 0 | O191: 0 | P191: 0 | Q191: 13 | R191: 0 | S191: 0 | T191: 0 | U191: 10 | V191: 1 | W191: 0 | X191: 0 | Y191: 9 | Z191: 1 | AA191: 0 | AB191: 0 | AC191: 13 | AD191: 1 | AE191: 0
A192: 91 | B192: Jammerbugt | C192: 60-64 år | D192: 2 | E192: 6 | F192: 0 | G192: 0 | H192: 2 | I192: 8 | J192: 0 | K192: 0 | L192: 0 | M192: 7 | N192: 0 | O192: 0 | P192: 0 | Q192: 7 | R192: 0 | S192: 0 | T192: 0 | U192: 3 | V192: 0 | W192: 0 | X192: 0 | Y192: 4 | Z192: 0 | AA192: 0 | AB192: 0 | AC192: 3 | AD192: 0 | AE192: 0
A193: 92 | B193: Læsø | C193: 60-64 år | D193: 0 | E193: 3 | F193: 0 | G193: 0 | H193: 0 | I193: 3 | J193: 0 | K193: 0 | L193: 0 | M193: 1 | N193: 0 | O193: 0 | P193: 0 | Q193: 0 | R193: 0 | S193: 0 | T193: 0 | U193: 0 | V193: 0 | W193: 0 | X193: 0 | Y193: 0 | Z193: 0 | AA193: 0 | AB193: 0 | AC193: 1 | AD193: 0 | AE193: 0
A194: 93 | B194: Mariagerfjord | C194: 60-64 år | D194: 0 | E194: 7 | F194: 0 | G194: 0 | H194: 0 | I194: 9 | J194: 0 | K194: 0 | L194: 0 | M194: 11 | N194: 0 | O194: 0 | P194: 0 | Q194: 12 | R194: 0 | S194: 0 | T194: 0 | U194: 11 | V194: 0 | W194: 0 | X194: 0 | Y194: 10 | Z194: 0 | AA194: 0 | AB194: 0 | AC194: 4 | AD194: 0 | AE194: 0
A195: 94 | B195: Morsø | C195: 60-64 år | D195: 0 | E195: 6 | F195: 0 | G195: 0 | H195: 0 | I195: 4 | J195: 0 | K195: 0 | L195: 0 | M195: 4 | N195: 0 | O195: 0 | P195: 0 | Q195: 4 | R195: 0 | S195: 0 | T195: 0 | U195: 4 | V195: 0 | W195: 0 | X195: 0 | Y195: 7 | Z195: 0 | AA195: 0 | AB195: 0 | AC195: 5 | AD195: 0 | AE195: 0
A196: 95 | B196: Rebild | C196: 60-64 år | D196: 0 | E196: 4 | F196: 0 | G196: 0 | H196: 0 | I196: 3 | J196: 0 | K196: 0 | L196: 0 | M196: 2 | N196: 0 | O196: 0 | P196: 0 | Q196: 0 | R196: 0 | S196: 0 | T196: 0 | U196: 0 | V196: 0 | W196: 0 | X196: 0 | Y196: 1 | Z196: 0 | AA196: 0 | AB196: 0 | AC196: 3 | AD196: 0 | AE196: 0
A197: 96 | B197: Thisted | C197: 60-64 år | D197: 0 | E197: 9 | F197: 0 | G197: 0 | H197: 0 | I197: 16 | J197: 0 | K197: 0 | L197: 0 | M197: 18 | N197: 0 | O197: 0 | P197: 0 | Q197: 12 | R197: 0 | S197: 0 | T197: 0 | U197: 8 | V197: 0 | W197: 0 | X197: 0 | Y197: 12 | Z197: 0 | AA197: 0 | AB197: 0 | AC197: 11 | AD197: 0 | AE197: 0
A198: 97 | B198: Vesthimmerlands | C198: 60-64 år | D198: 0 | E198: 3 | F198: 0 | G198: 0 | H198: 0 | I198: 3 | J198: 0 | K198: 0 | L198: 0 | M198: 0 | N198: 0 | O198: 0 | P198: 0 | Q198: 0 | R198: 0 | S198: 0 | T198: 0 | U198: 6 | V198: 0 | W198: 0 | X198: 0 | Y198: 7 | Z198: 0 | AA198: 0 | AB198: 0 | AC198: 8 | AD198: 0 | AE198: 0
A199: 98 | B199: Aalborg | C199: 60-64 år | D199: 6 | E199: 38 | F199: 1 | G199: 0 | H199: 12 | I199: 34 | J199: 1 | K199: 0 | L199: 9 | M199: 33 | N199: 1 | O199: 0 | P199: 8 | Q199: 32 | R199: 1 | S199: 0 | T199: 1 | U199: 30 | V199: 0 | W199: 0 | X199: 5 | Y199: 27 | Z199: 0 | AA199: 0 | AB199: 6 | AC199: 32 | AD199: 0 | AE199: 0
A200: 1 | B200: København | C200: 65-66 år | D200: 38 | E200: 27 | F200: 0 | G200: 0 | H200: 22 | I200: 26 | J200: 0 | K200: 0 | L200: 21 | M200: 22 | N200: 0 | O200: 0 | P200: 23 | Q200: 34 | R200: 0 | S200: 0 | T200: 16 | U200: 44 | V200: 1 | W200: 0 | X200: 17 | Y200: 49 | Z200: 2 | AA200: 0 | AB200: 29 | AC200: 51 | AD200: 1 | AE200: 0
... 587 more rows

Sheet Registerdata ventetid
A1: Opdateret d. 30/06 2023 af AMBZ
A2: Kilde: DST, Tabel AED16
B3: 2022
B4: Personer på venteliste i alt | C4: Personer visiteret til den generelle venteliste | D4: Personer der vælger frit valg | E4: Andel af personer på venteliste i alt, der vælger frit valg | F4: Andel af personer på generel venteliste | G4: Gennemsnitlig ventetid til plejebolig for personer på generel venteliste, som har fået tilbudt bolig i året, måneder | H4: Gennemsnitlig ventetid til plejebolig for personer på generel venteliste, som har fået tilbudt bolig i året, dage
J5: Gns. Måned:
A6: København | B6: 1246 | C6: 470 | D6: 776 | E6: 62 | F6: =C6/B6 -> 0.3772070626 | G6: =$H6/$J$6 -> 0.197260274 | H6: 6 | J6: =365/12 -> 30.41666667
A7: Frederiksberg | B7: 302 | C7: 12 | D7: 290 | E7: 96 | F7: =C7/B7 -> 0.03973509934 | G7: =$H7/$J$6 -> 1.84109589 | H7: 56
A8: Albertslund | B8: 105 | C8: 73 | D8: 32 | E8: 31 | F8: =C8/B8 -> 0.6952380952 | G8: =$H8/$J$6 -> 2.301369863 | H8: 70
A9: Allerød | B9: 71 | C9: 42 | D9: 29 | E9: 41 | F9: =C9/B9 -> 0.5915492958 | G9: 0.8547945205 | H9: 26
A10: Ballerup | B10: 173 | C10: 116 | D10: 57 | E10: 33 | F10: 0.6705202312 | G10: 1.479452055 | H10: 45
A11: Bornholm | B11: 166 | C11: 44 | D11: 122 | E11: 74 | F11: 0.265060241 | G11: 0.3616438356 | H11: 11
A12: Brøndby | B12: 141 | C12: 61 | D12: 80 | E12: 57 | F12: 0.4326241135 | G12: 0.8219178082 | H12: 25
A13: Dragør | B13: 77 | C13: 73 | D13: 4 | E13: 5 | F13: 0.9480519481 | G13: 2.005479452 | H13: 61
A14: Egedal | B14: 126 | C14: 43 | D14: 83 | E14: 66 | F14: 0.3412698413 | G14: 0.8547945205 | H14: 26
A15: Fredensborg | B15: 105 | C15: 66 | D15: 39 | E15: 37 | F15: 0.6285714286 | G15: 0.2301369863 | H15: 7
A16: Frederikssund | B16: 169 | C16: 61 | D16: 108 | E16: 64 | F16: 0.3609467456 | G16: 2.005479452 | H16: 61
A17: Furesø | B17: 168 | C17: 83 | D17: 85 | E17: 51 | F17: 0.494047619 | G17: 1.906849315 | H17: 58
A18: Gentofte | B18: 547 | C18: 205 | D18: 342 | E18: 63 | F18: 0.3747714808 | G18: 0.7232876712 | H18: 22
A19: Gladsaxe | B19: 245 | C19: 134 | D19: 111 | E19: 45 | F19: 0.5469387755 | G19: 1.084931507 | H19: 33
A20: Glostrup | B20: 105 | C20: 42 | D20: 63 | E20: 60 | F20: 0.4 | G20: 2.991780822 | H20: 91
A21: Gribskov | B21: 139 | C21: 57 | D21: 82 | E21: 59 | F21: 0.4100719424 | G21: 1.117808219 | H21: 34
A22: Halsnæs | B22: 186 | C22: 87 | D22: 99 | E22: 53 | F22: 0.4677419355 | G22: 0.4602739726 | H22: 14
A23: Helsingør | B23: 244 | C23: 159 | D23: 85 | E23: 35 | F23: 0.6516393443 | G23: 1.052054795 | H23: 32
A24: Herlev | B24: 65 | C24: 17 | D24: 48 | E24: 74 | F24: 0.2615384615 | G24: 1.97260274 | H24: 60
A25: Hillerød | B25: 199 | C25: 143 | D25: 56 | E25: 28 | F25: 0.7185929648 | G25: 1.052054795 | H25: 32
A26: Hvidovre | B26: 145 | C26: 113 | D26: 32 | E26: 22 | F26: 0.7793103448 | G26: 0.7232876712 | H26: 22
A27: Høje-Taastrup | B27: 132 | C27: 82 | D27: 50 | E27: 38 | F27: 0.6212121212 | G27: 0.5260273973 | H27: 16
A28: Hørsholm | B28: 131 | C28: 97 | D28: 34 | E28: 26 | F28: 0.7404580153 | G28: 1.117808219 | H28: 34
A29: Ishøj | B29: 34 | C29: 16 | D29: 18 | E29: 53 | F29: 0.4705882353 | G29: 1.578082192 | H29: 48
A30: Lyngby-Taarbæk | B30: 369 | C30: 157 | D30: 212 | E30: 58 | F30: 0.4254742547 | G30: 1.775342466 | H30: 54
A31: Rudersdal | B31: 445 | C31: 68 | D31: 377 | E31: 85 | F31: 0.1528089888 | G31: 0.5260273973 | H31: 16
A32: Rødovre | B32: 158 | C32: 98 | D32: 60 | E32: 38 | F32: 0.6202531646 | G32: 0.7890410959 | H32: 24
A33: Tårnby | B33: 149 | C33: 95 | D33: 54 | E33: 36 | F33: 0.6375838926 | G33: 0.1643835616 | H33: 5
A34: Vallensbæk | B34: 31 | C34: 19 | D34: 12 | E34: 39 | F34: 0.6129032258 | G34: 4.602739726 | H34: 140
A35: Faxe | B35: 139 | C35: 50 | D35: 89 | E35: 64 | F35: 0.3597122302 | G35: 0.2630136986 | H35: 8
A36: Greve | B36: 163 | C36: 89 | D36: 74 | E36: 45 | F36: 0.5460122699 | G36: 0.9863013699 | H36: 30
A37: Guldborgsund | B37: 272 | C37: 31 | D37: 241 | E37: 89 | F37: 0.1139705882 | G37: 0.3616438356 | H37: 11
A38: Holbæk | B38: 204 | C38: 114 | D38: 90 | E38: 44 | F38: 0.5588235294 | G38: 1.446575342 | H38: 44
A39: Kalundborg | B39: 171 | C39: 34 | D39: 137 | E39: 80 | F39: 0.1988304094 | G39: 0.7232876712 | H39: 22
A40: Køge | B40: 203 | C40: 104 | D40: 99 | E40: 49 | F40: 0.5123152709 | G40: 1.216438356 | H40: 37
A41: Lejre | B41: 102 | C41: 19 | D41: 83 | E41: 81 | F41: 0.1862745098 | G41: 0.7232876712 | H41: 22
A42: Lolland | B42: 174 | C42: 8 | D42: 166 | E42: 95 | F42: 0.04597701149 | G42: 0.1315068493 | H42: 4
A43: Næstved | B43: 245 | C43: 146 | D43: 99 | E43: 40 | F43: 0.5959183673 | G43: 1.479452055 | H43: 45
A44: Odsherred | B44: 101 | C44: 18 | D44: 83 | E44: 82 | F44: 0.1782178218 | G44: 1.545205479 | H44: 47
A45: Ringsted | B45: 37 | C45: 18 | D45: 19 | E45: 51 | F45: =C45/B45 -> 0.4864864865 | G45: 1.347945205 | H45: 41
A46: Roskilde | B46: 343 | C46: 56 | D46: 287 | E46: 84 | F46: 0.1632653061 | G46: 1.052054795 | H46: 32
A47: Slagelse | B47: 323 | C47: 46 | D47: 277 | E47: 86 | F47: 0.1424148607 | G47: 0.6575342466 | H47: 20
A48: Solrød | B48: 37 | C48: 24 | D48: 13 | E48: 35 | F48: 0.6486486486 | G48: 3.189041096 | H48: 97
A49: Sorø | B49: 106 | C49: 22 | D49: 84 | E49: 79 | F49: 0.2075471698 | G49: 0.5917808219 | H49: 18
A50: Stevns | B50: 69 | C50: 24 | D50: 45 | E50: 65 | F50: 0.347826087 | G50: 0.5917808219 | H50: 18
A51: Vordingborg | B51: 140 | C51: 12 | D51: 128 | E51: 91 | F51: 0.08571428571 | G51: 0.3287671233 | H51: 10
A52: Assens | B52: 127 | C52: 24 | D52: 103 | E52: 81 | F52: 0.188976378 | G52: 1.019178082 | H52: 31
A53: Billund | B53: 50 | C53: 11 | D53: 39 | E53: 78 | F53: 0.22 | G53: 0.2630136986 | H53: 8
A54: Esbjerg | B54: 550 | C54: 2 | D54: 548 | E54: 100 | F54: 0.003636363636 | G54: 0 | H54: 0
A55: Fanø | B55: 19 | C55: 19 | D55: 0 | E55: 0 | F55: 1 | G55: 0.9205479452 | H55: 28
A56: Fredericia | B56: 189 | C56: 126 | D56: 63 | E56: 33 | F56: 0.6666666667 | G56: 0.4931506849 | H56: 15
A57: Faaborg-Midtfyn | B57: 179 | C57: 16 | D57: 163 | E57: 91 | F57: 0.08938547486 | G57: 0.4931506849 | H57: 15
A58: Haderslev | B58: 230 | C58: 44 | D58: 186 | E58: 81 | F58: 0.1913043478 | G58: 0.6246575342 | H58: 19
A59: Kerteminde | B59: 102 | C59: 65 | D59: 37 | E59: 36 | F59: 0.637254902 | G59: 1.742465753 | H59: 53
A60: Kolding | B60: 273 | C60: 203 | D60: 70 | E60: 26 | F60: 0.7435897436 | G60: 1.380821918 | H60: 42
A61: Langeland | B61: 73 | C61: 3 | D61: 70 | E61: 96 | F61: 0.04109589041 | G61: 0.06575342466 | H61: 2
A62: Middelfart | B62: 135 | C62: 41 | D62: 94 | E62: 70 | F62: 0.3037037037 | G62: 0.5260273973 | H62: 16
A63: Nordfyns | B63: 134 | C63: 24 | D63: 110 | E63: 82 | F63: 0.1791044776 | G63: 0.295890411 | H63: 9
A64: Nyborg | B64: 156 | C64: 81 | D64: 75 | E64: 48 | F64: 0.5192307692 | G64: 1.183561644 | H64: 36
A65: Odense | B65: 664 | C65: 62 | D65: 602 | E65: 91 | F65: 0.09337349398 | G65: 0.6246575342 | H65: 19
A66: Svendborg | B66: 303 | C66: 164 | D66: 139 | E66: 46 | F66: 0.5412541254 | G66: 0.7890410959 | H66: 24
A67: Sønderborg | B67: 285 | C67: 6 | D67: 279 | E67: 98 | F67: 0.02105263158 | G67: 0.5260273973 | H67: 16
A68: Tønder | B68: 151 | C68: 9 | D68: 142 | E68: 94 | F68: 0.05960264901 | G68: 0.4273972603 | H68: 13
A69: Varde | B69: 210 | C69: 11 | D69: 199 | E69: 95 | F69: 0.05238095238 | G69: 0.7890410959 | H69: 24
A70: Vejen | B70: 159 | C70: 0 | D70: 159 | E70: 100 | F70: 0 | G70: 0 | H70: 0
A71: Vejle | B71: 504 | C71: 9 | D71: 495 | E71: 98 | F71: =C71/B71 -> 0.01785714286 | G71: =$H71/$J$6 -> 0.197260274 | H71: 6
A72: Ærø | B72: 33 | C72: 15 | D72: 18 | E72: 55 | F72: 0.4545454545 | G72: 0.3945205479 | H72: 12
A73: Aabenraa | B73: 216 | C73: 32 | D73: 184 | E73: 85 | F73: 0.1481481481 | G73: 0.197260274 | H73: 6
A74: Favrskov | B74: 99 | C74: 38 | D74: 61 | E74: 62 | F74: 0.3838383838 | G74: 1.643835616 | H74: 50
A75: Hedensted | B75: 131 | C75: 5 | D75: 126 | E75: 96 | F75: 0.03816793893 | G75: 0.7890410959 | H75: 24
A76: Herning | B76: 379 | C76: 1 | D76: 378 | E76: 100 | F76: 0.002638522427 | G76: 0.09863013699 | H76: 3
A77: Holstebro | B77: 249 | C77: 9 | D77: 240 | E77: 96 | F77: 0.03614457831 | G77: 0.2630136986 | H77: 8
A78: Horsens | B78: 160 | C78: 9 | D78: 151 | E78: 94 | F78: 0.05625 | G78: 1.249315068 | H78: 38
A79: Ikast-Brande | B79: 121 | C79: 0 | D79: 121 | E79: 100 | F79: 0 | G79: 0 | H79: 0
A80: Lemvig | B80: 103 | C80: 37 | D80: 66 | E80: 64 | F80: 0.359223301 | G80: 1.019178082 | H80: 31
A81: Norddjurs | B81: 158 | C81: 8 | D81: 150 | E81: 95 | F81: 0.05063291139 | G81: 0.197260274 | H81: 6
A82: Odder | B82: 95 | C82: 29 | D82: 66 | E82: 70 | F82: 0.3052631579 | G82: 1.347945205 | H82: 41
A83: Randers | B83: 323 | C83: 79 | D83: 244 | E83: 76 | F83: 0.2445820433 | G83: 0.1643835616 | H83: 5
A84: Ringkøbing-Skjern | B84: 220 | C84: 61 | D84: 159 | E84: 72 | F84: 0.2772727273 | G84: 0.6575342466 | H84: 20
A85: Samsø | B85: 23 | C85: 0 | D85: 23 | E85: 100 | F85: 0 | G85: 0 | H85: 0
A86: Silkeborg | B86: 352 | C86: 74 | D86: 278 | E86: 79 | F86: 0.2102272727 | G86: 0.7232876712 | H86: 22
A87: Skanderborg | B87: 213 | C87: 72 | D87: 141 | E87: 66 | F87: 0.338028169 | G87: 0.4273972603 | H87: 13
A88: Skive | B88: 165 | C88: 2 | D88: 163 | E88: 99 | F88: 0.01212121212 | G88: 0.09863013699 | H88: 3
A89: Struer | B89: 102 | C89: 0 | D89: 102 | E89: 100 | F89: 0 | G89: 0 | H89: 0
A90: Syddjurs | B90: 140 | C90: 17 | D90: 123 | E90: 88 | F90: 0.1214285714 | G90: 0.6904109589 | H90: 21
A91: Viborg | B91: 349 | C91: 38 | D91: 311 | E91: 89 | F91: 0.1088825215 | G91: 0.3616438356 | H91: 11
A92: Aarhus | B92: 866 | C92: 384 | D92: 482 | E92: 56 | F92: 0.4434180139 | G92: 0.4602739726 | H92: 14
A93: Brønderslev | B93: 111 | C93: 28 | D93: 83 | E93: 75 | F93: 0.2522522523 | G93: 0.3287671233 | H93: 10
A94: Frederikshavn | B94: 216 | C94: 1 | D94: 215 | E94: 100 | F94: 0.00462962963 | G94: 0.5260273973 | H94: 16
A95: Hjørring | B95: 216 | C95: 92 | D95: 124 | E95: 57 | F95: 0.4259259259 | G95: 0.9205479452 | H95: 28
A96: Jammerbugt | B96: 132 | C96: 4 | D96: 128 | E96: 97 | F96: 0.0303030303 | G96: 1.216438356 | H96: 37
A97: Læsø | B97: 4 | C97: 4 | D97: 0 | E97: 0 | F97: 1 | G97: 0 | H97: 0
A98: Mariagerfjord | B98: 259 | C98: 9 | D98: 250 | E98: 97 | F98: 0.03474903475 | G98: 0.295890411 | H98: 9
A99: Morsø | B99: 87 | C99: 3 | D99: 84 | E99: 97 | F99: 0.03448275862 | G99: 0 | H99: 0
A100: Rebild | B100: 106 | C100: 2 | D100: 104 | E100: 98 | F100: 0.01886792453 | G100: 0.1315068493 | H100: 4
A101: Thisted | B101: 334 | C101: 130 | D101: 204 | E101: 61 | F101: 0.3892215569 | G101: 1.315068493 | H101: 40
A102: Vesthimmerlands | B102: 147 | C102: 0 | D102: 147 | E102: 100 | F102: 0 | G102: 0 | H102: 0
A103: Aalborg | B103: 498 | C103: 2 | D103: 496 | E103: 100 | F103: 0.004016064257 | G103: 1.084931507 | H103: 33

Sheet Befolkningsfremskriv - inddata
A1: Opdateret d. 20/06 2023 af MAKA
A2: Kilde: DST, tabel FRKM123 | C2: Faktiske tal | K2: Prognose ->
C3: 2 | D3: 3 | E3: 4 | F3: 5 | G3: 6 | H3: 7 | I3: 8 | J3: 9 | K3: 10 | L3: 11 | M3: 12 | N3: 13 | O3: 14 | P3: 15 | Q3: 16 | R3: 17 | S3: 18 | T3: 19 | U3: 20 | V3: 21 | W3: 22 | X3: 23 | Y3: 24 | Z3: 25 | AA3: 26 | AB3: 27 | AC3: 28 | AD3: 29 | AE3: 30 | AF3: 31
C4: 2016 | D4: 2017 | E4: 2018 | F4: 2019 | G4: 2020 | H4: 2021 | I4: 2022 | J4: 2023 | K4: 2024 | L4: 2025 | M4: 2026 | N4: 2027 | O4: 2028 | P4: 2029 | Q4: 2030 | R4: 2031 | S4: 2032 | T4: 2033 | U4: 2034 | V4: 2035 | W4: 2036 | X4: 2037 | Y4: 2038 | Z4: 2039 | AA4: 2040 | AB4: 2041 | AC4: 2042 | AD4: 2043 | AE4: 2044 | AF4: 2045 | AG4: 2046 | AH4: 2047 | AI4: 2048 | AJ4: 2049 | AK4: 2050
A5: Under 60 | B5: København | C5: 507478 | D5: 517238 | E5: 526754 | F5: 535451 | G5: 542757 | H5: 546708 | I5: 551383 | J5: 558391 | K5: 562211 | L5: 560486 | M5: 562357 | N5: 564118 | O5: 566211 | P5: 568633 | Q5: 571008 | R5: 572834 | S5: 573978 | T5: 574304 | U5: 574469 | V5: 574094 | W5: 573588 | X5: 573540 | Y5: 573818 | Z5: 573922 | AA5: 574150 | AB5: 574540 | AC5: 575272 | AD5: 576108 | AE5: 576946 | AF5: 577702 | AG5: 578413 | AH5: 579258 | AI5: 580368 | AJ5: 581499 | AK5: 582742
B6: Frederiksberg | C6: 82492 | D6: 82864 | E6: 82185 | F6: 81608 | G6: 81686 | H6: 80823 | I6: 80612 | J6: 81432 | K6: 81079 | L6: 79553 | M6: 78898 | N6: 78318 | O6: 77849 | P6: 77502 | Q6: 77261 | R6: 76879 | S6: 76462 | T6: 75998 | U6: 75532 | V6: 75060 | W6: 74587 | X6: 74276 | Y6: 74008 | Z6: 73802 | AA6: 73649 | AB6: 73539 | AC6: 73517 | AD6: 73548 | AE6: 73574 | AF6: 73641 | AG6: 73711 | AH6: 73797 | AI6: 73942 | AJ6: 74085 | AK6: 74236
B7: Dragør | C7: 9861 | D7: 9961 | E7: 9911 | F7: 9902 | G7: 10089 | H7: 10082 | I7: 10080 | J7: 10023 | K7: 10044 | L7: 9928 | M7: 9909 | N7: 9869 | O7: 9848 | P7: 9882 | Q7: 9891 | R7: 9926 | S7: 9945 | T7: 9960 | U7: 10001 | V7: 10019 | W7: 10048 | X7: 10082 | Y7: 10104 | Z7: 10119 | AA7: 10147 | AB7: 10189 | AC7: 10239 | AD7: 10295 | AE7: 10345 | AF7: 10383 | AG7: 10408 | AH7: 10429 | AI7: 10442 | AJ7: 10431 | AK7: 10419
B8: Tårnby | C8: 32422 | D8: 32456 | E8: 32486 | F8: 32364 | G8: 32277 | H8: 31921 | I8: 31900 | J8: 32064 | K8: 31968 | L8: 31537 | M8: 31375 | N8: 31190 | O8: 31084 | P8: 31046 | Q8: 31015 | R8: 30995 | S8: 30946 | T8: 30894 | U8: 30845 | V8: 30790 | W8: 30726 | X8: 30707 | Y8: 30712 | Z8: 30704 | AA8: 30711 | AB8: 30715 | AC8: 30783 | AD8: 30842 | AE8: 30890 | AF8: 30950 | AG8: 30977 | AH8: 30992 | AI8: 30998 | AJ8: 30979 | AK8: 30953
B9: Albertslund | C9: 21663 | D9: 21603 | E9: 21435 | F9: 21547 | G9: 21379 | H9: 20944 | I9: 21087 | J9: 20949 | K9: 20763 | L9: 20400 | M9: 20193 | N9: 20022 | O9: 19864 | P9: 19740 | Q9: 19681 | R9: 19589 | S9: 19517 | T9: 19458 | U9: 19400 | V9: 19319 | W9: 19258 | X9: 19231 | Y9: 19205 | Z9: 19206 | AA9: 19210 | AB9: 19195 | AC9: 19224 | AD9: 19242 | AE9: 19279 | AF9: 19313 | AG9: 19354 | AH9: 19375 | AI9: 19394 | AJ9: 19404 | AK9: 19405
B10: Ballerup | C10: 35833 | D10: 35798 | E10: 35767 | F10: 35866 | G10: 35887 | H10: 36471 | I10: 36364 | J10: 36905 | K10: 37017 | L10: 36749 | M10: 36707 | N10: 36690 | O10: 36768 | P10: 36922 | Q10: 37084 | R10: 37234 | S10: 37329 | T10: 37495 | U10: 37647 | V10: 37761 | W10: 37854 | X10: 38056 | Y10: 38222 | Z10: 38360 | AA10: 38533 | AB10: 38682 | AC10: 38866 | AD10: 39028 | AE10: 39189 | AF10: 39348 | AG10: 39446 | AH10: 39531 | AI10: 39568 | AJ10: 39596 | AK10: 39588
B11: Brøndby | C11: 26583 | D11: 26734 | E11: 26637 | F11: 26452 | G11: 26133 | H11: 26181 | I11: 26552 | J11: 27930 | K11: 28119 | L11: 27944 | M11: 27995 | N11: 28071 | O11: 28193 | P11: 28350 | Q11: 28499 | R11: 28666 | S11: 28821 | T11: 28939 | U11: 29068 | V11: 29173 | W11: 29261 | X11: 29371 | Y11: 29499 | Z11: 29577 | AA11: 29693 | AB11: 29790 | AC11: 29899 | AD11: 29999 | AE11: 30114 | AF11: 30207 | AG11: 30274 | AH11: 30334 | AI11: 30379 | AJ11: 30400 | AK11: 30406
B12: Gentofte | C12: 56606 | D12: 56809 | E12: 56608 | F12: 55690 | G12: 55106 | H12: 54541 | I12: 53933 | J12: 54213 | K12: 53784 | L12: 52463 | M12: 51751 | N12: 51091 | O12: 50522 | P12: 50090 | Q12: 49750 | R12: 49433 | S12: 49022 | T12: 48750 | U12: 48529 | V12: 48328 | W12: 48188 | X12: 48127 | Y12: 48141 | Z12: 48129 | AA12: 48148 | AB12: 48221 | AC12: 48343 | AD12: 48467 | AE12: 48636 | AF12: 48788 | AG12: 48898 | AH12: 48979 | AI12: 49025 | AJ12: 49027 | AK12: 49003
B13: Gladsaxe | C13: 53054 | D13: 53822 | E13: 54384 | F13: 54416 | G13: 53840 | H13: 53644 | I13: 53640 | J13: 54225 | K13: 54113 | L13: 53340 | M13: 53109 | N13: 52895 | O13: 52817 | P13: 52809 | Q13: 52813 | R13: 52853 | S13: 52857 | T13: 52861 | U13: 52821 | V13: 52765 | W13: 52746 | X13: 52835 | Y13: 52901 | Z13: 52954 | AA13: 53014 | AB13: 53079 | AC13: 53175 | AD13: 53261 | AE13: 53371 | AF13: 53459 | AG13: 53538 | AH13: 53563 | AI13: 53588 | AJ13: 53578 | AK13: 53539
B14: Glostrup | C14: 17093 | D14: 17138 | E14: 17262 | F14: 17136 | G14: 17573 | H14: 17798 | I14: 17912 | J14: 17979 | K14: 18113 | L14: 17948 | M14: 17943 | N14: 17916 | O14: 17958 | P14: 18028 | Q14: 18090 | R14: 18138 | S14: 18178 | T14: 18198 | U14: 18237 | V14: 18269 | W14: 18305 | X14: 18348 | Y14: 18393 | Z14: 18423 | AA14: 18469 | AB14: 18505 | AC14: 18564 | AD14: 18613 | AE14: 18668 | AF14: 18716 | AG14: 18758 | AH14: 18786 | AI14: 18812 | AJ14: 18827 | AK14: 18833
B15: Herlev | C15: 21495 | D15: 21382 | E15: 21458 | F15: 21574 | G15: 21680 | H15: 21581 | I15: 21473 | J15: 21800 | K15: 21816 | L15: 21590 | M15: 21529 | N15: 21447 | O15: 21427 | P15: 21443 | Q15: 21484 | R15: 21519 | S15: 21515 | T15: 21524 | U15: 21526 | V15: 21521 | W15: 21502 | X15: 21514 | Y15: 21531 | Z15: 21537 | AA15: 21576 | AB15: 21602 | AC15: 21661 | AD15: 21701 | AE15: 21750 | AF15: 21795 | AG15: 21840 | AH15: 21844 | AI15: 21871 | AJ15: 21891 | AK15: 21881
B16: Hvidovre | C16: 41054 | D16: 41061 | E16: 41315 | F16: 41364 | G16: 41386 | H16: 41238 | I16: 40974 | J16: 41043 | K16: 40946 | L16: 40471 | M16: 40293 | N16: 40123 | O16: 40048 | P16: 40035 | Q16: 40043 | R16: 40067 | S16: 40064 | T16: 40001 | U16: 39972 | V16: 39926 | W16: 39861 | X16: 39866 | Y16: 39836 | Z16: 39804 | AA16: 39794 | AB16: 39786 | AC16: 39802 | AD16: 39836 | AE16: 39883 | AF16: 39944 | AG16: 39975 | AH16: 39972 | AI16: 39961 | AJ16: 39936 | AK16: 39894
B17: Høje-Taastrup | C17: 38862 | D17: 38970 | E17: 39230 | F17: 39212 | G17: 39166 | H17: 39889 | I17: 41092 | J17: 43060 | K17: 43697 | L17: 43635 | M17: 43967 | N17: 44291 | O17: 44650 | P17: 45050 | Q17: 45471 | R17: 45848 | S17: 46210 | T17: 46532 | U17: 46849 | V17: 47142 | W17: 47411 | X17: 47685 | Y17: 47974 | Z17: 48216 | AA17: 48442 | AB17: 48653 | AC17: 48892 | AD17: 49112 | AE17: 49322 | AF17: 49493 | AG17: 49642 | AH17: 49724 | AI17: 49803 | AJ17: 49843 | AK17: 49859
B18: Ishøj | C18: 17795 | D18: 18046 | E18: 18234 | F18: 18139 | G18: 18105 | H18: 18152 | I18: 18132 | J18: 18357 | K18: 18352 | L18: 18103 | M18: 18045 | N18: 18003 | O18: 17983 | P18: 17961 | Q18: 17956 | R18: 17974 | S18: 17958 | T18: 17948 | U18: 17963 | V18: 17958 | W18: 17940 | X18: 17945 | Y18: 17968 | Z18: 17976 | AA18: 18000 | AB18: 18011 | AC18: 18023 | AD18: 18058 | AE18: 18089 | AF18: 18120 | AG18: 18145 | AH18: 18160 | AI18: 18173 | AJ18: 18181 | AK18: 18179
B19: Lyngby-Taarbæk | C19: 41265 | D19: 41345 | E19: 41476 | F19: 41634 | G19: 41882 | H19: 42166 | I19: 43198 | J19: 43580 | K19: 43725 | L19: 43194 | M19: 43107 | N19: 42959 | O19: 42938 | P19: 42984 | Q19: 43069 | R19: 43114 | S19: 43157 | T19: 43139 | U19: 43143 | V19: 43129 | W19: 43166 | X19: 43249 | Y19: 43356 | Z19: 43472 | AA19: 43616 | AB19: 43726 | AC19: 43892 | AD19: 44024 | AE19: 44193 | AF19: 44347 | AG19: 44460 | AH19: 44556 | AI19: 44639 | AJ19: 44689 | AK19: 44719
B20: Rødovre | C20: 28859 | D20: 29268 | E20: 29958 | F20: 30549 | G20: 31001 | H20: 31280 | I20: 31395 | J20: 32388 | K20: 32742 | L20: 32572 | M20: 32761 | N20: 32919 | O20: 33110 | P20: 33328 | Q20: 33562 | R20: 33787 | S20: 33963 | T20: 34117 | U20: 34268 | V20: 34394 | W20: 34513 | X20: 34623 | Y20: 34732 | Z20: 34823 | AA20: 34905 | AB20: 35007 | AC20: 35131 | AD20: 35229 | AE20: 35334 | AF20: 35435 | AG20: 35498 | AH20: 35558 | AI20: 35612 | AJ20: 35627 | AK20: 35619
B21: Vallensbæk | C21: 11717 | D21: 11963 | E21: 12446 | F21: 12776 | G21: 12768 | H21: 12647 | I21: 12594 | J21: 13086 | K21: 13091 | L21: 12894 | M21: 12871 | N21: 12852 | O21: 12832 | P21: 12840 | Q21: 12861 | R21: 12870 | S21: 12875 | T21: 12885 | U21: 12888 | V21: 12897 | W21: 12888 | X21: 12918 | Y21: 12947 | Z21: 12965 | AA21: 12981 | AB21: 12990 | AC21: 13015 | AD21: 13033 | AE21: 13060 | AF21: 13079 | AG21: 13092 | AH21: 13102 | AI21: 13099 | AJ21: 13093 | AK21: 13091
B22: Allerød | C22: 18434 | D22: 18499 | E22: 18644 | F22: 18940 | G22: 18841 | H22: 18949 | I22: 18793 | J22: 18844 | K22: 18782 | L22: 18542 | M22: 18415 | N22: 18316 | O22: 18275 | P22: 18242 | Q22: 18220 | R22: 18260 | S22: 18298 | T22: 18338 | U22: 18416 | V22: 18470 | W22: 18502 | X22: 18587 | Y22: 18677 | Z22: 18760 | AA22: 18835 | AB22: 18896 | AC22: 18975 | AD22: 19052 | AE22: 19114 | AF22: 19189 | AG22: 19209 | AH22: 19205 | AI22: 19205 | AJ22: 19181 | AK22: 19132
B23: Egedal | C23: 32818 | D23: 33046 | E23: 32870 | F23: 33047 | G23: 32942 | H23: 33109 | I23: 33610 | J23: 34161 | K23: 34229 | L23: 33922 | M23: 33852 | N23: 33804 | O23: 33817 | P23: 33864 | Q23: 33974 | R23: 34128 | S23: 34275 | T23: 34396 | U23: 34574 | V23: 34735 | W23: 34896 | X23: 35149 | Y23: 35379 | Z23: 35584 | AA23: 35769 | AB23: 35972 | AC23: 36169 | AD23: 36331 | AE23: 36497 | AF23: 36632 | AG23: 36725 | AH23: 36793 | AI23: 36822 | AJ23: 36799 | AK23: 36754
B24: Fredensborg | C24: 28849 | D24: 29032 | E24: 29043 | F24: 28912 | G24: 28797 | H24: 28651 | I24: 28711 | J24: 29019 | K24: 28995 | L24: 28561 | M24: 28361 | N24: 28193 | O24: 28111 | P24: 28067 | Q24: 28082 | R24: 28096 | S24: 28069 | T24: 28100 | U24: 28151 | V24: 28199 | W24: 28244 | X24: 28326 | Y24: 28403 | Z24: 28471 | AA24: 28546 | AB24: 28638 | AC24: 28737 | AD24: 28844 | AE24: 28956 | AF24: 29038 | AG24: 29089 | AH24: 29116 | AI24: 29134 | AJ24: 29105 | AK24: 29064
B25: Frederikssund | C25: 32026 | D25: 32100 | E25: 31978 | F25: 31862 | G25: 31478 | H25: 31300 | I25: 31331 | J25: 31322 | K25: 31048 | L25: 30456 | M25: 30089 | N25: 29772 | O25: 29532 | P25: 29353 | Q25: 29262 | R25: 29183 | S25: 29078 | T25: 28953 | U25: 28906 | V25: 28871 | W25: 28835 | X25: 28847 | Y25: 28930 | Z25: 28987 | AA25: 29047 | AB25: 29140 | AC25: 29255 | AD25: 29356 | AE25: 29452 | AF25: 29553 | AG25: 29627 | AH25: 29687 | AI25: 29711 | AJ25: 29691 | AK25: 29673
B26: Furesø | C26: 29590 | D26: 29887 | E26: 29992 | F26: 29964 | G26: 29759 | H26: 29599 | I26: 29865 | J26: 30349 | K26: 30358 | L26: 29949 | M26: 29852 | N26: 29750 | O26: 29712 | P26: 29707 | Q26: 29782 | R26: 29867 | S26: 29933 | T26: 29991 | U26: 30080 | V26: 30154 | W26: 30206 | X26: 30332 | Y26: 30433 | Z26: 30527 | AA26: 30624 | AB26: 30689 | AC26: 30797 | AD26: 30871 | AE26: 30954 | AF26: 31027 | AG26: 31080 | AH26: 31107 | AI26: 31098 | AJ26: 31062 | AK26: 30999
B27: Gribskov | C27: 28093 | D27: 27892 | E27: 27642 | F27: 27366 | G27: 26912 | H27: 26622 | I27: 26440 | J27: 26464 | K27: 26190 | L27: 25564 | M27: 25191 | N27: 24808 | O27: 24557 | P27: 24341 | Q27: 24216 | R27: 24114 | S27: 23995 | T27: 23869 | U27: 23814 | V27: 23762 | W27: 23734 | X27: 23733 | Y27: 23793 | Z27: 23832 | AA27: 23903 | AB27: 23973 | AC27: 24083 | AD27: 24181 | AE27: 24290 | AF27: 24401 | AG27: 24448 | AH27: 24488 | AI27: 24533 | AJ27: 24514 | AK27: 24497
B28: Halsnæs | C28: 21291 | D28: 21253 | E28: 21045 | F28: 20945 | G28: 20832 | H28: 20664 | I28: 20309 | J28: 20262 | K28: 20082 | L28: 19658 | M28: 19400 | N28: 19203 | O28: 18954 | P28: 18790 | Q28: 18678 | R28: 18583 | S28: 18470 | T28: 18345 | U28: 18275 | V28: 18212 | W28: 18136 | X28: 18100 | Y28: 18077 | Z28: 18059 | AA28: 18057 | AB28: 18058 | AC28: 18102 | AD28: 18157 | AE28: 18203 | AF28: 18255 | AG28: 18289 | AH28: 18306 | AI28: 18310 | AJ28: 18299 | AK28: 18283
B29: Helsingør | C29: 44161 | D29: 44148 | E29: 43996 | F29: 43579 | G29: 43342 | H29: 43195 | I29: 42718 | J29: 42871 | K29: 42631 | L29: 41940 | M29: 41483 | N29: 41064 | O29: 40720 | P29: 40491 | Q29: 40380 | R29: 40268 | S29: 40107 | T29: 40001 | U29: 39945 | V29: 39924 | W29: 39942 | X29: 39973 | Y29: 40026 | Z29: 40119 | AA29: 40208 | AB29: 40310 | AC29: 40453 | AD29: 40598 | AE29: 40728 | AF29: 40849 | AG29: 40933 | AH29: 40976 | AI29: 40977 | AJ29: 40951 | AK29: 40878
B30: Hillerød | C30: 37928 | D30: 38167 | E30: 38460 | F30: 38554 | G30: 38547 | H30: 38592 | I30: 39876 | J30: 40413 | K30: 40645 | L30: 40309 | M30: 40343 | N30: 40302 | O30: 40331 | P30: 40451 | Q30: 40614 | R30: 40792 | S30: 40928 | T30: 41065 | U30: 41237 | V30: 41386 | W30: 41535 | X30: 41765 | Y30: 42017 | Z30: 42247 | AA30: 42464 | AB30: 42680 | AC30: 42921 | AD30: 43119 | AE30: 43339 | AF30: 43549 | AG30: 43682 | AH30: 43792 | AI30: 43899 | AJ30: 43931 | AK30: 43944
B31: Hørsholm | C31: 16718 | D31: 16708 | E31: 16696 | F31: 16628 | G31: 16356 | H31: 16302 | I31: 16085 | J31: 15981 | K31: 15828 | L31: 15427 | M31: 15194 | N31: 14984 | O31: 14801 | P31: 14661 | Q31: 14552 | R31: 14456 | S31: 14358 | T31: 14291 | U31: 14250 | V31: 14208 | W31: 14195 | X31: 14207 | Y31: 14234 | Z31: 14261 | AA31: 14295 | AB31: 14325 | AC31: 14381 | AD31: 14430 | AE31: 14489 | AF31: 14548 | AG31: 14576 | AH31: 14596 | AI31: 14603 | AJ31: 14592 | AK31: 14574
B32: Rudersdal | C32: 40018 | D32: 40112 | E32: 39831 | F32: 40254 | G32: 40288 | H32: 40391 | I32: 40481 | J32: 40195 | K32: 40114 | L32: 39475 | M32: 39235 | N32: 38990 | O32: 38834 | P32: 38751 | Q32: 38751 | R32: 38727 | S32: 38741 | T32: 38728 | U32: 38797 | V32: 38857 | W32: 38919 | X32: 39021 | Y32: 39174 | Z32: 39295 | AA32: 39417 | AB32: 39578 | AC32: 39753 | AD32: 39912 | AE32: 40071 | AF32: 40190 | AG32: 40285 | AH32: 40341 | AI32: 40369 | AJ32: 40343 | AK32: 40295
B33: Bornholm | C33: 25522 | D33: 25246 | E33: 25023 | F33: 24807 | G33: 24566 | H33: 24440 | I33: 24284 | J33: 24206 | K33: 24098 | L33: 23643 | M33: 23404 | N33: 23180 | O33: 23112 | P33: 23113 | Q33: 23130 | R33: 23144 | S33: 23131 | T33: 23103 | U33: 23134 | V33: 23144 | W33: 23170 | X33: 23219 | Y33: 23313 | Z33: 23360 | AA33: 23464 | AB33: 23534 | AC33: 23631 | AD33: 23703 | AE33: 23803 | AF33: 23921 | AG33: 23977 | AH33: 24027 | AI33: 24068 | AJ33: 24048 | AK33: 24035
B34: Greve | C34: 36479 | D34: 36778 | E34: 36674 | F34: 36831 | G34: 37021 | H34: 36851 | I34: 37033 | J34: 37532 | K34: 37551 | L34: 37089 | M34: 36961 | N34: 36790 | O34: 36732 | P34: 36751 | Q34: 36823 | R34: 36905 | S34: 36911 | T34: 36950 | U34: 37069 | V34: 37166 | W34: 37291 | X34: 37425 | Y34: 37585 | Z34: 37721 | AA34: 37885 | AB34: 38045 | AC34: 38212 | AD34: 38346 | AE34: 38485 | AF34: 38608 | AG34: 38699 | AH34: 38774 | AI34: 38817 | AJ34: 38837 | AK34: 38808
B35: Køge | C35: 45186 | D35: 45175 | E35: 45134 | F35: 45268 | G35: 45294 | H35: 45528 | I35: 45517 | J35: 45992 | K35: 46025 | L35: 45447 | M35: 45204 | N35: 44993 | O35: 44826 | P35: 44778 | Q35: 44762 | R35: 44761 | S35: 44717 | T35: 44660 | U35: 44701 | V35: 44729 | W35: 44772 | X35: 44929 | Y35: 45091 | Z35: 45254 | AA35: 45413 | AB35: 45583 | AC35: 45800 | AD35: 45999 | AE35: 46214 | AF35: 46369 | AG35: 46508 | AH35: 46617 | AI35: 46699 | AJ35: 46725 | AK35: 46732
B36: Lejre | C36: 19778 | D36: 19720 | E36: 19734 | F36: 19868 | G36: 19990 | H36: 20020 | I36: 20338 | J36: 20491 | K36: 20580 | L36: 20311 | M36: 20287 | N36: 20245 | O36: 20257 | P36: 20288 | Q36: 20397 | R36: 20493 | S36: 20580 | T36: 20662 | U36: 20772 | V36: 20869 | W36: 20949 | X36: 21088 | Y36: 21197 | Z36: 21315 | AA36: 21426 | AB36: 21519 | AC36: 21646 | AD36: 21743 | AE36: 21856 | AF36: 21956 | AG36: 22025 | AH36: 22058 | AI36: 22080 | AJ36: 22084 | AK36: 22056
B37: Roskilde | C37: 65137 | D37: 65658 | E37: 65710 | F37: 65531 | G37: 65560 | H37: 66154 | I37: 66330 | J37: 66829 | K37: 66874 | L37: 66052 | M37: 65828 | N37: 65535 | O37: 65365 | P37: 65291 | Q37: 65308 | R37: 65349 | S37: 65302 | T37: 65255 | U37: 65267 | V37: 65305 | W37: 65376 | X37: 65549 | Y37: 65795 | Z37: 66037 | AA37: 66290 | AB37: 66545 | AC37: 66853 | AD37: 67117 | AE37: 67389 | AF37: 67653 | AG37: 67863 | AH37: 68058 | AI37: 68228 | AJ37: 68327 | AK37: 68361
B38: Solrød | C38: 16387 | D38: 16658 | E38: 16891 | F38: 17342 | G38: 17432 | H38: 17552 | I38: 17790 | J38: 18042 | K38: 18158 | L38: 18009 | M38: 18015 | N38: 17979 | O38: 18009 | P38: 18083 | Q38: 18189 | R38: 18270 | S38: 18340 | T38: 18421 | U38: 18522 | V38: 18609 | W38: 18683 | X38: 18780 | Y38: 18860 | Z38: 18956 | AA38: 19031 | AB38: 19113 | AC38: 19215 | AD38: 19298 | AE38: 19363 | AF38: 19443 | AG38: 19483 | AH38: 19522 | AI38: 19541 | AJ38: 19544 | AK38: 19521
B39: Faxe | C39: 25753 | D39: 25769 | E39: 25822 | F39: 25988 | G39: 25872 | H39: 25771 | I39: 25977 | J39: 25968 | K39: 25863 | L39: 25486 | M39: 25302 | N39: 25088 | O39: 24980 | P39: 24883 | Q39: 24877 | R39: 24827 | S39: 24785 | T39: 24741 | U39: 24750 | V39: 24749 | W39: 24724 | X39: 24736 | Y39: 24788 | Z39: 24828 | AA39: 24876 | AB39: 24927 | AC39: 25016 | AD39: 25088 | AE39: 25163 | AF39: 25234 | AG39: 25271 | AH39: 25299 | AI39: 25316 | AJ39: 25307 | AK39: 25279
B40: Guldborgsund | C40: 40910 | D40: 40956 | E40: 40743 | F40: 40257 | G40: 39798 | H40: 39269 | I40: 39011 | J40: 38892 | K40: 38532 | L40: 37911 | M40: 37507 | N40: 37054 | O40: 36771 | P40: 36580 | Q40: 36434 | R40: 36265 | S40: 36085 | T40: 35928 | U40: 35818 | V40: 35690 | W40: 35558 | X40: 35502 | Y40: 35479 | Z40: 35448 | AA40: 35403 | AB40: 35392 | AC40: 35429 | AD40: 35464 | AE40: 35521 | AF40: 35569 | AG40: 35595 | AH40: 35579 | AI40: 35588 | AJ40: 35542 | AK40: 35475
B41: Holbæk | C41: 51713 | D41: 52255 | E41: 51954 | F41: 51889 | G41: 51690 | H41: 51633 | I41: 52116 | J41: 52370 | K41: 52366 | L41: 51834 | M41: 51607 | N41: 51351 | O41: 51205 | P41: 51116 | Q41: 51125 | R41: 51147 | S41: 51135 | T41: 51156 | U41: 51136 | V41: 51157 | W41: 51142 | X41: 51265 | Y41: 51420 | Z41: 51549 | AA41: 51705 | AB41: 51873 | AC41: 52069 | AD41: 52231 | AE41: 52423 | AF41: 52561 | AG41: 52670 | AH41: 52731 | AI41: 52789 | AJ41: 52774 | AK41: 52700
B42: Kalundborg | C42: 34307 | D42: 34116 | E42: 34057 | F42: 33566 | G42: 33183 | H42: 32965 | I42: 32675 | J42: 32644 | K42: 32329 | L42: 31699 | M42: 31318 | N42: 30884 | O42: 30550 | P42: 30311 | Q42: 30058 | R42: 29857 | S42: 29680 | T42: 29466 | U42: 29334 | V42: 29188 | W42: 29022 | X42: 28959 | Y42: 28891 | Z42: 28842 | AA42: 28805 | AB42: 28787 | AC42: 28822 | AD42: 28854 | AE42: 28906 | AF42: 28954 | AG42: 28991 | AH42: 28984 | AI42: 28990 | AJ42: 28967 | AK42: 28934
B43: Lolland | C43: 27418 | D43: 26903 | E43: 26470 | F43: 26017 | G43: 25451 | H43: 24850 | I43: 24469 | J43: 24304 | K43: 23913 | L43: 23369 | M43: 22910 | N43: 22520 | O43: 22158 | P43: 21896 | Q43: 21673 | R43: 21490 | S43: 21255 | T43: 21055 | U43: 20901 | V43: 20733 | W43: 20567 | X43: 20439 | Y43: 20362 | Z43: 20274 | AA43: 20231 | AB43: 20183 | AC43: 20176 | AD43: 20164 | AE43: 20189 | AF43: 20202 | AG43: 20195 | AH43: 20189 | AI43: 20158 | AJ43: 20121 | AK43: 20068
B44: Næstved | C44: 60365 | D44: 60202 | E44: 60229 | F44: 59936 | G44: 59656 | H44: 59333 | I44: 59550 | J44: 59830 | K44: 59686 | L44: 58978 | M44: 58619 | N44: 58208 | O44: 57905 | P44: 57668 | Q44: 57537 | R44: 57449 | S44: 57216 | T44: 57094 | U44: 56962 | V44: 56842 | W44: 56708 | X44: 56673 | Y44: 56721 | Z44: 56716 | AA44: 56770 | AB44: 56860 | AC44: 56971 | AD44: 57100 | AE44: 57214 | AF44: 57339 | AG44: 57404 | AH44: 57455 | AI44: 57480 | AJ44: 57451 | AK44: 57419
B45: Odsherred | C45: 20721 | D45: 20758 | E45: 20570 | F45: 20420 | G45: 20116 | H45: 19858 | I45: 19626 | J45: 19533 | K45: 19298 | L45: 18823 | M45: 18562 | N45: 18290 | O45: 18073 | P45: 17915 | Q45: 17789 | R45: 17667 | S45: 17531 | T45: 17366 | U45: 17257 | V45: 17188 | W45: 17085 | X45: 17032 | Y45: 17014 | Z45: 16984 | AA45: 16977 | AB45: 16976 | AC45: 17023 | AD45: 17065 | AE45: 17094 | AF45: 17144 | AG45: 17163 | AH45: 17194 | AI45: 17205 | AJ45: 17195 | AK45: 17170
B46: Ringsted | C46: 26151 | D46: 26221 | E46: 26298 | F46: 26426 | G46: 26378 | H46: 26220 | I46: 26382 | J46: 26898 | K46: 26950 | L46: 26716 | M46: 26599 | N46: 26472 | O46: 26381 | P46: 26375 | Q46: 26359 | R46: 26317 | S46: 26318 | T46: 26279 | U46: 26302 | V46: 26303 | W46: 26266 | X46: 26290 | Y46: 26329 | Z46: 26360 | AA46: 26389 | AB46: 26432 | AC46: 26527 | AD46: 26603 | AE46: 26683 | AF46: 26759 | AG46: 26801 | AH46: 26818 | AI46: 26836 | AJ46: 26837 | AK46: 26809
B47: Slagelse | C47: 57038 | D47: 57371 | E47: 57169 | F47: 57035 | G47: 56771 | H47: 56467 | I47: 56684 | J47: 56404 | K47: 56152 | L47: 55416 | M47: 54995 | N47: 54598 | O47: 54319 | P47: 54156 | Q47: 54003 | R47: 53812 | S47: 53632 | T47: 53466 | U47: 53315 | V47: 53164 | W47: 53002 | X47: 52903 | Y47: 52900 | Z47: 52860 | AA47: 52877 | AB47: 52890 | AC47: 52991 | AD47: 53034 | AE47: 53159 | AF47: 53244 | AG47: 53297 | AH47: 53346 | AI47: 53373 | AJ47: 53366 | AK47: 53315
B48: Sorø | C48: 21725 | D48: 21634 | E48: 21556 | F48: 21556 | G48: 21402 | H48: 21392 | I48: 21245 | J48: 21476 | K48: 21421 | L48: 21107 | M48: 20978 | N48: 20837 | O48: 20739 | P48: 20681 | Q48: 20673 | R48: 20668 | S48: 20665 | T48: 20656 | U48: 20669 | V48: 20704 | W48: 20717 | X48: 20746 | Y48: 20811 | Z48: 20852 | AA48: 20889 | AB48: 20947 | AC48: 21006 | AD48: 21076 | AE48: 21138 | AF48: 21204 | AG48: 21226 | AH48: 21241 | AI48: 21246 | AJ48: 21236 | AK48: 21214
B49: Stevns | C49: 15456 | D49: 15573 | E49: 15603 | F49: 15525 | G49: 15406 | H49: 15465 | I49: 15729 | J49: 15783 | K49: 15796 | L49: 15600 | M49: 15476 | N49: 15377 | O49: 15335 | P49: 15332 | Q49: 15317 | R49: 15327 | S49: 15297 | T49: 15269 | U49: 15279 | V49: 15308 | W49: 15325 | X49: 15342 | Y49: 15367 | Z49: 15397 | AA49: 15413 | AB49: 15459 | AC49: 15525 | AD49: 15572 | AE49: 15627 | AF49: 15679 | AG49: 15705 | AH49: 15732 | AI49: 15762 | AJ49: 15745 | AK49: 15735
B50: Vordingborg | C50: 30836 | D50: 30784 | E50: 30575 | F50: 30008 | G50: 29475 | H50: 28976 | I50: 28814 | J50: 28786 | K50: 28463 | L50: 27904 | M50: 27482 | N50: 27063 | O50: 26733 | P50: 26528 | Q50: 26326 | R50: 26129 | S50: 25960 | T50: 25799 | U50: 25688 | V50: 25547 | W50: 25421 | X50: 25340 | Y50: 25314 | Z50: 25316 | AA50: 25317 | AB50: 25319 | AC50: 25361 | AD50: 25392 | AE50: 25444 | AF50: 25482 | AG50: 25505 | AH50: 25528 | AI50: 25540 | AJ50: 25512 | AK50: 25482
B51: Assens | C51: 29440 | D51: 29397 | E51: 29227 | F51: 28995 | G51: 28620 | H51: 28230 | I51: 28214 | J51: 28057 | K51: 27799 | L51: 27329 | M51: 26993 | N51: 26696 | O51: 26468 | P51: 26286 | Q51: 26148 | R51: 26044 | S51: 25957 | T51: 25867 | U51: 25796 | V51: 25753 | W51: 25698 | X51: 25671 | Y51: 25704 | Z51: 25725 | AA51: 25740 | AB51: 25760 | AC51: 25834 | AD51: 25901 | AE51: 25993 | AF51: 26048 | AG51: 26094 | AH51: 26125 | AI51: 26134 | AJ51: 26108 | AK51: 26076
B52: Faaborg-Midtfyn | C52: 35900 | D52: 35851 | E52: 35874 | F52: 35915 | G52: 35445 | H52: 35371 | I52: 35269 | J52: 35453 | K52: 35296 | L52: 34859 | M52: 34653 | N52: 34452 | O52: 34307 | P52: 34204 | Q52: 34166 | R52: 34146 | S52: 34106 | T52: 34091 | U52: 34129 | V52: 34163 | W52: 34204 | X52: 34254 | Y52: 34371 | Z52: 34429 | AA52: 34548 | AB52: 34647 | AC52: 34777 | AD52: 34893 | AE52: 35038 | AF52: 35134 | AG52: 35206 | AH52: 35248 | AI52: 35265 | AJ52: 35273 | AK52: 35222
B53: Kerteminde | C53: 16695 | D53: 16491 | E53: 16364 | F53: 16237 | G53: 16148 | H53: 16039 | I53: 16129 | J53: 15956 | K53: 15864 | L53: 15647 | M53: 15496 | N53: 15379 | O53: 15266 | P53: 15219 | Q53: 15161 | R53: 15116 | S53: 15095 | T53: 15078 | U53: 15092 | V53: 15109 | W53: 15077 | X53: 15113 | Y53: 15160 | Z53: 15185 | AA53: 15220 | AB53: 15269 | AC53: 15323 | AD53: 15365 | AE53: 15432 | AF53: 15484 | AG53: 15523 | AH53: 15535 | AI53: 15546 | AJ53: 15550 | AK53: 15528
B54: Langeland | C54: 7378 | D54: 7344 | E54: 7296 | F54: 7186 | G54: 7030 | H54: 6815 | I54: 6707 | J54: 6747 | K54: 6657 | L54: 6516 | M54: 6422 | N54: 6312 | O54: 6238 | P54: 6188 | Q54: 6138 | R54: 6082 | S54: 6048 | T54: 5983 | U54: 5967 | V54: 5941 | W54: 5921 | X54: 5914 | Y54: 5915 | Z54: 5905 | AA54: 5901 | AB54: 5909 | AC54: 5923 | AD54: 5933 | AE54: 5950 | AF54: 5961 | AG54: 5975 | AH54: 5980 | AI54: 5984 | AJ54: 5992 | AK54: 5982
B55: Middelfart | C55: 27119 | D55: 27160 | E55: 27036 | F55: 27178 | G55: 27263 | H55: 27283 | I55: 27515 | J55: 27609 | K55: 27620 | L55: 27399 | M55: 27345 | N55: 27250 | O55: 27196 | P55: 27204 | Q55: 27218 | R55: 27292 | S55: 27331 | T55: 27398 | U55: 27481 | V55: 27550 | W55: 27628 | X55: 27715 | Y55: 27843 | Z55: 27945 | AA55: 28070 | AB55: 28221 | AC55: 28380 | AD55: 28524 | AE55: 28670 | AF55: 28807 | AG55: 28906 | AH55: 28989 | AI55: 29043 | AJ55: 29061 | AK55: 29051
B56: Nordfyns | C56: 21060 | D56: 21010 | E56: 20927 | F56: 20877 | G56: 20697 | H56: 20403 | I56: 20408 | J56: 20361 | K56: 20213 | L56: 19912 | M56: 19725 | N56: 19517 | O56: 19376 | P56: 19262 | Q56: 19190 | R56: 19090 | S56: 19047 | T56: 18988 | U56: 18958 | V56: 18941 | W56: 18919 | X56: 18915 | Y56: 18939 | Z56: 18959 | AA56: 18985 | AB56: 19028 | AC56: 19079 | AD56: 19133 | AE56: 19194 | AF56: 19252 | AG56: 19303 | AH56: 19314 | AI56: 19321 | AJ56: 19337 | AK56: 19324
B57: Nyborg | C57: 22512 | D57: 22524 | E57: 22253 | F57: 22108 | G57: 21952 | H57: 21751 | I57: 21777 | J57: 21810 | K57: 21701 | L57: 21375 | M57: 21149 | N57: 20950 | O57: 20804 | P57: 20710 | Q57: 20640 | R57: 20581 | S57: 20525 | T57: 20446 | U57: 20405 | V57: 20383 | W57: 20344 | X57: 20326 | Y57: 20322 | Z57: 20328 | AA57: 20382 | AB57: 20416 | AC57: 20468 | AD57: 20535 | AE57: 20603 | AF57: 20668 | AG57: 20716 | AH57: 20752 | AI57: 20768 | AJ57: 20789 | AK57: 20781
B58: Odense | C58: 155314 | D58: 156196 | E58: 157329 | F58: 158658 | G58: 158775 | H58: 158920 | I58: 158863 | J58: 159880 | K58: 159835 | L58: 158923 | M58: 158744 | N58: 158534 | O58: 158602 | P58: 158819 | Q58: 159126 | R58: 159322 | S58: 159241 | T58: 159115 | U58: 158987 | V58: 158890 | W58: 158777 | X58: 158811 | Y58: 159092 | Z58: 159274 | AA58: 159625 | AB58: 159918 | AC58: 160378 | AD58: 160844 | AE58: 161288 | AF58: 161635 | AG58: 161990 | AH58: 162346 | AI58: 162763 | AJ58: 163127 | AK58: 163463
B59: Svendborg | C59: 41225 | D59: 41113 | E59: 40932 | F59: 40566 | G59: 40039 | H59: 40003 | I59: 40316 | J59: 40622 | K59: 40647 | L59: 40387 | M59: 40401 | N59: 40373 | O59: 40387 | P59: 40539 | Q59: 40694 | R59: 40893 | S59: 41006 | T59: 41147 | U59: 41340 | V59: 41495 | W59: 41632 | X59: 41801 | Y59: 42023 | Z59: 42162 | AA59: 42341 | AB59: 42480 | AC59: 42635 | AD59: 42814 | AE59: 43003 | AF59: 43133 | AG59: 43202 | AH59: 43275 | AI59: 43328 | AJ59: 43338 | AK59: 43285
B60: Ærø | C60: 3582 | D60: 3460 | E60: 3411 | F60: 3307 | G60: 3245 | H60: 3201 | I60: 3241 | J60: 3197 | K60: 3194 | L60: 3116 | M60: 3072 | N60: 3043 | O60: 3020 | P60: 3004 | Q60: 2973 | R60: 2967 | S60: 2952 | T60: 2943 | U60: 2936 | V60: 2932 | W60: 2921 | X60: 2931 | Y60: 2946 | Z60: 2946 | AA60: 2956 | AB60: 2964 | AC60: 2977 | AD60: 2988 | AE60: 3006 | AF60: 3021 | AG60: 3036 | AH60: 3049 | AI60: 3051 | AJ60: 3064 | AK60: 3064
B61: Billund | C61: 19549 | D61: 19505 | E61: 19381 | F61: 19431 | G61: 19266 | H61: 19089 | I61: 19069 | J61: 19334 | K61: 19286 | L61: 19057 | M61: 18918 | N61: 18825 | O61: 18773 | P61: 18739 | Q61: 18725 | R61: 18710 | S61: 18716 | T61: 18712 | U61: 18723 | V61: 18770 | W61: 18793 | X61: 18810 | Y61: 18826 | Z61: 18849 | AA61: 18845 | AB61: 18876 | AC61: 18906 | AD61: 18922 | AE61: 18971 | AF61: 19004 | AG61: 19022 | AH61: 19015 | AI61: 19008 | AJ61: 18987 | AK61: 18965
B62: Esbjerg | C62: 86244 | D62: 85797 | E62: 85386 | F62: 84520 | G62: 83846 | H62: 83476 | I62: 82861 | J62: 82710 | K62: 82288 | L62: 81313 | M62: 80757 | N62: 80087 | O62: 79667 | P62: 79378 | Q62: 79131 | R62: 78868 | S62: 78571 | T62: 78278 | U62: 77996 | V62: 77832 | W62: 77591 | X62: 77478 | Y62: 77365 | Z62: 77336 | AA62: 77268 | AB62: 77213 | AC62: 77204 | AD62: 77222 | AE62: 77244 | AF62: 77294 | AG62: 77281 | AH62: 77244 | AI62: 77203 | AJ62: 77103 | AK62: 76998
B63: Fanø | C63: 1940 | D63: 1960 | E63: 1972 | F63: 1938 | G63: 1981 | H63: 1935 | I63: 1896 | J63: 1873 | K63: 1858 | L63: 1821 | M63: 1788 | N63: 1763 | O63: 1736 | P63: 1708 | Q63: 1691 | R63: 1682 | S63: 1677 | T63: 1664 | U63: 1649 | V63: 1647 | W63: 1639 | X63: 1633 | Y63: 1627 | Z63: 1634 | AA63: 1632 | AB63: 1630 | AC63: 1640 | AD63: 1643 | AE63: 1647 | AF63: 1659 | AG63: 1662 | AH63: 1664 | AI63: 1669 | AJ63: 1670 | AK63: 1658
B64: Fredericia | C64: 37648 | D64: 37593 | E64: 37764 | F64: 37666 | G64: 37443 | H64: 37071 | I64: 37217 | J64: 37504 | K64: 37292 | L64: 36823 | M64: 36557 | N64: 36271 | O64: 36104 | P64: 35991 | Q64: 35891 | R64: 35761 | S64: 35634 | T64: 35474 | U64: 35379 | V64: 35317 | W64: 35216 | X64: 35157 | Y64: 35109 | Z64: 35107 | AA64: 35090 | AB64: 35100 | AC64: 35120 | AD64: 35163 | AE64: 35191 | AF64: 35231 | AG64: 35283 | AH64: 35322 | AI64: 35353 | AJ64: 35319 | AK64: 35270
B65: Haderslev | C65: 40467 | D65: 40214 | E65: 39864 | F65: 39467 | G65: 39031 | H65: 38561 | I65: 38255 | J65: 38053 | K65: 37695 | L65: 37036 | M65: 36569 | N65: 36158 | O65: 35756 | P65: 35485 | Q65: 35258 | R65: 35039 | S65: 34821 | T65: 34595 | U65: 34475 | V65: 34301 | W65: 34146 | X65: 34067 | Y65: 34005 | Z65: 33937 | AA65: 33862 | AB65: 33808 | AC65: 33796 | AD65: 33793 | AE65: 33816 | AF65: 33850 | AG65: 33838 | AH65: 33836 | AI65: 33841 | AJ65: 33803 | AK65: 33746
B66: Kolding | C66: 69967 | D66: 70158 | E66: 69950 | F66: 69971 | G66: 69895 | H66: 69596 | I66: 69641 | J66: 70165 | K66: 70041 | L66: 69366 | M66: 69041 | N66: 68656 | O66: 68442 | P66: 68294 | Q66: 68119 | R66: 68005 | S66: 67843 | T66: 67664 | U66: 67490 | V66: 67354 | W66: 67215 | X66: 67163 | Y66: 67153 | Z66: 67147 | AA66: 67203 | AB66: 67260 | AC66: 67342 | AD66: 67444 | AE66: 67577 | AF66: 67682 | AG66: 67762 | AH66: 67785 | AI66: 67793 | AJ66: 67781 | AK66: 67702
B67: Sønderborg | C67: 52823 | D67: 52591 | E67: 52180 | F67: 51860 | G67: 51195 | H67: 50496 | I67: 50085 | J67: 50431 | K67: 49918 | L67: 49169 | M67: 48574 | N67: 48025 | O67: 47495 | P67: 47122 | Q67: 46797 | R67: 46465 | S67: 46152 | T67: 45807 | U67: 45582 | V67: 45412 | W67: 45233 | X67: 45108 | Y67: 45010 | Z67: 44934 | AA67: 44875 | AB67: 44846 | AC67: 44837 | AD67: 44842 | AE67: 44874 | AF67: 44847 | AG67: 44862 | AH67: 44852 | AI67: 44819 | AJ67: 44773 | AK67: 44646
B68: Tønder | C68: 26466 | D68: 26237 | E68: 25859 | F68: 25512 | G68: 25078 | H68: 24609 | I68: 24239 | J68: 24026 | K68: 23671 | L68: 23140 | M68: 22850 | N68: 22523 | O68: 22261 | P68: 22082 | Q68: 21884 | R68: 21754 | S68: 21609 | T68: 21479 | U68: 21373 | V68: 21288 | W68: 21175 | X68: 21141 | Y68: 21124 | Z68: 21082 | AA68: 21048 | AB68: 21014 | AC68: 21014 | AD68: 21028 | AE68: 21047 | AF68: 21057 | AG68: 21054 | AH68: 21040 | AI68: 21024 | AJ68: 20989 | AK68: 20954
B69: Varde | C69: 36488 | D69: 36363 | E69: 35938 | F69: 35602 | G69: 35217 | H69: 34646 | I69: 34513 | J69: 34567 | K69: 34264 | L69: 33783 | M69: 33457 | N69: 33133 | O69: 32889 | P69: 32745 | Q69: 32614 | R69: 32476 | S69: 32318 | T69: 32199 | U69: 32157 | V69: 32129 | W69: 32072 | X69: 32052 | Y69: 32049 | Z69: 32018 | AA69: 32015 | AB69: 32019 | AC69: 32049 | AD69: 32096 | AE69: 32142 | AF69: 32164 | AG69: 32203 | AH69: 32195 | AI69: 32202 | AJ69: 32148 | AK69: 32089
B70: Vejen | C70: 31735 | D70: 31527 | E70: 31408 | F70: 31329 | G70: 31011 | H70: 30843 | I70: 30597 | J70: 30726 | K70: 30516 | L70: 30119 | M70: 29902 | N70: 29698 | O70: 29534 | P70: 29433 | Q70: 29377 | R70: 29350 | S70: 29241 | T70: 29141 | U70: 29102 | V70: 29059 | W70: 29014 | X70: 29023 | Y70: 29017 | Z70: 28983 | AA70: 28971 | AB70: 28984 | AC70: 29015 | AD70: 29051 | AE70: 29090 | AF70: 29131 | AG70: 29163 | AH70: 29182 | AI70: 29181 | AJ70: 29137 | AK70: 29098
B71: Vejle | C71: 84816 | D71: 85777 | E71: 86282 | F71: 86468 | G71: 86935 | H71: 87565 | I71: 89117 | J71: 90424 | K71: 91027 | L71: 90813 | M71: 91158 | N71: 91450 | O71: 91878 | P71: 92432 | Q71: 93067 | R71: 93683 | S71: 94205 | T71: 94667 | U71: 95115 | V71: 95608 | W71: 96092 | X71: 96595 | Y71: 97141 | Z71: 97573 | AA71: 98039 | AB71: 98477 | AC71: 98994 | AD71: 99447 | AE71: 99937 | AF71: 100320 | AG71: 100617 | AH71: 100877 | AI71: 101070 | AJ71: 101150 | AK71: 101148
B72: Aabenraa | C72: 41918 | D72: 41705 | E72: 41553 | F72: 41231 | G72: 40779 | H72: 40251 | I72: 40117 | J72: 40202 | K72: 39848 | L72: 39214 | M72: 38781 | N72: 38362 | O72: 38048 | P72: 37837 | Q72: 37671 | R72: 37494 | S72: 37311 | T72: 37190 | U72: 37070 | V72: 36968 | W72: 36897 | X72: 36833 | Y72: 36801 | Z72: 36766 | AA72: 36730 | AB72: 36722 | AC72: 36737 | AD72: 36775 | AE72: 36804 | AF72: 36869 | AG72: 36886 | AH72: 36891 | AI72: 36865 | AJ72: 36829 | AK72: 36771
B73: Favrskov | C73: 36506 | D73: 36595 | E73: 36713 | F73: 36672 | G73: 36563 | H73: 36342 | I73: 36712 | J73: 37007 | K73: 37080 | L73: 36854 | M73: 36849 | N73: 36799 | O73: 36875 | P73: 36998 | Q73: 37162 | R73: 37322 | S73: 37488 | T73: 37614 | U73: 37784 | V73: 37992 | W73: 38191 | X73: 38428 | Y73: 38671 | Z73: 38917 | AA73: 39165 | AB73: 39424 | AC73: 39649 | AD73: 39867 | AE73: 40079 | AF73: 40282 | AG73: 40445 | AH73: 40568 | AI73: 40656 | AJ73: 40693 | AK73: 40690
B74: Hedensted | C74: 34568 | D74: 34605 | E74: 34468 | F74: 34368 | G74: 34171 | H74: 34001 | I74: 34140 | J74: 34417 | K74: 34388 | L74: 34005 | M74: 33850 | N74: 33696 | O74: 33643 | P74: 33662 | Q74: 33711 | R74: 33780 | S74: 33825 | T74: 33939 | U74: 34064 | V74: 34166 | W74: 34288 | X74: 34449 | Y74: 34589 | Z74: 34772 | AA74: 34952 | AB74: 35129 | AC74: 35339 | AD74: 35515 | AE74: 35687 | AF74: 35863 | AG74: 36025 | AH74: 36153 | AI74: 36249 | AJ74: 36307 | AK74: 36342
B75: Horsens | C75: 67405 | D75: 68326 | E75: 68524 | F75: 68936 | G75: 69161 | H75: 69899 | I75: 71664 | J75: 73157 | K75: 73910 | L75: 74201 | M75: 74863 | N75: 75476 | O75: 76203 | P75: 76989 | Q75: 77813 | R75: 78596 | S75: 79247 | T75: 79841 | U75: 80558 | V75: 81187 | W75: 81856 | X75: 82545 | Y75: 83209 | Z75: 83875 | AA75: 84559 | AB75: 85177 | AC75: 85848 | AD75: 86445 | AE75: 87076 | AF75: 87706 | AG75: 88166 | AH75: 88621 | AI75: 89021 | AJ75: 89329 | AK75: 89554
B76: Norddjurs | C76: 26682 | D76: 26451 | E76: 26400 | F76: 25696 | G76: 25028 | H76: 24727 | I76: 24507 | J76: 24377 | K76: 24041 | L76: 23548 | M76: 23188 | N76: 22854 | O76: 22621 | P76: 22429 | Q76: 22287 | R76: 22184 | S76: 22061 | T76: 21947 | U76: 21875 | V76: 21831 | W76: 21764 | X76: 21766 | Y76: 21769 | Z76: 21788 | AA76: 21808 | AB76: 21851 | AC76: 21906 | AD76: 21971 | AE76: 22053 | AF76: 22131 | AG76: 22211 | AH76: 22254 | AI76: 22318 | AJ76: 22324 | AK76: 22328
B77: Odder | C77: 15846 | D77: 15900 | E77: 16054 | F77: 15996 | G77: 15992 | H77: 15894 | I77: 16030 | J77: 16149 | K77: 16152 | L77: 16027 | M77: 16007 | N77: 15969 | O77: 16022 | P77: 16061 | Q77: 16160 | R77: 16255 | S77: 16333 | T77: 16414 | U77: 16531 | V77: 16636 | W77: 16729 | X77: 16846 | Y77: 16976 | Z77: 17086 | AA77: 17208 | AB77: 17343 | AC77: 17467 | AD77: 17567 | AE77: 17664 | AF77: 17767 | AG77: 17845 | AH77: 17910 | AI77: 17961 | AJ77: 17972 | AK77: 17968
B78: Randers | C78: 72785 | D78: 73054 | E78: 72890 | F78: 72312 | G78: 71847 | H78: 71864 | I78: 72272 | J78: 72813 | K78: 72831 | L78: 72452 | M78: 72346 | N78: 72224 | O78: 72295 | P78: 72448 | Q78: 72596 | R78: 72687 | S78: 72802 | T78: 72896 | U78: 73075 | V78: 73274 | W78: 73371 | X78: 73623 | Y78: 73928 | Z78: 74208 | AA78: 74546 | AB78: 74890 | AC78: 75260 | AD78: 75609 | AE78: 75971 | AF78: 76348 | AG78: 76646 | AH78: 76897 | AI78: 77134 | AJ78: 77301 | AK78: 77409
B79: Samsø | C79: 2159 | D79: 2138 | E79: 2105 | F79: 2051 | G79: 1994 | H79: 2011 | I79: 2024 | J79: 2065 | K79: 2058 | L79: 2037 | M79: 2040 | N79: 2037 | O79: 2044 | P79: 2050 | Q79: 2058 | R79: 2076 | S79: 2081 | T79: 2093 | U79: 2106 | V79: 2100 | W79: 2106 | X79: 2120 | Y79: 2126 | Z79: 2135 | AA79: 2145 | AB79: 2159 | AC79: 2169 | AD79: 2192 | AE79: 2194 | AF79: 2217 | AG79: 2231 | AH79: 2234 | AI79: 2243 | AJ79: 2252 | AK79: 2248
B80: Silkeborg | C80: 68294 | D80: 68245 | E80: 68548 | F80: 69136 | G80: 69625 | H80: 70581 | I80: 72054 | J80: 73479 | K80: 74309 | L80: 74682 | M80: 75420 | N80: 76095 | O80: 76924 | P80: 77913 | Q80: 78972 | R80: 80012 | S80: 80913 | T80: 81800 | U80: 82764 | V80: 83739 | W80: 84663 | X80: 85644 | Y80: 86609 | Z80: 87548 | AA80: 88484 | AB80: 89351 | AC80: 90232 | AD80: 91044 | AE80: 91840 | AF80: 92564 | AG80: 93171 | AH80: 93647 | AI80: 94081 | AJ80: 94392 | AK80: 94542
B81: Skanderborg | C81: 45713 | D81: 46302 | E81: 46790 | F81: 47313 | G81: 47725 | H81: 48130 | I81: 48775 | J81: 49217 | K81: 49581 | L81: 49648 | M81: 49918 | N81: 50233 | O81: 50660 | P81: 51185 | Q81: 51741 | R81: 52295 | S81: 52788 | T81: 53270 | U81: 53804 | V81: 54365 | W81: 54864 | X81: 55374 | Y81: 55915 | Z81: 56400 | AA81: 56876 | AB81: 57331 | AC81: 57757 | AD81: 58141 | AE81: 58474 | AF81: 58807 | AG81: 59030 | AH81: 59220 | AI81: 59334 | AJ81: 59392 | AK81: 59402
B82: Syddjurs | C82: 29017 | D82: 28823 | E82: 29002 | F82: 29050 | G82: 29007 | H82: 28963 | I82: 29112 | J82: 29407 | K82: 29399 | L82: 29235 | M82: 29195 | N82: 29209 | O82: 29267 | P82: 29447 | Q82: 29609 | R82: 29787 | S82: 29970 | T82: 30153 | U82: 30359 | V82: 30544 | W82: 30739 | X82: 30976 | Y82: 31219 | Z82: 31452 | AA82: 31687 | AB82: 31894 | AC82: 32110 | AD82: 32325 | AE82: 32518 | AF82: 32686 | AG82: 32848 | AH82: 32973 | AI82: 33066 | AJ82: 33120 | AK82: 33144
B83: Aarhus | C83: 267317 | D83: 271009 | E83: 274470 | F83: 278184 | G83: 281698 | H83: 283094 | I83: 284422 | J83: 289411 | K83: 291487 | L83: 291896 | M83: 293345 | N83: 294837 | O83: 296703 | P83: 298680 | Q83: 300674 | R83: 302542 | S83: 304072 | T83: 305243 | U83: 306355 | V83: 307300 | W83: 308169 | X83: 309380 | Y83: 310798 | Z83: 312292 | AA83: 313856 | AB83: 315466 | AC83: 317224 | AD83: 318926 | AE83: 320639 | AF83: 322204 | AG83: 323803 | AH83: 325414 | AI83: 327170 | AJ83: 329014 | AK83: 330826
B84: Herning | C84: 66501 | D84: 66886 | E84: 66817 | F84: 66581 | G84: 66338 | H84: 66060 | I84: 65709 | J84: 65969 | K84: 65707 | L84: 64930 | M84: 64541 | N84: 64116 | O84: 63826 | P84: 63629 | Q84: 63409 | R84: 63197 | S84: 62997 | T84: 62814 | U84: 62652 | V84: 62504 | W84: 62323 | X84: 62233 | Y84: 62131 | Z84: 62063 | AA84: 62036 | AB84: 62047 | AC84: 62052 | AD84: 62134 | AE84: 62198 | AF84: 62276 | AG84: 62319 | AH84: 62322 | AI84: 62296 | AJ84: 62258 | AK84: 62169
B85: Holstebro | C85: 42928 | D85: 43060 | E85: 43136 | F85: 42957 | G85: 42824 | H85: 42710 | I85: 42399 | J85: 42552 | K85: 42325 | L85: 41834 | M85: 41624 | N85: 41375 | O85: 41182 | P85: 41122 | Q85: 41029 | R85: 40940 | S85: 40813 | T85: 40708 | U85: 40600 | V85: 40537 | W85: 40417 | X85: 40357 | Y85: 40306 | Z85: 40248 | AA85: 40196 | AB85: 40171 | AC85: 40174 | AD85: 40193 | AE85: 40233 | AF85: 40257 | AG85: 40269 | AH85: 40274 | AI85: 40252 | AJ85: 40217 | AK85: 40146
B86: Ikast-Brande | C86: 30517 | D86: 30459 | E86: 30520 | F86: 30446 | G86: 30387 | H86: 30302 | I86: 30571 | J86: 31000 | K86: 31024 | L86: 30710 | M86: 30618 | N86: 30571 | O86: 30529 | P86: 30553 | Q86: 30570 | R86: 30603 | S86: 30595 | T86: 30620 | U86: 30652 | V86: 30694 | W86: 30680 | X86: 30714 | Y86: 30793 | Z86: 30848 | AA86: 30886 | AB86: 30943 | AC86: 31023 | AD86: 31075 | AE86: 31149 | AF86: 31208 | AG86: 31244 | AH86: 31260 | AI86: 31284 | AJ86: 31258 | AK86: 31239
B87: Lemvig | C87: 14014 | D87: 13773 | E87: 13548 | F87: 13296 | G87: 12959 | H87: 12739 | I87: 12487 | J87: 12427 | K87: 12234 | L87: 11918 | M87: 11692 | N87: 11480 | O87: 11297 | P87: 11159 | Q87: 11074 | R87: 10993 | S87: 10923 | T87: 10853 | U87: 10793 | V87: 10778 | W87: 10719 | X87: 10698 | Y87: 10657 | Z87: 10640 | AA87: 10626 | AB87: 10618 | AC87: 10641 | AD87: 10644 | AE87: 10654 | AF87: 10666 | AG87: 10657 | AH87: 10675 | AI87: 10641 | AJ87: 10614 | AK87: 10604
B88: Ringkøbing-Skjern | C88: 41499 | D88: 41147 | E88: 40807 | F88: 40539 | G88: 39911 | H88: 39325 | I88: 39128 | J88: 38976 | K88: 38529 | L88: 37780 | M88: 37274 | N88: 36805 | O88: 36424 | P88: 36103 | Q88: 35840 | R88: 35592 | S88: 35359 | T88: 35193 | U88: 35014 | V88: 34909 | W88: 34749 | X88: 34626 | Y88: 34513 | Z88: 34415 | AA88: 34345 | AB88: 34284 | AC88: 34278 | AD88: 34306 | AE88: 34320 | AF88: 34330 | AG88: 34333 | AH88: 34317 | AI88: 34311 | AJ88: 34240 | AK88: 34159
B89: Skive | C89: 33232 | D89: 32905 | E89: 32741 | F89: 32128 | G89: 31562 | H89: 30926 | I89: 30411 | J89: 30206 | K89: 29763 | L89: 29113 | M89: 28657 | N89: 28161 | O89: 27772 | P89: 27436 | Q89: 27147 | R89: 26838 | S89: 26548 | T89: 26259 | U89: 26009 | V89: 25806 | W89: 25612 | X89: 25448 | Y89: 25298 | Z89: 25148 | AA89: 25036 | AB89: 24948 | AC89: 24880 | AD89: 24834 | AE89: 24830 | AF89: 24786 | AG89: 24752 | AH89: 24695 | AI89: 24625 | AJ89: 24552 | AK89: 24492
B90: Struer | C90: 14910 | D90: 14689 | E90: 14498 | F90: 14256 | G90: 14030 | H90: 13719 | I90: 13637 | J90: 13582 | K90: 13383 | L90: 13043 | M90: 12829 | N90: 12600 | O90: 12403 | P90: 12243 | Q90: 12103 | R90: 11988 | S90: 11847 | T90: 11732 | U90: 11637 | V90: 11573 | W90: 11497 | X90: 11431 | Y90: 11381 | Z90: 11357 | AA90: 11325 | AB90: 11307 | AC90: 11309 | AD90: 11287 | AE90: 11307 | AF90: 11315 | AG90: 11330 | AH90: 11329 | AI90: 11328 | AJ90: 11314 | AK90: 11294
B91: Viborg | C91: 71843 | D91: 72049 | E91: 71917 | F91: 71667 | G91: 70971 | H91: 70291 | I91: 70042 | J91: 70413 | K91: 69990 | L91: 68988 | M91: 68368 | N91: 67707 | O91: 67151 | P91: 66758 | Q91: 66391 | R91: 66051 | S91: 65667 | T91: 65284 | U91: 65029 | V91: 64764 | W91: 64525 | X91: 64355 | Y91: 64169 | Z91: 63992 | AA91: 63881 | AB91: 63806 | AC91: 63760 | AD91: 63773 | AE91: 63858 | AF91: 63844 | AG91: 63834 | AH91: 63871 | AI91: 63821 | AJ91: 63732 | AK91: 63603
B92: Brønderslev | C92: 26101 | D92: 26068 | E92: 26085 | F92: 26073 | G92: 25909 | H92: 25676 | I92: 25561 | J92: 25778 | K92: 25701 | L92: 25377 | M92: 25204 | N92: 25086 | O92: 24959 | P92: 24900 | Q92: 24850 | R92: 24867 | S92: 24845 | T92: 24849 | U92: 24837 | V92: 24858 | W92: 24876 | X92: 24898 | Y92: 24937 | Z92: 24942 | AA92: 24983 | AB92: 25034 | AC92: 25103 | AD92: 25148 | AE92: 25223 | AF92: 25273 | AG92: 25321 | AH92: 25332 | AI92: 25330 | AJ92: 25321 | AK92: 25287
B93: Frederikshavn | C93: 40975 | D93: 40775 | E93: 40248 | F93: 39849 | G93: 39243 | H93: 38361 | I93: 37935 | J93: 37757 | K93: 37219 | L93: 36543 | M93: 35975 | N93: 35384 | O93: 34940 | P93: 34614 | Q93: 34347 | R93: 34130 | S93: 33905 | T93: 33648 | U93: 33505 | V93: 33301 | W93: 33146 | X93: 33031 | Y93: 32926 | Z93: 32817 | AA93: 32776 | AB93: 32737 | AC93: 32736 | AD93: 32715 | AE93: 32710 | AF93: 32711 | AG93: 32701 | AH93: 32689 | AI93: 32632 | AJ93: 32557 | AK93: 32476
B94: Hjørring | C94: 46702 | D94: 46277 | E94: 45873 | F94: 45104 | G94: 44616 | H94: 43910 | I94: 43272 | J94: 43211 | K94: 42706 | L94: 42039 | M94: 41551 | N94: 41052 | O94: 40644 | P94: 40419 | Q94: 40197 | R94: 39990 | S94: 39788 | T94: 39543 | U94: 39410 | V94: 39260 | W94: 39147 | X94: 39030 | Y94: 38999 | Z94: 38919 | AA94: 38864 | AB94: 38842 | AC94: 38840 | AD94: 38865 | AE94: 38915 | AF94: 38952 | AG94: 38942 | AH94: 38939 | AI94: 38926 | AJ94: 38885 | AK94: 38808
B95: Jammerbugt | C95: 27165 | D95: 27068 | E95: 26945 | F95: 26601 | G95: 26382 | H95: 26042 | I95: 25908 | J95: 25786 | K95: 25608 | L95: 25237 | M95: 24947 | N95: 24686 | O95: 24487 | P95: 24361 | Q95: 24231 | R95: 24125 | S95: 24023 | T95: 23920 | U95: 23837 | V95: 23787 | W95: 23724 | X95: 23691 | Y95: 23647 | Z95: 23592 | AA95: 23552 | AB95: 23561 | AC95: 23568 | AD95: 23595 | AE95: 23662 | AF95: 23677 | AG95: 23694 | AH95: 23706 | AI95: 23682 | AJ95: 23658 | AK95: 23625
B96: Læsø | C96: 987 | D96: 953 | E96: 938 | F96: 930 | G96: 906 | H96: 883 | I96: 883 | J96: 902 | K96: 874 | L96: 853 | M96: 849 | N96: 840 | O96: 819 | P96: 813 | Q96: 801 | R96: 800 | S96: 790 | T96: 776 | U96: 776 | V96: 768 | W96: 763 | X96: 766 | Y96: 760 | Z96: 757 | AA96: 759 | AB96: 757 | AC96: 755 | AD96: 765 | AE96: 777 | AF96: 770 | AG96: 775 | AH96: 779 | AI96: 775 | AJ96: 783 | AK96: 784
B97: Mariagerfjord | C97: 30378 | D97: 30075 | E97: 29880 | F97: 29490 | G97: 29090 | H97: 28619 | I97: 28481 | J97: 28426 | K97: 28133 | L97: 27698 | M97: 27390 | N97: 27060 | O97: 26827 | P97: 26630 | Q97: 26521 | R97: 26414 | S97: 26301 | T97: 26212 | U97: 26144 | V97: 26094 | W97: 26001 | X97: 25966 | Y97: 25966 | Z97: 25949 | AA97: 25968 | AB97: 25975 | AC97: 26014 | AD97: 26036 | AE97: 26082 | AF97: 26122 | AG97: 26150 | AH97: 26168 | AI97: 26183 | AJ97: 26166 | AK97: 26128
B98: Morsø | C98: 14128 | D98: 14046 | E98: 13778 | F98: 13591 | G98: 13418 | H98: 13183 | I98: 13104 | J98: 12930 | K98: 12761 | L98: 12539 | M98: 12371 | N98: 12230 | O98: 12130 | P98: 12041 | Q98: 11972 | R98: 11900 | S98: 11849 | T98: 11775 | U98: 11737 | V98: 11704 | W98: 11679 | X98: 11677 | Y98: 11682 | Z98: 11695 | AA98: 11695 | AB98: 11686 | AC98: 11713 | AD98: 11727 | AE98: 11755 | AF98: 11786 | AG98: 11800 | AH98: 11816 | AI98: 11811 | AJ98: 11812 | AK98: 11779
B99: Rebild | C99: 21884 | D99: 21946 | E99: 22223 | F99: 22269 | G99: 22336 | H99: 22548 | I99: 22499 | J99: 22645 | K99: 22695 | L99: 22581 | M99: 22578 | N99: 22616 | O99: 22696 | P99: 22819 | Q99: 22960 | R99: 23090 | S99: 23209 | T99: 23319 | U99: 23453 | V99: 23568 | W99: 23668 | X99: 23785 | Y99: 23919 | Z99: 24034 | AA99: 24141 | AB99: 24237 | AC99: 24322 | AD99: 24411 | AE99: 24513 | AF99: 24592 | AG99: 24642 | AH99: 24647 | AI99: 24659 | AJ99: 24640 | AK99: 24612
B100: Thisted | C100: 31199 | D100: 30815 | E100: 30458 | F100: 30181 | G100: 29786 | H100: 29321 | I100: 29131 | J100: 29236 | K100: 28999 | L100: 28648 | M100: 28376 | N100: 28132 | O100: 27925 | P100: 27792 | Q100: 27691 | R100: 27647 | S100: 27591 | T100: 27526 | U100: 27510 | V100: 27559 | W100: 27525 | X100: 27523 | Y100: 27508 | Z100: 27523 | AA100: 27556 | AB100: 27573 | AC100: 27652 | AD100: 27698 | AE100: 27769 | AF100: 27812 | AG100: 27837 | AH100: 27852 | AI100: 27846 | AJ100: 27832 | AK100: 27780
B101: Vesthimmerlands | C101: 26734 | D101: 26500 | E101: 26307 | F101: 25973 | G101: 25388 | H101: 24849 | I101: 24669 | J101: 24677 | K101: 24371 | L101: 23893 | M101: 23593 | N101: 23298 | O101: 23069 | P101: 22850 | Q101: 22688 | R101: 22558 | S101: 22434 | T101: 22308 | U101: 22229 | V101: 22171 | W101: 22057 | X101: 21996 | Y101: 21948 | Z101: 21927 | AA101: 21874 | AB101: 21868 | AC101: 21863 | AD101: 21875 | AE101: 21926 | AF101: 21935 | AG101: 21927 | AH101: 21909 | AI101: 21885 | AJ101: 21850 | AK101: 21792
B102: Aalborg | C102: 162695 | D102: 163698 | E102: 164651 | F102: 165616 | G102: 166716 | H102: 168291 | I102: 169190 | J102: 169956 | K102: 170634 | L102: 170512 | M102: 170924 | N102: 171303 | O102: 172005 | P102: 172788 | Q102: 173736 | R102: 174542 | S102: 175216 | T102: 175647 | U102: 176193 | V102: 176603 | W102: 176902 | X102: 177385 | Y102: 177993 | Z102: 178650 | AA102: 179302 | AB102: 180004 | AC102: 180754 | AD102: 181423 | AE102: 182115 | AF102: 182760 | AG102: 183302 | AH102: 183891 | AI102: 184492 | AJ102: 185090 | AK102: 185580
A103: 60-64 | B103: København | C103: 23000 | D103: 23216 | E103: 23540 | F103: 23788 | G103: 24110 | H103: 24700 | I103: 25157 | J103: 26140 | K103: 27384 | L103: 28522 | M103: 29800 | N103: 31146 | O103: 32101 | P103: 32201 | Q103: 31938 | R103: 31619 | S103: 31428 | T103: 31812 | U103: 32315 | V103: 33211 | W103: 33899 | X103: 33803 | Y103: 33098 | Z103: 32797 | AA103: 32149 | AB103: 31377 | AC103: 30745 | AD103: 30274 | AE103: 29555 | AF103: 29085 | AG103: 28948 | AH103: 29203 | AI103: 29572 | AJ103: 30307 | AK103: 31085
B104: Frederiksberg | C104: 4644 | D104: 4656 | E104: 4604 | F104: 4623 | G104: 4659 | H104: 4790 | I104: 4793 | J104: 4956 | K104: 5194 | L104: 5414 | M104: 5721 | N104: 6011 | O104: 6204 | P104: 6157 | Q104: 5983 | R104: 5863 | S104: 5787 | T104: 5769 | U104: 5847 | V104: 6003 | W104: 6073 | X104: 5975 | Y104: 5862 | Z104: 5720 | AA104: 5540 | AB104: 5316 | AC104: 5142 | AD104: 4948 | AE104: 4788 | AF104: 4644 | AG104: 4549 | AH104: 4548 | AI104: 4569 | AJ104: 4622 | AK104: 4725
